Workbook

Sheet guide
B2: Package: ac.stats.var Available functions for term structure estimation:

Sheet calc
B2: TAB: VAR REGRESSION CALCULATOR
B4: A. Inputs and Calculator:
B6: parameters | L6: Parameter | M6: Date | N6: Value | P6: Parameter | R6: Value
B7: add-constant | C7: 1 | E7: =_xll.AC.data.map(B7:B7, C7:C7) -> java.util.LinkedHashMap@Tue, 23 Jan 2018 21:43:35:819..940910025344908797 | L7: End date | M7: ='data, adj'!B29 -> 2017-06-30 | N7: =MATCH(M7, 'data, adj'!B7:B118, 0) -> 23
L8: Start date | M8: =OFFSET('data, adj'!B6, N8, 0) -> 1997-06-30 | N8: =R8+N7 -> 103 | P8: Sample size | R8: =COUNT('data, adj'!B35:B114) -> 80
B9: Calculator objects | L9: Numbr of lags (p) | N9: 1 | P9: Projections horizon | R9: 20
B10: =_xll.AC.data.list_xx(OFFSET('data, adj'!M6, N7, 0, R8, N10), 1) -> java.util.ArrayList@Tue, 23 Jan 2018 21:47:27:532..2453772618083353766 | L10: Number of variables | N10: 7 | P10: Backtesting horizon | R10: 4
B11: =_xll.AC.stats.reg.var(B10, N9, R9, R10, E7) -> jmathkr.lib.jmc.objects.stats.regression.linear.OutputVAR@Tue, 23 Jan 2018 21:49:54:542..5637620229310257013
B14: B. Output
B16: Regression coefficients | C16: - | D16: 1 | E16: =D16+1 -> 2 | F16: =E16+1 -> 3 | G16: 4 | H16: 5 | I16: 6 | J16: 7 | L16: Steady state
B17: Variable | C17: Const | D17: =data!E6 -> CA | E17: =data!F6 -> AB | F17: =data!G6 -> BC | G17: =data!H6 -> MB | H17: =data!I6 -> ON | I17: =data!J6 -> QC | J17: =data!K6 -> SK | M17: =D17 -> CA | N17: =E17 -> AB | O17: =F17 -> BC | P17: =G17 -> MB | Q17: ON | R17: QC | S17: SK
C18: =_xll.AC.stats.reg._get(B11, config!B7, 0) -> COEFFS | L18: Model | M18: =_xll.AC.stats.reg._get(B11, config!B9, 1) -> 0.01535520021 | N18: 0.01504809302 | O18: 0.01547957816 | P18: 0.01559634493 | Q18: 0.0157889849 | R18: 0.0135338765 | S18: 0.01666330349
B19: =OFFSET($C$17, 0, V19) -> CA | C19: 0.01083587515 | D19: 0.6066909506 | E19: -0.03259261226 | F19: -0.008754933571 | G19: 0.08901054932 | H19: -0.1744843865 | I19: -0.0607024524 | J19: -0.118963506 | L19: Third-party | M19: ='data, adj'!F5 -> 0.008489112982 | N19: ='data, adj'!G5 -> 0.005876538396 | O19: ='data, adj'!H5 -> 0.00780153199 | P19: ='data, adj'!I5 -> 0.01147270309 | Q19: ='data, adj'!J5 -> 0.01035595935 | R19: ='data, adj'!K5 -> 0.008453187507 | S19: ='data, adj'!L5 -> 0.004381627945 | V19: 1
B20: AB | C20: 0.002420232168 | D20: -0.1312847946 | E20: 0.6228348451 | F20: 0.1178687077 | G20: 0.2335319098 | H20: 0.1172395263 | I20: 0.1284490397 | J20: -0.2271470463 | L20: Historical average | M20: =AVERAGE('data, adj'!M35:M114) -> 0.01401272335 | N20: =AVERAGE('data, adj'!N35:N114) -> 0.0152480735 | O20: =AVERAGE('data, adj'!O35:O114) -> 0.0142124716 | P20: =AVERAGE('data, adj'!P35:P114) -> 0.01473145479 | Q20: =AVERAGE('data, adj'!Q35:Q114) -> 0.01397457059 | R20: =AVERAGE('data, adj'!R35:R114) -> 0.01334857014 | S20: =AVERAGE('data, adj'!S35:S114) -> 0.01692077165 | V20: =V19+1 -> 2
B21: BC | C21: 0.0063511253 | D21: 1.061424808 | E21: -0.07862749556 | F21: -0.08031242532 | G21: 0.2265220174 | H21: -0.3486048166 | I21: -0.06606546792 | J21: -0.1127158663 | V21: =V20+1 -> 3
B22: MB | C22: 0.00935925379 | D22: -0.1314269685 | E22: 0.1385869267 | F22: 0.1692105451 | G22: -0.2695151352 | H22: -0.007412493168 | I22: 0.317650755 | J22: 0.2143537988 | L22: Eigen-values | V22: 4
B23: ON | C23: 0.01560406956 | D23: 0.6380088847 | E23: -0.06026251903 | F23: -0.1125666611 | G23: 0.0830059071 | H23: -0.2267209867 | I23: -0.2685465233 | J23: -0.06258887633 | L23: RE | M23: =_xll.AC.stats.reg._get(B11, config!B10, 0) -> 0.5824801265 | N23: 0.5824801265 | O23: 0.4222565402 | P23: -0.2904669958 | Q23: 0.06141291656 | R23: 0.06141291656 | S23: -0.08874492943 | V23: 5
B24: QC | C24: 0.007498413345 | D24: -0.1211942512 | E24: 0.1191713171 | F24: 0.1006853547 | G24: -0.008170489828 | H24: 0.1575078703 | I24: 0.2307281162 | J24: -0.05626424378 | L24: IM | M24: -0.1520358298 | N24: 0.1520358298 | O24: 0 | P24: 0 | Q24: -0.1179713862 | R24: 0.1179713862 | S24: 0 | V24: 6
B25: SK | C25: 0.006978700393 | D25: 0.1156375592 | E25: 0.1891560483 | F25: 0.02371793312 | G25: -0.05849547691 | H25: -0.1062557789 | I25: -0.0122075034 | J25: 0.4471253367 | L25: ABS | M25: =SQRT(M23*M23+M24*M24) -> 0.6019950094 | N25: 0.6019950094 | O25: 0.4222565402 | P25: 0.2904669958 | Q25: 0.1329992266 | R25: 0.1329992266 | S25: 0.08874492943 | V25: 7
C26: STDEV
B27: =B19 -> CA | C27: 0.003284969546 | D27: 0.3045760544 | E27: 0.09832477726 | F27: 0.1404164427 | G27: 0.1031736455 | H27: 0.1842397777 | I27: 0.1551216435 | J27: 0.08962076622 | L27: Mean square error | V27: =V19 -> 1
B28: AB | C28: 0.00318158286 | D28: 0.2949902398 | E28: 0.09523023626 | F28: 0.1359971656 | G28: 0.09992649782 | H28: 0.1784412643 | I28: 0.1502395548 | J28: 0.0868001635 | L28: RMSE | M28: =_xll.AC.stats.reg._get(B11, config!B18, 1) -> 0.020822963 | N28: 0.02260687274 | O28: 0.03518829385 | P28: 0.0218866789 | Q28: 0.02155699735 | R28: 0.01450507547 | S28: 0.02383427311 | V28: =V20 -> 2
B29: BC | C29: 0.00548487646 | D29: 0.5085471898 | E29: 0.1641717674 | F29: 0.2344517447 | G29: 0.1722678678 | H29: 0.3076230709 | I29: 0.2590048519 | J29: 0.1496387787 | L29: RMSE cumulative | M29: =_xll.AC.stats.reg._get(B11, config!B19, 1) -> 0.06104753884 | N29: 0.05729045921 | O29: 0.09361154861 | P29: 0.03547916167 | Q29: 0.04725074674 | R29: 0.03071563236 | S29: 0.05775746345 | V29: 3
B30: MB | C30: 0.003598086247 | D30: 0.3336076323 | E30: 0.1076968976 | F30: 0.1538006561 | G30: 0.1130079502 | H30: 0.2018011434 | I30: 0.1699075271 | J30: 0.09816323769 | V30: 4
B31: ON | C31: 0.003746239158 | D31: 0.3473440851 | E31: 0.1121313685 | F31: 0.1601334712 | G31: 0.1176611063 | H31: 0.2101104013 | I31: 0.1769035502 | J31: 0.1022051556 | V31: 5
B32: QC | C32: 0.002502952678 | D32: 0.2320689554 | E32: 0.07491767003 | F32: 0.1069890318 | G32: 0.07861222112 | H32: 0.1403798235 | I32: 0.1181935259 | J32: 0.06828572796 | V32: 6
B33: SK | C33: 0.0039498413 | D33: 0.3662216839 | E33: 0.1182255301 | F33: 0.1688364707 | G33: 0.1240558003 | H33: 0.2215295676 | I33: 0.1865179769 | J33: 0.1077598434 | V33: 7
C34: T-STATS | L34: Statistics | M34: =M17 -> CA | N34: =N17 -> AB | O34: BC | P34: MB | Q34: ON | R34: QC | S34: SK
B35: =B27 -> CA | C35: 3.298622712 | D35: 1.991919397 | E35: -0.3314791365 | F35: -0.06234977472 | G35: 0.8627256395 | H35: -0.9470505701 | I35: -0.3913216172 | J35: -1.327410053 | L35: =_xll.FS("Reg._get", B11, config!B8, 0) -> #Unknown function: Reg._get | M35: #Unknown function: Reg._get | N35: #Unknown function: Reg._get | O35: #Unknown function: Reg._get | P35: #Unknown function: Reg._get | Q35: #Unknown function: Reg._get | R35: #Unknown function: Reg._get | S35: #Unknown function: Reg._get | V35: =V27 -> 1
B36: AB | C36: 0.7607006558 | D36: -0.4450479268 | E36: 6.540305574 | F36: 0.8666997372 | G36: 2.337036871 | H36: 0.6570202625 | I36: 0.8549615304 | J36: -2.616896526 | L36: #Unknown function: Reg._get | M36: #Unknown function: Reg._get | N36: #Unknown function: Reg._get | O36: #Unknown function: Reg._get | P36: #Unknown function: Reg._get | Q36: #Unknown function: Reg._get | R36: #Unknown function: Reg._get | S36: #Unknown function: Reg._get | V36: =V28 -> 2
B37: BC | C37: 1.157934066 | D37: 2.087170727 | E37: -0.4789343308 | F37: -0.3425541808 | G37: 1.314940623 | H37: -1.133220651 | I37: -0.2550742483 | J37: -0.7532530491 | L37: #Unknown function: Reg._get | M37: #Unknown function: Reg._get | N37: #Unknown function: Reg._get | O37: #Unknown function: Reg._get | P37: #Unknown function: Reg._get | Q37: #Unknown function: Reg._get | R37: #Unknown function: Reg._get | S37: #Unknown function: Reg._get | V37: 3
B38: MB | C38: 2.601175499 | D38: -0.3939567198 | E38: 1.28682376 | F38: 1.10019391 | G38: -2.384921898 | H38: -0.03673167081 | I38: 1.869550811 | J38: 2.183646382 | L38: #Unknown function: Reg._get | M38: #Unknown function: Reg._get | N38: #Unknown function: Reg._get | O38: #Unknown function: Reg._get | P38: #Unknown function: Reg._get | Q38: #Unknown function: Reg._get | R38: #Unknown function: Reg._get | S38: #Unknown function: Reg._get | V38: 4
B39: ON | C39: 4.165262521 | D39: 1.836820928 | E39: -0.5374278387 | F39: -0.70295523 | G39: 0.7054659753 | H39: -1.079056464 | I39: -1.518039197 | J39: -0.6123847269 | L39: #Unknown function: Reg._get | M39: #Unknown function: Reg._get | N39: #Unknown function: Reg._get | O39: #Unknown function: Reg._get | P39: #Unknown function: Reg._get | Q39: #Unknown function: Reg._get | R39: #Unknown function: Reg._get | S39: #Unknown function: Reg._get | V39: 5
B40: QC | C40: 2.995827053 | D40: -0.5222337948 | E40: 1.590697055 | F40: 0.9410810904 | G40: -0.1039340921 | H40: 1.12201217 | I40: 1.952121442 | J40: -0.8239531958 | L40: #Unknown function: Reg._get | M40: #Unknown function: Reg._get | N40: #Unknown function: Reg._get | O40: #Unknown function: Reg._get | P40: #Unknown function: Reg._get | Q40: #Unknown function: Reg._get | R40: #Unknown function: Reg._get | S40: #Unknown function: Reg._get | V40: 6
B41: SK | C41: 1.76683058 | D41: 0.3157583626 | E41: 1.599959401 | F41: 0.1404787308 | G41: -0.4715255292 | H41: -0.4796460359 | I41: -0.06544947355 | J41: 4.149276045 | V41: 7
C42: P-VALUE
B43: =B35 -> CA | C43: 0.001458467956 | D43: 0.04983519588 | E43: 0.7411603361 | F43: 0.9504417721 | G43: 0.3908998207 | H43: 0.3465009186 | I43: 0.696612999 | J43: 0.1881963952 | V43: =V35 -> 1
B44: AB | C44: 0.4491004384 | D44: 0.6575021746 | E44: 5.574023465e-09 | F44: 0.3887313423 | G44: 0.02197098187 | H44: 0.513077457 | I44: 0.3951578799 | J44: 0.01062911628 | V44: =V36 -> 2
B45: BC | C45: 0.2503797122 | D45: 0.04009687173 | E45: 0.6333083513 | F45: 0.7328436301 | G45: 0.1923341439 | H45: 0.2605490599 | I45: 0.7993286325 | J45: 0.4535368661 | V45: 3
B46: MB | C46: 0.01108750146 | D46: 0.6946743649 | E46: 0.2019136666 | F46: 0.2745888523 | G46: 0.01947925072 | H46: 0.9707916149 | I46: 0.06525144376 | J46: 0.0319555281 | V46: 4
B47: ON | C47: 7.880145199e-05 | D47: 0.06999737641 | E47: 0.592482754 | F47: 0.4841500675 | G47: 0.4825953194 | H47: 0.2838461384 | I47: 0.1329963951 | J47: 0.5420419483 | V47: 5
B48: QC | C48: 0.003655225164 | D48: 0.6029689074 | E48: 0.1156717971 | F48: 0.349532121 | G48: 0.9174850594 | H48: 0.2652559888 | I48: 0.05446690505 | J48: 0.4124468152 | V48: 6
B49: SK | C49: 0.0811189762 | D49: 0.7530186075 | E49: 0.1135994433 | F49: 0.8886393232 | G49: 0.6385651547 | H49: 0.6328043579 | I49: 0.9479814769 | J49: 8.345185442e-05 | V49: 7
M131: =IF(N131="", "", OFFSET(data!#REF!, N131, 0)) ->  | N131: =IF(N130="", "", IF(N130+1>$N$8, "", N130+1)) -> 
M132: =IF(N132="", "", OFFSET(data!#REF!, N132, 0)) -> 
M133: =IF(N133="", "", OFFSET(data!#REF!, N133, 0)) -> 
M134: =IF(N134="", "", OFFSET(data!#REF!, N134, 0)) -> 
M135: =IF(N135="", "", OFFSET(data!#REF!, N135, 0)) -> 
M136: =IF(N136="", "", OFFSET(data!#REF!, N136, 0)) -> 
M137: =IF(N137="", "", OFFSET(data!#REF!, N137, 0)) -> 
M138: =IF(N138="", "", OFFSET(data!#REF!, N138, 0)) -> 
M139: =IF(N139="", "", OFFSET(data!#REF!, N139, 0)) -> 
M140: =IF(N140="", "", OFFSET(data!#REF!, N140, 0)) -> 
M141: =IF(N141="", "", OFFSET(data!#REF!, N141, 0)) -> 
M142: =IF(N142="", "", OFFSET(data!#REF!, N142, 0)) -> 
M143: =IF(N143="", "", OFFSET(data!#REF!, N143, 0)) -> 
M144: =IF(N144="", "", OFFSET(data!#REF!, N144, 0)) -> 
M145: =IF(N145="", "", OFFSET(data!#REF!, N145, 0)) -> 
M146: =IF(N146="", "", OFFSET(data!#REF!, N146, 0)) -> 
M147: =IF(N147="", "", OFFSET(data!#REF!, N147, 0)) -> 
M148: =IF(N148="", "", OFFSET(data!#REF!, N148, 0)) -> 
M149: =IF(N149="", "", OFFSET(data!#REF!, N149, 0)) -> 
M150: =IF(N150="", "", OFFSET(data!#REF!, N150, 0)) -> 
M151: =IF(N151="", "", OFFSET(data!#REF!, N151, 0)) -> 
M152: =IF(N152="", "", OFFSET(data!#REF!, N152, 0)) -> 
M153: =IF(N153="", "", OFFSET(data!#REF!, N153, 0)) -> 
M154: =IF(N154="", "", OFFSET(data!#REF!, N154, 0)) -> 
M155: =IF(N155="", "", OFFSET(data!#REF!, N155, 0)) -> 
M156: =IF(N156="", "", OFFSET(data!#REF!, N156, 0)) -> 
M157: =IF(N157="", "", OFFSET(data!#REF!, N157, 0)) -> 
M158: =IF(N158="", "", OFFSET(data!#REF!, N158, 0)) -> 
M159: =IF(N159="", "", OFFSET(data!#REF!, N159, 0)) -> 
M160: =IF(N160="", "", OFFSET(data!#REF!, N160, 0)) -> 
M161: =IF(N161="", "", OFFSET(data!#REF!, N161, 0)) -> 
M162: =IF(N162="", "", OFFSET(data!#REF!, N162, 0)) -> 
M163: =IF(N163="", "", OFFSET(data!#REF!, N163, 0)) -> 
M164: =IF(N164="", "", OFFSET(data!#REF!, N164, 0)) -> 
M165: =IF(N165="", "", OFFSET(data!#REF!, N165, 0)) -> 
M166: =IF(N166="", "", OFFSET(data!#REF!, N166, 0)) -> 
M167: =IF(N167="", "", OFFSET(data!#REF!, N167, 0)) -> 
M168: =IF(N168="", "", OFFSET(data!#REF!, N168, 0)) -> 
M169: =IF(N169="", "", OFFSET(data!#REF!, N169, 0)) -> 
M170: =IF(N170="", "", OFFSET(data!#REF!, N170, 0)) -> 
M171: =IF(N171="", "", OFFSET(data!#REF!, N171, 0)) -> 

Sheet project
B2: TAB: PROJECTED VALUES, 90% CONFIDENCE BAND | T2: =COLUMNS('data, adj'!B6:F6) -> 5 | U2: =T2+1 -> 6 | V2: =U2+1 -> 7 | W2: 8 | X2: 9 | Y2: 10 | Z2: 11 | AB2: =NORMINV(0.95, 0, 1) -> 1.644853627
T3: Average values | AB3: Lower bound
B4: Projections - value | K4: Cumulative projections - value | T4: Average projected cumulative values | AB4: Lower range of projected cumulative values
B5: Date | C5: =calc!M17 -> CA | D5: =calc!N17 -> AB | E5: =calc!O17 -> BC | F5: =calc!P17 -> MB | G5: =calc!Q17 -> ON | H5: =calc!R17 -> QC | I5: =calc!S17 -> SK | K5: =B5 -> Date | L5: =C5 -> CA | M5: =D5 -> AB | N5: BC | O5: MB | P5: ON | Q5: QC | R5: SK | T5: =L5 -> CA | U5: =M5 -> AB | V5: BC | W5: MB | X5: ON | Y5: QC | Z5: SK | AB5: =L5 -> CA | AC5: AB | AD5: BC | AE5: MB | AF5: ON | AG5: QC | AH5: SK
B6: =calc!M7 -> 2017-06-30 | C6: =_xll.AC.stats.reg._get(calc!B11, config!B12, 0) -> 0.008635590022 | D6: 0.01615050382 | E6: 0.1137734068 | F6: -0.005324622492 | G6: -0.05624844224 | H6: 0.01655894444 | I6: 0.01187169433 | K6: =B6 -> 2017-06-30 | L6: =_xll.AC.stats.reg._get(calc!B11, config!B13, 0) -> 0 | M6: 0 | N6: 0 | O6: 0 | P6: 0 | Q6: 0 | R6: 0 | T6: =VLOOKUP($K6, 'data, adj'!$B$7:$S$118, T$2, FALSE) -> 13.14894104 | U6: =VLOOKUP($K6, 'data, adj'!$B$7:$S$118, U$2, FALSE) -> 12.90384163 | V6: =VLOOKUP($K6, 'data, adj'!$B$7:$S$118, V$2, FALSE) -> 13.48146757 | W6: =VLOOKUP($K6, 'data, adj'!$B$7:$S$118, W$2, FALSE) -> 12.55723995 | X6: =VLOOKUP($K6, 'data, adj'!$B$7:$S$118, X$2, FALSE) -> 13.27438035 | Y6: =VLOOKUP($K6, 'data, adj'!$B$7:$S$118, Y$2, FALSE) -> 12.59727316 | Z6: =VLOOKUP($K6, 'data, adj'!$B$7:$S$118, Z$2, FALSE) -> 12.59287807 | AB6: =T6 -> 13.14894104 | AC6: =U6 -> 12.90384163 | AD6: 13.48146757 | AE6: 12.55723995 | AF6: 13.27438035 | AG6: 12.59727316 | AH6: 12.59287807
B7: =DATE(YEAR(B6), MONTH(B6)+4, 0) -> 2017-09-30 | C7: 0.02147560419 | D7: 0.0163482817 | E7: 0.02108009381 | F7: 0.03937092477 | G7: 0.0144541344 | H7: 0.01416841669 | I7: 0.02512491481 | K7: =B7 -> 2017-09-30 | L7: 0.008635590022 | M7: 0.01615050382 | N7: 0.1137734068 | O7: -0.005324622492 | P7: -0.05624844224 | Q7: 0.01655894444 | R7: 0.01187169433 | T7: =T$6+L7 -> 13.15757663 | U7: =U$6+M7 -> 12.91999213 | V7: =V$6+N7 -> 13.59524098 | W7: =W$6+O7 -> 12.55191533 | X7: =X$6+P7 -> 13.21813191 | Y7: =Y$6+Q7 -> 12.61383211 | Z7: =Z$6+R7 -> 12.60474977 | AB7: =T7-$AB$2*SQRT(L31) -> 13.12765025 | AC7: =U7-$AB$2*SQRT(M31) -> 12.89100761 | AD7: =V7-$AB$2*SQRT(N31) -> 13.54527323 | AE7: =W7-$AB$2*SQRT(O31) -> 12.51913642 | AF7: =X7-$AB$2*SQRT(P31) -> 13.18400332 | AG7: =Y7-$AB$2*SQRT(Q31) -> 12.59102997 | AH7: =Z7-$AB$2*SQRT(R31) -> 12.56876634
B8: 2017-12-31 | C8: 0.02028094312 | D8: 0.01926960725 | E8: 0.02627902726 | F8: 0.01153744043 | G8: 0.02056113591 | H8: 0.01277677451 | I8: 0.02027660813 | K8: 2017-12-31 | L8: 0.03011119421 | M8: 0.03249878552 | N8: 0.1348535006 | O8: 0.03404630228 | P8: -0.04179430784 | Q8: 0.03072736114 | R8: 0.03699660914 | T8: =T$6+L8 -> 13.17905224 | U8: 12.93634041 | V8: 13.61632107 | W8: 12.59128625 | X8: 13.23258605 | Y8: 12.62800052 | Z8: 12.62987468 | AB8: 13.12556389 | AC8: 12.88144398 | AD8: 13.53061209 | AE8: 12.54638495 | AF8: 13.18070533 | AG8: 12.59153008 | AH8: 12.56528681
B9: 2018-03-31 | C9: 0.01653362062 | D9: 0.01699724164 | E9: 0.01656834231 | F9: 0.01895399105 | G9: 0.01601990023 | H9: 0.01493416456 | I9: 0.01964277125 | K9: 2018-03-31 | L9: 0.05039213734 | M9: 0.05176839278 | N9: 0.1611325278 | O9: 0.0455837427 | P9: -0.02123317193 | Q9: 0.04350413564 | R9: 0.05727321727 | T9: 13.19933318 | U9: 12.95561002 | V9: 13.6426001 | W9: 12.60282369 | X9: 13.25314718 | Y9: 12.6407773 | Z9: 12.65015129 | AB9: 13.12569209 | AC9: 12.87507114 | AD9: 13.52596848 | AE9: 12.5453613 | AF9: 13.18754631 | AG9: 12.59313129 | AH9: 12.56099695
B10: 2018-06-30 | C10: 0.01581620327 | D10: 0.01654999151 | E10: 0.01674142345 | F10: 0.01607264029 | G10: 0.01596463552 | H10: 0.01389734963 | I10: 0.01828824795 | K10: 2018-06-30 | L10: 0.06692575796 | M10: 0.06876563442 | N10: 0.1777008702 | O10: 0.06453773375 | P10: -0.005213271704 | Q10: 0.05843830021 | R10: 0.07691598852 | T10: 13.2158668 | U10: 12.97260726 | V10: 13.65916844 | W10: 12.62177768 | X10: 13.26916708 | Y10: 12.65571146 | Z10: 12.66979406 | AB10: 13.12492571 | AC10: 12.86766346 | AD10: 13.51583281 | AE10: 12.55297348 | AF10: 13.19185944 | AG10: 12.59821796 | AH10: 12.55946953
B11: 2018-09-30 | C11: 0.01537126265 | D11: 0.01588114692 | E11: 0.01558895455 | F11: 0.01629151744 | G11: 0.0156509578 | H11: 0.01380025013 | I11: 0.01770622603 | K11: 2018-09-30 | L11: 0.08274196122 | M11: 0.08531562593 | N11: 0.1944422936 | O11: 0.08061037404 | P11: 0.01075136382 | Q11: 0.07233564984 | R11: 0.09520423647 | T11: 13.231683 | U11: 12.98915726 | V11: 13.67590986 | W11: 12.63785032 | X11: 13.28513172 | Y11: 12.66960881 | Z11: 12.68808231 | AB11: 13.12575538 | AC11: 12.86157783 | AD11: 13.50925473 | AE11: 12.55851088 | AF11: 13.1976411 | AG11: 12.60324592 | AH11: 12.55929554
B12: 2018-12-31 | C12: 0.01528255817 | D12: 0.01552121271 | E12: 0.01549277878 | F12: 0.01585002372 | G12: 0.01568890682 | H12: 0.01361757894 | I12: 0.01726239934 | K12: 2018-12-31 | L12: 0.09811322387 | M12: 0.1011967728 | N12: 0.2100312482 | O12: 0.09690189148 | P12: 0.02640232162 | Q12: 0.08613589997 | R12: 0.1129104625 | T12: 13.24705427 | U12: 13.0050384 | V12: 13.69149882 | W12: 12.65414184 | X12: 13.30078268 | Y12: 12.68340906 | Z12: 12.70578854 | AB12: 13.12793143 | AC12: 12.85670126 | AD12: 13.50417498 | AE12: 12.56510981 | AF12: 13.20422308 | AG12: 12.60898936 | AH12: 12.56063257
B13: 2019-03-31 | C13: 0.01525928383 | D13: 0.01527603881 | E13: 0.01538350779 | F13: 0.01576107212 | G13: 0.0156964132 | H13: 0.01356816077 | I13: 0.01700735384 | K13: 2019-03-31 | L13: 0.113395782 | M13: 0.1167179856 | N13: 0.2255240269 | O13: 0.1127519152 | P13: 0.04209122844 | Q13: 0.09975347892 | R13: 0.1301728618 | T13: 13.26233682 | U13: 13.02055961 | V13: 13.7069916 | W13: 12.66999187 | X13: 13.31647158 | Y13: 12.69702664 | Z13: 12.72305093 | AB13: 13.13139643 | AC13: 12.85324157 | AD13: 13.50105688 | AE13: 12.57200172 | AF13: 13.21169367 | AG13: 12.61523068 | AH13: 12.56315221
B14: 2019-06-30 | C14: 0.01527822455 | D14: 0.01514520403 | E14: 0.01539610331 | F14: 0.01566521376 | G14: 0.01572878776 | H14: 0.01353561868 | I14: 0.01684666628 | K14: 2019-06-30 | L14: 0.1286550659 | M14: 0.1319940244 | N14: 0.2409075347 | O14: 0.1285129873 | P14: 0.05778764164 | Q14: 0.1133216397 | R14: 0.1471802157 | T14: 13.27759611 | U14: 13.03583565 | V14: 13.7223751 | W14: 12.68575294 | X14: 13.332168 | Y14: 12.7105948 | Z14: 12.74005829 | AB14: 13.13590046 | AC14: 12.85111361 | AD14: 13.49943654 | AE14: 12.57945372 | AF14: 13.2198278 | AG14: 12.62199164 | AH14: 12.56669362
B15: 2019-09-30 | C15: 0.01530077977 | D15: 0.01507644285 | E15: 0.01541274508 | F15: 0.01562753803 | G15: 0.01575083823 | H15: 0.01352641465 | I15: 0.01675512416 | K15: 2019-09-30 | L15: 0.1439332904 | M15: 0.1471392284 | N15: 0.256303638 | O15: 0.1441782011 | P15: 0.0735164294 | Q15: 0.1268572584 | R15: 0.164026882 | T15: 13.29287433 | U15: 13.05098086 | V15: 13.73777121 | W15: 12.70141815 | X15: 13.34789678 | Y15: 12.72413042 | Z15: 12.75690495 | AB15: 13.14125368 | AC15: 12.8502086 | AD15: 13.49910077 | AE15: 12.58736789 | AF15: 13.22851305 | AG15: 12.62919473 | AH15: 12.5710911
B16: =DATE(YEAR(B15), MONTH(B15)+4, 0) -> 2019-12-31 | C16: 0.01532080711 | D16: 0.01504601435 | E16: 0.01543546077 | F16: 0.0156053049 | G16: 0.01576757369 | H16: 0.01352397018 | I16: 0.01670416293 | K16: 2019-12-31 | L16: 0.1592340702 | M16: 0.1622156712 | N16: 0.2717163831 | O16: 0.1598057391 | P16: 0.08926726763 | Q16: 0.140383673 | R16: 0.1807820061 | T16: 13.30817511 | U16: 13.0660573 | V16: 13.75318395 | W16: 12.71704569 | X16: 13.36364762 | Y16: 12.73765684 | Z16: 12.77366008 | AB16: 13.14729054 | AC16: 12.85037836 | AD16: 13.49980674 | AE16: 12.59572243 | AF16: 13.23763986 | AG16: 12.63678585 | AH16: 12.57621965
B17: 2020-03-31 | C17: 0.01533506223 | D17: 0.01503514222 | E17: 0.01545232172 | F17: 0.0155964674 | G17: 0.01577783427 | H17: 0.01352532482 | I17: 0.01667802796 | K17: 2020-03-31 | L17: 0.1745548773 | M17: 0.1772616856 | N17: 0.2871518439 | O17: 0.175411044 | P17: 0.1050348413 | Q17: 0.1539076432 | R17: 0.197486169 | T17: 13.32349592 | U17: 13.08110331 | V17: 13.76861941 | W17: 12.73265099 | X17: 13.3794152 | Y17: 12.75118081 | Z17: 12.79036424 | AB17: 13.15388534 | AC17: 12.85147907 | AD17: 13.50137804 | AE17: 12.60446356 | AF17: 13.24713077 | AG17: 12.64470936 | AH17: 12.58197434
B18: 2020-06-30 | C18: 0.01534436736 | D18: 0.01503373617 | E18: 0.01546423072 | F18: 0.01559307417 | G18: 0.01578389849 | H18: 0.01352747054 | I18: 0.01666574433 | K18: 2020-06-30 | L18: 0.1898899395 | M18: 0.1922968278 | N18: 0.3026041656 | O18: 0.1910075114 | P18: 0.1208126756 | Q18: 0.167432968 | R18: 0.214164197 | T18: 13.33883098 | U18: 13.09613846 | V18: 13.78407173 | W18: 12.74824746 | X18: 13.39519303 | Y18: 12.76470613 | Z18: 12.80704227 | AB18: 13.16094177 | AC18: 12.8533794 | AD18: 13.5036726 | AE18: 12.61354702 | AF18: 13.25692577 | AG18: 12.65291926 | AH18: 12.5882701
B19: 2020-09-30 | C19: 0.01534992516 | D19: 0.01503602685 | E19: 0.01547162167 | F19: 0.01559258961 | G19: 0.01578711547 | H19: 0.0135295434 | I19: 0.01666087246 | K19: 2020-09-30 | L19: 0.2052343069 | M19: 0.207330564 | N19: 0.3180683963 | O19: 0.2066005856 | P19: 0.1365965741 | Q19: 0.1809604385 | R19: 0.2308299413 | T19: 13.35417535 | U19: 13.11117219 | V19: 13.79953596 | W19: 12.76384054 | X19: 13.41097693 | Y19: 12.7782336 | Z19: 12.82370801 | AB19: 13.16838736 | AC19: 12.85596675 | AD19: 13.50658222 | AE19: 12.62293089 | AF19: 13.26698013 | AG19: 12.66137673 | AH19: 12.59503691
B20: 2020-12-31 | C20: 0.01535300697 | D20: 0.01503923196 | E20: 0.01547592815 | F20: 0.01559314814 | G20: 0.01578867007 | H20: 0.01353115001 | I20: 0.01665960663 | K20: 2020-12-31 | L20: 0.2205842321 | M20: 0.2223665908 | N20: 0.333540018 | O20: 0.2221931752 | P20: 0.1523836895 | Q20: 0.194489982 | R20: 0.2474908138 | T20: 13.36952527 | U20: 13.12620822 | V20: 13.81500759 | W20: 12.77943313 | X20: 13.42676404 | Y20: 12.79176315 | Z20: 12.84036889 | AB20: 13.17616696 | AC20: 12.85914711 | AD20: 13.51002264 | AE20: 12.63257941 | AF20: 13.27725958 | AG20: 12.67005002 | AH20: 12.60221725
B21: 2021-03-31 | C21: 0.01535456604 | D21: 0.01504213781 | E21: 0.0154782225 | F21: 0.01559399295 | G21: 0.01578930005 | H21: 0.01353227428 | I21: 0.01665988795 | K21: 2021-03-31 | L21: 0.235937239 | M21: 0.2374058228 | N21: 0.3490159461 | O21: 0.2377863233 | P21: 0.1681723596 | Q21: 0.208021132 | R21: 0.2641504204 | T21: 13.38487828 | U21: 13.14124745 | V21: 13.83048351 | W21: 12.79502627 | X21: 13.44255271 | Y21: 12.8052943 | Z21: 12.85702849 | AB21: 13.18423806 | AC21: 12.86284328 | AD21: 13.51392791 | AE21: 12.64246205 | AF21: 13.2877375 | AG21: 12.67891316 | AH21: 12.60976355
B22: 2021-06-30 | C22: 0.01535526067 | D22: 0.01504436508 | E22: 0.01547933035 | F22: 0.01559476405 | G22: 0.01578946914 | H22: 0.01353299853 | I22: 0.01666066802 | K22: 2021-06-30 | L22: 0.2512918051 | M22: 0.2524479606 | N22: 0.3644941686 | O22: 0.2533803163 | P22: 0.1839616597 | Q22: 0.2215534062 | R22: 0.2808103084 | T22: 13.40023285 | U22: 13.15628959 | V22: 13.84596174 | W22: 12.81062027 | X22: 13.45834201 | Y22: 12.81882657 | Z22: 12.87368838 | AB22: 13.19256722 | AC22: 12.86699216 | AD22: 13.51824542 | AE22: 12.65255316 | AF22: 13.29839269 | AG22: 12.68794488 | AH22: 12.61763635
B23: 2021-09-30 | C23: 0.01535550218 | D23: 0.01504590743 | E23: 0.01547978351 | F23: 0.01559535708 | G23: 0.01578943575 | H23: 0.01353343486 | I23: 0.0166614728 | K23: 2021-09-30 | L23: 0.2666470657 | M23: 0.2674923257 | N23: 0.379973499 | O23: 0.2689750803 | P23: 0.1997511288 | Q23: 0.2350864048 | R23: 0.2974709764 | T23: 13.41558811 | U23: 13.17133395 | V23: 13.86144107 | W23: 12.82621503 | X23: 13.47413148 | Y23: 12.83235957 | Z23: 12.89034905 | AB23: 13.20112757 | AC23: 12.87154216 | AD23: 13.52293249 | AE23: 12.66283119 | AF23: 13.30920789 | AG23: 12.69712763 | AH23: 12.62580258
B24: 2021-12-31 | C24: 0.01535553085 | D24: 0.01504689759 | E24: 0.01547990862 | F24: 0.0155957673 | G24: 0.01578933512 | H24: 0.01353368031 | I24: 0.01666212659 | K24: 2021-12-31 | L24: 0.2820025679 | M24: 0.2825382331 | N24: 0.3954532825 | O24: 0.2845704374 | P24: 0.2155405645 | Q24: 0.2486198396 | R24: 0.3141324492 | T24: 13.43094361 | U24: 13.18637986 | V24: 13.87692085 | W24: 12.84181039 | X24: 13.48992092 | Y24: 12.845893 | Z24: 12.90701052 | AB24: 13.20989703 | AC24: 12.87645075 | AD24: 13.52795381 | AE24: 12.67327799 | AF24: 13.32016872 | AG24: 12.70644679 | AH24: 12.63423439
B25: 2022-03-31 | C25: 0.01535547627 | D25: 0.0150474923 | E25: 0.01547988924 | F25: 0.01559603022 | G25: 0.01578922969 | H25: 0.01353380808 | I25: 0.01666259619 | K25: 2022-03-31 | L25: 0.2973580988 | M25: 0.2975851307 | N25: 0.4109331911 | O25: 0.3001662047 | P25: 0.2313298997 | Q25: 0.2621535199 | R25: 0.3307945758 | T25: 13.44629914 | U25: 13.20142676 | V25: 13.89240076 | W25: 12.85740615 | X25: 13.50571025 | Y25: 12.85942668 | Z25: 12.92367265 | AB25: 13.21885709 | AC25: 12.8816826 | AD25: 13.53327968 | AE25: 12.6838782 | AF25: 13.33126296 | AG25: 12.71589003 | AH25: 12.64290807
B26: 2022-06-30 | C26: 0.01535540212 | D26: 0.01504782637 | E26: 0.01547982105 | F26: 0.0155961877 | G26: 0.01578914324 | H26: 0.01353386791 | I26: 0.01666290615 | K26: 2022-06-30 | L26: 0.312713575 | M26: 0.312632623 | N26: 0.4264130804 | O26: 0.3157622349 | P26: 0.2471191294 | Q26: 0.275687328 | R26: 0.347457172 | T26: 13.46165462 | U26: 13.21647425 | V26: 13.90788065 | W26: 12.87300219 | X26: 13.52149948 | Y26: 12.87296049 | Z26: 12.94033524 | AB26: 13.22799197 | AC26: 12.88720801 | AD26: 13.53888475 | AE26: 12.69461866 | AF26: 13.34248013 | AG26: 12.72544684 | AH26: 12.6518033
T28: Third party | AB28: Upper bound
B29: Projections - variance | K29: Cumulative projections - variance | T29: Third-party projected cumulative values | AB29: Upper range of projected cumulative values
B30: =B5 -> Date | C30: CA | D30: AB | E30: BC | F30: MB | G30: ON | H30: QC | I30: SK | K30: =B30 -> Date | L30: CA | M30: AB | N30: BC | O30: MB | P30: ON | Q30: QC | R30: SK | T30: =T5 -> CA | U30: =U5 -> AB | V30: BC | W30: MB | X30: ON | Y30: QC | Z30: SK | AB30: =L30 -> CA | AC30: AB | AD30: BC | AE30: MB | AF30: ON | AG30: QC | AH30: SK
B31: =B7 -> 2017-09-30 | C31: =_xll.AC.stats.reg._get(calc!B11, config!B14, 0) -> 0.0004175157241 | D31: 0.0004545697607 | E31: 0.001139759362 | F31: 0.0004777924123 | G31: 0.0004805992938 | H31: 0.0002125522993 | I31: 0.0006091852803 | K31: =B31 -> 2017-09-30 | L31: =_xll.AC.stats.reg._get(calc!B11, config!B15, 0) -> 0.0003310197595 | M31: 0.0003105115077 | N31: 0.0009228368404 | O31: 0.0003971315236 | P31: 0.0004305089866 | Q31: 0.0001921748279 | R31: 0.0004785755603 | T31: =T6 -> 13.14894104 | U31: =U6 -> 12.90384163 | V31: 13.48146757 | W31: 12.55723995 | X31: 13.27438035 | Y31: 12.59727316 | Z31: 12.59287807 | AB31: =T6 -> 13.14894104 | AC31: =U6 -> 12.90384163 | AD31: 13.48146757 | AE31: 12.55723995 | AF31: 13.27438035 | AG31: 12.59727316 | AH31: 12.59287807
B32: 2017-12-31 | C32: 0.0004352881472 | D32: 0.0005245928538 | E32: 0.001179346086 | F32: 0.0004950431219 | G32: 0.0004859953057 | H32: 0.0002220694557 | I32: 0.0006438750157 | K32: 2017-12-31 | L32: 0.001057459606 | M32: 0.001113868253 | N32: 0.002715176724 | O32: 0.0007451836755 | P32: 0.0009948495529 | Q32: 0.0004916176689 | R32: 0.001541868704 | T32: =VLOOKUP($K7, 'data, adj'!$B$7:$S$118, T$2, FALSE) -> 13.12523724 | U32: =VLOOKUP($K7, 'data, adj'!$B$7:$S$118, U$2, FALSE) -> 12.88956588 | V32: =VLOOKUP($K7, 'data, adj'!$B$7:$S$118, V$2, FALSE) -> 13.48230099 | W32: =VLOOKUP($K7, 'data, adj'!$B$7:$S$118, W$2, FALSE) -> 12.56802464 | X32: =VLOOKUP($K7, 'data, adj'!$B$7:$S$118, X$2, FALSE) -> 13.22631971 | Y32: =VLOOKUP($K7, 'data, adj'!$B$7:$S$118, Y$2, FALSE) -> 12.60294427 | Z32: =VLOOKUP($K7, 'data, adj'!$B$7:$S$118, Z$2, FALSE) -> 12.60316278 | AB32: =T7+$AB$2*SQRT(L31) -> 13.18750301 | AC32: =U7+$AB$2*SQRT(M31) -> 12.94897665 | AD32: =V7+$AB$2*SQRT(N31) -> 13.64520872 | AE32: =W7+$AB$2*SQRT(O31) -> 12.58469423 | AF32: =X7+$AB$2*SQRT(P31) -> 13.2522605 | AG32: =Y7+$AB$2*SQRT(Q31) -> 12.63663424 | AH32: =Z7+$AB$2*SQRT(R31) -> 12.64073319
B33: 2018-03-31 | C33: 0.0004394205403 | D33: 0.0005596508102 | E33: 0.001189528156 | F33: 0.000500315581 | G33: 0.0004871284878 | H33: 0.0002251071746 | I33: 0.00065755402 | K33: 2018-03-31 | L33: 0.002004407119 | M33: 0.002397489204 | N33: 0.00502780129 | O33: 0.001220430251 | P33: 0.001590613856 | Q33: 0.0008390707464 | R33: 0.002937855941 | T33: =VLOOKUP($K8, 'data, adj'!$B$7:$S$118, T$2, FALSE) -> 13.11747746 | U33: =VLOOKUP($K8, 'data, adj'!$B$7:$S$118, U$2, FALSE) -> 12.90208821 | V33: =VLOOKUP($K8, 'data, adj'!$B$7:$S$118, V$2, FALSE) -> 13.48452146 | W33: =VLOOKUP($K8, 'data, adj'!$B$7:$S$118, W$2, FALSE) -> 12.57179157 | X33: =VLOOKUP($K8, 'data, adj'!$B$7:$S$118, X$2, FALSE) -> 13.2125733 | Y33: =VLOOKUP($K8, 'data, adj'!$B$7:$S$118, Y$2, FALSE) -> 12.60781082 | Z33: =VLOOKUP($K8, 'data, adj'!$B$7:$S$118, Z$2, FALSE) -> 12.60729543 | AB33: 13.23254058 | AC33: 12.99123685 | AD33: 13.70203005 | AE33: 12.63618755 | AF33: 13.28446676 | AG33: 12.66447096 | AH33: 12.69446255
B34: 2018-06-30 | C34: 0.0004403508084 | D34: 0.0005747483987 | E34: 0.001191601456 | F34: 0.0005029837936 | G34: 0.0004875185453 | H34: 0.0002262556571 | I34: 0.0006641948229 | K34: 2018-06-30 | L34: 0.003056791126 | M34: 0.004070606255 | N34: 0.007593706646 | O34: 0.001749747892 | P34: 0.002208972705 | Q34: 0.001221752023 | R34: 0.004498727671 | T34: =VLOOKUP($K9, 'data, adj'!$B$7:$S$118, T$2, FALSE) -> 13.11963165 | U34: =VLOOKUP($K9, 'data, adj'!$B$7:$S$118, U$2, FALSE) -> 12.90725992 | V34: =VLOOKUP($K9, 'data, adj'!$B$7:$S$118, V$2, FALSE) -> 13.48234006 | W34: =VLOOKUP($K9, 'data, adj'!$B$7:$S$118, W$2, FALSE) -> 12.57925902 | X34: =VLOOKUP($K9, 'data, adj'!$B$7:$S$118, X$2, FALSE) -> 13.22529896 | Y34: =VLOOKUP($K9, 'data, adj'!$B$7:$S$118, Y$2, FALSE) -> 12.61460305 | Z34: =VLOOKUP($K9, 'data, adj'!$B$7:$S$118, Z$2, FALSE) -> 12.60659556 | AB34: 13.27297427 | AC34: 13.0361489 | AD34: 13.75923172 | AE34: 12.66028609 | AF34: 13.31874806 | AG34: 12.68842331 | AH34: 12.73930563
B35: 2018-09-30 | C35: 0.0004406240701 | D35: 0.0005807175808 | E35: 0.001192123374 | F35: 0.0005040185245 | G35: 0.0004877131692 | H35: 0.0002266085431 | I35: 0.000667396806 | K35: 2018-09-30 | L35: 0.004147285486 | M35: 0.006015984936 | N35: 0.0102655654 | O35: 0.002326611119 | P35: 0.00282923155 | Q35: 0.00162778138 | R35: 0.006130388114 | T35: =VLOOKUP($K10, 'data, adj'!$B$7:$S$118, T$2, FALSE) -> 13.12335688 | U35: =VLOOKUP($K10, 'data, adj'!$B$7:$S$118, U$2, FALSE) -> 12.91303644 | V35: =VLOOKUP($K10, 'data, adj'!$B$7:$S$118, V$2, FALSE) -> 13.48729395 | W35: =VLOOKUP($K10, 'data, adj'!$B$7:$S$118, W$2, FALSE) -> 12.58550174 | X35: =VLOOKUP($K10, 'data, adj'!$B$7:$S$118, X$2, FALSE) -> 13.22719715 | Y35: =VLOOKUP($K10, 'data, adj'!$B$7:$S$118, Y$2, FALSE) -> 12.62003819 | Z35: =VLOOKUP($K10, 'data, adj'!$B$7:$S$118, Z$2, FALSE) -> 12.60532181 | AB35: 13.30680789 | AC35: 13.07755107 | AD35: 13.80250407 | AE35: 12.69058189 | AF35: 13.34647473 | AG35: 12.71320497 | AH35: 12.7801186
B36: 2018-12-31 | C36: 0.0004407479001 | D36: 0.0005828311189 | E36: 0.001192306401 | F36: 0.0005044381816 | G36: 0.0004878235544 | H36: 0.0002267128925 | I36: 0.0006688363681 | K36: 2018-12-31 | L36: 0.005244879782 | M36: 0.008132897511 | N36: 0.01296974941 | O36: 0.002929800781 | P36: 0.003446167071 | Q36: 0.002047016511 | R36: 0.007787808588 | T36: =VLOOKUP($K11, 'data, adj'!$B$7:$S$118, T$2, FALSE) -> 13.13061524 | U36: =VLOOKUP($K11, 'data, adj'!$B$7:$S$118, U$2, FALSE) -> 12.91788946 | V36: =VLOOKUP($K11, 'data, adj'!$B$7:$S$118, V$2, FALSE) -> 13.49448402 | W36: =VLOOKUP($K11, 'data, adj'!$B$7:$S$118, W$2, FALSE) -> 12.594934 | X36: =VLOOKUP($K11, 'data, adj'!$B$7:$S$118, X$2, FALSE) -> 13.22962728 | Y36: =VLOOKUP($K11, 'data, adj'!$B$7:$S$118, Y$2, FALSE) -> 12.62664637 | Z36: =VLOOKUP($K11, 'data, adj'!$B$7:$S$118, Z$2, FALSE) -> 12.60421769 | AB36: 13.33761062 | AC36: 13.11673668 | AD36: 13.84256499 | AE36: 12.71718977 | AF36: 13.37262234 | AG36: 12.7359717 | AH36: 12.81686908
B37: 2019-03-31 | C37: 0.0004408167109 | D37: 0.000583510379 | E37: 0.001192400371 | F37: 0.0005045831611 | G37: 0.0004878796859 | H37: 0.0002267397428 | I37: 0.000669421485 | K37: 2019-03-31 | L37: 0.006337131772 | M37: 0.01034739489 | N37: 0.01567489333 | O37: 0.003549034826 | P37: 0.004057746987 | Q37: 0.00247291486 | R37: 0.009450080223 | T37: =VLOOKUP($K12, 'data, adj'!$B$7:$S$118, T$2, FALSE) -> 13.13888219 | U37: =VLOOKUP($K12, 'data, adj'!$B$7:$S$118, U$2, FALSE) -> 12.92443425 | V37: =VLOOKUP($K12, 'data, adj'!$B$7:$S$118, V$2, FALSE) -> 13.50326663 | W37: =VLOOKUP($K12, 'data, adj'!$B$7:$S$118, W$2, FALSE) -> 12.60557669 | X37: =VLOOKUP($K12, 'data, adj'!$B$7:$S$118, X$2, FALSE) -> 13.2366541 | Y37: =VLOOKUP($K12, 'data, adj'!$B$7:$S$118, Y$2, FALSE) -> 12.63389268 | Z37: =VLOOKUP($K12, 'data, adj'!$B$7:$S$118, Z$2, FALSE) -> 12.60621696 | AB37: 13.3661771 | AC37: 13.15337554 | AD37: 13.87882266 | AE37: 12.74317388 | AF37: 13.39734227 | AG37: 12.75782877 | AH37: 12.8509445
B38: 2019-06-30 | C38: 0.0004408537673 | D38: 0.0005837065074 | E38: 0.001192453155 | F38: 0.0005046299595 | G38: 0.0004879055951 | H38: 0.0002267462971 | I38: 0.0006696373029 | K38: 2019-06-30 | L38: 0.007420932753 | M38: 0.01261196966 | N38: 0.01837028475 | O38: 0.004176433621 | P38: 0.004664615494 | Q38: 0.002901642593 | R38: 0.01110878821 | T38: =VLOOKUP($K13, 'data, adj'!$B$7:$S$118, T$2, FALSE) -> 13.14734863 | U38: =VLOOKUP($K13, 'data, adj'!$B$7:$S$118, U$2, FALSE) -> 12.9274282 | V38: =VLOOKUP($K13, 'data, adj'!$B$7:$S$118, V$2, FALSE) -> 13.51438384 | W38: =VLOOKUP($K13, 'data, adj'!$B$7:$S$118, W$2, FALSE) -> 12.61386172 | X38: =VLOOKUP($K13, 'data, adj'!$B$7:$S$118, X$2, FALSE) -> 13.24271733 | Y38: =VLOOKUP($K13, 'data, adj'!$B$7:$S$118, Y$2, FALSE) -> 12.64158187 | Z38: =VLOOKUP($K13, 'data, adj'!$B$7:$S$118, Z$2, FALSE) -> 12.60943889 | AB38: 13.39327721 | AC38: 13.18787765 | AD38: 13.91292631 | AE38: 12.76798201 | AF38: 13.42124949 | AG38: 12.7788226 | AH38: 12.88294966
B39: 2019-09-30 | C39: 0.0004408717094 | D39: 0.0005837575916 | E39: 0.001192480259 | F39: 0.0005046433259 | G39: 0.00048791627 | H39: 0.000226748015 | I39: 0.0006697092304 | K39: 2019-09-30 | L39: 0.008496933626 | M39: 0.0148988546 | N39: 0.021054393 | O39: 0.004807707444 | P39: 0.005267879445 | Q39: 0.003331229498 | R39: 0.01276149885 | T39: =VLOOKUP($K14, 'data, adj'!$B$7:$S$118, T$2, FALSE) -> 13.15613659 | U39: =VLOOKUP($K14, 'data, adj'!$B$7:$S$118, U$2, FALSE) -> 12.93037202 | V39: =VLOOKUP($K14, 'data, adj'!$B$7:$S$118, V$2, FALSE) -> 13.52591332 | W39: =VLOOKUP($K14, 'data, adj'!$B$7:$S$118, W$2, FALSE) -> 12.62515133 | X39: =VLOOKUP($K14, 'data, adj'!$B$7:$S$118, X$2, FALSE) -> 13.24869466 | Y39: =VLOOKUP($K14, 'data, adj'!$B$7:$S$118, Y$2, FALSE) -> 12.64995686 | Z39: =VLOOKUP($K14, 'data, adj'!$B$7:$S$118, Z$2, FALSE) -> 12.61474594 | AB39: 13.41929175 | AC39: 13.22055769 | AD39: 13.94531367 | AE39: 12.79205215 | AF39: 13.44450819 | AG39: 12.79919796 | AH39: 12.91342296
B40: 2019-12-31 | C40: 0.0004408795013 | D40: 0.0005837699781 | E40: 0.001192492784 | F40: 0.0005046467965 | G40: 0.0004879202519 | H40: 0.0002267486526 | I40: 0.0006697308487 | K40: 2019-12-31 | L40: 0.009566966744 | M40: 0.0171933687 | N40: 0.02372906277 | O40: 0.005440434703 | P40: 0.005868675136 | Q40: 0.003760780744 | R40: 0.01440846277 | T40: =VLOOKUP($K15, 'data, adj'!$B$7:$S$118, T$2, FALSE) -> 13.16521595 | U40: =VLOOKUP($K15, 'data, adj'!$B$7:$S$118, U$2, FALSE) -> 12.93421769 | V40: =VLOOKUP($K15, 'data, adj'!$B$7:$S$118, V$2, FALSE) -> 13.5367248 | W40: =VLOOKUP($K15, 'data, adj'!$B$7:$S$118, W$2, FALSE) -> 12.63741016 | X40: =VLOOKUP($K15, 'data, adj'!$B$7:$S$118, X$2, FALSE) -> 13.25618073 | Y40: =VLOOKUP($K15, 'data, adj'!$B$7:$S$118, Y$2, FALSE) -> 12.65853902 | Z40: =VLOOKUP($K15, 'data, adj'!$B$7:$S$118, Z$2, FALSE) -> 12.62259968 | AB40: 13.44449499 | AC40: 13.25175311 | AD40: 13.97644164 | AE40: 12.81546841 | AF40: 13.46728052 | AG40: 12.81906612 | AH40: 12.94271881
B41: 2020-03-31 | C41: 0.0004408825481 | D41: 0.0005837732209 | E41: 0.00119249797 | F41: 0.000504647636 | G41: 0.000487921593 | H41: 0.0002267489791 | I41: 0.0006697366882 | K41: =B41 -> 2020-03-31 | L41: 0.01063289081 | M41: 0.0194886141 | N41: 0.02639689717 | O41: 0.006073463389 | P41: 0.006467894256 | Q41: 0.004189978751 | R41: 0.01605087918 | T41: =VLOOKUP($K16, 'data, adj'!$B$7:$S$118, T$2, FALSE) -> 13.17295953 | U41: =VLOOKUP($K16, 'data, adj'!$B$7:$S$118, U$2, FALSE) -> 12.93834198 | V41: =VLOOKUP($K16, 'data, adj'!$B$7:$S$118, V$2, FALSE) -> 13.54771869 | W41: =VLOOKUP($K16, 'data, adj'!$B$7:$S$118, W$2, FALSE) -> 12.6495141 | X41: =VLOOKUP($K16, 'data, adj'!$B$7:$S$118, X$2, FALSE) -> 13.26539995 | Y41: =VLOOKUP($K16, 'data, adj'!$B$7:$S$118, Y$2, FALSE) -> 12.66740756 | Z41: =VLOOKUP($K16, 'data, adj'!$B$7:$S$118, Z$2, FALSE) -> 12.63223541 | AB41: 13.46905968 | AC41: 13.28173624 | AD41: 14.00656116 | AE41: 12.83836895 | AF41: 13.48965538 | AG41: 12.83852782 | AH41: 12.97110051
B42: 2020-06-30 | C42: 0.0004408836253 | D42: 0.0005837744106 | E42: 0.00119249991 | F42: 0.0005046478597 | G42: 0.0004879220007 | H42: 0.0002267491561 | I42: 0.0006697381288 | K42: 2020-06-30 | L42: 0.01169619724 | M42: 0.02178193008 | N42: 0.0290602158 | O42: 0.006706308268 | P42: 0.007066172021 | Q42: 0.004618777952 | R42: 0.0176900733 | T42: =VLOOKUP($K17, 'data, adj'!$B$7:$S$118, T$2, FALSE) -> 13.17937867 | U42: =VLOOKUP($K17, 'data, adj'!$B$7:$S$118, U$2, FALSE) -> 12.94286344 | V42: =VLOOKUP($K17, 'data, adj'!$B$7:$S$118, V$2, FALSE) -> 13.55510637 | W42: =VLOOKUP($K17, 'data, adj'!$B$7:$S$118, W$2, FALSE) -> 12.66134645 | X42: =VLOOKUP($K17, 'data, adj'!$B$7:$S$118, X$2, FALSE) -> 13.27283989 | Y42: =VLOOKUP($K17, 'data, adj'!$B$7:$S$118, Y$2, FALSE) -> 12.67569808 | Z42: =VLOOKUP($K17, 'data, adj'!$B$7:$S$118, Z$2, FALSE) -> 12.63773817 | AB42: 13.4931065 | AC42: 13.31072756 | AD42: 14.03586079 | AE42: 12.86083843 | AF42: 13.51169962 | AG42: 12.85765226 | AH42: 12.99875414
B43: 2020-09-30 | C43: 0.0004408839692 | D43: 0.0005837750144 | E43: 0.001192500566 | F43: 0.0005046479446 | G43: 0.0004879221122 | H43: 0.0002267492448 | I43: 0.0006697384859 | K43: 2020-09-30 | L43: 0.0127579453 | M43: 0.02407272975 | N43: 0.03172076141 | O43: 0.007338831574 | P43: 0.007663923499 | Q43: 0.005047240792 | R43: 0.01932716052 | T43: =VLOOKUP($K18, 'data, adj'!$B$7:$S$118, T$2, FALSE) -> 13.18624668 | U43: =VLOOKUP($K18, 'data, adj'!$B$7:$S$118, U$2, FALSE) -> 12.94862885 | V43: =VLOOKUP($K18, 'data, adj'!$B$7:$S$118, V$2, FALSE) -> 13.56107111 | W43: =VLOOKUP($K18, 'data, adj'!$B$7:$S$118, W$2, FALSE) -> 12.67481298 | X43: =VLOOKUP($K18, 'data, adj'!$B$7:$S$118, X$2, FALSE) -> 13.27891916 | Y43: =VLOOKUP($K18, 'data, adj'!$B$7:$S$118, Y$2, FALSE) -> 12.68405374 | Z43: =VLOOKUP($K18, 'data, adj'!$B$7:$S$118, Z$2, FALSE) -> 12.64475329 | AB43: 13.51672019 | AC43: 13.33889751 | AD43: 14.06447087 | AE43: 12.8829479 | AF43: 13.53346029 | AG43: 12.876493 | AH43: 13.02581444
B44: 2020-12-31 | C44: 0.000440884068 | D44: 0.0005837753403 | E44: 0.001192500766 | F44: 0.0005046479884 | G44: 0.0004879221399 | H44: 0.0002267492848 | I44: 0.0006697385998 | K44: 2020-12-31 | L44: 0.01381882734 | M44: 0.02636129705 | N44: 0.03437971721 | O44: 0.007971046605 | P44: 0.008261403022 | Q44: 0.005475456346 | R44: 0.02096296176 | T44: =VLOOKUP($K19, 'data, adj'!$B$7:$S$118, T$2, FALSE) -> 13.19519182 | U44: =VLOOKUP($K19, 'data, adj'!$B$7:$S$118, U$2, FALSE) -> 12.95604666 | V44: =VLOOKUP($K19, 'data, adj'!$B$7:$S$118, V$2, FALSE) -> 13.5687388 | W44: =VLOOKUP($K19, 'data, adj'!$B$7:$S$118, W$2, FALSE) -> 12.68848954 | X44: =VLOOKUP($K19, 'data, adj'!$B$7:$S$118, X$2, FALSE) -> 13.2866754 | Y44: =VLOOKUP($K19, 'data, adj'!$B$7:$S$118, Y$2, FALSE) -> 12.69309316 | Z44: =VLOOKUP($K19, 'data, adj'!$B$7:$S$118, Z$2, FALSE) -> 12.65195967 | AB44: 13.53996333 | AC44: 13.36637763 | AD44: 14.09248971 | AE44: 12.90475018 | AF44: 13.55497373 | AG44: 12.89509048 | AH44: 13.05237912
B45: 2021-03-31 | C45: 0.0004408840936 | D45: 0.0005837755035 | E45: 0.001192500821 | F45: 0.000504648012 | G45: 0.0004879221467 | H45: 0.000226749301 | I45: 0.000669738653 | K45: 2021-03-31 | L45: 0.01487926562 | M45: 0.02864817571 | N45: 0.0370378276 | O45: 0.008603019387 | P45: 0.008858756388 | Q45: 0.005903505734 | R45: 0.02259802912 | T45: =VLOOKUP($K20, 'data, adj'!$B$7:$S$118, T$2, FALSE) -> 13.20528992 | U45: =VLOOKUP($K20, 'data, adj'!$B$7:$S$118, U$2, FALSE) -> 12.96443858 | V45: =VLOOKUP($K20, 'data, adj'!$B$7:$S$118, V$2, FALSE) -> 13.57806142 | W45: =VLOOKUP($K20, 'data, adj'!$B$7:$S$118, W$2, FALSE) -> 12.70279427 | X45: =VLOOKUP($K20, 'data, adj'!$B$7:$S$118, X$2, FALSE) -> 13.29510755 | Y45: =VLOOKUP($K20, 'data, adj'!$B$7:$S$118, Y$2, FALSE) -> 12.70253866 | Z45: =VLOOKUP($K20, 'data, adj'!$B$7:$S$118, Z$2, FALSE) -> 12.66094043 | AB45: 13.56288359 | AC45: 13.39326933 | AD45: 14.11999253 | AE45: 12.92628684 | AF45: 13.57626851 | AG45: 12.91347627 | AH45: 13.07852053
B46: 2021-06-30 | C46: 0.0004408840998 | D46: 0.000583775577 | E46: 0.001192500834 | F46: 0.0005046480238 | G46: 0.0004879221487 | H46: 0.000226749307 | I46: 0.0006697386819 | K46: 2021-06-30 | L46: 0.01593950093 | M46: 0.03093389623 | N46: 0.03969553004 | O46: 0.009234821727 | P46: 0.009456061363 | Q46: 0.006331451157 | R46: 0.02423270802 | T46: =VLOOKUP($K21, 'data, adj'!$B$7:$S$118, T$2, FALSE) -> 13.21496626 | U46: =VLOOKUP($K21, 'data, adj'!$B$7:$S$118, U$2, FALSE) -> 12.97162653 | V46: =VLOOKUP($K21, 'data, adj'!$B$7:$S$118, V$2, FALSE) -> 13.5880502 | W46: =VLOOKUP($K21, 'data, adj'!$B$7:$S$118, W$2, FALSE) -> 12.71328776 | X46: =VLOOKUP($K21, 'data, adj'!$B$7:$S$118, X$2, FALSE) -> 13.30451492 | Y46: =VLOOKUP($K21, 'data, adj'!$B$7:$S$118, Y$2, FALSE) -> 12.71025425 | Z46: =VLOOKUP($K21, 'data, adj'!$B$7:$S$118, Z$2, FALSE) -> 12.66840316 | AB46: 13.58551851 | AC46: 13.41965163 | AD46: 14.14703912 | AE46: 12.9475905 | AF46: 13.59736793 | AG46: 12.93167543 | AH46: 13.10429343
B47: 2021-09-30 | C47: 0.0004408841015 | D47: 0.0005837756068 | E47: 0.001192500838 | F47: 0.0005046480291 | G47: 0.0004879221497 | H47: 0.000226749309 | I47: 0.0006697386969 | K47: 2021-09-30 | L47: 0.01699966071 | M47: 0.03321887951 | N47: 0.04235306393 | O47: 0.00986651335 | P47: 0.01005335569 | Q47: 0.006759335678 | R47: 0.02586720053 | T47: =VLOOKUP($K22, 'data, adj'!$B$7:$S$118, T$2, FALSE) -> 13.22400438 | U47: =VLOOKUP($K22, 'data, adj'!$B$7:$S$118, U$2, FALSE) -> 12.97938406 | V47: =VLOOKUP($K22, 'data, adj'!$B$7:$S$118, V$2, FALSE) -> 13.59758213 | W47: =VLOOKUP($K22, 'data, adj'!$B$7:$S$118, W$2, FALSE) -> 12.72645743 | X47: =VLOOKUP($K22, 'data, adj'!$B$7:$S$118, X$2, FALSE) -> 13.311548 | Y47: =VLOOKUP($K22, 'data, adj'!$B$7:$S$118, Y$2, FALSE) -> 12.71919563 | Z47: =VLOOKUP($K22, 'data, adj'!$B$7:$S$118, Z$2, FALSE) -> 12.6744343 | AB47: 13.60789847 | AC47: 13.44558702 | AD47: 14.17367805 | AE47: 12.96868738 | AF47: 13.61829133 | AG47: 12.94970826 | AH47: 13.12974042
B48: 2021-12-31 | C48: 0.0004408841021 | D48: 0.0005837756178 | E48: 0.001192500839 | F48: 0.0005046480312 | G48: 0.0004879221502 | H48: 0.0002267493096 | I48: 0.0006697387039 | K48: 2021-12-31 | L48: 0.01805980608 | M48: 0.03550342363 | N48: 0.04501054947 | O48: 0.01049813777 | P48: 0.01065065516 | Q48: 0.007187186927 | R48: 0.02750161679 | T48: =VLOOKUP($K23, 'data, adj'!$B$7:$S$118, T$2, FALSE) -> 13.23284695 | U48: =VLOOKUP($K23, 'data, adj'!$B$7:$S$118, U$2, FALSE) -> 12.98755803 | V48: =VLOOKUP($K23, 'data, adj'!$B$7:$S$118, V$2, FALSE) -> 13.6079155 | W48: =VLOOKUP($K23, 'data, adj'!$B$7:$S$118, W$2, FALSE) -> 12.74002478 | X48: =VLOOKUP($K23, 'data, adj'!$B$7:$S$118, X$2, FALSE) -> 13.31976565 | Y48: =VLOOKUP($K23, 'data, adj'!$B$7:$S$118, Y$2, FALSE) -> 12.72788865 | Z48: =VLOOKUP($K23, 'data, adj'!$B$7:$S$118, Z$2, FALSE) -> 12.68053507 | AB48: 13.63004864 | AC48: 13.47112575 | AD48: 14.19994964 | AE48: 12.98959887 | AF48: 13.63905507 | AG48: 12.9675915 | AH48: 13.15489552
B49: 2022-03-31 | C49: 0.0004408841024 | D49: 0.0005837756214 | E49: 0.001192500839 | F49: 0.000504648032 | G49: 0.0004879221504 | H49: 0.0002267493097 | I49: 0.0006697387068 | K49: 2022-03-31 | L49: 0.01911996206 | M49: 0.0377877233 | N49: 0.04766803983 | O49: 0.01112972404 | P49: 0.01124796449 | Q49: 0.007615021482 | R49: 0.02913601178 | T49: =VLOOKUP($K24, 'data, adj'!$B$7:$S$118, T$2, FALSE) -> 13.24170254 | U49: =VLOOKUP($K24, 'data, adj'!$B$7:$S$118, U$2, FALSE) -> 12.99641006 | V49: =VLOOKUP($K24, 'data, adj'!$B$7:$S$118, V$2, FALSE) -> 13.61791657 | W49: =VLOOKUP($K24, 'data, adj'!$B$7:$S$118, W$2, FALSE) -> 12.75398016 | X49: =VLOOKUP($K24, 'data, adj'!$B$7:$S$118, X$2, FALSE) -> 13.32856584 | Y49: =VLOOKUP($K24, 'data, adj'!$B$7:$S$118, Y$2, FALSE) -> 12.73696263 | Z49: =VLOOKUP($K24, 'data, adj'!$B$7:$S$118, Z$2, FALSE) -> 12.68697912 | AB49: 13.65199019 | AC49: 13.49630898 | AD49: 14.22588789 | AE49: 13.01034278 | AF49: 13.65967312 | AG49: 12.98533922 | AH49: 13.17978666
B50: 2022-06-30 | C50: 0.0004408841026 | D50: 0.0005837756225 | E50: 0.001192500839 | F50: 0.0005046480322 | G50: 0.0004879221506 | H50: 0.0002267493097 | I50: 0.000669738708 | K50: 2022-06-30 | L50: 0.02018013563 | M50: 0.04007189735 | N50: 0.05032555335 | O50: 0.0117612902 | P50: 0.01184528343 | Q50: 0.00804284865 | R50: 0.03077040966 | T50: =VLOOKUP($K25, 'data, adj'!$B$7:$S$118, T$2, FALSE) -> 13.25084278 | U50: =VLOOKUP($K25, 'data, adj'!$B$7:$S$118, U$2, FALSE) -> 13.00571944 | V50: =VLOOKUP($K25, 'data, adj'!$B$7:$S$118, V$2, FALSE) -> 13.62872787 | W50: =VLOOKUP($K25, 'data, adj'!$B$7:$S$118, W$2, FALSE) -> 12.76608264 | X50: =VLOOKUP($K25, 'data, adj'!$B$7:$S$118, X$2, FALSE) -> 13.33507511 | Y50: =VLOOKUP($K25, 'data, adj'!$B$7:$S$118, Y$2, FALSE) -> 12.7439481 | Z50: =VLOOKUP($K25, 'data, adj'!$B$7:$S$118, Z$2, FALSE) -> 12.69426608 | AB50: 13.67374119 | AC50: 13.52117092 | AD50: 14.25152184 | AE50: 13.03093411 | AF50: 13.68015754 | AG50: 13.00296334 | AH50: 13.20443722
T51: =VLOOKUP($K26, 'data, adj'!$B$7:$S$118, T$2, FALSE) -> 13.26061461 | U51: =VLOOKUP($K26, 'data, adj'!$B$7:$S$118, U$2, FALSE) -> 13.01574874 | V51: =VLOOKUP($K26, 'data, adj'!$B$7:$S$118, V$2, FALSE) -> 13.64004703 | W51: =VLOOKUP($K26, 'data, adj'!$B$7:$S$118, W$2, FALSE) -> 12.77988152 | X51: =VLOOKUP($K26, 'data, adj'!$B$7:$S$118, X$2, FALSE) -> 13.34123703 | Y51: =VLOOKUP($K26, 'data, adj'!$B$7:$S$118, Y$2, FALSE) -> 12.75196035 | Z51: =VLOOKUP($K26, 'data, adj'!$B$7:$S$118, Z$2, FALSE) -> 12.70263909 | AB51: 13.69531727 | AC51: 13.5457405 | AD51: 14.27687654 | AE51: 13.05138571 | AF51: 13.70051884 | AG51: 13.02047414 | AH51: 13.22886718

Sheet backtrack
B2: TAB: IN-SAMPLE BACKTESTING OF THE DATA | M2: Variance | N2: =OFFSET(project!L30, $P$4, 0) -> 0.003056791126 | O2: =OFFSET(project!M30, $P$4, 0) -> 0.004070606255 | P2: =OFFSET(project!N30, $P$4, 0) -> 0.007593706646 | Q2: =OFFSET(project!O30, $P$4, 0) -> 0.001749747892 | R2: =OFFSET(project!P30, $P$4, 0) -> 0.002208972705 | S2: =OFFSET(project!Q30, $P$4, 0) -> 0.001221752023 | T2: =OFFSET(project!R30, $P$4, 0) -> 0.004498727671 | AA2: quantile | AC2: =NORMINV(0.95, 0, 1) -> 1.644853627 | AS2: =COUNT(AS7:AS500) -> 75
AS3: =SUMPRODUCT(AS7:AS81, AS7:AS81) -> 0.283857707
C4: Actual data | E4: =AVERAGE(E7:E500) -> 12.52170346 | F4: 12.46665189 | G4: 12.84803339 | H4: 11.97714439 | I4: 12.57811758 | J4: 12.15075806 | K4: 12.02825353 | M4: Projected Data | O4: T | P4: 4 | V4: 3 | W4: =V4+1 -> 4 | X4: =W4+1 -> 5 | Y4: 6 | Z4: 7 | AA4: 8 | AB4: 9 | AS4: =SQRT(AS3/AS2) -> 0.06152047973
D5: Actual values | E5: =COLUMNS('data, adj'!$B6:F6) -> 5 | F5: =COLUMNS('data, adj'!$B6:G6) -> 6 | G5: =COLUMNS('data, adj'!$B6:H6) -> 7 | H5: =COLUMNS('data, adj'!$B6:I6) -> 8 | I5: =COLUMNS('data, adj'!$B6:J6) -> 9 | J5: =COLUMNS('data, adj'!$B6:K6) -> 10 | K5: =COLUMNS('data, adj'!$B6:L6) -> 11 | N5: Projected cumulative values | V5: Average values | AC5: Lower bound | AJ5: Upper bound | AS5: =AS4/E4 -> 0.004913107862
B6: # | C6: Actuial Date | D6: Forecast Date | E6: ='data, adj'!F6 -> CA | F6: ='data, adj'!G6 -> AB | G6: ='data, adj'!H6 -> BC | H6: ='data, adj'!I6 -> MB | I6: ='data, adj'!J6 -> ON | J6: ='data, adj'!K6 -> QC | K6: ='data, adj'!L6 -> SK | M6: Forecast Date | N6: =E6 -> CA | O6: AB | P6: BC | Q6: MB | R6: ON | S6: QC | T6: SK | V6: =N6 -> CA | W6: =O6 -> AB | X6: BC | Y6: MB | Z6: ON | AA6: QC | AB6: SK | AC6: =V6 -> CA | AD6: =W6 -> AB | AE6: BC | AF6: MB | AG6: ON | AH6: QC | AI6: SK | AJ6: CA | AK6: AB | AL6: BC | AM6: MB | AN6: ON | AO6: QC | AP6: SK | AS6: =AJ6 -> CA
B7: 1 | C7: =calc!M7 -> 2017-06-30 | D7: =OFFSET(C7, $P$4, 0) -> 2016-06-30 | E7: =VLOOKUP($C7, 'data, adj'!$B$7:$S$118, E$5, FALSE) -> 13.14894104 | F7: =VLOOKUP($C7, 'data, adj'!$B$7:$S$118, F$5, FALSE) -> 12.90384163 | G7: =VLOOKUP($C7, 'data, adj'!$B$7:$S$118, G$5, FALSE) -> 13.48146757 | H7: =VLOOKUP($C7, 'data, adj'!$B$7:$S$118, H$5, FALSE) -> 12.55723995 | I7: =VLOOKUP($C7, 'data, adj'!$B$7:$S$118, I$5, FALSE) -> 13.27438035 | J7: =VLOOKUP($C7, 'data, adj'!$B$7:$S$118, J$5, FALSE) -> 12.59727316 | K7: =VLOOKUP($C7, 'data, adj'!$B$7:$S$118, K$5, FALSE) -> 12.59287807 | M7: =C7 -> 2017-06-30 | N7: =_xll.AC.stats.reg._get(calc!B11, config!B16, 0) -> 0.05039213734 | O7: 0.05176839278 | P7: 0.1611325278 | Q7: 0.0455837427 | R7: -0.02123317193 | S7: 0.04350413564 | T7: 0.05727321727 | V7: =OFFSET(E7, $P$4, 0) + OFFSET(N7, $P$4, 0) -> 13.12080605 | W7: =OFFSET(F7, $P$4, 0) + OFFSET(O7, $P$4, 0) -> 12.90985243 | X7: =OFFSET(G7, $P$4, 0) + OFFSET(P7, $P$4, 0) -> 13.43541455 | Y7: =OFFSET(H7, $P$4, 0) + OFFSET(Q7, $P$4, 0) -> 12.51960963 | Z7: =OFFSET(I7, $P$4, 0) + OFFSET(R7, $P$4, 0) -> 13.21986599 | AA7: =OFFSET(J7, $P$4, 0) + OFFSET(S7, $P$4, 0) -> 12.58124887 | AB7: =OFFSET(K7, $P$4, 0) + OFFSET(T7, $P$4, 0) -> 12.60625464 | AC7: =V7 - SQRT(N$2)*$AC$2 -> 13.02986496 | AD7: =W7 - SQRT(O$2)*$AC$2 -> 12.80490862 | AE7: =X7 - SQRT(P$2)*$AC$2 -> 13.29207892 | AF7: =Y7 - SQRT(Q$2)*$AC$2 -> 12.45080542 | AG7: =Z7 - SQRT(R$2)*$AC$2 -> 13.14255835 | AH7: =AA7 - SQRT(S$2)*$AC$2 -> 12.52375537 | AI7: =AB7 - SQRT(T$2)*$AC$2 -> 12.4959301 | AJ7: =V7 + SQRT(N$2)*$AC$2 -> 13.21174713 | AK7: =W7 + SQRT(O$2)*$AC$2 -> 13.01479623 | AL7: =X7 + SQRT(P$2)*$AC$2 -> 13.57875018 | AM7: =Y7 + SQRT(Q$2)*$AC$2 -> 12.58841384 | AN7: =Z7 + SQRT(R$2)*$AC$2 -> 13.29717363 | AO7: =AA7 + SQRT(S$2)*$AC$2 -> 12.63874238 | AP7: =AB7 + SQRT(T$2)*$AC$2 -> 12.71657917 | AS7: =V7-E7 -> -0.0281349954
B8: =B7+1 -> 2 | C8: =DATE(YEAR(C7), MONTH(C7)-2, 0) -> 2017-03-31 | D8: =OFFSET(C8, $P$4, 0) -> 2016-03-31 | E8: =VLOOKUP($C8, 'data, adj'!$B$7:$S$118, E$5, FALSE) -> 13.14030545 | F8: =VLOOKUP($C8, 'data, adj'!$B$7:$S$118, F$5, FALSE) -> 12.88769113 | G8: =VLOOKUP($C8, 'data, adj'!$B$7:$S$118, G$5, FALSE) -> 13.36769416 | H8: =VLOOKUP($C8, 'data, adj'!$B$7:$S$118, H$5, FALSE) -> 12.56256457 | I8: =VLOOKUP($C8, 'data, adj'!$B$7:$S$118, I$5, FALSE) -> 13.3306288 | J8: =VLOOKUP($C8, 'data, adj'!$B$7:$S$118, J$5, FALSE) -> 12.58071422 | K8: =VLOOKUP($C8, 'data, adj'!$B$7:$S$118, K$5, FALSE) -> 12.58100638 | M8: =C8 -> 2017-03-31 | N8: 0.08633824204 | O8: 0.01850311375 | P8: 0.04551868651 | Q8: 0.03688318886 | R8: 0.1217978578 | S8: 0.04338660433 | T8: 0.0003278858068 | V8: 13.22824856 | W8: 12.8861864 | X8: 13.67016791 | Y8: 12.59049026 | Z8: 13.22309261 | AA8: 12.58741139 | AB8: 12.5844877 | AC8: 13.13730748 | AD8: 12.7812426 | AE8: 13.52683228 | AF8: 12.52168605 | AG8: 13.14578497 | AH8: 12.52991788 | AI8: 12.47416316 | AJ8: 13.31918965 | AK8: 12.99113021 | AL8: 13.81350354 | AM8: 12.65929447 | AN8: 13.30040026 | AO8: 12.6449049 | AP8: 12.69481224 | AS8: 0.0879431119
B9: =B8+1 -> 3 | C9: =DATE(YEAR(C8), MONTH(C8)-2, 0) -> 2016-12-31 | D9: 2015-12-31 | E9: =VLOOKUP($C9, 'data, adj'!$B$7:$S$118, E$5, FALSE) -> 13.09841694 | F9: =VLOOKUP($C9, 'data, adj'!$B$7:$S$118, F$5, FALSE) -> 12.89336522 | G9: =VLOOKUP($C9, 'data, adj'!$B$7:$S$118, G$5, FALSE) -> 13.37006685 | H9: =VLOOKUP($C9, 'data, adj'!$B$7:$S$118, H$5, FALSE) -> 12.541455 | I9: =VLOOKUP($C9, 'data, adj'!$B$7:$S$118, I$5, FALSE) -> 13.2504188 | J9: =VLOOKUP($C9, 'data, adj'!$B$7:$S$118, J$5, FALSE) -> 12.57042058 | K9: =VLOOKUP($C9, 'data, adj'!$B$7:$S$118, K$5, FALSE) -> 12.5874363 | M9: 2016-12-31 | N9: 0.04769924525 | O9: 0.02767181574 | P9: 0.03614510319 | Q9: 0.02517930212 | R9: 0.0752664076 | S9: 0.03666841687 | T9: -0.02183526595 | V9: 13.13781227 | W9: 12.88623539 | X9: 13.58961878 | Y9: 12.50085483 | Z9: 13.13539475 | AA9: 12.55815085 | AB9: 12.63670552 | AC9: 13.04687118 | AD9: 12.78129158 | AE9: 13.44628315 | AF9: 12.43205063 | AG9: 13.0580871 | AH9: 12.50065735 | AI9: 12.52638098 | AJ9: 13.22875336 | AK9: 12.99117919 | AL9: 13.73295441 | AM9: 12.56965904 | AN9: 13.21270239 | AO9: 12.61564436 | AP9: 12.74703005 | AS9: 0.0393953347
B10: 4 | C10: 2016-09-30 | D10: 2015-09-30 | E10: =VLOOKUP($C10, 'data, adj'!$B$7:$S$118, E$5, FALSE) -> 13.08319626 | F10: =VLOOKUP($C10, 'data, adj'!$B$7:$S$118, F$5, FALSE) -> 12.89506119 | G10: =VLOOKUP($C10, 'data, adj'!$B$7:$S$118, G$5, FALSE) -> 13.36040815 | H10: =VLOOKUP($C10, 'data, adj'!$B$7:$S$118, H$5, FALSE) -> 12.53333114 | I10: =VLOOKUP($C10, 'data, adj'!$B$7:$S$118, I$5, FALSE) -> 13.20638462 | J10: =VLOOKUP($C10, 'data, adj'!$B$7:$S$118, J$5, FALSE) -> 12.56431686 | K10: =VLOOKUP($C10, 'data, adj'!$B$7:$S$118, K$5, FALSE) -> 12.60950235 | M10: 2016-09-30 | N10: -0.03028990511 | O10: 0.03531666851 | P10: -0.1442465675 | Q10: 0.03289957131 | R10: 0.05522766055 | S10: 0.03533036138 | T10: 0.04004922456 | V10: 13.05727041 | W10: 12.87223173 | X10: 13.4202485 | Y10: 12.54138171 | Z10: 13.10019014 | AA10: 12.56394053 | AB10: 12.58919395 | AC10: 12.96632932 | AD10: 12.76728793 | AE10: 13.27691287 | AF10: 12.4725775 | AG10: 13.02288249 | AH10: 12.50644703 | AI10: 12.47886941 | AJ10: 13.14821149 | AK10: 12.97717554 | AL10: 13.56358413 | AM10: 12.61018592 | AN10: 13.17749778 | AO10: 12.62143404 | AP10: 12.69951848 | AS10: -0.02592585597
B11: 5 | C11: 2016-06-30 | D11: 2015-06-30 | E11: =VLOOKUP($C11, 'data, adj'!$B$7:$S$118, E$5, FALSE) -> 13.10402831 | F11: =VLOOKUP($C11, 'data, adj'!$B$7:$S$118, F$5, FALSE) -> 12.8771148 | G11: =VLOOKUP($C11, 'data, adj'!$B$7:$S$118, G$5, FALSE) -> 13.47433206 | H11: =VLOOKUP($C11, 'data, adj'!$B$7:$S$118, H$5, FALSE) -> 12.51296526 | I11: =VLOOKUP($C11, 'data, adj'!$B$7:$S$118, I$5, FALSE) -> 13.15741194 | J11: =VLOOKUP($C11, 'data, adj'!$B$7:$S$118, J$5, FALSE) -> 12.54915158 | K11: =VLOOKUP($C11, 'data, adj'!$B$7:$S$118, K$5, FALSE) -> 12.58833395 | M11: 2016-06-30 | N11: 0.01677773333 | O11: 0.03273762546 | P11: -0.03891751383 | Q11: 0.006644372138 | R11: 0.06245405407 | S11: 0.03209729263 | T11: 0.01792069022 | V11: 13.06859741 | W11: 12.9321201 | X11: 13.43072628 | Y11: 12.53679923 | Z11: 13.11170292 | AA11: 12.55952344 | AB11: 12.63089094 | AC11: 12.97765632 | AD11: 12.82717629 | AE11: 13.28739065 | AF11: 12.46799502 | AG11: 13.03439528 | AH11: 12.50202993 | AI11: 12.5205664 | AJ11: 13.15953849 | AK11: 13.0370639 | AL11: 13.57406191 | AM11: 12.60560344 | AN11: 13.18901056 | AO11: 12.61701694 | AP11: 12.74121548 | AS11: -0.03543090672
B12: 6 | C12: 2016-03-31 | D12: 2015-03-31 | E12: =VLOOKUP($C12, 'data, adj'!$B$7:$S$118, E$5, FALSE) -> 13.10109071 | F12: =VLOOKUP($C12, 'data, adj'!$B$7:$S$118, F$5, FALSE) -> 12.86257659 | G12: =VLOOKUP($C12, 'data, adj'!$B$7:$S$118, G$5, FALSE) -> 13.51392292 | H12: =VLOOKUP($C12, 'data, adj'!$B$7:$S$118, H$5, FALSE) -> 12.52872482 | I12: =VLOOKUP($C12, 'data, adj'!$B$7:$S$118, I$5, FALSE) -> 13.11631714 | J12: =VLOOKUP($C12, 'data, adj'!$B$7:$S$118, J$5, FALSE) -> 12.54147645 | K12: =VLOOKUP($C12, 'data, adj'!$B$7:$S$118, K$5, FALSE) -> 12.58664379 | M12: 2016-03-31 | N12: 0.1271578532 | O12: 0.02360981402 | P12: 0.1562449904 | Q12: 0.06176543493 | R12: 0.106775477 | S12: 0.04593493538 | T12: -0.002156086878 | V12: 12.98981336 | W12: 12.83060949 | X12: 13.35852261 | Y12: 12.51131933 | Z12: 13.05649074 | AA12: 12.52590713 | AB12: 12.58533555 | AC12: 12.89887227 | AD12: 12.72566568 | AE12: 13.21518698 | AF12: 12.44251513 | AG12: 12.9791831 | AH12: 12.46841362 | AI12: 12.47501102 | AJ12: 13.08075445 | AK12: 12.93555329 | AL12: 13.50185824 | AM12: 12.58012354 | AN12: 13.13379838 | AO12: 12.58340063 | AP12: 12.69566009 | AS12: -0.1112773509
B13: 7 | C13: 2015-12-31 | D13: 2014-12-31 | E13: =VLOOKUP($C13, 'data, adj'!$B$7:$S$118, E$5, FALSE) -> 13.04358637 | F13: =VLOOKUP($C13, 'data, adj'!$B$7:$S$118, F$5, FALSE) -> 12.87407123 | G13: =VLOOKUP($C13, 'data, adj'!$B$7:$S$118, G$5, FALSE) -> 13.4451756 | H13: =VLOOKUP($C13, 'data, adj'!$B$7:$S$118, H$5, FALSE) -> 12.48789257 | I13: =VLOOKUP($C13, 'data, adj'!$B$7:$S$118, I$5, FALSE) -> 13.06782905 | J13: =VLOOKUP($C13, 'data, adj'!$B$7:$S$118, J$5, FALSE) -> 12.53137921 | K13: =VLOOKUP($C13, 'data, adj'!$B$7:$S$118, K$5, FALSE) -> 12.59998798 | M13: 2015-12-31 | N13: 0.09422590266 | O13: 0.01216415322 | P13: 0.1444431827 | Q13: 0.0129622642 | R13: 0.06756569831 | S13: 0.02677164539 | T13: 0.03671754125 | V13: 12.99327173 | W13: 12.93859849 | X13: 13.32294137 | Y13: 12.52485868 | Z13: 13.05056667 | AA13: 12.567919 | AB13: 12.67367423 | AC13: 12.90233064 | AD13: 12.83365469 | AE13: 13.17960574 | AF13: 12.45605447 | AG13: 12.97325903 | AH13: 12.5104255 | AI13: 12.56334969 | AJ13: 13.08421282 | AK13: 13.0435423 | AL13: 13.466277 | AM13: 12.59366288 | AN13: 13.12787431 | AO13: 12.62541251 | AP13: 12.78399876 | AS13: -0.05031463981
B14: 8 | C14: 2015-09-30 | D14: 2014-09-30 | E14: =VLOOKUP($C14, 'data, adj'!$B$7:$S$118, E$5, FALSE) -> 13.00175159 | F14: =VLOOKUP($C14, 'data, adj'!$B$7:$S$118, F$5, FALSE) -> 12.87427118 | G14: =VLOOKUP($C14, 'data, adj'!$B$7:$S$118, G$5, FALSE) -> 13.36043968 | H14: =VLOOKUP($C14, 'data, adj'!$B$7:$S$118, H$5, FALSE) -> 12.51248692 | I14: =VLOOKUP($C14, 'data, adj'!$B$7:$S$118, I$5, FALSE) -> 13.0484843 | J14: =VLOOKUP($C14, 'data, adj'!$B$7:$S$118, J$5, FALSE) -> 12.53178001 | K14: =VLOOKUP($C14, 'data, adj'!$B$7:$S$118, K$5, FALSE) -> 12.59350616 | M14: 2015-09-30 | N14: 0.05551881223 | O14: -0.002039446798 | P14: 0.05980881945 | Q14: 0.02889478815 | R14: 0.05170583439 | S14: 0.03216052748 | T14: -0.004312211208 | V14: 12.99257408 | W14: 12.93305924 | X14: 13.36891275 | Y14: 12.51358309 | Z14: 13.02556574 | AA14: 12.52915565 | AB14: 12.6322488 | AC14: 12.901633 | AD14: 12.82811543 | AE14: 13.22557712 | AF14: 12.44477888 | AG14: 12.9482581 | AH14: 12.47166215 | AI14: 12.52192427 | AJ14: 13.08351517 | AK14: 13.03800304 | AL14: 13.51224838 | AM14: 12.58238729 | AN14: 13.10287338 | AO14: 12.58664916 | AP14: 12.74257334 | AS14: -0.009177511728
B15: 9 | C15: 2015-06-30 | D15: 2014-06-30 | E15: =VLOOKUP($C15, 'data, adj'!$B$7:$S$118, E$5, FALSE) -> 12.98594324 | F15: =VLOOKUP($C15, 'data, adj'!$B$7:$S$118, F$5, FALSE) -> 12.88722568 | G15: =VLOOKUP($C15, 'data, adj'!$B$7:$S$118, G$5, FALSE) -> 13.34192773 | H15: =VLOOKUP($C15, 'data, adj'!$B$7:$S$118, H$5, FALSE) -> 12.50162244 | I15: =VLOOKUP($C15, 'data, adj'!$B$7:$S$118, I$5, FALSE) -> 13.03685342 | J15: =VLOOKUP($C15, 'data, adj'!$B$7:$S$118, J$5, FALSE) -> 12.52304164 | K15: =VLOOKUP($C15, 'data, adj'!$B$7:$S$118, K$5, FALSE) -> 12.60493937 | M15: 2015-06-30 | N15: 0.08265416104 | O15: 0.0448944124 | P15: 0.08879854596 | Q15: 0.03517679326 | R15: 0.07484950047 | S15: 0.03648179987 | T15: 0.02595157478 | V15: 12.94535924 | W15: 12.87547429 | X15: 13.24322072 | Y15: 12.49749722 | Z15: 13.00405524 | AA15: 12.5356625 | AB15: 12.5835809 | AC15: 12.85441815 | AD15: 12.77053049 | AE15: 13.09988509 | AF15: 12.42869302 | AG15: 12.9267476 | AH15: 12.478169 | AI15: 12.47325637 | AJ15: 13.03630032 | AK15: 12.98041809 | AL15: 13.38655635 | AM15: 12.56630143 | AN15: 13.08136288 | AO15: 12.59315601 | AP15: 12.69390544 | AS15: -0.04058400984
B16: 10 | C16: 2015-03-31 | D16: 2014-03-31 | E16: =VLOOKUP($C16, 'data, adj'!$B$7:$S$118, E$5, FALSE) -> 12.95041662 | F16: =VLOOKUP($C16, 'data, adj'!$B$7:$S$118, F$5, FALSE) -> 12.8750219 | G16: =VLOOKUP($C16, 'data, adj'!$B$7:$S$118, G$5, FALSE) -> 13.30626202 | H16: =VLOOKUP($C16, 'data, adj'!$B$7:$S$118, H$5, FALSE) -> 12.49551317 | I16: =VLOOKUP($C16, 'data, adj'!$B$7:$S$118, I$5, FALSE) -> 13.00627216 | J16: =VLOOKUP($C16, 'data, adj'!$B$7:$S$118, J$5, FALSE) -> 12.51679108 | K16: =VLOOKUP($C16, 'data, adj'!$B$7:$S$118, K$5, FALSE) -> 12.60455678 | M16: 2015-03-31 | N16: 0.03939674344 | O16: -0.04441241758 | P16: 0.05226058886 | Q16: 0.0158061634 | R16: 0.05021857807 | S16: 0.0091160459 | T16: -0.01922122174 | V16: 12.90183499 | W16: 12.96917878 | X16: 13.22656152 | Y16: 12.50634507 | Z16: 12.98087599 | AA16: 12.53246896 | AB16: 12.68552596 | AC16: 12.8108939 | AD16: 12.86423497 | AE16: 13.08322589 | AF16: 12.43754087 | AG16: 12.90356835 | AH16: 12.47497545 | AI16: 12.57520143 | AJ16: 12.99277607 | AK16: 13.07412258 | AL16: 13.36989715 | AM16: 12.57514928 | AN16: 13.05818363 | AO16: 12.58996247 | AP16: 12.7958505 | AS16: -0.04858162836
B17: 11 | C17: 2014-12-31 | D17: 2013-12-31 | E17: =VLOOKUP($C17, 'data, adj'!$B$7:$S$118, E$5, FALSE) -> 12.94482636 | F17: =VLOOKUP($C17, 'data, adj'!$B$7:$S$118, F$5, FALSE) -> 12.90822912 | G17: =VLOOKUP($C17, 'data, adj'!$B$7:$S$118, G$5, FALSE) -> 13.2836894 | H17: =VLOOKUP($C17, 'data, adj'!$B$7:$S$118, H$5, FALSE) -> 12.48826216 | I17: =VLOOKUP($C17, 'data, adj'!$B$7:$S$118, I$5, FALSE) -> 12.99501171 | J17: =VLOOKUP($C17, 'data, adj'!$B$7:$S$118, J$5, FALSE) -> 12.524079 | K17: =VLOOKUP($C17, 'data, adj'!$B$7:$S$118, K$5, FALSE) -> 12.61951584 | M17: 2014-12-31 | N17: 0.04844537214 | O17: 0.03036937392 | P17: 0.03925197721 | Q17: 0.03659651591 | R17: 0.05555496379 | S17: 0.04383999808 | T17: 0.05415838169 | V17: 12.94542933 | W17: 12.90617486 | X17: 13.30251098 | Y17: 12.57670848 | Z17: 12.99611982 | AA17: 12.52652099 | AB17: 12.60887157 | AC17: 12.85448824 | AD17: 12.80123105 | AE17: 13.15917535 | AF17: 12.50790427 | AG17: 12.91881218 | AH17: 12.46902748 | AI17: 12.49854704 | AJ17: 13.03637041 | AK17: 13.01111866 | AL17: 13.44584662 | AM17: 12.64551269 | AN17: 13.07342747 | AO17: 12.58401449 | AP17: 12.71919611 | AS17: 0.000602971644
B18: 12 | C18: 2014-09-30 | D18: 2013-09-30 | E18: =VLOOKUP($C18, 'data, adj'!$B$7:$S$118, E$5, FALSE) -> 12.9259859 | F18: =VLOOKUP($C18, 'data, adj'!$B$7:$S$118, F$5, FALSE) -> 12.89803162 | G18: =VLOOKUP($C18, 'data, adj'!$B$7:$S$118, G$5, FALSE) -> 13.27390953 | H18: =VLOOKUP($C18, 'data, adj'!$B$7:$S$118, H$5, FALSE) -> 12.48440489 | I18: =VLOOKUP($C18, 'data, adj'!$B$7:$S$118, I$5, FALSE) -> 12.97017211 | J18: =VLOOKUP($C18, 'data, adj'!$B$7:$S$118, J$5, FALSE) -> 12.5068992 | K18: =VLOOKUP($C18, 'data, adj'!$B$7:$S$118, K$5, FALSE) -> 12.5986011 | M18: 2014-09-30 | N18: 0.06658818555 | O18: 0.03502761482 | P18: 0.09500322674 | Q18: 0.02917819166 | R18: 0.05539363027 | S18: 0.02225645197 | T18: 0.03364770134 | V18: 12.9682121 | W18: 12.91075036 | X18: 13.34049219 | Y18: 12.49323887 | Z18: 12.98720687 | AA18: 12.5336606 | AB18: 12.59471628 | AC18: 12.87727101 | AD18: 12.80580655 | AE18: 13.19715656 | AF18: 12.42443466 | AG18: 12.90989923 | AH18: 12.4761671 | AI18: 12.48439174 | AJ18: 13.05915319 | AK18: 13.01569416 | AL18: 13.48382782 | AM18: 12.56204307 | AN18: 13.06451451 | AO18: 12.59115411 | AP18: 12.70504081 | AS18: 0.04222620122
B19: 13 | C19: 2014-06-30 | D19: 2013-06-30 | E19: =VLOOKUP($C19, 'data, adj'!$B$7:$S$118, E$5, FALSE) -> 12.90082853 | F19: =VLOOKUP($C19, 'data, adj'!$B$7:$S$118, F$5, FALSE) -> 12.88811591 | G19: =VLOOKUP($C19, 'data, adj'!$B$7:$S$118, G$5, FALSE) -> 13.22252359 | H19: =VLOOKUP($C19, 'data, adj'!$B$7:$S$118, H$5, FALSE) -> 12.48549445 | I19: =VLOOKUP($C19, 'data, adj'!$B$7:$S$118, I$5, FALSE) -> 12.95625921 | J19: =VLOOKUP($C19, 'data, adj'!$B$7:$S$118, J$5, FALSE) -> 12.51037582 | K19: =VLOOKUP($C19, 'data, adj'!$B$7:$S$118, K$5, FALSE) -> 12.59366566 | M19: 2014-06-30 | N19: 0.04453070369 | O19: -0.0126416155 | P19: 0.02069712752 | Q19: 0.0120027773 | R19: 0.04779603504 | S19: 0.0252866831 | T19: -0.01008475871 | V19: 12.88426999 | W19: 12.84491171 | X19: 13.22547098 | Y19: 12.4722617 | Z19: 12.93139949 | AA19: 12.50660711 | AB19: 12.61879333 | AC19: 12.7933289 | AD19: 12.73996791 | AE19: 13.08213535 | AF19: 12.40345749 | AG19: 12.85409184 | AH19: 12.44911361 | AI19: 12.5084688 | AJ19: 12.97521107 | AK19: 12.94985552 | AL19: 13.36880661 | AM19: 12.54106591 | AN19: 13.00870713 | AO19: 12.56410062 | AP19: 12.72911787 | AS19: -0.01655854387
B20: 14 | C20: 2014-03-31 | D20: 2013-03-31 | E20: =VLOOKUP($C20, 'data, adj'!$B$7:$S$118, E$5, FALSE) -> 12.89091796 | F20: =VLOOKUP($C20, 'data, adj'!$B$7:$S$118, F$5, FALSE) -> 12.90109307 | G20: =VLOOKUP($C20, 'data, adj'!$B$7:$S$118, G$5, FALSE) -> 13.23521874 | H20: =VLOOKUP($C20, 'data, adj'!$B$7:$S$118, H$5, FALSE) -> 12.48731905 | I20: =VLOOKUP($C20, 'data, adj'!$B$7:$S$118, I$5, FALSE) -> 12.94826948 | J20: =VLOOKUP($C20, 'data, adj'!$B$7:$S$118, J$5, FALSE) -> 12.50381148 | K20: =VLOOKUP($C20, 'data, adj'!$B$7:$S$118, K$5, FALSE) -> 12.60744941 | M20: 2014-03-31 | N20: 0.01091702669 | O20: 0.06808570477 | P20: -0.00865721607 | Q20: 0.01902601918 | R20: 0.03260651149 | S20: 0.0286574809 | T20: 0.07807655466 | V20: 12.86041112 | W20: 12.89418325 | X20: 13.19126515 | Y20: 12.50402573 | Z20: 12.93116242 | AA20: 12.53753871 | AB20: 12.58059526 | AC20: 12.76947004 | AD20: 12.78923944 | AE20: 13.04792952 | AF20: 12.43522153 | AG20: 12.85385477 | AH20: 12.48004521 | AI20: 12.47027073 | AJ20: 12.95135221 | AK20: 12.99912705 | AL20: 13.33460078 | AM20: 12.57282994 | AN20: 13.00847006 | AO20: 12.59503222 | AP20: 12.6909198 | AS20: -0.03050683843
B21: 15 | C21: 2013-12-31 | D21: 2012-12-31 | E21: =VLOOKUP($C21, 'data, adj'!$B$7:$S$118, E$5, FALSE) -> 12.89040862 | F21: =VLOOKUP($C21, 'data, adj'!$B$7:$S$118, F$5, FALSE) -> 12.86257918 | G21: =VLOOKUP($C21, 'data, adj'!$B$7:$S$118, G$5, FALSE) -> 13.24260561 | H21: =VLOOKUP($C21, 'data, adj'!$B$7:$S$118, H$5, FALSE) -> 12.507861 | I21: =VLOOKUP($C21, 'data, adj'!$B$7:$S$118, I$5, FALSE) -> 12.93427321 | J21: =VLOOKUP($C21, 'data, adj'!$B$7:$S$118, J$5, FALSE) -> 12.49878703 | K21: =VLOOKUP($C21, 'data, adj'!$B$7:$S$118, K$5, FALSE) -> 12.57677721 | M21: 2013-12-31 | N21: 0.0550207069 | O21: 0.04359567505 | P21: 0.05990537477 | Q21: 0.06884747452 | R21: 0.06184660827 | S21: 0.02773395095 | T21: 0.03209436124 | V21: 12.82490984 | W21: 12.87390275 | X21: 13.15198808 | Y21: 12.51171559 | Z21: 12.89064382 | AA21: 12.50810965 | AB21: 12.61990476 | AC21: 12.73396876 | AD21: 12.76895895 | AE21: 13.00865245 | AF21: 12.44291138 | AG21: 12.81333618 | AH21: 12.45061614 | AI21: 12.50958023 | AJ21: 12.91585093 | AK21: 12.97884655 | AL21: 13.29532371 | AM21: 12.5805198 | AN21: 12.96795146 | AO21: 12.56560316 | AP21: 12.7302293 | AS21: -0.06549877761
B22: 16 | C22: 2013-09-30 | D22: 2012-09-30 | E22: =VLOOKUP($C22, 'data, adj'!$B$7:$S$118, E$5, FALSE) -> 12.87268589 | F22: =VLOOKUP($C22, 'data, adj'!$B$7:$S$118, F$5, FALSE) -> 12.85547168 | G22: =VLOOKUP($C22, 'data, adj'!$B$7:$S$118, G$5, FALSE) -> 13.22288722 | H22: =VLOOKUP($C22, 'data, adj'!$B$7:$S$118, H$5, FALSE) -> 12.45776478 | I22: =VLOOKUP($C22, 'data, adj'!$B$7:$S$118, I$5, FALSE) -> 12.91077283 | J22: =VLOOKUP($C22, 'data, adj'!$B$7:$S$118, J$5, FALSE) -> 12.49780525 | K22: =VLOOKUP($C22, 'data, adj'!$B$7:$S$118, K$5, FALSE) -> 12.56881813 | M22: 2013-09-30 | N22: 0.09552620424 | O22: 0.05527867912 | P22: 0.1176049717 | Q22: 0.03547408691 | R22: 0.07643403835 | S22: 0.03585534877 | T22: 0.02589815132 | V22: 12.79964334 | W22: 12.78888905 | X22: 13.12682565 | Y22: 12.44253462 | Z22: 12.85860356 | AA22: 12.52340752 | AB22: 12.5447988 | AC22: 12.70870225 | AD22: 12.68394524 | AE22: 12.98349002 | AF22: 12.37373042 | AG22: 12.78129592 | AH22: 12.46591402 | AI22: 12.43447426 | AJ22: 12.89058443 | AK22: 12.89383285 | AL22: 13.27016128 | AM22: 12.51133883 | AN22: 12.9359112 | AO22: 12.58090103 | AP22: 12.65512334 | AS22: -0.07304255338
B23: 17 | C23: 2013-06-30 | D23: 2012-06-30 | E23: =VLOOKUP($C23, 'data, adj'!$B$7:$S$118, E$5, FALSE) -> 12.83058493 | F23: =VLOOKUP($C23, 'data, adj'!$B$7:$S$118, F$5, FALSE) -> 12.83916988 | G23: =VLOOKUP($C23, 'data, adj'!$B$7:$S$118, G$5, FALSE) -> 13.16735778 | H23: =VLOOKUP($C23, 'data, adj'!$B$7:$S$118, H$5, FALSE) -> 12.454572 | I23: =VLOOKUP($C23, 'data, adj'!$B$7:$S$118, I$5, FALSE) -> 12.8826254 | J23: =VLOOKUP($C23, 'data, adj'!$B$7:$S$118, J$5, FALSE) -> 12.49409716 | K23: =VLOOKUP($C23, 'data, adj'!$B$7:$S$118, K$5, FALSE) -> 12.5711254 | M23: 2013-06-30 | N23: 0.05368506132 | O23: 0.005741831781 | P23: 0.0581132068 | Q23: 0.01768969397 | R23: 0.04877409047 | S23: 0.01250995483 | T23: 0.04766793728 | V23: 12.81218724 | W23: 12.84359569 | X23: 13.09897594 | Y23: 12.4484617 | Z23: 12.89033679 | AA23: 12.51138238 | AB23: 12.59136814 | AC23: 12.72124616 | AD23: 12.73865189 | AE23: 12.95564031 | AF23: 12.37965749 | AG23: 12.81302915 | AH23: 12.45388888 | AI23: 12.4810436 | AJ23: 12.90312833 | AK23: 12.9485395 | AL23: 13.24231157 | AM23: 12.51726591 | AN23: 12.96764443 | AO23: 12.56887589 | AP23: 12.70169267 | AS23: -0.01839768165
B24: 18 | C24: 2013-03-31 | D24: 2012-03-31 | E24: =VLOOKUP($C24, 'data, adj'!$B$7:$S$118, E$5, FALSE) -> 12.81175926 | F24: =VLOOKUP($C24, 'data, adj'!$B$7:$S$118, F$5, FALSE) -> 12.8364717 | G24: =VLOOKUP($C24, 'data, adj'!$B$7:$S$118, G$5, FALSE) -> 13.14477828 | H24: =VLOOKUP($C24, 'data, adj'!$B$7:$S$118, H$5, FALSE) -> 12.46366013 | I24: =VLOOKUP($C24, 'data, adj'!$B$7:$S$118, I$5, FALSE) -> 12.87513459 | J24: =VLOOKUP($C24, 'data, adj'!$B$7:$S$118, J$5, FALSE) -> 12.49950316 | K24: =VLOOKUP($C24, 'data, adj'!$B$7:$S$118, K$5, FALSE) -> 12.5545158 | M24: 2013-03-31 | N24: 0.04865186502 | O24: 0.05771154534 | P24: 0.04648687533 | Q24: 0.04036560013 | R24: 0.05602782469 | S24: 0.03803554848 | T24: 0.02607946297 | V24: 12.83696588 | W24: 12.79215791 | X24: 13.212965 | Y24: 12.38980251 | Z24: 12.89653131 | AA24: 12.51075215 | AB24: 12.51352683 | AC24: 12.7460248 | AD24: 12.6872141 | AE24: 13.06962937 | AF24: 12.32099831 | AG24: 12.81922367 | AH24: 12.45325864 | AI24: 12.4032023 | AJ24: 12.92790697 | AK24: 12.89710171 | AL24: 13.35630063 | AM24: 12.45860672 | AN24: 12.97383895 | AO24: 12.56824565 | AP24: 12.62385137 | AS24: 0.02520662766
B25: 19 | C25: 2012-12-31 | D25: 2011-12-31 | E25: =VLOOKUP($C25, 'data, adj'!$B$7:$S$118, E$5, FALSE) -> 12.79542752 | F25: =VLOOKUP($C25, 'data, adj'!$B$7:$S$118, F$5, FALSE) -> 12.817923 | G25: =VLOOKUP($C25, 'data, adj'!$B$7:$S$118, G$5, FALSE) -> 13.12876882 | H25: =VLOOKUP($C25, 'data, adj'!$B$7:$S$118, H$5, FALSE) -> 12.45123989 | I25: =VLOOKUP($C25, 'data, adj'!$B$7:$S$118, I$5, FALSE) -> 12.85126831 | J25: =VLOOKUP($C25, 'data, adj'!$B$7:$S$118, J$5, FALSE) -> 12.49110496 | K25: =VLOOKUP($C25, 'data, adj'!$B$7:$S$118, K$5, FALSE) -> 12.55325518 | M25: 2012-12-31 | N25: 0.02948231899 | O25: 0.05597975134 | P25: 0.02321926074 | Q25: 0.06047570464 | R25: 0.03937550854 | S25: 0.01700468949 | T25: 0.06664958367 | V25: 12.81354588 | W25: 12.80750434 | X25: 13.17216093 | Y25: 12.48180469 | Z25: 12.877918 | AA25: 12.49804473 | AB25: 12.53458792 | AC25: 12.7226048 | AD25: 12.70256054 | AE25: 13.0288253 | AF25: 12.41300048 | AG25: 12.80061036 | AH25: 12.44055122 | AI25: 12.42426339 | AJ25: 12.90448697 | AK25: 12.91244815 | AL25: 13.31549656 | AM25: 12.55060889 | AN25: 12.95522564 | AO25: 12.55553823 | AP25: 12.64491246 | AS25: 0.01811836023
B26: 20 | C26: 2012-09-30 | D26: 2011-09-30 | E26: =VLOOKUP($C26, 'data, adj'!$B$7:$S$118, E$5, FALSE) -> 12.79020542 | F26: =VLOOKUP($C26, 'data, adj'!$B$7:$S$118, F$5, FALSE) -> 12.79496426 | G26: =VLOOKUP($C26, 'data, adj'!$B$7:$S$118, G$5, FALSE) -> 13.12755786 | H26: =VLOOKUP($C26, 'data, adj'!$B$7:$S$118, H$5, FALSE) -> 12.41507265 | I26: =VLOOKUP($C26, 'data, adj'!$B$7:$S$118, I$5, FALSE) -> 12.84387624 | J26: =VLOOKUP($C26, 'data, adj'!$B$7:$S$118, J$5, FALSE) -> 12.49531101 | K26: =VLOOKUP($C26, 'data, adj'!$B$7:$S$118, K$5, FALSE) -> 12.52677838 | M26: 2012-09-30 | N26: 0.009437920053 | O26: -0.006075207172 | P26: -0.0007322108633 | Q26: 0.02746197703 | R26: 0.0147273244 | S26: 0.02809651617 | T26: 0.01802041542 | V26: 12.79846767 | W26: 12.78276829 | X26: 13.18356172 | Y26: 12.41063976 | Z26: 12.83455573 | AA26: 12.46451582 | AB26: 12.52202313 | AC26: 12.70752659 | AD26: 12.67782448 | AE26: 13.04022609 | AF26: 12.34183555 | AG26: 12.75724808 | AH26: 12.40702231 | AI26: 12.41169859 | AJ26: 12.88940876 | AK26: 12.88771209 | AL26: 13.32689735 | AM26: 12.47944396 | AN26: 12.91186337 | AO26: 12.52200933 | AP26: 12.63234766 | AS26: 0.008262252614
B27: 21 | C27: 2012-06-30 | D27: 2011-06-30 | E27: =VLOOKUP($C27, 'data, adj'!$B$7:$S$118, E$5, FALSE) -> 12.80037691 | F27: =VLOOKUP($C27, 'data, adj'!$B$7:$S$118, F$5, FALSE) -> 12.80310808 | G27: =VLOOKUP($C27, 'data, adj'!$B$7:$S$118, G$5, FALSE) -> 13.14131074 | H27: =VLOOKUP($C27, 'data, adj'!$B$7:$S$118, H$5, FALSE) -> 12.40656151 | I27: =VLOOKUP($C27, 'data, adj'!$B$7:$S$118, I$5, FALSE) -> 12.85629667 | J27: =VLOOKUP($C27, 'data, adj'!$B$7:$S$118, J$5, FALSE) -> 12.48369681 | K27: =VLOOKUP($C27, 'data, adj'!$B$7:$S$118, K$5, FALSE) -> 12.52333294 | M27: 2012-06-30 | N27: 0.01181033106 | O27: 0.04048761604 | P27: -0.04233479791 | Q27: 0.04190019315 | R27: 0.03404012052 | S27: 0.02768557567 | T27: 0.06803519877 | V27: 12.82764071 | W27: 12.77562362 | X27: 13.30421445 | Y27: 12.36566955 | Z27: 12.84215088 | AA27: 12.4838462 | AB27: 12.47133378 | AC27: 12.73669962 | AD27: 12.67067981 | AE27: 13.16087882 | AF27: 12.29686534 | AG27: 12.76484324 | AH27: 12.42635269 | AI27: 12.36100925 | AJ27: 12.91858179 | AK27: 12.88056742 | AL27: 13.44755008 | AM27: 12.43447376 | AN27: 12.91945853 | AO27: 12.5413397 | AP27: 12.58165832 | AS27: 0.02726379324
B28: 22 | C28: 2012-03-31 | D28: 2011-03-31 | E28: =VLOOKUP($C28, 'data, adj'!$B$7:$S$118, E$5, FALSE) -> 12.80278326 | F28: =VLOOKUP($C28, 'data, adj'!$B$7:$S$118, F$5, FALSE) -> 12.78099075 | G28: =VLOOKUP($C28, 'data, adj'!$B$7:$S$118, G$5, FALSE) -> 13.19220469 | H28: =VLOOKUP($C28, 'data, adj'!$B$7:$S$118, H$5, FALSE) -> 12.38831087 | I28: =VLOOKUP($C28, 'data, adj'!$B$7:$S$118, I$5, FALSE) -> 12.84823175 | J28: =VLOOKUP($C28, 'data, adj'!$B$7:$S$118, J$5, FALSE) -> 12.47393332 | K28: =VLOOKUP($C28, 'data, adj'!$B$7:$S$118, K$5, FALSE) -> 12.49330587 | M28: 2012-03-31 | N28: 0.03418262283 | O28: 0.01116715507 | P28: 0.02076031427 | Q28: 0.00149164714 | R28: 0.04829956222 | S28: 0.03681883354 | T28: 0.02022096493 | V28: 12.87553722 | W28: 12.79659719 | X28: 13.35342265 | Y28: 12.36489068 | Z28: 12.84189568 | AA28: 12.42877535 | AB28: 12.50089332 | AC28: 12.78459613 | AD28: 12.69165338 | AE28: 13.21008702 | AF28: 12.29608647 | AG28: 12.76458804 | AH28: 12.37128184 | AI28: 12.39056879 | AJ28: 12.9664783 | AK28: 12.90154099 | AL28: 13.49675829 | AM28: 12.43369488 | AN28: 12.91920333 | AO28: 12.48626885 | AP28: 12.61121786 | AS28: 0.07275395418
B29: 23 | C29: 2011-12-31 | D29: 2010-12-31 | E29: =VLOOKUP($C29, 'data, adj'!$B$7:$S$118, E$5, FALSE) -> 12.79288383 | F29: =VLOOKUP($C29, 'data, adj'!$B$7:$S$118, F$5, FALSE) -> 12.77792752 | G29: =VLOOKUP($C29, 'data, adj'!$B$7:$S$118, G$5, FALSE) -> 13.18846006 | H29: =VLOOKUP($C29, 'data, adj'!$B$7:$S$118, H$5, FALSE) -> 12.41669817 | I29: =VLOOKUP($C29, 'data, adj'!$B$7:$S$118, I$5, FALSE) -> 12.82726454 | J29: =VLOOKUP($C29, 'data, adj'!$B$7:$S$118, J$5, FALSE) -> 12.46119924 | K29: =VLOOKUP($C29, 'data, adj'!$B$7:$S$118, K$5, FALSE) -> 12.49157484 | M29: 2011-12-31 | N29: 0.02066205 | O29: 0.02957682931 | P29: -0.01629913206 | Q29: 0.0651065133 | R29: 0.05065346688 | S29: 0.03684548251 | T29: 0.04301307767 | V29: 12.84860131 | W29: 12.7904794 | X29: 13.29356302 | Y29: 12.43698943 | Z29: 12.83977163 | AA29: 12.51140384 | AB29: 12.49517745 | AC29: 12.75766023 | AD29: 12.68553559 | AE29: 13.15022739 | AF29: 12.36818522 | AG29: 12.76246399 | AH29: 12.45391034 | AI29: 12.38485291 | AJ29: 12.9395424 | AK29: 12.8954232 | AL29: 13.43689865 | AM29: 12.50579363 | AN29: 12.91707927 | AO29: 12.56889735 | AP29: 12.60550198 | AS29: 0.05571747953
B30: 24 | C30: 2011-09-30 | D30: 2010-09-30 | E30: =VLOOKUP($C30, 'data, adj'!$B$7:$S$118, E$5, FALSE) -> 12.79191576 | F30: =VLOOKUP($C30, 'data, adj'!$B$7:$S$118, F$5, FALSE) -> 12.77279739 | G30: =VLOOKUP($C30, 'data, adj'!$B$7:$S$118, G$5, FALSE) -> 13.22064006 | H30: =VLOOKUP($C30, 'data, adj'!$B$7:$S$118, H$5, FALSE) -> 12.3683488 | I30: =VLOOKUP($C30, 'data, adj'!$B$7:$S$118, I$5, FALSE) -> 12.80244182 | J30: =VLOOKUP($C30, 'data, adj'!$B$7:$S$118, J$5, FALSE) -> 12.44752752 | K30: =VLOOKUP($C30, 'data, adj'!$B$7:$S$118, K$5, FALSE) -> 12.47249788 | M30: 2011-09-30 | N30: 0.006551917205 | O30: 0.009970898594 | P30: -0.03707834159 | Q30: 0.04229096133 | R30: 0.03211390713 | S30: 0.01698830394 | T30: 0.04952524302 | V30: 12.74101119 | W30: 12.76288549 | X30: 13.17602104 | Y30: 12.34395251 | Z30: 12.75609463 | AA30: 12.45769831 | AB30: 12.43205544 | AC30: 12.6500701 | AD30: 12.65794169 | AE30: 13.03268541 | AF30: 12.27514831 | AG30: 12.67878698 | AH30: 12.4002048 | AI30: 12.32173091 | AJ30: 12.83195227 | AK30: 12.8678293 | AL30: 13.31935668 | AM30: 12.41275672 | AN30: 12.83340227 | AO30: 12.51519181 | AP30: 12.54237998 | AS30: -0.05090456991
B31: 25 | C31: 2011-06-30 | D31: 2010-06-30 | E31: =VLOOKUP($C31, 'data, adj'!$B$7:$S$118, E$5, FALSE) -> 12.79986071 | F31: =VLOOKUP($C31, 'data, adj'!$B$7:$S$118, F$5, FALSE) -> 12.76880073 | G31: =VLOOKUP($C31, 'data, adj'!$B$7:$S$118, G$5, FALSE) -> 13.26547102 | H31: =VLOOKUP($C31, 'data, adj'!$B$7:$S$118, H$5, FALSE) -> 12.3411934 | I31: =VLOOKUP($C31, 'data, adj'!$B$7:$S$118, I$5, FALSE) -> 12.79788177 | J31: =VLOOKUP($C31, 'data, adj'!$B$7:$S$118, J$5, FALSE) -> 12.4447706 | K31: =VLOOKUP($C31, 'data, adj'!$B$7:$S$118, K$5, FALSE) -> 12.4495481 | M31: 2011-06-30 | N31: 0.02777999637 | O31: 0.00682288777 | P31: 0.03874343023 | Q31: 0.02447614992 | R31: 0.04426911925 | S31: 0.03907560164 | T31: 0.02178568819 | V31: 12.74705816 | W31: 12.81013777 | X31: 13.12803591 | Y31: 12.32811751 | Z31: 12.73497879 | AA31: 12.44967376 | AB31: 12.39786129 | AC31: 12.65611708 | AD31: 12.70519397 | AE31: 12.98470028 | AF31: 12.2593133 | AG31: 12.65767115 | AH31: 12.39218026 | AI31: 12.28753675 | AJ31: 12.83799925 | AK31: 12.91508157 | AL31: 13.27137154 | AM31: 12.39692172 | AN31: 12.81228643 | AO31: 12.50716727 | AP31: 12.50818582 | AS31: -0.05280254741
B32: 26 | C32: 2011-03-31 | D32: 2010-03-31 | E32: =VLOOKUP($C32, 'data, adj'!$B$7:$S$118, E$5, FALSE) -> 12.79495316 | F32: =VLOOKUP($C32, 'data, adj'!$B$7:$S$118, F$5, FALSE) -> 12.77417234 | G32: =VLOOKUP($C32, 'data, adj'!$B$7:$S$118, G$5, FALSE) -> 13.24208586 | H32: =VLOOKUP($C32, 'data, adj'!$B$7:$S$118, H$5, FALSE) -> 12.34488631 | I32: =VLOOKUP($C32, 'data, adj'!$B$7:$S$118, I$5, FALSE) -> 12.77728098 | J32: =VLOOKUP($C32, 'data, adj'!$B$7:$S$118, J$5, FALSE) -> 12.43137387 | K32: =VLOOKUP($C32, 'data, adj'!$B$7:$S$118, K$5, FALSE) -> 12.44465638 | M32: 2011-03-31 | N32: 0.08058405993 | O32: 0.02242484236 | P32: 0.1113367894 | Q32: 0.02000436445 | R32: 0.06461470422 | S32: -0.002598519519 | T32: 0.05623694165 | V32: 12.72488847 | W32: 12.76703762 | X32: 13.1040453 | Y32: 12.32844457 | Z32: 12.78605961 | AA32: 12.46314685 | AB32: 12.39391362 | AC32: 12.63394738 | AD32: 12.66209382 | AE32: 12.96070967 | AF32: 12.25964036 | AG32: 12.70875197 | AH32: 12.40565334 | AI32: 12.28358909 | AJ32: 12.81582955 | AK32: 12.87198143 | AL32: 13.24738093 | AM32: 12.39724877 | AN32: 12.86336725 | AO32: 12.52064035 | AP32: 12.50423816 | AS32: -0.07006469087
B33: 27 | C33: 2010-12-31 | D33: 2009-12-31 | E33: =VLOOKUP($C33, 'data, adj'!$B$7:$S$118, E$5, FALSE) -> 12.76080797 | F33: =VLOOKUP($C33, 'data, adj'!$B$7:$S$118, F$5, FALSE) -> 12.76380953 | G33: =VLOOKUP($C33, 'data, adj'!$B$7:$S$118, G$5, FALSE) -> 13.18231389 | H33: =VLOOKUP($C33, 'data, adj'!$B$7:$S$118, H$5, FALSE) -> 12.354234 | I33: =VLOOKUP($C33, 'data, adj'!$B$7:$S$118, I$5, FALSE) -> 12.76392975 | J33: =VLOOKUP($C33, 'data, adj'!$B$7:$S$118, J$5, FALSE) -> 12.45347554 | K33: =VLOOKUP($C33, 'data, adj'!$B$7:$S$118, K$5, FALSE) -> 12.42694161 | M33: 2010-12-31 | N33: 0.0877933424 | O33: 0.0266698699 | P33: 0.1112491302 | Q33: 0.0827554303 | R33: 0.07584188614 | S33: 0.05792829716 | T33: 0.06823583505 | V33: 12.80391376 | W33: 12.85552688 | X33: 13.1819526 | Y33: 12.28619038 | Z33: 12.80103197 | AA33: 12.43080993 | AB33: 12.45347556 | AC33: 12.71297267 | AD33: 12.75058308 | AE33: 13.03861697 | AF33: 12.21738618 | AG33: 12.72372432 | AH33: 12.37331642 | AI33: 12.34315102 | AJ33: 12.89485485 | AK33: 12.96047068 | AL33: 13.32528823 | AM33: 12.35499459 | AN33: 12.87833961 | AO33: 12.48830343 | AP33: 12.56380009 | AS33: 0.04310578839
B34: 28 | C34: 2010-09-30 | D34: 2009-09-30 | E34: =VLOOKUP($C34, 'data, adj'!$B$7:$S$118, E$5, FALSE) -> 12.72137225 | F34: =VLOOKUP($C34, 'data, adj'!$B$7:$S$118, F$5, FALSE) -> 12.76617403 | G34: =VLOOKUP($C34, 'data, adj'!$B$7:$S$118, G$5, FALSE) -> 13.13286603 | H34: =VLOOKUP($C34, 'data, adj'!$B$7:$S$118, H$5, FALSE) -> 12.30438287 | I34: =VLOOKUP($C34, 'data, adj'!$B$7:$S$118, I$5, FALSE) -> 12.7293119 | J34: =VLOOKUP($C34, 'data, adj'!$B$7:$S$118, J$5, FALSE) -> 12.42807154 | K34: =VLOOKUP($C34, 'data, adj'!$B$7:$S$118, K$5, FALSE) -> 12.39645331 | M34: 2010-09-30 | N34: 0.01963894026 | O34: -0.00328853822 | P34: 0.04315501275 | Q34: 0.03956964876 | R34: 0.02678272525 | S34: 0.02962676424 | T34: 0.03560213391 | V34: 12.85976854 | W34: 12.87617721 | X34: 13.25178866 | Y34: 12.33222758 | Z34: 12.80316094 | AA34: 12.44777005 | AB34: 12.43473668 | AC34: 12.76882745 | AD34: 12.7712334 | AE34: 13.10845303 | AF34: 12.26342337 | AG34: 12.7258533 | AH34: 12.39027654 | AI34: 12.32441215 | AJ34: 12.95070962 | AK34: 12.98112101 | AL34: 13.3951243 | AM34: 12.40103179 | AN34: 12.88046858 | AO34: 12.50526355 | AP34: 12.54506122 | AS34: 0.1383962904
B35: 29 | C35: 2010-06-30 | D35: 2009-06-30 | E35: =VLOOKUP($C35, 'data, adj'!$B$7:$S$118, E$5, FALSE) -> 12.72369909 | F35: =VLOOKUP($C35, 'data, adj'!$B$7:$S$118, F$5, FALSE) -> 12.77632029 | G35: =VLOOKUP($C35, 'data, adj'!$B$7:$S$118, G$5, FALSE) -> 13.10589654 | H35: =VLOOKUP($C35, 'data, adj'!$B$7:$S$118, H$5, FALSE) -> 12.29013342 | I35: =VLOOKUP($C35, 'data, adj'!$B$7:$S$118, I$5, FALSE) -> 12.72795393 | J35: =VLOOKUP($C35, 'data, adj'!$B$7:$S$118, J$5, FALSE) -> 12.4192103 | K35: =VLOOKUP($C35, 'data, adj'!$B$7:$S$118, K$5, FALSE) -> 12.38243481 | M35: 2010-06-30 | N35: 0.02335907179 | O35: 0.03381748399 | P35: 0.02213937222 | Q35: 0.03798408602 | R35: 0.007024862163 | S35: 0.03046345796 | T35: 0.01542647383 | V35: 12.80295515 | W35: 12.78798951 | X35: 13.18236355 | Y35: 12.22870176 | Z35: 12.7796706 | AA35: 12.39480721 | AB35: 12.36582214 | AC35: 12.71201406 | AD35: 12.68304571 | AE35: 13.03902792 | AF35: 12.15989756 | AG35: 12.70236296 | AH35: 12.3373137 | AI35: 12.2554976 | AJ35: 12.89389624 | AK35: 12.89293332 | AL35: 13.32569918 | AM35: 12.29750597 | AN35: 12.85697824 | AO35: 12.45230071 | AP35: 12.47614667 | AS35: 0.07925606008
B36: 30 | C36: 2010-03-31 | D36: 2009-03-31 | E36: =VLOOKUP($C36, 'data, adj'!$B$7:$S$118, E$5, FALSE) -> 12.72873395 | F36: =VLOOKUP($C36, 'data, adj'!$B$7:$S$118, F$5, FALSE) -> 12.766765 | G36: =VLOOKUP($C36, 'data, adj'!$B$7:$S$118, G$5, FALSE) -> 13.11041427 | H36: =VLOOKUP($C36, 'data, adj'!$B$7:$S$118, H$5, FALSE) -> 12.27392754 | I36: =VLOOKUP($C36, 'data, adj'!$B$7:$S$118, I$5, FALSE) -> 12.75440501 | J36: =VLOOKUP($C36, 'data, adj'!$B$7:$S$118, J$5, FALSE) -> 12.40841739 | K36: =VLOOKUP($C36, 'data, adj'!$B$7:$S$118, K$5, FALSE) -> 12.38693898 | M36: 2010-03-31 | N36: -0.003845484935 | O36: 0.0002726238784 | P36: -0.006368968804 | Q36: 0.05451702981 | R36: 0.03165459597 | S36: 0.0547294521 | T36: 0.006974645284 | V36: 12.5859993 | W36: 12.61997318 | X36: 12.95424518 | Y36: 12.2095778 | Z36: 12.61196645 | AA36: 12.32904904 | AB36: 12.36806264 | AC36: 12.49505821 | AD36: 12.51502938 | AE36: 12.81090955 | AF36: 12.14077359 | AG36: 12.5346588 | AH36: 12.27155553 | AI36: 12.2577381 | AJ36: 12.67694038 | AK36: 12.72491699 | AL36: 13.09758081 | AM36: 12.278382 | AN36: 12.68927409 | AO36: 12.38654254 | AP36: 12.47838717 | AS36: -0.1427346551
B37: 31 | C37: 2009-12-31 | D37: 2008-12-31 | E37: =VLOOKUP($C37, 'data, adj'!$B$7:$S$118, E$5, FALSE) -> 12.7436327 | F37: =VLOOKUP($C37, 'data, adj'!$B$7:$S$118, F$5, FALSE) -> 12.78344415 | G37: =VLOOKUP($C37, 'data, adj'!$B$7:$S$118, G$5, FALSE) -> 13.11605552 | H37: =VLOOKUP($C37, 'data, adj'!$B$7:$S$118, H$5, FALSE) -> 12.23851563 | I37: =VLOOKUP($C37, 'data, adj'!$B$7:$S$118, I$5, FALSE) -> 12.73430686 | J37: =VLOOKUP($C37, 'data, adj'!$B$7:$S$118, J$5, FALSE) -> 12.38056782 | K37: =VLOOKUP($C37, 'data, adj'!$B$7:$S$118, K$5, FALSE) -> 12.38508038 | M37: 2009-12-31 | N37: 0.06028106193 | O37: 0.07208273021 | P37: 0.06589707331 | Q37: 0.04767475061 | R37: 0.06672511084 | S37: 0.05024210255 | T37: 0.06839517178 | V37: 12.50777333 | W37: 12.70444777 | X37: 12.89172786 | Y37: 12.11764731 | Z37: 12.52740567 | AA37: 12.28848485 | AB37: 12.31875569 | AC37: 12.41683225 | AD37: 12.59950396 | AE37: 12.74839222 | AF37: 12.0488431 | AG37: 12.45009803 | AH37: 12.23099134 | AI37: 12.20843116 | AJ37: 12.59871442 | AK37: 12.80939157 | AL37: 13.03506349 | AM37: 12.18645152 | AN37: 12.60471332 | AO37: 12.34597835 | AP37: 12.42908023 | AS37: -0.2358593651
B38: 32 | C38: 2009-09-30 | D38: 2008-09-30 | E38: =VLOOKUP($C38, 'data, adj'!$B$7:$S$118, E$5, FALSE) -> 12.71580467 | F38: =VLOOKUP($C38, 'data, adj'!$B$7:$S$118, F$5, FALSE) -> 12.75486146 | G38: =VLOOKUP($C38, 'data, adj'!$B$7:$S$118, G$5, FALSE) -> 13.08335016 | H38: =VLOOKUP($C38, 'data, adj'!$B$7:$S$118, H$5, FALSE) -> 12.23193531 | I38: =VLOOKUP($C38, 'data, adj'!$B$7:$S$118, I$5, FALSE) -> 12.6969996 | J38: =VLOOKUP($C38, 'data, adj'!$B$7:$S$118, J$5, FALSE) -> 12.36424665 | K38: =VLOOKUP($C38, 'data, adj'!$B$7:$S$118, K$5, FALSE) -> 12.36030761 | M38: 2009-09-30 | N38: 0.143963865 | O38: 0.1213157472 | P38: 0.1684385014 | Q38: 0.1002922749 | R38: 0.1061613413 | S38: 0.08352339608 | T38: 0.07442907483 | V38: 12.58219058 | W38: 12.71983808 | X38: 12.91114762 | Y38: 12.15508146 | Z38: 12.61348474 | AA38: 12.33821243 | AB38: 12.33100448 | AC38: 12.49124949 | AD38: 12.61489427 | AE38: 12.76781199 | AF38: 12.08627725 | AG38: 12.5361771 | AH38: 12.28071893 | AI38: 12.22067994 | AJ38: 12.67313166 | AK38: 12.82478188 | AL38: 13.05448325 | AM38: 12.22388567 | AN38: 12.69079238 | AO38: 12.39570594 | AP38: 12.44132901 | AS38: -0.1336140935
B39: 33 | C39: 2009-06-30 | D39: 2008-06-30 | E39: =VLOOKUP($C39, 'data, adj'!$B$7:$S$118, E$5, FALSE) -> 12.64272953 | F39: =VLOOKUP($C39, 'data, adj'!$B$7:$S$118, F$5, FALSE) -> 12.71532403 | G39: =VLOOKUP($C39, 'data, adj'!$B$7:$S$118, G$5, FALSE) -> 13.01120609 | H39: =VLOOKUP($C39, 'data, adj'!$B$7:$S$118, H$5, FALSE) -> 12.17866034 | I39: =VLOOKUP($C39, 'data, adj'!$B$7:$S$118, I$5, FALSE) -> 12.64365638 | J39: =VLOOKUP($C39, 'data, adj'!$B$7:$S$118, J$5, FALSE) -> 12.32954171 | K39: =VLOOKUP($C39, 'data, adj'!$B$7:$S$118, K$5, FALSE) -> 12.33899823 | M39: 2009-06-30 | N39: 0.1602256252 | O39: 0.07266548029 | P39: 0.1711574601 | Q39: 0.05004142466 | R39: 0.1360142184 | S39: 0.06526550136 | T39: 0.02682390924 | V39: =OFFSET(E39, $P$4, 0) + OFFSET(N39, $P$4, 0) -> 12.62243339 | W39: =OFFSET(F39, $P$4, 0) + OFFSET(O39, $P$4, 0) -> 12.74454297 | X39: =OFFSET(G39, $P$4, 0) + OFFSET(P39, $P$4, 0) -> 13.02312706 | Y39: =OFFSET(H39, $P$4, 0) + OFFSET(Q39, $P$4, 0) -> 12.22984728 | Z39: =OFFSET(I39, $P$4, 0) + OFFSET(R39, $P$4, 0) -> 12.63913971 | AA39: =OFFSET(J39, $P$4, 0) + OFFSET(S39, $P$4, 0) -> 12.32036821 | AB39: =OFFSET(K39, $P$4, 0) + OFFSET(T39, $P$4, 0) -> 12.41451304 | AC39: =V39 - SQRT(N$2)*$AC$2 -> 12.5314923 | AD39: =W39 - SQRT(O$2)*$AC$2 -> 12.63959917 | AE39: =X39 - SQRT(P$2)*$AC$2 -> 12.87979143 | AF39: =Y39 - SQRT(Q$2)*$AC$2 -> 12.16104307 | AG39: =Z39 - SQRT(R$2)*$AC$2 -> 12.56183207 | AH39: =AA39 - SQRT(S$2)*$AC$2 -> 12.2628747 | AI39: =AB39 - SQRT(T$2)*$AC$2 -> 12.30418851 | AJ39: =V39 + SQRT(N$2)*$AC$2 -> 12.71337447 | AK39: =W39 + SQRT(O$2)*$AC$2 -> 12.84948678 | AL39: =X39 + SQRT(P$2)*$AC$2 -> 13.16646269 | AM39: =Y39 + SQRT(Q$2)*$AC$2 -> 12.29865149 | AN39: =Z39 + SQRT(R$2)*$AC$2 -> 12.71644735 | AO39: =AA39 + SQRT(S$2)*$AC$2 -> 12.37786172 | AP39: =AB39 + SQRT(T$2)*$AC$2 -> 12.52483758 | AS39: =V39-E39 -> -0.02029614009
B40: 34 | C40: 2009-03-31 | D40: 2008-03-31 | E40: =VLOOKUP($C40, 'data, adj'!$B$7:$S$118, E$5, FALSE) -> 12.55962321 | F40: =VLOOKUP($C40, 'data, adj'!$B$7:$S$118, F$5, FALSE) -> 12.69720462 | G40: =VLOOKUP($C40, 'data, adj'!$B$7:$S$118, G$5, FALSE) -> 12.93956491 | H40: =VLOOKUP($C40, 'data, adj'!$B$7:$S$118, H$5, FALSE) -> 12.16651548 | I40: =VLOOKUP($C40, 'data, adj'!$B$7:$S$118, I$5, FALSE) -> 12.56853282 | J40: =VLOOKUP($C40, 'data, adj'!$B$7:$S$118, J$5, FALSE) -> 12.30950881 | K40: =VLOOKUP($C40, 'data, adj'!$B$7:$S$118, K$5, FALSE) -> 12.34223246 | M40: 2009-03-31 | N40: 0.02637608169 | O40: -0.07723143251 | P40: 0.0146802753 | Q40: 0.04306232154 | R40: 0.04343362256 | S40: 0.01954022839 | T40: 0.025830183 | V40: 12.66046425 | W40: 12.79199668 | X40: 13.09249369 | Y40: 12.17283892 | Z40: 12.62262933 | AA40: 12.30803291 | AB40: 12.41663285 | AC40: 12.56952316 | AD40: 12.68705288 | AE40: 12.94915806 | AF40: 12.10403472 | AG40: 12.54532169 | AH40: 12.2505394 | AI40: 12.30630831 | AJ40: 12.75140534 | AK40: 12.89694049 | AL40: 13.23582932 | AM40: 12.24164313 | AN40: 12.69993697 | AO40: 12.36552642 | AP40: 12.52695738 | AS40: 0.1008410378
B41: 35 | C41: 2008-12-31 | D41: 2007-12-31 | E41: =VLOOKUP($C41, 'data, adj'!$B$7:$S$118, E$5, FALSE) -> 12.55946521 | F41: =VLOOKUP($C41, 'data, adj'!$B$7:$S$118, F$5, FALSE) -> 12.74341653 | G41: =VLOOKUP($C41, 'data, adj'!$B$7:$S$118, G$5, FALSE) -> 12.95063986 | H41: =VLOOKUP($C41, 'data, adj'!$B$7:$S$118, H$5, FALSE) -> 12.13061068 | I41: =VLOOKUP($C41, 'data, adj'!$B$7:$S$118, I$5, FALSE) -> 12.56012866 | J41: =VLOOKUP($C41, 'data, adj'!$B$7:$S$118, J$5, FALSE) -> 12.30093727 | K41: =VLOOKUP($C41, 'data, adj'!$B$7:$S$118, K$5, FALSE) -> 12.32378012 | M41: 2008-12-31 | N41: -0.05169187507 | O41: -0.03896876217 | P41: -0.05891200609 | Q41: -0.01296336907 | R41: -0.03272298991 | S41: -0.01245242387 | T41: -0.005024429268 | V41: 12.69953679 | W41: 12.7712088 | X41: 13.06799441 | Y41: 12.16867239 | Z41: 12.72321509 | AA41: 12.34690645 | AB41: 12.35743993 | AC41: 12.6085957 | AD41: 12.666265 | AE41: 12.92465878 | AF41: 12.09986818 | AG41: 12.64590745 | AH41: 12.28941294 | AI41: 12.24711539 | AJ41: 12.79047787 | AK41: 12.8761526 | AL41: 13.21133005 | AM41: 12.2374766 | AN41: 12.80052274 | AO41: 12.40439996 | AP41: 12.46776446 | AS41: 0.1400715783
B42: 36 | C42: 2008-09-30 | D42: 2007-09-30 | E42: =VLOOKUP($C42, 'data, adj'!$B$7:$S$118, E$5, FALSE) -> 12.60802158 | F42: =VLOOKUP($C42, 'data, adj'!$B$7:$S$118, F$5, FALSE) -> 12.75896876 | G42: =VLOOKUP($C42, 'data, adj'!$B$7:$S$118, G$5, FALSE) -> 12.98314039 | H42: =VLOOKUP($C42, 'data, adj'!$B$7:$S$118, H$5, FALSE) -> 12.15290918 | I42: =VLOOKUP($C42, 'data, adj'!$B$7:$S$118, I$5, FALSE) -> 12.61003663 | J42: =VLOOKUP($C42, 'data, adj'!$B$7:$S$118, J$5, FALSE) -> 12.31500328 | K42: =VLOOKUP($C42, 'data, adj'!$B$7:$S$118, K$5, FALSE) -> 12.33162983 | M42: 2008-09-30 | N42: -0.02583100111 | O42: -0.03913068601 | P42: -0.07199277095 | Q42: 0.002172276408 | R42: 0.003448112784 | S42: 0.02320915198 | T42: -0.0006253515189 | V42: 12.70466287 | W42: 12.84955646 | X42: 13.09463329 | Y42: 12.10799232 | Z42: 12.6571064 | AA42: 12.28519257 | AB42: 12.31909659 | AC42: 12.61372178 | AD42: 12.74461266 | AE42: 12.95129766 | AF42: 12.03918811 | AG42: 12.57979876 | AH42: 12.22769906 | AI42: 12.20877206 | AJ42: 12.79560396 | AK42: 12.95450027 | AL42: 13.23796892 | AM42: 12.17679653 | AN42: 12.73441404 | AO42: 12.34268607 | AP42: 12.42942113 | AS42: 0.09664129058
B43: 37 | C43: 2008-06-30 | D43: 2007-06-30 | E43: =VLOOKUP($C43, 'data, adj'!$B$7:$S$118, E$5, FALSE) -> 12.63748811 | F43: =VLOOKUP($C43, 'data, adj'!$B$7:$S$118, F$5, FALSE) -> 12.77844106 | G43: =VLOOKUP($C43, 'data, adj'!$B$7:$S$118, G$5, FALSE) -> 13.04265328 | H43: =VLOOKUP($C43, 'data, adj'!$B$7:$S$118, H$5, FALSE) -> 12.16192743 | I43: =VLOOKUP($C43, 'data, adj'!$B$7:$S$118, I$5, FALSE) -> 12.62435855 | J43: =VLOOKUP($C43, 'data, adj'!$B$7:$S$118, J$5, FALSE) -> 12.30171004 | K43: =VLOOKUP($C43, 'data, adj'!$B$7:$S$118, K$5, FALSE) -> 12.33383241 | M43: 2008-06-30 | N43: -0.01505472555 | O43: -0.03389808528 | P43: -0.01952621923 | Q43: 0.06791985316 | R43: 0.01478116107 | S43: 0.01865816548 | T43: 0.08068062701 | V43: 12.66942145 | W43: 12.87484991 | X43: 13.05603635 | Y43: 12.15765413 | Z43: 12.6284463 | AA43: 12.29679377 | AB43: 12.28397845 | AC43: 12.57848037 | AD43: 12.7699061 | AE43: 12.91270072 | AF43: 12.08884992 | AG43: 12.55113866 | AH43: 12.23930027 | AI43: 12.17365391 | AJ43: 12.76036254 | AK43: 12.97979371 | AL43: 13.19937198 | AM43: 12.22645834 | AN43: 12.70575394 | AO43: 12.35428728 | AP43: 12.39430298 | AS43: 0.03193334302
B44: 38 | C44: 2008-03-31 | D44: 2007-03-31 | E44: =VLOOKUP($C44, 'data, adj'!$B$7:$S$118, E$5, FALSE) -> 12.65777864 | F44: =VLOOKUP($C44, 'data, adj'!$B$7:$S$118, F$5, FALSE) -> 12.79908176 | G44: =VLOOKUP($C44, 'data, adj'!$B$7:$S$118, G$5, FALSE) -> 13.05903373 | H44: =VLOOKUP($C44, 'data, adj'!$B$7:$S$118, H$5, FALSE) -> 12.11097594 | I44: =VLOOKUP($C44, 'data, adj'!$B$7:$S$118, I$5, FALSE) -> 12.6276473 | J44: =VLOOKUP($C44, 'data, adj'!$B$7:$S$118, J$5, FALSE) -> 12.29388204 | K44: =VLOOKUP($C44, 'data, adj'!$B$7:$S$118, K$5, FALSE) -> 12.28524882 | M44: 2008-03-31 | N44: 0.002685612078 | O44: -0.007085079911 | P44: 0.03345996441 | Q44: 0.06186298007 | R44: -0.005017964758 | S44: 0.01415087203 | T44: 0.1313840246 | V44: 12.66174501 | W44: 12.8924323 | X44: 12.97050121 | Y44: 12.01183966 | Z44: 12.64265042 | AA44: 12.28753338 | AB44: 12.0187268 | AC44: 12.57080392 | AD44: 12.78748849 | AE44: 12.82716558 | AF44: 11.94303546 | AG44: 12.56534278 | AH44: 12.23003987 | AI44: 11.90840227 | AJ44: 12.75268609 | AK44: 12.9973761 | AL44: 13.11383684 | AM44: 12.08064387 | AN44: 12.71995806 | AO44: 12.34502689 | AP44: 12.12905134 | AS44: 0.00396636636
B45: 39 | C45: 2007-12-31 | D45: 2006-12-31 | E45: =VLOOKUP($C45, 'data, adj'!$B$7:$S$118, E$5, FALSE) -> 12.66738549 | F45: =VLOOKUP($C45, 'data, adj'!$B$7:$S$118, F$5, FALSE) -> 12.79777109 | G45: =VLOOKUP($C45, 'data, adj'!$B$7:$S$118, G$5, FALSE) -> 13.03547999 | H45: =VLOOKUP($C45, 'data, adj'!$B$7:$S$118, H$5, FALSE) -> 12.08488194 | I45: =VLOOKUP($C45, 'data, adj'!$B$7:$S$118, I$5, FALSE) -> 12.65707501 | J45: =VLOOKUP($C45, 'data, adj'!$B$7:$S$118, J$5, FALSE) -> 12.28965523 | K45: =VLOOKUP($C45, 'data, adj'!$B$7:$S$118, K$5, FALSE) -> 12.21505716 | M45: 2007-12-31 | N45: 0.03215129249 | O45: -0.02656229431 | P45: 0.03251442117 | Q45: 0.08379045245 | R45: 0.06614008038 | S45: 0.0572512161 | T45: 0.1423827622 | V45: 12.59247346 | W45: 12.7815881 | X45: 12.97391988 | Y45: 12.05001264 | Z45: 12.57163386 | AA45: 12.23264961 | AB45: 11.98332328 | AC45: 12.50153238 | AD45: 12.6766443 | AE45: 12.83058425 | AF45: 11.98120843 | AG45: 12.49432622 | AH45: 12.1751561 | AI45: 11.87299875 | AJ45: 12.68341455 | AK45: 12.88653191 | AL45: 13.11725551 | AM45: 12.11881684 | AN45: 12.6489415 | AO45: 12.29014311 | AP45: 12.09364782 | AS45: -0.07491203191
B46: 40 | C46: 2007-09-30 | D46: 2006-09-30 | E46: =VLOOKUP($C46, 'data, adj'!$B$7:$S$118, E$5, FALSE) -> 12.65028079 | F46: =VLOOKUP($C46, 'data, adj'!$B$7:$S$118, F$5, FALSE) -> 12.81465273 | G46: =VLOOKUP($C46, 'data, adj'!$B$7:$S$118, G$5, FALSE) -> 13.01935343 | H46: =VLOOKUP($C46, 'data, adj'!$B$7:$S$118, H$5, FALSE) -> 12.03989409 | I46: =VLOOKUP($C46, 'data, adj'!$B$7:$S$118, I$5, FALSE) -> 12.60816875 | J46: =VLOOKUP($C46, 'data, adj'!$B$7:$S$118, J$5, FALSE) -> 12.25620952 | K46: =VLOOKUP($C46, 'data, adj'!$B$7:$S$118, K$5, FALSE) -> 12.12936437 | M46: 2007-09-30 | N46: 0.05438208109 | O46: 0.03490372965 | P46: 0.07527985977 | Q46: 0.06809823308 | R46: 0.04893764984 | S46: 0.02898304529 | T46: 0.1897322192 | V46: 12.58440897 | W46: 12.74713247 | X46: 12.94660846 | Y46: 11.97242577 | Z46: 12.56514263 | AA46: 12.24693777 | AB46: 11.83974139 | AC46: 12.49346789 | AD46: 12.64218866 | AE46: 12.80327282 | AF46: 11.90362156 | AG46: 12.48783499 | AH46: 12.18944426 | AI46: 11.72941685 | AJ46: 12.67535006 | AK46: 12.85207627 | AL46: 13.08994409 | AM46: 12.04122998 | AN46: 12.64245027 | AO46: 12.30443127 | AP46: 11.95006593 | AS46: -0.0658718168
B47: 41 | C47: 2007-06-30 | D47: 2006-06-30 | E47: =VLOOKUP($C47, 'data, adj'!$B$7:$S$118, E$5, FALSE) -> 12.62068248 | F47: =VLOOKUP($C47, 'data, adj'!$B$7:$S$118, F$5, FALSE) -> 12.78797257 | G47: =VLOOKUP($C47, 'data, adj'!$B$7:$S$118, G$5, FALSE) -> 12.97556262 | H47: =VLOOKUP($C47, 'data, adj'!$B$7:$S$118, H$5, FALSE) -> 12.02549756 | I47: =VLOOKUP($C47, 'data, adj'!$B$7:$S$118, I$5, FALSE) -> 12.59047073 | J47: =VLOOKUP($C47, 'data, adj'!$B$7:$S$118, J$5, FALSE) -> 12.2474209 | K47: =VLOOKUP($C47, 'data, adj'!$B$7:$S$118, K$5, FALSE) -> 12.02962779 | M47: 2007-06-30 | N47: 0.04873897499 | O47: 0.08687733328 | P47: 0.08047372799 | Q47: 0.1321565684 | R47: 0.0379755746 | S47: 0.04937287298 | T47: 0.2543506599 | V47: 12.59433424 | W47: 12.74711706 | X47: 12.960129 | Y47: 11.97556632 | Z47: 12.57169551 | AA47: 12.24195966 | AB47: 11.86230861 | AC47: 12.50339316 | AD47: 12.64217326 | AE47: 12.81679337 | AF47: 11.90676211 | AG47: 12.49438786 | AH47: 12.18446615 | AI47: 11.75198408 | AJ47: 12.68527533 | AK47: 12.85206087 | AL47: 13.10346463 | AM47: 12.04437053 | AN47: 12.64900315 | AO47: 12.29945316 | AP47: 11.97263315 | AS47: -0.02634823526
B48: 42 | C48: 2007-03-31 | D48: 2006-03-31 | E48: =VLOOKUP($C48, 'data, adj'!$B$7:$S$118, E$5, FALSE) -> 12.59250443 | F48: =VLOOKUP($C48, 'data, adj'!$B$7:$S$118, F$5, FALSE) -> 12.73944126 | G48: =VLOOKUP($C48, 'data, adj'!$B$7:$S$118, G$5, FALSE) -> 12.92773196 | H48: =VLOOKUP($C48, 'data, adj'!$B$7:$S$118, H$5, FALSE) -> 11.95684176 | I48: =VLOOKUP($C48, 'data, adj'!$B$7:$S$118, I$5, FALSE) -> 12.57659773 | J48: =VLOOKUP($C48, 'data, adj'!$B$7:$S$118, J$5, FALSE) -> 12.22407954 | K48: =VLOOKUP($C48, 'data, adj'!$B$7:$S$118, K$5, FALSE) -> 11.89409105 | M48: 2007-03-31 | N48: 0.06924057542 | O48: 0.1529910411 | P48: 0.04276924416 | Q48: 0.05499790485 | R48: 0.06605268699 | S48: 0.06345383603 | T48: 0.1246357551 | V48: 12.5749293 | W48: 12.66791751 | X48: 12.91503323 | Y48: 11.97890234 | Z48: 12.57912525 | AA48: 12.22186951 | AB48: 11.82718937 | AC48: 12.48398821 | AD48: 12.56297371 | AE48: 12.77169759 | AF48: 11.91009813 | AG48: 12.50181761 | AH48: 12.16437601 | AI48: 11.71686484 | AJ48: 12.66587038 | AK48: 12.77286132 | AL48: 13.05836886 | AM48: 12.04770655 | AN48: 12.6564329 | AO48: 12.27936302 | AP48: 11.93751391 | AS48: -0.01757513318
B49: 43 | C49: 2006-12-31 | D49: 2005-12-31 | E49: =VLOOKUP($C49, 'data, adj'!$B$7:$S$118, E$5, FALSE) -> 12.55432522 | F49: =VLOOKUP($C49, 'data, adj'!$B$7:$S$118, F$5, FALSE) -> 12.66134962 | G49: =VLOOKUP($C49, 'data, adj'!$B$7:$S$118, G$5, FALSE) -> 12.92026922 | H49: =VLOOKUP($C49, 'data, adj'!$B$7:$S$118, H$5, FALSE) -> 11.95985236 | I49: =VLOOKUP($C49, 'data, adj'!$B$7:$S$118, I$5, FALSE) -> 12.53932542 | J49: =VLOOKUP($C49, 'data, adj'!$B$7:$S$118, J$5, FALSE) -> 12.19966214 | K49: =VLOOKUP($C49, 'data, adj'!$B$7:$S$118, K$5, FALSE) -> 11.84619257 | M49: 2006-12-31 | N49: 0.03814824151 | O49: 0.120238483 | P49: 0.05365065719 | Q49: 0.09016027437 | R49: 0.03230844091 | S49: 0.0329874653 | T49: 0.1371307106 | V49: 12.51755283 | W49: 12.50170633 | X49: 12.83576924 | Y49: 11.90990117 | Z49: 12.54172044 | AA49: 12.21498915 | AB49: 11.84789103 | AC49: 12.42661175 | AD49: 12.39676252 | AE49: 12.69243361 | AF49: 11.84109696 | AG49: 12.4644128 | AH49: 12.15749564 | AI49: 11.73756649 | AJ49: 12.60849392 | AK49: 12.60665013 | AL49: 12.97910487 | AM49: 11.97870538 | AN49: 12.61902808 | AO49: 12.27248265 | AP49: 11.95821556 | AS49: -0.03677238753
B50: 44 | C50: 2006-09-30 | D50: 2005-09-30 | E50: =VLOOKUP($C50, 'data, adj'!$B$7:$S$118, E$5, FALSE) -> 12.53991285 | F50: =VLOOKUP($C50, 'data, adj'!$B$7:$S$118, F$5, FALSE) -> 12.6035459 | G50: =VLOOKUP($C50, 'data, adj'!$B$7:$S$118, G$5, FALSE) -> 12.89257782 | H50: =VLOOKUP($C50, 'data, adj'!$B$7:$S$118, H$5, FALSE) -> 11.915366 | I50: =VLOOKUP($C50, 'data, adj'!$B$7:$S$118, I$5, FALSE) -> 12.53462791 | J50: =VLOOKUP($C50, 'data, adj'!$B$7:$S$118, J$5, FALSE) -> 12.19508247 | K50: =VLOOKUP($C50, 'data, adj'!$B$7:$S$118, K$5, FALSE) -> 11.78572737 | M50: 2006-09-30 | N50: 0.04449612186 | O50: 0.1435865637 | P50: 0.05403063859 | Q50: 0.0570597666 | R50: 0.03051471953 | S50: 0.05185529226 | T50: 0.05401401559 | V50: 12.51270859 | W50: 12.34367487 | X50: 12.85969551 | Y50: 11.89140744 | Z50: 12.53570747 | AA50: 12.18649425 | AB50: 11.81223685 | AC50: 12.4217675 | AD50: 12.23873106 | AE50: 12.71635988 | AF50: 11.82260323 | AG50: 12.45839983 | AH50: 12.12900074 | AI50: 11.70191232 | AJ50: 12.60364967 | AK50: 12.44861867 | AL50: 13.00303115 | AM50: 11.96021165 | AN50: 12.61301511 | AO50: 12.24398776 | AP50: 11.92256139 | AS50: -0.02720426242
B51: 45 | C51: 2006-06-30 | D51: 2005-06-30 | E51: =VLOOKUP($C51, 'data, adj'!$B$7:$S$118, E$5, FALSE) -> 12.52605612 | F51: =VLOOKUP($C51, 'data, adj'!$B$7:$S$118, F$5, FALSE) -> 12.54128695 | G51: =VLOOKUP($C51, 'data, adj'!$B$7:$S$118, G$5, FALSE) -> 12.86803871 | H51: =VLOOKUP($C51, 'data, adj'!$B$7:$S$118, H$5, FALSE) -> 11.9019156 | I51: =VLOOKUP($C51, 'data, adj'!$B$7:$S$118, I$5, FALSE) -> 12.53160671 | J51: =VLOOKUP($C51, 'data, adj'!$B$7:$S$118, J$5, FALSE) -> 12.18008282 | K51: =VLOOKUP($C51, 'data, adj'!$B$7:$S$118, K$5, FALSE) -> 11.77922046 | M51: 2006-06-30 | N51: 0.0682781292 | O51: 0.2058301154 | P51: 0.09209029151 | Q51: 0.07365071734 | R51: 0.04008879952 | S51: 0.0618768403 | T51: 0.08308815906 | V51: 12.47675541 | W51: 12.3571956 | X51: 12.77979847 | Y51: 11.85701559 | Z51: 12.52525431 | AA51: 12.15079369 | AB51: 11.75195753 | AC51: 12.38581432 | AD51: 12.25225179 | AE51: 12.63646284 | AF51: 11.78821138 | AG51: 12.44794667 | AH51: 12.09330019 | AI51: 11.64163299 | AJ51: 12.56769649 | AK51: 12.4621394 | AL51: 12.9231341 | AM51: 11.92581979 | AN51: 12.60256195 | AO51: 12.2082872 | AP51: 11.86228206 | AS51: -0.04930070879
B52: 46 | C52: 2006-03-31 | D52: 2005-03-31 | E52: =VLOOKUP($C52, 'data, adj'!$B$7:$S$118, E$5, FALSE) -> 12.49639997 | F52: =VLOOKUP($C52, 'data, adj'!$B$7:$S$118, F$5, FALSE) -> 12.44883842 | G52: =VLOOKUP($C52, 'data, adj'!$B$7:$S$118, G$5, FALSE) -> 12.81864406 | H52: =VLOOKUP($C52, 'data, adj'!$B$7:$S$118, H$5, FALSE) -> 11.88501302 | I52: =VLOOKUP($C52, 'data, adj'!$B$7:$S$118, I$5, FALSE) -> 12.52192664 | J52: =VLOOKUP($C52, 'data, adj'!$B$7:$S$118, J$5, FALSE) -> 12.16360346 | K52: =VLOOKUP($C52, 'data, adj'!$B$7:$S$118, K$5, FALSE) -> 11.7636764 | M52: 2006-03-31 | N52: 0.07852933094 | O52: 0.2190790955 | P52: 0.09638916588 | Q52: 0.09388931752 | R52: 0.05719861595 | S52: 0.05826605036 | T52: 0.06351297287 | V52: 12.43356699 | W52: 12.32251841 | X52: 12.68625084 | Y52: 11.79720228 | Z52: 12.50680496 | AA52: 12.14259015 | AB52: 11.77110703 | AC52: 12.3426259 | AD52: 12.21757461 | AE52: 12.54291521 | AF52: 11.72839807 | AG52: 12.42949732 | AH52: 12.08509664 | AI52: 11.66078249 | AJ52: 12.52450808 | AK52: 12.42746222 | AL52: 12.82958647 | AM52: 11.86600649 | AN52: 12.5841126 | AO52: 12.20008365 | AP52: 11.88143157 | AS52: -0.06283297684
B53: 47 | C53: 2005-12-31 | D53: 2004-12-31 | E53: =VLOOKUP($C53, 'data, adj'!$B$7:$S$118, E$5, FALSE) -> 12.46262002 | F53: =VLOOKUP($C53, 'data, adj'!$B$7:$S$118, F$5, FALSE) -> 12.35692933 | G53: =VLOOKUP($C53, 'data, adj'!$B$7:$S$118, G$5, FALSE) -> 12.77352337 | H53: =VLOOKUP($C53, 'data, adj'!$B$7:$S$118, H$5, FALSE) -> 11.83812006 | I53: =VLOOKUP($C53, 'data, adj'!$B$7:$S$118, I$5, FALSE) -> 12.50007346 | J53: =VLOOKUP($C53, 'data, adj'!$B$7:$S$118, J$5, FALSE) -> 12.15332039 | K53: =VLOOKUP($C53, 'data, adj'!$B$7:$S$118, K$5, FALSE) -> 11.7592776 | M53: 2005-12-31 | N53: 0.05493280848 | O53: 0.1447769932 | P53: 0.062245869 | Q53: 0.07178110651 | R53: 0.04164697634 | S53: 0.06166875415 | T53: 0.08861342756 | V53: 12.44325491 | W53: 12.32679227 | X53: 12.73009679 | Y53: 11.80411564 | Z53: 12.48986681 | AA53: 12.13933164 | AB53: 11.72759874 | AC53: 12.35231382 | AD53: 12.22184847 | AE53: 12.58676116 | AF53: 11.73531143 | AG53: 12.41255917 | AH53: 12.08183813 | AI53: 11.6172742 | AJ53: 12.53419599 | AK53: 12.43173608 | AL53: 12.87343242 | AM53: 11.87291984 | AN53: 12.56717445 | AO53: 12.19682514 | AP53: 11.83792327 | AS53: -0.01936511773
B54: 48 | C54: 2005-09-30 | D54: 2004-09-30 | E54: =VLOOKUP($C54, 'data, adj'!$B$7:$S$118, E$5, FALSE) -> 12.4395031 | F54: =VLOOKUP($C54, 'data, adj'!$B$7:$S$118, F$5, FALSE) -> 12.29272729 | G54: =VLOOKUP($C54, 'data, adj'!$B$7:$S$118, G$5, FALSE) -> 12.74601037 | H54: =VLOOKUP($C54, 'data, adj'!$B$7:$S$118, H$5, FALSE) -> 11.81615849 | I54: =VLOOKUP($C54, 'data, adj'!$B$7:$S$118, I$5, FALSE) -> 12.48563812 | J54: =VLOOKUP($C54, 'data, adj'!$B$7:$S$118, J$5, FALSE) -> 12.13041655 | K54: =VLOOKUP($C54, 'data, adj'!$B$7:$S$118, K$5, FALSE) -> 11.73146644 | M54: 2005-09-30 | N54: 0.07320548283 | O54: 0.05094757701 | P54: 0.1136851445 | Q54: 0.07524894735 | R54: 0.05006935225 | S54: 0.05607769768 | T54: 0.08077041253 | V54: 12.35485483 | W54: 12.25949339 | X54: 12.60026238 | Y54: 11.75269578 | Z54: 12.45514058 | AA54: 12.09145327 | AB54: 11.65799462 | AC54: 12.26391375 | AD54: 12.15454958 | AE54: 12.45692675 | AF54: 11.68389157 | AG54: 12.37783294 | AH54: 12.03395976 | AI54: 11.54767009 | AJ54: 12.44579592 | AK54: 12.36443719 | AL54: 12.74359801 | AM54: 11.82149999 | AN54: 12.53244823 | AO54: 12.14894677 | AP54: 11.76831916 | AS54: -0.08464827269
B55: 49 | C55: 2005-06-30 | D55: 2004-06-30 | E55: =VLOOKUP($C55, 'data, adj'!$B$7:$S$118, E$5, FALSE) -> 12.40890328 | F55: =VLOOKUP($C55, 'data, adj'!$B$7:$S$118, F$5, FALSE) -> 12.27934169 | G55: =VLOOKUP($C55, 'data, adj'!$B$7:$S$118, G$5, FALSE) -> 12.68486876 | H55: =VLOOKUP($C55, 'data, adj'!$B$7:$S$118, H$5, FALSE) -> 11.78254794 | I55: =VLOOKUP($C55, 'data, adj'!$B$7:$S$118, I$5, FALSE) -> 12.47180048 | J55: =VLOOKUP($C55, 'data, adj'!$B$7:$S$118, J$5, FALSE) -> 12.10660032 | K55: =VLOOKUP($C55, 'data, adj'!$B$7:$S$118, K$5, FALSE) -> 11.69825084 | M55: 2005-06-30 | N55: 0.06785212693 | O55: 0.07785390226 | P55: 0.09492971494 | Q55: 0.07446764733 | R55: 0.05345383368 | S55: 0.04419337622 | T55: 0.05370668682 | V55: 12.3668763 | W55: 12.1906316 | X55: 12.60755261 | Y55: 11.72144635 | Z55: 12.45840833 | AA55: 12.11521308 | AB55: 11.69052074 | AC55: 12.27593522 | AD55: 12.0856878 | AE55: 12.46421698 | AF55: 11.65264214 | AG55: 12.38110069 | AH55: 12.05771957 | AI55: 11.58019621 | AJ55: 12.45781739 | AK55: 12.2955754 | AL55: 12.75088824 | AM55: 11.79025056 | AN55: 12.53571597 | AO55: 12.17270658 | AP55: 11.80084528 | AS55: -0.04202697485
B56: 50 | C56: 2005-03-31 | D56: 2004-03-31 | E56: =VLOOKUP($C56, 'data, adj'!$B$7:$S$118, E$5, FALSE) -> 12.38313875 | F56: =VLOOKUP($C56, 'data, adj'!$B$7:$S$118, F$5, FALSE) -> 12.25501042 | G56: =VLOOKUP($C56, 'data, adj'!$B$7:$S$118, G$5, FALSE) -> 12.6387313 | H56: =VLOOKUP($C56, 'data, adj'!$B$7:$S$118, H$5, FALSE) -> 11.7414147 | I56: =VLOOKUP($C56, 'data, adj'!$B$7:$S$118, I$5, FALSE) -> 12.45612684 | J56: =VLOOKUP($C56, 'data, adj'!$B$7:$S$118, J$5, FALSE) -> 12.09520812 | K56: =VLOOKUP($C56, 'data, adj'!$B$7:$S$118, K$5, FALSE) -> 11.68343588 | M56: 2005-03-31 | N56: 0.05042823946 | O56: 0.06750799512 | P56: 0.04751953906 | Q56: 0.05578757744 | R56: 0.05067812524 | S56: 0.0473820263 | T56: 0.08767115334 | V56: 12.35523817 | W56: 12.19671253 | X56: 12.59931805 | Y56: 11.70391308 | Z56: 12.42400483 | AA56: 12.06223338 | AB56: 11.59847496 | AC56: 12.26429709 | AD56: 12.09176872 | AE56: 12.45598242 | AF56: 11.63510887 | AG56: 12.34669718 | AH56: 12.00473987 | AI56: 11.48815042 | AJ56: 12.44617926 | AK56: 12.30165633 | AL56: 12.74265368 | AM56: 11.77271729 | AN56: 12.50131247 | AO56: 12.11972688 | AP56: 11.7087995 | AS56: -0.02790057788
B57: 51 | C57: 2004-12-31 | D57: 2003-12-31 | E57: =VLOOKUP($C57, 'data, adj'!$B$7:$S$118, E$5, FALSE) -> 12.36178496 | F57: =VLOOKUP($C57, 'data, adj'!$B$7:$S$118, F$5, FALSE) -> 12.22518876 | G57: =VLOOKUP($C57, 'data, adj'!$B$7:$S$118, G$5, FALSE) -> 12.62236888 | H57: =VLOOKUP($C57, 'data, adj'!$B$7:$S$118, H$5, FALSE) -> 11.72609141 | I57: =VLOOKUP($C57, 'data, adj'!$B$7:$S$118, I$5, FALSE) -> 12.43502728 | J57: =VLOOKUP($C57, 'data, adj'!$B$7:$S$118, J$5, FALSE) -> 12.07709658 | K57: =VLOOKUP($C57, 'data, adj'!$B$7:$S$118, K$5, FALSE) -> 11.64680055 | M57: 2004-12-31 | N57: 0.08146994444 | O57: 0.1016035087 | P57: 0.1077279057 | Q57: 0.07802423019 | R57: 0.05483952862 | S57: 0.06223506017 | T57: 0.08079818705 | V57: 12.35462359 | W57: 12.22167972 | X57: 12.62987779 | Y57: 11.67509611 | Z57: 12.40867549 | AA57: 12.04145966 | AB57: 11.60484374 | AC57: 12.26368251 | AD57: 12.11673591 | AE57: 12.48654215 | AF57: 11.6062919 | AG57: 12.33136785 | AH57: 11.98396615 | AI57: 11.49451921 | AJ57: 12.44556468 | AK57: 12.32662352 | AL57: 12.77321342 | AM57: 11.74390032 | AN57: 12.48598314 | AO57: 12.09895316 | AP57: 11.71516828 | AS57: -0.007161368425
B58: 52 | C58: 2004-09-30 | D58: 2003-09-30 | E58: =VLOOKUP($C58, 'data, adj'!$B$7:$S$118, E$5, FALSE) -> 12.32569843 | F58: =VLOOKUP($C58, 'data, adj'!$B$7:$S$118, F$5, FALSE) -> 12.18656867 | G58: =VLOOKUP($C58, 'data, adj'!$B$7:$S$118, G$5, FALSE) -> 12.57101085 | H58: =VLOOKUP($C58, 'data, adj'!$B$7:$S$118, H$5, FALSE) -> 11.69368747 | I58: =VLOOKUP($C58, 'data, adj'!$B$7:$S$118, I$5, FALSE) -> 12.4177143 | J58: =VLOOKUP($C58, 'data, adj'!$B$7:$S$118, J$5, FALSE) -> 12.05232688 | K58: =VLOOKUP($C58, 'data, adj'!$B$7:$S$118, K$5, FALSE) -> 11.61967002 | M58: 2004-09-30 | N58: 0.02915640529 | O58: 0.07292471446 | P58: 0.02925152708 | Q58: 0.05900830646 | R58: 0.03742628064 | S58: 0.03912638219 | T58: 0.03832460071 | V58: 12.35832899 | W58: 12.21954683 | X58: 12.61134704 | Y58: 11.68493771 | Z58: 12.41491511 | AA58: 12.02422967 | AB58: 11.63654178 | AC58: 12.2673879 | AD58: 12.11460302 | AE58: 12.46801141 | AF58: 11.6161335 | AG58: 12.33760747 | AH58: 11.96673616 | AI58: 11.52621724 | AJ58: 12.44927007 | AK58: 12.32449063 | AL58: 12.75468267 | AM58: 11.75374192 | AN58: 12.49222275 | AO58: 12.08172317 | AP58: 11.74686631 | AS58: 0.03263056114
B59: 53 | C59: 2004-06-30 | D59: 2003-06-30 | E59: =VLOOKUP($C59, 'data, adj'!$B$7:$S$118, E$5, FALSE) -> 12.32155971 | F59: =VLOOKUP($C59, 'data, adj'!$B$7:$S$118, F$5, FALSE) -> 12.16146223 | G59: =VLOOKUP($C59, 'data, adj'!$B$7:$S$118, G$5, FALSE) -> 12.56293907 | H59: =VLOOKUP($C59, 'data, adj'!$B$7:$S$118, H$5, FALSE) -> 11.66243109 | I59: =VLOOKUP($C59, 'data, adj'!$B$7:$S$118, I$5, FALSE) -> 12.40668016 | J59: =VLOOKUP($C59, 'data, adj'!$B$7:$S$118, J$5, FALSE) -> 12.04207026 | K59: =VLOOKUP($C59, 'data, adj'!$B$7:$S$118, K$5, FALSE) -> 11.61151209 | M59: 2004-06-30 | N59: 0.04531659038 | O59: 0.02916936556 | P59: 0.04461354044 | Q59: 0.05901526235 | R59: 0.05172817372 | S59: 0.0731428149 | T59: 0.07900865482 | V59: 12.25480925 | W59: 12.16202095 | X59: 12.46827437 | Y59: 11.60422068 | Z59: 12.35855622 | AA59: 11.95276363 | AB59: 11.56499605 | AC59: 12.16386817 | AD59: 12.05707715 | AE59: 12.32493874 | AF59: 11.53541647 | AG59: 12.28124858 | AH59: 11.89527012 | AI59: 11.45467151 | AJ59: 12.34575034 | AK59: 12.26696476 | AL59: 12.61161 | AM59: 11.67302489 | AN59: 12.43586386 | AO59: 12.01025714 | AP59: 11.67532058 | AS59: -0.06675046065
B60: 54 | C60: 2004-03-31 | D60: 2003-03-31 | E60: =VLOOKUP($C60, 'data, adj'!$B$7:$S$118, E$5, FALSE) -> 12.30235054 | F60: =VLOOKUP($C60, 'data, adj'!$B$7:$S$118, F$5, FALSE) -> 12.15513192 | G60: =VLOOKUP($C60, 'data, adj'!$B$7:$S$118, G$5, FALSE) -> 12.54637326 | H60: =VLOOKUP($C60, 'data, adj'!$B$7:$S$118, H$5, FALSE) -> 11.64525989 | I60: =VLOOKUP($C60, 'data, adj'!$B$7:$S$118, I$5, FALSE) -> 12.37684443 | J60: =VLOOKUP($C60, 'data, adj'!$B$7:$S$118, J$5, FALSE) -> 12.00095932 | K60: =VLOOKUP($C60, 'data, adj'!$B$7:$S$118, K$5, FALSE) -> 11.57372889 | M60: 2004-03-31 | N60: 0.05288763329 | O60: 0.04158060732 | P60: 0.05294479365 | Q60: 0.05865318867 | R60: 0.04716039995 | S60: 0.06127405822 | T60: 0.02474606513 | V60: 12.2602001 | W60: 12.12180681 | X60: 12.47709282 | Y60: 11.58768519 | Z60: 12.35490579 | AA60: 11.94957084 | AB60: 11.57612648 | AC60: 12.16925901 | AD60: 12.016863 | AE60: 12.33375718 | AF60: 11.51888099 | AG60: 12.27759815 | AH60: 11.89207733 | AI60: 11.46580195 | AJ60: 12.35114119 | AK60: 12.22675061 | AL60: 12.62042845 | AM60: 11.6564894 | AN60: 12.43221343 | AO60: 12.00706434 | AP60: 11.68645102 | AS60: -0.04215043726
B61: 55 | C61: 2003-12-31 | D61: 2002-12-31 | E61: =VLOOKUP($C61, 'data, adj'!$B$7:$S$118, E$5, FALSE) -> 12.28570142 | F61: =VLOOKUP($C61, 'data, adj'!$B$7:$S$118, F$5, FALSE) -> 12.14925359 | G61: =VLOOKUP($C61, 'data, adj'!$B$7:$S$118, G$5, FALSE) -> 12.53339962 | H61: =VLOOKUP($C61, 'data, adj'!$B$7:$S$118, H$5, FALSE) -> 11.6151932 | I61: =VLOOKUP($C61, 'data, adj'!$B$7:$S$118, I$5, FALSE) -> 12.36148967 | J61: =VLOOKUP($C61, 'data, adj'!$B$7:$S$118, J$5, FALSE) -> 11.97119805 | K61: =VLOOKUP($C61, 'data, adj'!$B$7:$S$118, K$5, FALSE) -> 11.57078863 | M61: 2003-12-31 | N61: 0.06892217269 | O61: 0.07242613067 | P61: 0.09647816586 | Q61: 0.05990290678 | R61: 0.04718582621 | S61: 0.07026160139 | T61: 0.03405511453 | V61: 12.25331222 | W61: 12.16280549 | X61: 12.48897027 | Y61: 11.57862673 | Z61: 12.33919828 | AA61: 11.89490956 | AB61: 11.62020349 | AC61: 12.16237113 | AD61: 12.05786169 | AE61: 12.34563464 | AF61: 11.50982252 | AG61: 12.26189064 | AH61: 11.83741605 | AI61: 11.50987896 | AJ61: 12.34425331 | AK61: 12.2677493 | AL61: 12.6323059 | AM61: 11.64743094 | AN61: 12.41650593 | AO61: 11.95240307 | AP61: 11.73052803 | AS61: -0.03238920288
B62: 56 | C62: 2003-09-30 | D62: 2002-09-30 | E62: =VLOOKUP($C62, 'data, adj'!$B$7:$S$118, E$5, FALSE) -> 12.25940012 | F62: =VLOOKUP($C62, 'data, adj'!$B$7:$S$118, F$5, FALSE) -> 12.12942376 | G62: =VLOOKUP($C62, 'data, adj'!$B$7:$S$118, G$5, FALSE) -> 12.48586493 | H62: =VLOOKUP($C62, 'data, adj'!$B$7:$S$118, H$5, FALSE) -> 11.59530697 | I62: =VLOOKUP($C62, 'data, adj'!$B$7:$S$118, I$5, FALSE) -> 12.34708598 | J62: =VLOOKUP($C62, 'data, adj'!$B$7:$S$118, J$5, FALSE) -> 11.93869634 | K62: =VLOOKUP($C62, 'data, adj'!$B$7:$S$118, K$5, FALSE) -> 11.56783023 | M62: 2003-09-30 | N62: 0.0989288683 | O62: 0.09012307202 | P62: 0.1254821169 | Q62: 0.08963073801 | R62: 0.06782913327 | S62: 0.08553332505 | T62: 0.0687115481 | V62: 12.20054449 | W62: 12.11723527 | X62: 12.40796143 | Y62: 11.49499599 | Z62: 12.31217495 | AA62: 11.8543674 | AB62: 11.53415975 | AC62: 12.1096034 | AD62: 12.01229147 | AE62: 12.2646258 | AF62: 11.42619178 | AG62: 12.2348673 | AH62: 11.7968739 | AI62: 11.42383521 | AJ62: 12.29148558 | AK62: 12.22217908 | AL62: 12.55129706 | AM62: 11.56380019 | AN62: 12.38948259 | AO62: 11.91186091 | AP62: 11.64448428 | AS62: -0.0588556283
B63: 57 | C63: 2003-06-30 | D63: 2002-06-30 | E63: =VLOOKUP($C63, 'data, adj'!$B$7:$S$118, E$5, FALSE) -> 12.21365384 | F63: =VLOOKUP($C63, 'data, adj'!$B$7:$S$118, F$5, FALSE) -> 12.102882 | G63: =VLOOKUP($C63, 'data, adj'!$B$7:$S$118, G$5, FALSE) -> 12.42995193 | H63: =VLOOKUP($C63, 'data, adj'!$B$7:$S$118, H$5, FALSE) -> 11.55166529 | I63: =VLOOKUP($C63, 'data, adj'!$B$7:$S$118, I$5, FALSE) -> 12.31821759 | J63: =VLOOKUP($C63, 'data, adj'!$B$7:$S$118, J$5, FALSE) -> 11.89606316 | K63: =VLOOKUP($C63, 'data, adj'!$B$7:$S$118, K$5, FALSE) -> 11.54559593 | M63: 2003-06-30 | N63: 0.04115541794 | O63: 0.05913895529 | P63: 0.03832244559 | Q63: 0.05255538728 | R63: 0.04033862661 | S63: 0.05670046897 | T63: 0.01940012255 | V63: 12.18699105 | W63: 12.11746374 | X63: 12.43131107 | Y63: 11.54171439 | Z63: 12.28002585 | AA63: 11.85700697 | AB63: 11.58014604 | AC63: 12.09604996 | AD63: 12.01251993 | AE63: 12.28797544 | AF63: 11.47291018 | AG63: 12.20271821 | AH63: 11.79951347 | AI63: 11.4698215 | AJ63: 12.27793214 | AK63: 12.22240754 | AL63: 12.5746467 | AM63: 11.6105186 | AN63: 12.35733349 | AO63: 11.91450048 | AP63: 11.69047058 | AS63: -0.0266627841
B64: 58 | C64: 2003-03-31 | D64: 2002-03-31 | E64: =VLOOKUP($C64, 'data, adj'!$B$7:$S$118, E$5, FALSE) -> 12.20366976 | F64: =VLOOKUP($C64, 'data, adj'!$B$7:$S$118, F$5, FALSE) -> 12.08722154 | G64: =VLOOKUP($C64, 'data, adj'!$B$7:$S$118, G$5, FALSE) -> 12.42230437 | H64: =VLOOKUP($C64, 'data, adj'!$B$7:$S$118, H$5, FALSE) -> 11.5279717 | I64: =VLOOKUP($C64, 'data, adj'!$B$7:$S$118, I$5, FALSE) -> 12.30611706 | J64: =VLOOKUP($C64, 'data, adj'!$B$7:$S$118, J$5, FALSE) -> 11.87105435 | K64: =VLOOKUP($C64, 'data, adj'!$B$7:$S$118, K$5, FALSE) -> 11.54780021 | M64: 2003-03-31 | N64: 0.05653034059 | O64: 0.03458526914 | P64: 0.05478845102 | Q64: 0.05971349301 | R64: 0.04878873316 | S64: 0.07851648735 | T64: 0.02832627121 | V64: 12.19979946 | W64: 12.11674858 | X64: 12.44590499 | Y64: 11.50395029 | Z64: 12.31460768 | AA64: 11.79907744 | AB64: 11.5348184 | AC64: 12.10885837 | AD64: 12.01180478 | AE64: 12.30256936 | AF64: 11.43514608 | AG64: 12.23730003 | AH64: 11.74158393 | AI64: 11.42449386 | AJ64: 12.29074054 | AK64: 12.22169238 | AL64: 12.58924062 | AM64: 11.5727545 | AN64: 12.39191532 | AO64: 11.85657095 | AP64: 11.64514294 | AS64: -0.003870302651
B65: 59 | C65: 2002-12-31 | D65: 2001-12-31 | E65: =VLOOKUP($C65, 'data, adj'!$B$7:$S$118, E$5, FALSE) -> 12.18380147 | F65: =VLOOKUP($C65, 'data, adj'!$B$7:$S$118, F$5, FALSE) -> 12.08568873 | G65: =VLOOKUP($C65, 'data, adj'!$B$7:$S$118, G$5, FALSE) -> 12.40949093 | H65: =VLOOKUP($C65, 'data, adj'!$B$7:$S$118, H$5, FALSE) -> 11.50139929 | I65: =VLOOKUP($C65, 'data, adj'!$B$7:$S$118, I$5, FALSE) -> 12.28636609 | J65: =VLOOKUP($C65, 'data, adj'!$B$7:$S$118, J$5, FALSE) -> 11.82688183 | K65: =VLOOKUP($C65, 'data, adj'!$B$7:$S$118, K$5, FALSE) -> 11.5416101 | M65: 2002-12-31 | N65: 0.06951074463 | O65: 0.07711676017 | P65: 0.07947934296 | Q65: 0.07722743809 | R65: 0.05283219318 | S65: 0.06802773521 | T65: 0.0785933959 | V65: 12.13057684 | W65: 12.02668692 | X65: 12.36201172 | Y65: 11.4686881 | Z65: 12.25288823 | AA65: 11.71978046 | AB65: 11.48382777 | AC65: 12.03963576 | AD65: 11.92174312 | AE65: 12.21867609 | AF65: 11.3998839 | AG65: 12.17558058 | AH65: 11.66228696 | AI65: 11.37350323 | AJ65: 12.22151793 | AK65: 12.13163072 | AL65: 12.50534736 | AM65: 11.53749231 | AN65: 12.33019587 | AO65: 11.77727397 | AP65: 11.59415231 | AS65: -0.05322463092
B66: 60 | C66: 2002-09-30 | D66: 2001-09-30 | E66: =VLOOKUP($C66, 'data, adj'!$B$7:$S$118, E$5, FALSE) -> 12.15397376 | F66: =VLOOKUP($C66, 'data, adj'!$B$7:$S$118, F$5, FALSE) -> 12.05870888 | G66: =VLOOKUP($C66, 'data, adj'!$B$7:$S$118, G$5, FALSE) -> 12.37896657 | H66: =VLOOKUP($C66, 'data, adj'!$B$7:$S$118, H$5, FALSE) -> 11.46631592 | I66: =VLOOKUP($C66, 'data, adj'!$B$7:$S$118, I$5, FALSE) -> 12.26683843 | J66: =VLOOKUP($C66, 'data, adj'!$B$7:$S$118, J$5, FALSE) -> 11.79411148 | K66: =VLOOKUP($C66, 'data, adj'!$B$7:$S$118, K$5, FALSE) -> 11.51143435 | M66: 2002-09-30 | N66: 0.04657072768 | O66: 0.05852638883 | P66: 0.02899486069 | Q66: 0.02868006572 | R66: 0.04533651357 | S66: 0.06025591951 | T66: 0.02272539178 | V66: 12.13577346 | W66: 12.01274857 | X66: 12.40004621 | Y66: 11.50257363 | Z66: 12.21182208 | AA66: 11.71445802 | AB66: 11.54546972 | AC66: 12.04483237 | AD66: 11.90780477 | AE66: 12.25671058 | AF66: 11.43376943 | AG66: 12.13451444 | AH66: 11.65696451 | AI66: 11.43514518 | AJ66: 12.22671454 | AK66: 12.11769238 | AL66: 12.54338184 | AM66: 11.57137784 | AN66: 12.28912972 | AO66: 11.77195152 | AP66: 11.65579425 | AS66: -0.01820030808
B67: 61 | C67: 2002-06-30 | D67: 2001-06-30 | E67: =VLOOKUP($C67, 'data, adj'!$B$7:$S$118, E$5, FALSE) -> 12.1383932 | F67: =VLOOKUP($C67, 'data, adj'!$B$7:$S$118, F$5, FALSE) -> 12.03761257 | G67: =VLOOKUP($C67, 'data, adj'!$B$7:$S$118, G$5, FALSE) -> 12.37977802 | H67: =VLOOKUP($C67, 'data, adj'!$B$7:$S$118, H$5, FALSE) -> 11.4720618 | I67: =VLOOKUP($C67, 'data, adj'!$B$7:$S$118, I$5, FALSE) -> 12.25000819 | J67: =VLOOKUP($C67, 'data, adj'!$B$7:$S$118, J$5, FALSE) -> 11.76564335 | K67: =VLOOKUP($C67, 'data, adj'!$B$7:$S$118, K$5, FALSE) -> 11.51312544 | M67: 2002-06-30 | N67: 0.04859785461 | O67: 0.07985116341 | P67: 0.05153304569 | Q67: 0.069652585 | R67: 0.03001766133 | S67: 0.09136362174 | T67: 0.06702059425 | V67: 12.09724944 | W67: 11.98532539 | X67: 12.34980946 | Y67: 11.46217928 | Z67: 12.24378375 | AA67: 11.64708475 | AB67: 11.52167807 | AC67: 12.00630835 | AD67: 11.88038159 | AE67: 12.20647383 | AF67: 11.39337508 | AG67: 12.16647611 | AH67: 11.58959124 | AI67: 11.41135353 | AJ67: 12.18819053 | AK67: 12.0902692 | AL67: 12.4931451 | AM67: 11.53098349 | AN67: 12.3210914 | AO67: 11.70457826 | AP67: 11.6320026 | AS67: -0.041143757
B68: 62 | C68: 2002-03-31 | D68: 2001-03-31 | E68: =VLOOKUP($C68, 'data, adj'!$B$7:$S$118, E$5, FALSE) -> 12.12098306 | F68: =VLOOKUP($C68, 'data, adj'!$B$7:$S$118, F$5, FALSE) -> 12.00965014 | G68: =VLOOKUP($C68, 'data, adj'!$B$7:$S$118, G$5, FALSE) -> 12.36467768 | H68: =VLOOKUP($C68, 'data, adj'!$B$7:$S$118, H$5, FALSE) -> 11.44985786 | I68: =VLOOKUP($C68, 'data, adj'!$B$7:$S$118, I$5, FALSE) -> 12.24251547 | J68: =VLOOKUP($C68, 'data, adj'!$B$7:$S$118, J$5, FALSE) -> 11.71208775 | K68: =VLOOKUP($C68, 'data, adj'!$B$7:$S$118, K$5, FALSE) -> 11.48982059 | M68: 2002-03-31 | N68: 0.07881640118 | O68: 0.1070984438 | P68: 0.08122731386 | Q68: 0.05409242769 | R68: 0.07209221007 | S68: 0.08698968947 | T68: 0.04499780921 | V68: 12.0416567 | W68: 11.94374224 | X68: 12.30483512 | Y68: 11.45166052 | Z68: 12.17849919 | AA68: 11.65076424 | AB68: 11.50214115 | AC68: 11.95071561 | AD68: 11.83879844 | AE68: 12.16149949 | AF68: 11.38285631 | AG68: 12.10119155 | AH68: 11.59327074 | AI68: 11.39181662 | AJ68: 12.13259779 | AK68: 12.04868605 | AL68: 12.44817075 | AM68: 11.52046472 | AN68: 12.25580684 | AO68: 11.70825775 | AP68: 11.61246569 | AS68: -0.07932635753
B69: 63 | C69: 2001-12-31 | D69: 2000-12-31 | E69: =VLOOKUP($C69, 'data, adj'!$B$7:$S$118, E$5, FALSE) -> 12.08322682 | F69: =VLOOKUP($C69, 'data, adj'!$B$7:$S$118, F$5, FALSE) -> 11.97091344 | G69: =VLOOKUP($C69, 'data, adj'!$B$7:$S$118, G$5, FALSE) -> 12.32969195 | H69: =VLOOKUP($C69, 'data, adj'!$B$7:$S$118, H$5, FALSE) -> 11.44408972 | I69: =VLOOKUP($C69, 'data, adj'!$B$7:$S$118, I$5, FALSE) -> 12.19875091 | J69: =VLOOKUP($C69, 'data, adj'!$B$7:$S$118, J$5, FALSE) -> 11.67067253 | K69: =VLOOKUP($C69, 'data, adj'!$B$7:$S$118, K$5, FALSE) -> 11.4830228 | M69: 2001-12-31 | N69: 0.04735002743 | O69: 0.05577347564 | P69: 0.03231977313 | Q69: 0.02459837934 | R69: 0.05413731855 | S69: 0.04910793748 | T69: 0.0008049664491 | V69: 12.06151466 | W69: 11.94019793 | X69: 12.30424404 | Y69: 11.49034959 | Z69: 12.18902361 | AA69: 11.64462615 | AB69: 11.52887842 | AC69: 11.97057357 | AD69: 11.83525413 | AE69: 12.16090841 | AF69: 11.42154538 | AG69: 12.11171597 | AH69: 11.58713264 | AI69: 11.41855388 | AJ69: 12.15245574 | AK69: 12.04514174 | AL69: 12.44757967 | AM69: 11.5591538 | AN69: 12.26633125 | AO69: 11.70211965 | AP69: 11.63920295 | AS69: -0.02171215707
B70: 64 | C70: 2001-09-30 | D70: 2000-09-30 | E70: =VLOOKUP($C70, 'data, adj'!$B$7:$S$118, E$5, FALSE) -> 12.06825781 | F70: =VLOOKUP($C70, 'data, adj'!$B$7:$S$118, F$5, FALSE) -> 11.95387997 | G70: =VLOOKUP($C70, 'data, adj'!$B$7:$S$118, G$5, FALSE) -> 12.3264789 | H70: =VLOOKUP($C70, 'data, adj'!$B$7:$S$118, H$5, FALSE) -> 11.44725564 | I70: =VLOOKUP($C70, 'data, adj'!$B$7:$S$118, I$5, FALSE) -> 12.1751391 | J70: =VLOOKUP($C70, 'data, adj'!$B$7:$S$118, J$5, FALSE) -> 11.65307864 | K70: =VLOOKUP($C70, 'data, adj'!$B$7:$S$118, K$5, FALSE) -> 11.49699931 | M70: 2001-09-30 | N70: 0.06751564918 | O70: 0.05886859844 | P70: 0.07356730273 | Q70: 0.05531799535 | R70: 0.03668297987 | S70: 0.06137938242 | T70: 0.04847040304 | V70: 12.06653143 | W70: 11.91338614 | X70: 12.34323052 | Y70: 11.39291281 | Z70: 12.16466849 | AA70: 11.67086894 | AB70: 11.52326221 | AC70: 11.97559034 | AD70: 11.80844234 | AE70: 12.19989488 | AF70: 11.3241086 | AG70: 12.08736085 | AH70: 11.61337544 | AI70: 11.41293768 | AJ70: 12.15747252 | AK70: 12.01832995 | AL70: 12.48656615 | AM70: 11.46171701 | AN70: 12.24197613 | AO70: 11.72836245 | AP70: 11.63358675 | AS70: -0.00172637722
B71: 65 | C71: 2001-06-30 | D71: 2000-06-30 | E71: =VLOOKUP($C71, 'data, adj'!$B$7:$S$118, E$5, FALSE) -> 12.04367724 | F71: =VLOOKUP($C71, 'data, adj'!$B$7:$S$118, F$5, FALSE) -> 11.93415893 | G71: =VLOOKUP($C71, 'data, adj'!$B$7:$S$118, G$5, FALSE) -> 12.30516657 | H71: =VLOOKUP($C71, 'data, adj'!$B$7:$S$118, H$5, FALSE) -> 11.42906548 | I71: =VLOOKUP($C71, 'data, adj'!$B$7:$S$118, I$5, FALSE) -> 12.17691671 | J71: =VLOOKUP($C71, 'data, adj'!$B$7:$S$118, J$5, FALSE) -> 11.62228199 | K71: =VLOOKUP($C71, 'data, adj'!$B$7:$S$118, K$5, FALSE) -> 11.48522533 | M71: 2001-06-30 | N71: 0.05357220202 | O71: 0.05116646157 | P71: 0.04464289781 | Q71: 0.03311380353 | R71: 0.06686704256 | S71: 0.02480276358 | T71: 0.03645273398 | V71: =OFFSET(E71, $P$4, 0) + OFFSET(N71, $P$4, 0) -> 12.01412218 | W71: =OFFSET(F71, $P$4, 0) + OFFSET(O71, $P$4, 0) -> 11.9196268 | X71: =OFFSET(G71, $P$4, 0) + OFFSET(P71, $P$4, 0) -> 12.29683754 | Y71: =OFFSET(H71, $P$4, 0) + OFFSET(Q71, $P$4, 0) -> 11.36980694 | Z71: =OFFSET(I71, $P$4, 0) + OFFSET(R71, $P$4, 0) -> 12.15011166 | AA71: =OFFSET(J71, $P$4, 0) + OFFSET(S71, $P$4, 0) -> 11.6180113 | AB71: =OFFSET(K71, $P$4, 0) + OFFSET(T71, $P$4, 0) -> 11.42937084 | AC71: =V71 - SQRT(N$2)*$AC$2 -> 11.9231811 | AD71: =W71 - SQRT(O$2)*$AC$2 -> 11.814683 | AE71: =X71 - SQRT(P$2)*$AC$2 -> 12.15350191 | AF71: =Y71 - SQRT(Q$2)*$AC$2 -> 11.30100274 | AG71: =Z71 - SQRT(R$2)*$AC$2 -> 12.07280402 | AH71: =AA71 - SQRT(S$2)*$AC$2 -> 11.56051779 | AI71: =AB71 - SQRT(T$2)*$AC$2 -> 11.31904631 | AJ71: =V71 + SQRT(N$2)*$AC$2 -> 12.10506327 | AK71: =W71 + SQRT(O$2)*$AC$2 -> 12.02457061 | AL71: =X71 + SQRT(P$2)*$AC$2 -> 12.44017317 | AM71: =Y71 + SQRT(Q$2)*$AC$2 -> 11.43861115 | AN71: =Z71 + SQRT(R$2)*$AC$2 -> 12.2274193 | AO71: =AA71 + SQRT(S$2)*$AC$2 -> 11.67550481 | AP71: =AB71 + SQRT(T$2)*$AC$2 -> 11.53969538 | AS71: =V71-E71 -> -0.02955505299
B72: 66 | C72: 2001-03-31 | D72: =OFFSET(C72, $P$4, 0) -> 2000-03-31 | E72: =VLOOKUP($C72, 'data, adj'!$B$7:$S$118, E$5, FALSE) -> 12.02284668 | F72: =VLOOKUP($C72, 'data, adj'!$B$7:$S$118, F$5, FALSE) -> 11.91504498 | G72: =VLOOKUP($C72, 'data, adj'!$B$7:$S$118, G$5, FALSE) -> 12.29135545 | H72: =VLOOKUP($C72, 'data, adj'!$B$7:$S$118, H$5, FALSE) -> 11.42246451 | I72: =VLOOKUP($C72, 'data, adj'!$B$7:$S$118, I$5, FALSE) -> 12.14567487 | J72: =VLOOKUP($C72, 'data, adj'!$B$7:$S$118, J$5, FALSE) -> 11.6242432 | K72: =VLOOKUP($C72, 'data, adj'!$B$7:$S$118, K$5, FALSE) -> 11.47737082 | M72: =C72 -> 2001-03-31 | N72: 0.01881001967 | O72: 0.02869725921 | P72: 0.01347967598 | Q72: 0.02919600695 | R72: 0.03282432074 | S72: 0.02652104057 | T72: 0.02477032954 | V72: 12.03209263 | W72: 11.91984628 | X72: 12.37121488 | Y72: 11.40400832 | Z72: 12.15665426 | AA72: 11.55811333 | AB72: 11.40387533 | AC72: 11.94115154 | AD72: 11.81490248 | AE72: 12.22787925 | AF72: 11.33520411 | AG72: 12.07934661 | AH72: 11.50061983 | AI72: 11.29355079 | AJ72: 12.12303371 | AK72: 12.02479009 | AL72: 12.51455051 | AM72: 11.47281253 | AN72: 12.2339619 | AO72: 11.61560684 | AP72: 11.51419986 | AS72: 0.009245945393
B73: =B72+1 -> 67 | C73: =DATE(YEAR(C72), MONTH(C72)-2, 0) -> 2000-12-31 | D73: 1999-12-31 | E73: =VLOOKUP($C73, 'data, adj'!$B$7:$S$118, E$5, FALSE) -> 12.02475459 | F73: =VLOOKUP($C73, 'data, adj'!$B$7:$S$118, F$5, FALSE) -> 11.90685766 | G73: =VLOOKUP($C73, 'data, adj'!$B$7:$S$118, G$5, FALSE) -> 12.29063895 | H73: =VLOOKUP($C73, 'data, adj'!$B$7:$S$118, H$5, FALSE) -> 11.41688802 | I73: =VLOOKUP($C73, 'data, adj'!$B$7:$S$118, I$5, FALSE) -> 12.13910451 | J73: =VLOOKUP($C73, 'data, adj'!$B$7:$S$118, J$5, FALSE) -> 11.61977787 | K73: =VLOOKUP($C73, 'data, adj'!$B$7:$S$118, K$5, FALSE) -> 11.47340471 | M73: 2000-12-31 | N73: 0.0367600734 | O73: 0.03334027641 | P73: 0.01360509054 | Q73: 0.07346157143 | R73: 0.04991910207 | S73: 0.02484828161 | T73: 0.05547371055 | V73: 12.03399938 | W73: 11.92573908 | X73: 12.33567266 | Y73: 11.42395773 | Z73: 12.14237438 | AA73: 11.64104216 | AB73: 11.48688189 | AC73: 11.9430583 | AD73: 11.82079527 | AE73: 12.19233703 | AF73: 11.35515352 | AG73: 12.06506674 | AH73: 11.58354866 | AI73: 11.37655735 | AJ73: 12.12494047 | AK73: 12.03068288 | AL73: 12.47900829 | AM73: 11.49276193 | AN73: 12.21968202 | AO73: 11.69853567 | AP73: 11.59720642 | AS73: 0.009244797396
B74: 68 | C74: 2000-09-30 | D74: 1999-09-30 | E74: =VLOOKUP($C74, 'data, adj'!$B$7:$S$118, E$5, FALSE) -> 12.01646058 | F74: =VLOOKUP($C74, 'data, adj'!$B$7:$S$118, F$5, FALSE) -> 11.89903784 | G74: =VLOOKUP($C74, 'data, adj'!$B$7:$S$118, G$5, FALSE) -> 12.30738297 | H74: =VLOOKUP($C74, 'data, adj'!$B$7:$S$118, H$5, FALSE) -> 11.35976263 | I74: =VLOOKUP($C74, 'data, adj'!$B$7:$S$118, I$5, FALSE) -> 12.12456971 | J74: =VLOOKUP($C74, 'data, adj'!$B$7:$S$118, J$5, FALSE) -> 11.61568961 | K74: =VLOOKUP($C74, 'data, adj'!$B$7:$S$118, K$5, FALSE) -> 11.44922926 | M74: 2000-09-30 | N74: 0.05007085167 | O74: 0.0143483003 | P74: 0.03584754537 | Q74: 0.03315017479 | R74: 0.04009878303 | S74: 0.05517933131 | T74: 0.07403295607 | V74: 12.02784468 | W74: 11.89466544 | X74: 12.31567372 | Y74: 11.39526413 | Z74: 12.12955239 | AA74: 11.64375415 | AB74: 11.45582452 | AC74: 11.93690359 | AD74: 11.78972163 | AE74: 12.17233809 | AF74: 11.32645992 | AG74: 12.05224475 | AH74: 11.58626064 | AI74: 11.34549998 | AJ74: 12.11878577 | AK74: 11.99960924 | AL74: 12.45900935 | AM74: 11.46406834 | AN74: 12.20686003 | AO74: 11.70124765 | AP74: 11.56614906 | AS74: 0.01138410407
B75: 69 | C75: 2000-06-30 | D75: 1999-06-30 | E75: =VLOOKUP($C75, 'data, adj'!$B$7:$S$118, E$5, FALSE) -> 11.99683816 | F75: =VLOOKUP($C75, 'data, adj'!$B$7:$S$118, F$5, FALSE) -> 11.89206029 | G75: =VLOOKUP($C75, 'data, adj'!$B$7:$S$118, G$5, FALSE) -> 12.3059587 | H75: =VLOOKUP($C75, 'data, adj'!$B$7:$S$118, H$5, FALSE) -> 11.36538787 | I75: =VLOOKUP($C75, 'data, adj'!$B$7:$S$118, I$5, FALSE) -> 12.11619717 | J75: =VLOOKUP($C75, 'data, adj'!$B$7:$S$118, J$5, FALSE) -> 11.58446443 | K75: =VLOOKUP($C75, 'data, adj'!$B$7:$S$118, K$5, FALSE) -> 11.4163595 | M75: 2000-06-30 | N75: 0.01728402175 | O75: 0.02756651765 | P75: -0.009121162721 | Q75: 0.004419073372 | R75: 0.03391448704 | S75: 0.03354687466 | T75: 0.0130113469 | V75: 12.02340345 | W75: 11.84997524 | X75: 12.32734751 | Y75: 11.40781442 | Z75: 12.13220548 | AA75: 11.61434924 | AB75: 11.50816272 | AC75: 11.93246236 | AD75: 11.74503143 | AE75: 12.18401188 | AF75: 11.33901021 | AG75: 12.05489784 | AH75: 11.55685574 | AI75: 11.39783818 | AJ75: 12.11434454 | AK75: 11.95491904 | AL75: 12.47068314 | AM75: 11.47661862 | AN75: 12.20951312 | AO75: 11.67184275 | AP75: 11.61848725 | AS75: 0.02656528553
B76: 70 | C76: 2000-03-31 | D76: 1999-03-31 | E76: =VLOOKUP($C76, 'data, adj'!$B$7:$S$118, E$5, FALSE) -> 11.99816247 | F76: =VLOOKUP($C76, 'data, adj'!$B$7:$S$118, F$5, FALSE) -> 11.88047408 | G76: =VLOOKUP($C76, 'data, adj'!$B$7:$S$118, G$5, FALSE) -> 12.32342003 | H76: =VLOOKUP($C76, 'data, adj'!$B$7:$S$118, H$5, FALSE) -> 11.38719216 | I76: =VLOOKUP($C76, 'data, adj'!$B$7:$S$118, I$5, FALSE) -> 12.10672734 | J76: =VLOOKUP($C76, 'data, adj'!$B$7:$S$118, J$5, FALSE) -> 11.57344655 | K76: =VLOOKUP($C76, 'data, adj'!$B$7:$S$118, K$5, FALSE) -> 11.42016304 | M76: 2000-03-31 | N76: 0.03393015042 | O76: 0.03937220568 | P76: 0.0477948517 | Q76: 0.01681616051 | R76: 0.04992692017 | S76: -0.01533321823 | T76: -0.01628771047 | V76: 11.98363709 | W76: 11.88161386 | X76: 12.29408375 | Y76: 11.39225043 | Z76: 12.045937 | AA76: 11.62237827 | AB76: 11.40961521 | AC76: 11.892696 | AD76: 11.77667005 | AE76: 12.15074811 | AF76: 11.32344622 | AG76: 11.96862936 | AH76: 11.56488477 | AI76: 11.29929067 | AJ76: 12.07457818 | AK76: 11.98655766 | AL76: 12.43741938 | AM76: 11.46105463 | AN76: 12.12324464 | AO76: 11.67987178 | AP76: 11.51993974 | AS76: -0.01452538631
B77: 71 | C77: 1999-12-31 | D77: 1998-12-31 | E77: =VLOOKUP($C77, 'data, adj'!$B$7:$S$118, E$5, FALSE) -> 11.99529606 | F77: =VLOOKUP($C77, 'data, adj'!$B$7:$S$118, F$5, FALSE) -> 11.87025719 | G77: =VLOOKUP($C77, 'data, adj'!$B$7:$S$118, G$5, FALSE) -> 12.29716942 | H77: =VLOOKUP($C77, 'data, adj'!$B$7:$S$118, H$5, FALSE) -> 11.38044495 | I77: =VLOOKUP($C77, 'data, adj'!$B$7:$S$118, I$5, FALSE) -> 12.0963917 | J77: =VLOOKUP($C77, 'data, adj'!$B$7:$S$118, J$5, FALSE) -> 11.60810836 | K77: =VLOOKUP($C77, 'data, adj'!$B$7:$S$118, K$5, FALSE) -> 11.4435861 | M77: 1999-12-31 | N77: 0.03870332535 | O77: 0.05548188193 | P77: 0.03850324098 | Q77: 0.04351277735 | R77: 0.04598268096 | S77: 0.03293379778 | T77: 0.04329578206 | V77: 11.97341727 | W77: 11.82585652 | X77: 12.27933215 | Y77: 11.33483653 | Z77: 12.0766515 | AA77: 11.59357857 | AB77: 11.46876817 | AC77: 11.88247618 | AD77: 11.72091271 | AE77: 12.13599652 | AF77: 11.26603232 | AG77: 11.99934386 | AH77: 11.53608507 | AI77: 11.35844364 | AJ77: 12.06435836 | AK77: 11.93080032 | AL77: 12.42266778 | AM77: 11.40364074 | AN77: 12.15395914 | AO77: 11.65107208 | AP77: 11.57909271 | AS77: -0.02187878778
B78: 72 | C78: 1999-09-30 | D78: 1998-09-30 | E78: =VLOOKUP($C78, 'data, adj'!$B$7:$S$118, E$5, FALSE) -> 11.98431563 | F78: =VLOOKUP($C78, 'data, adj'!$B$7:$S$118, F$5, FALSE) -> 11.8500118 | G78: =VLOOKUP($C78, 'data, adj'!$B$7:$S$118, G$5, FALSE) -> 12.28345489 | H78: =VLOOKUP($C78, 'data, adj'!$B$7:$S$118, H$5, FALSE) -> 11.36618724 | I78: =VLOOKUP($C78, 'data, adj'!$B$7:$S$118, I$5, FALSE) -> 12.08048675 | J78: =VLOOKUP($C78, 'data, adj'!$B$7:$S$118, J$5, FALSE) -> 11.60193401 | K78: =VLOOKUP($C78, 'data, adj'!$B$7:$S$118, K$5, FALSE) -> 11.43183471 | M78: 1999-09-30 | N78: 0.04352904896 | O78: 0.04465363697 | P78: 0.03221882512 | Q78: 0.02907688345 | R78: 0.0490656444 | S78: 0.04182013388 | T78: 0.02398981225 | V78: 11.96055347 | W78: 11.82193503 | X78: 12.24968786 | Y78: 11.4147688 | Z78: 12.06470862 | AA78: 11.60042846 | AB78: 11.36075827 | AC78: 11.86961238 | AD78: 11.71699122 | AE78: 12.10635222 | AF78: 11.34596459 | AG78: 11.98740097 | AH78: 11.54293496 | AI78: 11.25043374 | AJ78: 12.05149455 | AK78: 11.92687883 | AL78: 12.39302349 | AM78: 11.48357301 | AN78: 12.14201626 | AO78: 11.65792197 | AP78: 11.47108281 | AS78: -0.02376216645
B79: 73 | C79: 1999-06-30 | D79: 1998-06-30 | E79: =VLOOKUP($C79, 'data, adj'!$B$7:$S$118, E$5, FALSE) -> 11.97085651 | F79: =VLOOKUP($C79, 'data, adj'!$B$7:$S$118, F$5, FALSE) -> 11.8352046 | G79: =VLOOKUP($C79, 'data, adj'!$B$7:$S$118, G$5, FALSE) -> 12.27872349 | H79: =VLOOKUP($C79, 'data, adj'!$B$7:$S$118, H$5, FALSE) -> 11.36590927 | I79: =VLOOKUP($C79, 'data, adj'!$B$7:$S$118, I$5, FALSE) -> 12.06229465 | J79: =VLOOKUP($C79, 'data, adj'!$B$7:$S$118, J$5, FALSE) -> 11.58785667 | K79: =VLOOKUP($C79, 'data, adj'!$B$7:$S$118, K$5, FALSE) -> 11.43092334 | M79: 1999-06-30 | N79: 0.05254693562 | O79: 0.01477064176 | P79: 0.04862402428 | Q79: 0.04190514331 | R79: 0.06991083078 | S79: 0.02649257492 | T79: 0.07723938024 | V79: 11.94276081 | W79: 11.84624075 | X79: 12.24720355 | Y79: 11.43166939 | Z79: 12.07350469 | AA79: 11.59300964 | AB79: 11.44183356 | AC79: 11.85181973 | AD79: 11.74129695 | AE79: 12.10386792 | AF79: 11.36286519 | AG79: 11.99619704 | AH79: 11.53551614 | AI79: 11.33150903 | AJ79: 12.0337019 | AK79: 11.95118456 | AL79: 12.39053918 | AM79: 11.5004736 | AN79: 12.15081233 | AO79: 11.65050315 | AP79: 11.5521581 | AS79: -0.028095701
B80: 74 | C80: 1999-03-31 | D80: 1998-03-31 | E80: =VLOOKUP($C80, 'data, adj'!$B$7:$S$118, E$5, FALSE) -> 11.94748325 | F80: =VLOOKUP($C80, 'data, adj'!$B$7:$S$118, F$5, FALSE) -> 11.83041873 | G80: =VLOOKUP($C80, 'data, adj'!$B$7:$S$118, G$5, FALSE) -> 12.25947122 | H80: =VLOOKUP($C80, 'data, adj'!$B$7:$S$118, H$5, FALSE) -> 11.35448058 | I80: =VLOOKUP($C80, 'data, adj'!$B$7:$S$118, I$5, FALSE) -> 12.0258449 | J80: =VLOOKUP($C80, 'data, adj'!$B$7:$S$118, J$5, FALSE) -> 11.58448304 | K80: =VLOOKUP($C80, 'data, adj'!$B$7:$S$118, K$5, FALSE) -> 11.3938153 | M80: 1999-03-31 | N80: 0.03615384127 | O80: 0.05119512451 | P80: 0.03461252335 | Q80: 0.03776984697 | R80: 0.0200921068 | S80: 0.03789522991 | T80: 0.01579990612 | V80: 11.94407622 | W80: 11.82627855 | X80: 12.28922068 | Y80: 11.3819434 | Z80: 12.02073378 | AA80: 11.53906217 | AB80: 11.40539873 | AC80: 11.85313513 | AD80: 11.72133474 | AE80: 12.14588505 | AF80: 11.31313919 | AG80: 11.94342614 | AH80: 11.48156866 | AI80: 11.29507419 | AJ80: 12.03501731 | AK80: 11.93122235 | AL80: 12.43255632 | AM80: 11.45074761 | AN80: 12.09804143 | AO80: 11.59655567 | AP80: 11.51572326 | AS80: -0.00340702592
B81: 75 | C81: 1998-12-31 | D81: 1997-12-31 | E81: =VLOOKUP($C81, 'data, adj'!$B$7:$S$118, E$5, FALSE) -> 11.94359687 | F81: =VLOOKUP($C81, 'data, adj'!$B$7:$S$118, F$5, FALSE) -> 11.81341517 | G81: =VLOOKUP($C81, 'data, adj'!$B$7:$S$118, G$5, FALSE) -> 12.25680378 | H81: =VLOOKUP($C81, 'data, adj'!$B$7:$S$118, H$5, FALSE) -> 11.34251667 | I81: =VLOOKUP($C81, 'data, adj'!$B$7:$S$118, I$5, FALSE) -> 12.04006529 | J81: =VLOOKUP($C81, 'data, adj'!$B$7:$S$118, J$5, FALSE) -> 11.57093019 | K81: =VLOOKUP($C81, 'data, adj'!$B$7:$S$118, K$5, FALSE) -> 11.40013743 | M81: 1998-12-31 | N81: 0.02982039448 | O81: 0.01244135042 | P81: 0.02252836502 | Q81: -0.007680140493 | R81: 0.03658621263 | S81: 0.02264838683 | T81: 0.06863074026 | V81: 11.95086809 | W81: 11.78685638 | X81: 12.2896754 | Y81: 11.3668291 | Z81: 12.01628533 | AA81: 11.61312363 | AB81: 11.42746469 | AC81: 11.859927 | AD81: 11.68191258 | AE81: 12.14633977 | AF81: 11.29802489 | AG81: 11.93897769 | AH81: 11.55563012 | AI81: 11.31714016 | AJ81: 12.04180917 | AK81: 11.89180019 | AL81: 12.43301103 | AM81: 11.43563331 | AN81: 12.09359297 | AO81: 11.67061713 | AP81: 11.53778923 | AS81: 0.007271212595
B82: 76 | C82: 1998-09-30 | E82: =VLOOKUP($C82, 'data, adj'!$B$7:$S$118, E$5, FALSE) -> 11.93343024 | F82: =VLOOKUP($C82, 'data, adj'!$B$7:$S$118, F$5, FALSE) -> 11.79911142 | G82: =VLOOKUP($C82, 'data, adj'!$B$7:$S$118, G$5, FALSE) -> 12.24642253 | H82: =VLOOKUP($C82, 'data, adj'!$B$7:$S$118, H$5, FALSE) -> 11.38938966 | I82: =VLOOKUP($C82, 'data, adj'!$B$7:$S$118, I$5, FALSE) -> 12.03114767 | J82: =VLOOKUP($C82, 'data, adj'!$B$7:$S$118, J$5, FALSE) -> 11.56678845 | K82: =VLOOKUP($C82, 'data, adj'!$B$7:$S$118, K$5, FALSE) -> 11.37201837 | M82: 1998-09-30 | N82: 0.02712322459 | O82: 0.02282360805 | P82: 0.003265326614 | Q82: 0.02537913733 | R82: 0.03356095 | S82: 0.03364000867 | T82: -0.0112600949
B83: 77 | C83: 1998-06-30 | E83: =VLOOKUP($C83, 'data, adj'!$B$7:$S$118, E$5, FALSE) -> 11.9340408 | F83: =VLOOKUP($C83, 'data, adj'!$B$7:$S$118, F$5, FALSE) -> 11.797277 | G83: =VLOOKUP($C83, 'data, adj'!$B$7:$S$118, G$5, FALSE) -> 12.26608061 | H83: =VLOOKUP($C83, 'data, adj'!$B$7:$S$118, H$5, FALSE) -> 11.37991965 | I83: =VLOOKUP($C83, 'data, adj'!$B$7:$S$118, I$5, FALSE) -> 12.02956217 | J83: =VLOOKUP($C83, 'data, adj'!$B$7:$S$118, J$5, FALSE) -> 11.5555155 | K83: =VLOOKUP($C83, 'data, adj'!$B$7:$S$118, K$5, FALSE) -> 11.3891407 | M83: 1998-06-30 | N83: 0.00872001175 | O83: 0.04896375738 | P83: -0.01887705357 | Q83: 0.05174974583 | R83: 0.04394251537 | S83: 0.0374941476 | T83: 0.0526928588
B84: 78 | C84: 1998-03-31 | E84: =VLOOKUP($C84, 'data, adj'!$B$7:$S$118, E$5, FALSE) -> 11.93740204 | F84: =VLOOKUP($C84, 'data, adj'!$B$7:$S$118, F$5, FALSE) -> 11.77934304 | G84: =VLOOKUP($C84, 'data, adj'!$B$7:$S$118, G$5, FALSE) -> 12.28743602 | H84: =VLOOKUP($C84, 'data, adj'!$B$7:$S$118, H$5, FALSE) -> 11.35366006 | I84: =VLOOKUP($C84, 'data, adj'!$B$7:$S$118, I$5, FALSE) -> 12.00369327 | J84: =VLOOKUP($C84, 'data, adj'!$B$7:$S$118, J$5, FALSE) -> 11.54337707 | K84: =VLOOKUP($C84, 'data, adj'!$B$7:$S$118, K$5, FALSE) -> 11.36707855 | M84: 1998-03-31 | N84: 0.006674183546 | O84: 0.04693550569 | P84: 0.001784665548 | Q84: 0.02828334011 | R84: 0.01704051404 | S84: -0.004314906072 | T84: 0.03832018069
B85: 79 | C85: 1997-12-31 | E85: =VLOOKUP($C85, 'data, adj'!$B$7:$S$118, E$5, FALSE) -> 11.94800763 | F85: =VLOOKUP($C85, 'data, adj'!$B$7:$S$118, F$5, FALSE) -> 11.75647538 | G85: =VLOOKUP($C85, 'data, adj'!$B$7:$S$118, G$5, FALSE) -> 12.29276397 | H85: =VLOOKUP($C85, 'data, adj'!$B$7:$S$118, H$5, FALSE) -> 11.34487361 | I85: =VLOOKUP($C85, 'data, adj'!$B$7:$S$118, I$5, FALSE) -> 12.01707083 | J85: =VLOOKUP($C85, 'data, adj'!$B$7:$S$118, J$5, FALSE) -> 11.56251531 | K85: =VLOOKUP($C85, 'data, adj'!$B$7:$S$118, K$5, FALSE) -> 11.35852642 | M85: 1997-12-31 | N85: 0.002860461391 | O85: 0.03038099786 | P85: -0.003088571016 | Q85: 0.02195548895 | R85: -0.0007854954635 | S85: 0.05060831876 | T85: 0.06893827232

Sheet impulse
B2: TAB: IMPULSE RESPONSE SERIES
B4: Impulse response parameters
B7: Initial state
B8: Change in the state | G8: 0 | H8: 0 | I8: 0.5
B9: Number of periods | D9: 30
B11: Impulse response results
C13: # | D13: =D6 -> 0 | E13: =E6 -> 0 | F13: 0 | G13: 0 | H13: 0 | I13: 0
C14: 1
C15: =C14+1 -> 2
C16: =C15+1 -> 3
C17: 4
C18: 5
C19: 6
C20: 7
C21: 8
C22: 9
C23: 10
C24: =C23+1 -> 11
C25: 12
C26: 13
C27: 14
C28: 15
C29: 16
C30: 17
C31: 18
C32: 19
C33: 20
C34: 21
C35: 22
C36: 23
C37: 24
C38: 25
C39: 26
C40: 27
C41: 28
C42: 29
C43: 30

Sheet charts
B2: TAB: CHARTS
B4: Backtesting / projection
B19: Impulse response: short rate

Sheet data, adj
F2: ="ln "& data!E4 -> ln CREA Home Prices | M2: ="d " &F2 -> d ln CREA Home Prices
F4: =COLUMNS(data!$B6:E6) -> 4 | G4: =COLUMNS(data!$B6:F6) -> 5 | H4: =COLUMNS(data!$B6:G6) -> 6 | I4: =COLUMNS(data!$B6:H6) -> 7 | J4: =COLUMNS(data!$B6:I6) -> 8 | K4: =COLUMNS(data!$B6:J6) -> 9 | L4: =COLUMNS(data!$B6:K6) -> 10
E5: =COUNTA(E7:E34) -> 28 | F5: =(F7-F35)/$E$5 -> 0.008489112982 | G5: =(G7-G35)/$E$5 -> 0.005876538396 | H5: 0.00780153199 | I5: 0.01147270309 | J5: 0.01035595935 | K5: 0.008453187507 | L5: 0.004381627945
B6: Date | C6: Year | D6: Quarter | E6: Period | F6: =data!E6 -> CA | G6: =data!F6 -> AB | H6: =data!G6 -> BC | I6: =data!H6 -> MB | J6: =data!I6 -> ON | K6: =data!J6 -> QC | L6: =data!K6 -> SK | M6: =F6 -> CA | N6: =G6 -> AB | O6: BC | P6: MB | Q6: ON | R6: QC | S6: SK
B7: 2022-12-31 | C7: =YEAR(B7) -> 2022 | D7: ="Q" & (MONTH(B7)/3) -> Q4 | E7: =C7 & D7 -> 2022Q4 | F7: =LN(VLOOKUP($E7, data!$B$8:$K$139, F$4, FALSE)) -> 13.28128153 | G7: =LN(VLOOKUP($E7, data!$B$8:$K$139, G$4, FALSE)) -> 13.03861431 | H7: =LN(VLOOKUP($E7, data!$B$8:$K$139, H$4, FALSE)) -> 13.66361849 | I7: =LN(VLOOKUP($E7, data!$B$8:$K$139, I$4, FALSE)) -> 12.80912826 | J7: =LN(VLOOKUP($E7, data!$B$8:$K$139, J$4, FALSE)) -> 13.35779591 | K7: =LN(VLOOKUP($E7, data!$B$8:$K$139, K$4, FALSE)) -> 12.76806846 | L7: =LN(VLOOKUP($E7, data!$B$8:$K$139, L$4, FALSE)) -> 12.72267356 | M7: =F7-F8 -> 0.01040505025 | N7: =G7-G8 -> 0.01181294376 | O7: =H7-H8 -> 0.01208439602 | P7: =I7-I8 -> 0.01483015259 | Q7: =J7-J8 -> 0.008333613007 | R7: =K7-K8 -> 0.008196907962 | S7: =L7-L8 -> 0.01051550795
B8: =DATE(YEAR(B7), MONTH(B7)-2, 0) -> 2022-09-30 | C8: =YEAR(B8) -> 2022 | D8: ="Q" & (MONTH(B8)/3) -> Q3 | E8: =C8 & D8 -> 2022Q3 | F8: =LN(VLOOKUP($E8, data!$B$8:$K$139, F$4, FALSE)) -> 13.27087648 | G8: =LN(VLOOKUP($E8, data!$B$8:$K$139, G$4, FALSE)) -> 13.02680137 | H8: =LN(VLOOKUP($E8, data!$B$8:$K$139, H$4, FALSE)) -> 13.6515341 | I8: =LN(VLOOKUP($E8, data!$B$8:$K$139, I$4, FALSE)) -> 12.7942981 | J8: =LN(VLOOKUP($E8, data!$B$8:$K$139, J$4, FALSE)) -> 13.3494623 | K8: =LN(VLOOKUP($E8, data!$B$8:$K$139, K$4, FALSE)) -> 12.75987155 | L8: =LN(VLOOKUP($E8, data!$B$8:$K$139, L$4, FALSE)) -> 12.71215805 | M8: =F8-F9 -> 0.01026186762 | N8: 0.01105262356 | O8: 0.01148706516 | P8: 0.01441658391 | Q8: 0.008225270286 | R8: 0.007911200843 | S8: 0.009518963529
B9: =DATE(YEAR(B8), MONTH(B8)-2, 0) -> 2022-06-30 | C9: 2022 | D9: Q2 | E9: 2022Q2 | F9: =LN(VLOOKUP($E9, data!$B$8:$K$139, F$4, FALSE)) -> 13.26061461 | G9: =LN(VLOOKUP($E9, data!$B$8:$K$139, G$4, FALSE)) -> 13.01574874 | H9: =LN(VLOOKUP($E9, data!$B$8:$K$139, H$4, FALSE)) -> 13.64004703 | I9: =LN(VLOOKUP($E9, data!$B$8:$K$139, I$4, FALSE)) -> 12.77988152 | J9: =LN(VLOOKUP($E9, data!$B$8:$K$139, J$4, FALSE)) -> 13.34123703 | K9: =LN(VLOOKUP($E9, data!$B$8:$K$139, K$4, FALSE)) -> 12.75196035 | L9: =LN(VLOOKUP($E9, data!$B$8:$K$139, L$4, FALSE)) -> 12.70263909 | M9: 0.00977183383 | N9: 0.01002929961 | O9: 0.01131916595 | P9: 0.01379887766 | Q9: 0.006161919677 | R9: 0.00801224584 | S9: 0.008373006099
B10: 2022-03-31 | C10: 2022 | D10: Q1 | E10: 2022Q1 | F10: =LN(VLOOKUP($E10, data!$B$8:$K$139, F$4, FALSE)) -> 13.25084278 | G10: =LN(VLOOKUP($E10, data!$B$8:$K$139, G$4, FALSE)) -> 13.00571944 | H10: =LN(VLOOKUP($E10, data!$B$8:$K$139, H$4, FALSE)) -> 13.62872787 | I10: =LN(VLOOKUP($E10, data!$B$8:$K$139, I$4, FALSE)) -> 12.76608264 | J10: =LN(VLOOKUP($E10, data!$B$8:$K$139, J$4, FALSE)) -> 13.33507511 | K10: =LN(VLOOKUP($E10, data!$B$8:$K$139, K$4, FALSE)) -> 12.7439481 | L10: =LN(VLOOKUP($E10, data!$B$8:$K$139, L$4, FALSE)) -> 12.69426608 | M10: 0.009140245183 | N10: 0.009309387051 | O10: 0.01081129606 | P10: 0.01210248314 | Q10: 0.006509270641 | R10: 0.006985474416 | S10: 0.007286960432
B11: 2021-12-31 | C11: 2021 | D11: Q4 | E11: 2021Q4 | F11: =LN(VLOOKUP($E11, data!$B$8:$K$139, F$4, FALSE)) -> 13.24170254 | G11: =LN(VLOOKUP($E11, data!$B$8:$K$139, G$4, FALSE)) -> 12.99641006 | H11: =LN(VLOOKUP($E11, data!$B$8:$K$139, H$4, FALSE)) -> 13.61791657 | I11: =LN(VLOOKUP($E11, data!$B$8:$K$139, I$4, FALSE)) -> 12.75398016 | J11: =LN(VLOOKUP($E11, data!$B$8:$K$139, J$4, FALSE)) -> 13.32856584 | K11: =LN(VLOOKUP($E11, data!$B$8:$K$139, K$4, FALSE)) -> 12.73696263 | L11: =LN(VLOOKUP($E11, data!$B$8:$K$139, L$4, FALSE)) -> 12.68697912 | M11: 0.008855587229 | N11: 0.008852024887 | O11: 0.01000106913 | P11: 0.0139553802 | Q11: 0.00880018886 | R11: 0.009073973878 | S11: 0.006444052578
B12: 2021-09-30 | C12: 2021 | D12: Q3 | E12: 2021Q3 | F12: =LN(VLOOKUP($E12, data!$B$8:$K$139, F$4, FALSE)) -> 13.23284695 | G12: =LN(VLOOKUP($E12, data!$B$8:$K$139, G$4, FALSE)) -> 12.98755803 | H12: =LN(VLOOKUP($E12, data!$B$8:$K$139, H$4, FALSE)) -> 13.6079155 | I12: =LN(VLOOKUP($E12, data!$B$8:$K$139, I$4, FALSE)) -> 12.74002478 | J12: =LN(VLOOKUP($E12, data!$B$8:$K$139, J$4, FALSE)) -> 13.31976565 | K12: =LN(VLOOKUP($E12, data!$B$8:$K$139, K$4, FALSE)) -> 12.72788865 | L12: =LN(VLOOKUP($E12, data!$B$8:$K$139, L$4, FALSE)) -> 12.68053507 | M12: 0.008842563521 | N12: 0.008173965948 | O12: 0.0103333657 | P12: 0.01356734359 | Q12: 0.00821765038 | R12: 0.008693024821 | S12: 0.006100767083
B13: 2021-06-30 | C13: 2021 | D13: Q2 | E13: 2021Q2 | F13: =LN(VLOOKUP($E13, data!$B$8:$K$139, F$4, FALSE)) -> 13.22400438 | G13: =LN(VLOOKUP($E13, data!$B$8:$K$139, G$4, FALSE)) -> 12.97938406 | H13: =LN(VLOOKUP($E13, data!$B$8:$K$139, H$4, FALSE)) -> 13.59758213 | I13: =LN(VLOOKUP($E13, data!$B$8:$K$139, I$4, FALSE)) -> 12.72645743 | J13: =LN(VLOOKUP($E13, data!$B$8:$K$139, J$4, FALSE)) -> 13.311548 | K13: =LN(VLOOKUP($E13, data!$B$8:$K$139, K$4, FALSE)) -> 12.71919563 | L13: =LN(VLOOKUP($E13, data!$B$8:$K$139, L$4, FALSE)) -> 12.6744343 | M13: 0.009038124838 | N13: 0.00775753436 | O13: 0.009531931557 | P13: 0.0131696753 | Q13: 0.00703307634 | R13: 0.008941381767 | S13: 0.006031140884
B14: 2021-03-31 | C14: 2021 | D14: Q1 | E14: 2021Q1 | F14: =LN(VLOOKUP($E14, data!$B$8:$K$139, F$4, FALSE)) -> 13.21496626 | G14: =LN(VLOOKUP($E14, data!$B$8:$K$139, G$4, FALSE)) -> 12.97162653 | H14: =LN(VLOOKUP($E14, data!$B$8:$K$139, H$4, FALSE)) -> 13.5880502 | I14: =LN(VLOOKUP($E14, data!$B$8:$K$139, I$4, FALSE)) -> 12.71328776 | J14: =LN(VLOOKUP($E14, data!$B$8:$K$139, J$4, FALSE)) -> 13.30451492 | K14: =LN(VLOOKUP($E14, data!$B$8:$K$139, K$4, FALSE)) -> 12.71025425 | L14: =LN(VLOOKUP($E14, data!$B$8:$K$139, L$4, FALSE)) -> 12.66840316 | M14: 0.009676336602 | N14: 0.007187945916 | O14: 0.009988784729 | P14: 0.01049348533 | Q14: 0.009407369288 | R14: 0.007715584723 | S14: 0.007462732996
B15: 2020-12-31 | C15: 2020 | D15: Q4 | E15: 2020Q4 | F15: =LN(VLOOKUP($E15, data!$B$8:$K$139, F$4, FALSE)) -> 13.20528992 | G15: =LN(VLOOKUP($E15, data!$B$8:$K$139, G$4, FALSE)) -> 12.96443858 | H15: =LN(VLOOKUP($E15, data!$B$8:$K$139, H$4, FALSE)) -> 13.57806142 | I15: =LN(VLOOKUP($E15, data!$B$8:$K$139, I$4, FALSE)) -> 12.70279427 | J15: =LN(VLOOKUP($E15, data!$B$8:$K$139, J$4, FALSE)) -> 13.29510755 | K15: =LN(VLOOKUP($E15, data!$B$8:$K$139, K$4, FALSE)) -> 12.70253866 | L15: =LN(VLOOKUP($E15, data!$B$8:$K$139, L$4, FALSE)) -> 12.66094043 | M15: 0.0100981058 | N15: 0.008391927379 | O15: 0.009322621782 | P15: 0.01430473844 | Q15: 0.008432152106 | R15: 0.009445499099 | S15: 0.00898076046
B16: 2020-09-30 | C16: 2020 | D16: Q3 | E16: 2020Q3 | F16: =LN(VLOOKUP($E16, data!$B$8:$K$139, F$4, FALSE)) -> 13.19519182 | G16: =LN(VLOOKUP($E16, data!$B$8:$K$139, G$4, FALSE)) -> 12.95604666 | H16: =LN(VLOOKUP($E16, data!$B$8:$K$139, H$4, FALSE)) -> 13.5687388 | I16: =LN(VLOOKUP($E16, data!$B$8:$K$139, I$4, FALSE)) -> 12.68848954 | J16: =LN(VLOOKUP($E16, data!$B$8:$K$139, J$4, FALSE)) -> 13.2866754 | K16: =LN(VLOOKUP($E16, data!$B$8:$K$139, K$4, FALSE)) -> 12.69309316 | L16: =LN(VLOOKUP($E16, data!$B$8:$K$139, L$4, FALSE)) -> 12.65195967 | M16: 0.008945133084 | N16: 0.007417810837 | O16: 0.007667687101 | P16: 0.01367655832 | Q16: 0.007756235707 | R16: 0.009039417779 | S16: 0.007206375854
B17: 2020-06-30 | C17: 2020 | D17: Q2 | E17: 2020Q2 | F17: =LN(VLOOKUP($E17, data!$B$8:$K$139, F$4, FALSE)) -> 13.18624668 | G17: =LN(VLOOKUP($E17, data!$B$8:$K$139, G$4, FALSE)) -> 12.94862885 | H17: =LN(VLOOKUP($E17, data!$B$8:$K$139, H$4, FALSE)) -> 13.56107111 | I17: =LN(VLOOKUP($E17, data!$B$8:$K$139, I$4, FALSE)) -> 12.67481298 | J17: =LN(VLOOKUP($E17, data!$B$8:$K$139, J$4, FALSE)) -> 13.27891916 | K17: =LN(VLOOKUP($E17, data!$B$8:$K$139, K$4, FALSE)) -> 12.68405374 | L17: =LN(VLOOKUP($E17, data!$B$8:$K$139, L$4, FALSE)) -> 12.64475329 | M17: 0.006868014044 | N17: 0.005765410241 | O17: 0.005964737743 | P17: 0.0134665306 | Q17: 0.006079275489 | R17: 0.008355666708 | S17: 0.007015120276
B18: 2020-03-31 | C18: 2020 | D18: Q1 | E18: 2020Q1 | F18: =LN(VLOOKUP($E18, data!$B$8:$K$139, F$4, FALSE)) -> 13.17937867 | G18: =LN(VLOOKUP($E18, data!$B$8:$K$139, G$4, FALSE)) -> 12.94286344 | H18: =LN(VLOOKUP($E18, data!$B$8:$K$139, H$4, FALSE)) -> 13.55510637 | I18: =LN(VLOOKUP($E18, data!$B$8:$K$139, I$4, FALSE)) -> 12.66134645 | J18: =LN(VLOOKUP($E18, data!$B$8:$K$139, J$4, FALSE)) -> 13.27283989 | K18: =LN(VLOOKUP($E18, data!$B$8:$K$139, K$4, FALSE)) -> 12.67569808 | L18: =LN(VLOOKUP($E18, data!$B$8:$K$139, L$4, FALSE)) -> 12.63773817 | M18: 0.006419141048 | N18: 0.004521459413 | O18: 0.007387680616 | P18: 0.0118323434 | Q18: 0.007439934843 | R18: 0.008290518466 | S18: 0.00550276689
B19: 2019-12-31 | C19: 2019 | D19: Q4 | E19: 2019Q4 | F19: =LN(VLOOKUP($E19, data!$B$8:$K$139, F$4, FALSE)) -> 13.17295953 | G19: =LN(VLOOKUP($E19, data!$B$8:$K$139, G$4, FALSE)) -> 12.93834198 | H19: =LN(VLOOKUP($E19, data!$B$8:$K$139, H$4, FALSE)) -> 13.54771869 | I19: =LN(VLOOKUP($E19, data!$B$8:$K$139, I$4, FALSE)) -> 12.6495141 | J19: =LN(VLOOKUP($E19, data!$B$8:$K$139, J$4, FALSE)) -> 13.26539995 | K19: =LN(VLOOKUP($E19, data!$B$8:$K$139, K$4, FALSE)) -> 12.66740756 | L19: =LN(VLOOKUP($E19, data!$B$8:$K$139, L$4, FALSE)) -> 12.63223541 | M19: 0.007743579937 | N19: 0.004124283435 | O19: 0.01099389494 | P19: 0.01210394534 | Q19: 0.009219223174 | R19: 0.008868542711 | S19: 0.009635727453
B20: 2019-09-30 | C20: 2019 | D20: Q3 | E20: 2019Q3 | F20: =LN(VLOOKUP($E20, data!$B$8:$K$139, F$4, FALSE)) -> 13.16521595 | G20: =LN(VLOOKUP($E20, data!$B$8:$K$139, G$4, FALSE)) -> 12.93421769 | H20: =LN(VLOOKUP($E20, data!$B$8:$K$139, H$4, FALSE)) -> 13.5367248 | I20: =LN(VLOOKUP($E20, data!$B$8:$K$139, I$4, FALSE)) -> 12.63741016 | J20: =LN(VLOOKUP($E20, data!$B$8:$K$139, J$4, FALSE)) -> 13.25618073 | K20: =LN(VLOOKUP($E20, data!$B$8:$K$139, K$4, FALSE)) -> 12.65853902 | L20: =LN(VLOOKUP($E20, data!$B$8:$K$139, L$4, FALSE)) -> 12.62259968 | M20: 0.009079361396 | N20: 0.003845674854 | O20: 0.01081147632 | P20: 0.01225882422 | Q20: 0.007486067793 | R20: 0.008582153549 | S20: 0.007853742415
B21: 2019-06-30 | C21: 2019 | D21: Q2 | E21: 2019Q2 | F21: =LN(VLOOKUP($E21, data!$B$8:$K$139, F$4, FALSE)) -> 13.15613659 | G21: =LN(VLOOKUP($E21, data!$B$8:$K$139, G$4, FALSE)) -> 12.93037202 | H21: =LN(VLOOKUP($E21, data!$B$8:$K$139, H$4, FALSE)) -> 13.52591332 | I21: =LN(VLOOKUP($E21, data!$B$8:$K$139, I$4, FALSE)) -> 12.62515133 | J21: =LN(VLOOKUP($E21, data!$B$8:$K$139, J$4, FALSE)) -> 13.24869466 | K21: =LN(VLOOKUP($E21, data!$B$8:$K$139, K$4, FALSE)) -> 12.64995686 | L21: =LN(VLOOKUP($E21, data!$B$8:$K$139, L$4, FALSE)) -> 12.61474594 | M21: 0.008787957413 | N21: 0.002943816052 | O21: 0.01152947609 | P21: 0.01128961578 | Q21: 0.005977333697 | R21: 0.008374988556 | S21: 0.00530704936
B22: 2019-03-31 | C22: 2019 | D22: Q1 | E22: 2019Q1 | F22: =LN(VLOOKUP($E22, data!$B$8:$K$139, F$4, FALSE)) -> 13.14734863 | G22: =LN(VLOOKUP($E22, data!$B$8:$K$139, G$4, FALSE)) -> 12.9274282 | H22: =LN(VLOOKUP($E22, data!$B$8:$K$139, H$4, FALSE)) -> 13.51438384 | I22: =LN(VLOOKUP($E22, data!$B$8:$K$139, I$4, FALSE)) -> 12.61386172 | J22: =LN(VLOOKUP($E22, data!$B$8:$K$139, J$4, FALSE)) -> 13.24271733 | K22: =LN(VLOOKUP($E22, data!$B$8:$K$139, K$4, FALSE)) -> 12.64158187 | L22: =LN(VLOOKUP($E22, data!$B$8:$K$139, L$4, FALSE)) -> 12.60943889 | M22: 0.008466442601 | N22: 0.002993948623 | O22: 0.01111721229 | P22: 0.0082850294 | Q22: 0.006063227843 | R22: 0.007689198376 | S22: 0.003221929285
B23: 2018-12-31 | C23: 2018 | D23: Q4 | E23: 2018Q4 | F23: =LN(VLOOKUP($E23, data!$B$8:$K$139, F$4, FALSE)) -> 13.13888219 | G23: =LN(VLOOKUP($E23, data!$B$8:$K$139, G$4, FALSE)) -> 12.92443425 | H23: =LN(VLOOKUP($E23, data!$B$8:$K$139, H$4, FALSE)) -> 13.50326663 | I23: =LN(VLOOKUP($E23, data!$B$8:$K$139, I$4, FALSE)) -> 12.60557669 | J23: =LN(VLOOKUP($E23, data!$B$8:$K$139, J$4, FALSE)) -> 13.2366541 | K23: =LN(VLOOKUP($E23, data!$B$8:$K$139, K$4, FALSE)) -> 12.63389268 | L23: =LN(VLOOKUP($E23, data!$B$8:$K$139, L$4, FALSE)) -> 12.60621696 | M23: 0.008266950529 | N23: 0.006544794882 | O23: 0.008782611025 | P23: 0.01064268394 | Q23: 0.007026819335 | R23: 0.007246301842 | S23: 0.001999262683
B24: 2018-09-30 | C24: 2018 | D24: Q3 | E24: 2018Q3 | F24: =LN(VLOOKUP($E24, data!$B$8:$K$139, F$4, FALSE)) -> 13.13061524 | G24: =LN(VLOOKUP($E24, data!$B$8:$K$139, G$4, FALSE)) -> 12.91788946 | H24: =LN(VLOOKUP($E24, data!$B$8:$K$139, H$4, FALSE)) -> 13.49448402 | I24: =LN(VLOOKUP($E24, data!$B$8:$K$139, I$4, FALSE)) -> 12.594934 | J24: =LN(VLOOKUP($E24, data!$B$8:$K$139, J$4, FALSE)) -> 13.22962728 | K24: =LN(VLOOKUP($E24, data!$B$8:$K$139, K$4, FALSE)) -> 12.62664637 | L24: =LN(VLOOKUP($E24, data!$B$8:$K$139, L$4, FALSE)) -> 12.60421769 | M24: 0.007258353255 | N24: 0.004853023227 | O24: 0.007190070343 | P24: 0.009432265384 | Q24: 0.002430126111 | R24: 0.006608185753 | S24: -0.001104114027
B25: 2018-06-30 | C25: 2018 | D25: Q2 | E25: 2018Q2 | F25: =LN(VLOOKUP($E25, data!$B$8:$K$139, F$4, FALSE)) -> 13.12335688 | G25: =LN(VLOOKUP($E25, data!$B$8:$K$139, G$4, FALSE)) -> 12.91303644 | H25: =LN(VLOOKUP($E25, data!$B$8:$K$139, H$4, FALSE)) -> 13.48729395 | I25: =LN(VLOOKUP($E25, data!$B$8:$K$139, I$4, FALSE)) -> 12.58550174 | J25: =LN(VLOOKUP($E25, data!$B$8:$K$139, J$4, FALSE)) -> 13.22719715 | K25: =LN(VLOOKUP($E25, data!$B$8:$K$139, K$4, FALSE)) -> 12.62003819 | L25: =LN(VLOOKUP($E25, data!$B$8:$K$139, L$4, FALSE)) -> 12.60532181 | M25: 0.003725234082 | N25: 0.005776517867 | O25: 0.004953885087 | P25: 0.006242716679 | Q25: 0.001898199084 | R25: 0.005435138205 | S25: -0.001273753151
B26: 2018-03-31 | C26: 2018 | D26: Q1 | E26: 2018Q1 | F26: =LN(VLOOKUP($E26, data!$B$8:$K$139, F$4, FALSE)) -> 13.11963165 | G26: =LN(VLOOKUP($E26, data!$B$8:$K$139, G$4, FALSE)) -> 12.90725992 | H26: =LN(VLOOKUP($E26, data!$B$8:$K$139, H$4, FALSE)) -> 13.48234006 | I26: =LN(VLOOKUP($E26, data!$B$8:$K$139, I$4, FALSE)) -> 12.57925902 | J26: =LN(VLOOKUP($E26, data!$B$8:$K$139, J$4, FALSE)) -> 13.22529896 | K26: =LN(VLOOKUP($E26, data!$B$8:$K$139, K$4, FALSE)) -> 12.61460305 | L26: =LN(VLOOKUP($E26, data!$B$8:$K$139, L$4, FALSE)) -> 12.60659556 | M26: 0.002154188902 | N26: 0.00517170941 | O26: -0.002181396833 | P26: 0.007467453292 | Q26: 0.01272565502 | R26: 0.00679223358 | S26: -0.0006998732812
B27: 2017-12-31 | C27: 2017 | D27: Q4 | E27: 2017Q4 | F27: =LN(VLOOKUP($E27, data!$B$8:$K$139, F$4, FALSE)) -> 13.11747746 | G27: =LN(VLOOKUP($E27, data!$B$8:$K$139, G$4, FALSE)) -> 12.90208821 | H27: =LN(VLOOKUP($E27, data!$B$8:$K$139, H$4, FALSE)) -> 13.48452146 | I27: =LN(VLOOKUP($E27, data!$B$8:$K$139, I$4, FALSE)) -> 12.57179157 | J27: =LN(VLOOKUP($E27, data!$B$8:$K$139, J$4, FALSE)) -> 13.2125733 | K27: =LN(VLOOKUP($E27, data!$B$8:$K$139, K$4, FALSE)) -> 12.60781082 | L27: =LN(VLOOKUP($E27, data!$B$8:$K$139, L$4, FALSE)) -> 12.60729543 | M27: -0.007759783162 | N27: 0.01252233203 | O27: 0.002220468381 | P27: 0.003766927809 | Q27: -0.0137464074 | R27: 0.004866548711 | S27: 0.004132653124
B28: 2017-09-30 | C28: 2017 | D28: Q3 | E28: 2017Q3 | F28: =LN(VLOOKUP($E28, data!$B$8:$K$139, F$4, FALSE)) -> 13.12523724 | G28: =LN(VLOOKUP($E28, data!$B$8:$K$139, G$4, FALSE)) -> 12.88956588 | H28: =LN(VLOOKUP($E28, data!$B$8:$K$139, H$4, FALSE)) -> 13.48230099 | I28: =LN(VLOOKUP($E28, data!$B$8:$K$139, I$4, FALSE)) -> 12.56802464 | J28: =LN(VLOOKUP($E28, data!$B$8:$K$139, J$4, FALSE)) -> 13.22631971 | K28: =LN(VLOOKUP($E28, data!$B$8:$K$139, K$4, FALSE)) -> 12.60294427 | L28: =LN(VLOOKUP($E28, data!$B$8:$K$139, L$4, FALSE)) -> 12.60316278 | M28: -0.02370379755 | N28: -0.01427575277 | O28: 0.0008334247046 | P28: 0.01078469108 | Q28: -0.04806064628 | R28: 0.005671105451 | S28: 0.01028470833
B29: 2017-06-30 | C29: 2017 | D29: Q2 | E29: 2017Q2 | F29: =LN(VLOOKUP($E29, data!$B$8:$K$139, F$4, FALSE)) -> 13.14894104 | G29: =LN(VLOOKUP($E29, data!$B$8:$K$139, G$4, FALSE)) -> 12.90384163 | H29: =LN(VLOOKUP($E29, data!$B$8:$K$139, H$4, FALSE)) -> 13.48146757 | I29: =LN(VLOOKUP($E29, data!$B$8:$K$139, I$4, FALSE)) -> 12.55723995 | J29: =LN(VLOOKUP($E29, data!$B$8:$K$139, J$4, FALSE)) -> 13.27438035 | K29: =LN(VLOOKUP($E29, data!$B$8:$K$139, K$4, FALSE)) -> 12.59727316 | L29: =LN(VLOOKUP($E29, data!$B$8:$K$139, L$4, FALSE)) -> 12.59287807 | M29: 0.008635590022 | N29: 0.01615050382 | O29: 0.1137734068 | P29: -0.005324622492 | Q29: -0.05624844224 | R29: 0.01655894444 | S29: 0.01187169433
B30: 2017-03-31 | C30: 2017 | D30: Q1 | E30: 2017Q1 | F30: =LN(VLOOKUP($E30, data!$B$8:$K$139, F$4, FALSE)) -> 13.14030545 | G30: =LN(VLOOKUP($E30, data!$B$8:$K$139, G$4, FALSE)) -> 12.88769113 | H30: =LN(VLOOKUP($E30, data!$B$8:$K$139, H$4, FALSE)) -> 13.36769416 | I30: =LN(VLOOKUP($E30, data!$B$8:$K$139, I$4, FALSE)) -> 12.56256457 | J30: =LN(VLOOKUP($E30, data!$B$8:$K$139, J$4, FALSE)) -> 13.3306288 | K30: =LN(VLOOKUP($E30, data!$B$8:$K$139, K$4, FALSE)) -> 12.58071422 | L30: =LN(VLOOKUP($E30, data!$B$8:$K$139, L$4, FALSE)) -> 12.58100638 | M30: 0.04188851506 | N30: -0.005674096022 | O30: -0.002372688017 | P30: 0.02110956999 | Q30: 0.08020999191 | R30: 0.01029364196 | S30: -0.006429921011
B31: 2016-12-31 | C31: 2016 | D31: Q4 | E31: 2016Q4 | F31: =LN(VLOOKUP($E31, data!$B$8:$K$139, F$4, FALSE)) -> 13.09841694 | G31: =LN(VLOOKUP($E31, data!$B$8:$K$139, G$4, FALSE)) -> 12.89336522 | H31: =LN(VLOOKUP($E31, data!$B$8:$K$139, H$4, FALSE)) -> 13.37006685 | I31: =LN(VLOOKUP($E31, data!$B$8:$K$139, I$4, FALSE)) -> 12.541455 | J31: =LN(VLOOKUP($E31, data!$B$8:$K$139, J$4, FALSE)) -> 13.2504188 | K31: =LN(VLOOKUP($E31, data!$B$8:$K$139, K$4, FALSE)) -> 12.57042058 | L31: =LN(VLOOKUP($E31, data!$B$8:$K$139, L$4, FALSE)) -> 12.5874363 | M31: 0.01522067354 | N31: -0.001695969653 | O31: 0.009658697609 | P31: 0.008123865639 | Q31: 0.04403418253 | R31: 0.006103719144 | S31: -0.02206605066
B32: 2016-09-30 | C32: 2016 | D32: Q3 | E32: 2016Q3 | F32: =LN(VLOOKUP($E32, data!$B$8:$K$139, F$4, FALSE)) -> 13.08319626 | G32: =LN(VLOOKUP($E32, data!$B$8:$K$139, G$4, FALSE)) -> 12.89506119 | H32: =LN(VLOOKUP($E32, data!$B$8:$K$139, H$4, FALSE)) -> 13.36040815 | I32: =LN(VLOOKUP($E32, data!$B$8:$K$139, I$4, FALSE)) -> 12.53333114 | J32: =LN(VLOOKUP($E32, data!$B$8:$K$139, J$4, FALSE)) -> 13.20638462 | K32: =LN(VLOOKUP($E32, data!$B$8:$K$139, K$4, FALSE)) -> 12.56431686 | L32: =LN(VLOOKUP($E32, data!$B$8:$K$139, L$4, FALSE)) -> 12.60950235 | M32: -0.0208320499 | N32: 0.01794639063 | O32: -0.1139239123 | P32: 0.02036587883 | Q32: 0.04897268405 | R32: 0.01516527632 | S32: 0.02116840139
B33: 2016-06-30 | C33: 2016 | D33: Q2 | E33: 2016Q2 | F33: =LN(VLOOKUP($E33, data!$B$8:$K$139, F$4, FALSE)) -> 13.10402831 | G33: =LN(VLOOKUP($E33, data!$B$8:$K$139, G$4, FALSE)) -> 12.8771148 | H33: =LN(VLOOKUP($E33, data!$B$8:$K$139, H$4, FALSE)) -> 13.47433206 | I33: =LN(VLOOKUP($E33, data!$B$8:$K$139, I$4, FALSE)) -> 12.51296526 | J33: =LN(VLOOKUP($E33, data!$B$8:$K$139, J$4, FALSE)) -> 13.15741194 | K33: =LN(VLOOKUP($E33, data!$B$8:$K$139, K$4, FALSE)) -> 12.54915158 | L33: =LN(VLOOKUP($E33, data!$B$8:$K$139, L$4, FALSE)) -> 12.58833395 | M33: 0.002937602583 | N33: 0.01453821192 | O33: -0.03959085207 | P33: -0.01575956529 | Q33: 0.04109480201 | R33: 0.007675126759 | S33: 0.001690161446
B34: 2016-03-31 | C34: 2016 | D34: Q1 | E34: 2016Q1 | F34: =LN(VLOOKUP($E34, data!$B$8:$K$139, F$4, FALSE)) -> 13.10109071 | G34: =LN(VLOOKUP($E34, data!$B$8:$K$139, G$4, FALSE)) -> 12.86257659 | H34: =LN(VLOOKUP($E34, data!$B$8:$K$139, H$4, FALSE)) -> 13.51392292 | I34: =LN(VLOOKUP($E34, data!$B$8:$K$139, I$4, FALSE)) -> 12.52872482 | J34: =LN(VLOOKUP($E34, data!$B$8:$K$139, J$4, FALSE)) -> 13.11631714 | K34: =LN(VLOOKUP($E34, data!$B$8:$K$139, K$4, FALSE)) -> 12.54147645 | L34: =LN(VLOOKUP($E34, data!$B$8:$K$139, L$4, FALSE)) -> 12.58664379 | M34: 0.05750434173 | N34: -0.01149464617 | O34: 0.06874731984 | P34: 0.04083225444 | Q34: 0.04848808861 | R34: 0.01009724852 | S34: -0.01334419024
B35: 2015-12-31 | C35: 2015 | D35: Q4 | E35: 2015Q4 | F35: =LN(VLOOKUP($E35, data!$B$8:$K$139, F$4, FALSE)) -> 13.04358637 | G35: =LN(VLOOKUP($E35, data!$B$8:$K$139, G$4, FALSE)) -> 12.87407123 | H35: =LN(VLOOKUP($E35, data!$B$8:$K$139, H$4, FALSE)) -> 13.4451756 | I35: =LN(VLOOKUP($E35, data!$B$8:$K$139, I$4, FALSE)) -> 12.48789257 | J35: =LN(VLOOKUP($E35, data!$B$8:$K$139, J$4, FALSE)) -> 13.06782905 | K35: =LN(VLOOKUP($E35, data!$B$8:$K$139, K$4, FALSE)) -> 12.53137921 | L35: =LN(VLOOKUP($E35, data!$B$8:$K$139, L$4, FALSE)) -> 12.59998798 | M35: 0.04183477378 | N35: -0.000199946169 | O35: 0.08473591833 | P35: -0.02459435052 | Q35: 0.01934474493 | R35: -0.0004007994377 | S35: 0.006481820547
B36: =DATE(YEAR(B35), MONTH(B35)-2, 0) -> 2015-09-30 | C36: 2015 | D36: ="Q" & (MONTH(B36)/3) -> Q3 | E36: =C36 & D36 -> 2015Q3 | F36: =LN(VLOOKUP($E36, data!$B$8:$K$139, F$4, FALSE)) -> 13.00175159 | G36: =LN(VLOOKUP($E36, data!$B$8:$K$139, G$4, FALSE)) -> 12.87427118 | H36: =LN(VLOOKUP($E36, data!$B$8:$K$139, H$4, FALSE)) -> 13.36043968 | I36: =LN(VLOOKUP($E36, data!$B$8:$K$139, I$4, FALSE)) -> 12.51248692 | J36: =LN(VLOOKUP($E36, data!$B$8:$K$139, J$4, FALSE)) -> 13.0484843 | K36: =LN(VLOOKUP($E36, data!$B$8:$K$139, K$4, FALSE)) -> 12.53178001 | L36: =LN(VLOOKUP($E36, data!$B$8:$K$139, L$4, FALSE)) -> 12.59350616 | M36: 0.01580834966 | N36: -0.01295450235 | O36: 0.01851194714 | P36: 0.01086448348 | Q36: 0.01163088395 | R36: 0.008738366753 | S36: -0.01143320827
B37: 2015-06-30 | C37: 2015 | D37: Q2 | E37: 2015Q2 | F37: =LN(VLOOKUP($E37, data!$B$8:$K$139, F$4, FALSE)) -> 12.98594324 | G37: =LN(VLOOKUP($E37, data!$B$8:$K$139, G$4, FALSE)) -> 12.88722568 | H37: =LN(VLOOKUP($E37, data!$B$8:$K$139, H$4, FALSE)) -> 13.34192773 | I37: =LN(VLOOKUP($E37, data!$B$8:$K$139, I$4, FALSE)) -> 12.50162244 | J37: =LN(VLOOKUP($E37, data!$B$8:$K$139, J$4, FALSE)) -> 13.03685342 | K37: =LN(VLOOKUP($E37, data!$B$8:$K$139, K$4, FALSE)) -> 12.52304164 | L37: =LN(VLOOKUP($E37, data!$B$8:$K$139, L$4, FALSE)) -> 12.60493937 | M37: 0.03552662914 | N37: 0.01220377945 | O37: 0.03566570775 | P37: 0.006109265161 | Q37: 0.03058125836 | R37: 0.006250556907 | S37: 0.0003825888559
B38: 2015-03-31 | C38: 2015 | D38: Q1 | E38: 2015Q1 | F38: =LN(VLOOKUP($E38, data!$B$8:$K$139, F$4, FALSE)) -> 12.95041662 | G38: =LN(VLOOKUP($E38, data!$B$8:$K$139, G$4, FALSE)) -> 12.8750219 | H38: =LN(VLOOKUP($E38, data!$B$8:$K$139, H$4, FALSE)) -> 13.30626202 | I38: =LN(VLOOKUP($E38, data!$B$8:$K$139, I$4, FALSE)) -> 12.49551317 | J38: =LN(VLOOKUP($E38, data!$B$8:$K$139, J$4, FALSE)) -> 13.00627216 | K38: =LN(VLOOKUP($E38, data!$B$8:$K$139, K$4, FALSE)) -> 12.51679108 | L38: =LN(VLOOKUP($E38, data!$B$8:$K$139, L$4, FALSE)) -> 12.60455678 | M38: 0.005590259379 | N38: -0.03320721663 | O38: 0.02257262761 | P38: 0.007251009525 | Q38: 0.01126045178 | R38: -0.007287922165 | S38: -0.01495906732
B39: 2014-12-31 | C39: 2014 | D39: Q4 | E39: 2014Q4 | F39: =LN(VLOOKUP($E39, data!$B$8:$K$139, F$4, FALSE)) -> 12.94482636 | G39: =LN(VLOOKUP($E39, data!$B$8:$K$139, G$4, FALSE)) -> 12.90822912 | H39: =LN(VLOOKUP($E39, data!$B$8:$K$139, H$4, FALSE)) -> 13.2836894 | I39: =LN(VLOOKUP($E39, data!$B$8:$K$139, I$4, FALSE)) -> 12.48826216 | J39: =LN(VLOOKUP($E39, data!$B$8:$K$139, J$4, FALSE)) -> 12.99501171 | K39: =LN(VLOOKUP($E39, data!$B$8:$K$139, K$4, FALSE)) -> 12.524079 | L39: =LN(VLOOKUP($E39, data!$B$8:$K$139, L$4, FALSE)) -> 12.61951584 | M39: 0.01884045911 | N39: 0.01019749979 | O39: 0.009779870142 | P39: 0.003857267184 | Q39: 0.02483959803 | R39: 0.01717980434 | S39: 0.02091474238
B40: 2014-09-30 | C40: 2014 | D40: Q3 | E40: 2014Q3 | F40: =LN(VLOOKUP($E40, data!$B$8:$K$139, F$4, FALSE)) -> 12.9259859 | G40: =LN(VLOOKUP($E40, data!$B$8:$K$139, G$4, FALSE)) -> 12.89803162 | H40: =LN(VLOOKUP($E40, data!$B$8:$K$139, H$4, FALSE)) -> 13.27390953 | I40: =LN(VLOOKUP($E40, data!$B$8:$K$139, I$4, FALSE)) -> 12.48440489 | J40: =LN(VLOOKUP($E40, data!$B$8:$K$139, J$4, FALSE)) -> 12.97017211 | K40: =LN(VLOOKUP($E40, data!$B$8:$K$139, K$4, FALSE)) -> 12.5068992 | L40: =LN(VLOOKUP($E40, data!$B$8:$K$139, L$4, FALSE)) -> 12.5986011 | M40: 0.02515736591 | N40: 0.009915715346 | O40: 0.0513859306 | P40: -0.001089551387 | Q40: 0.01391290494 | R40: -0.003476619472 | S40: 0.004935439837
B41: 2014-06-30 | C41: 2014 | D41: Q2 | E41: 2014Q2 | F41: =LN(VLOOKUP($E41, data!$B$8:$K$139, F$4, FALSE)) -> 12.90082853 | G41: =LN(VLOOKUP($E41, data!$B$8:$K$139, G$4, FALSE)) -> 12.88811591 | H41: =LN(VLOOKUP($E41, data!$B$8:$K$139, H$4, FALSE)) -> 13.22252359 | I41: =LN(VLOOKUP($E41, data!$B$8:$K$139, I$4, FALSE)) -> 12.48549445 | J41: =LN(VLOOKUP($E41, data!$B$8:$K$139, J$4, FALSE)) -> 12.95625921 | K41: =LN(VLOOKUP($E41, data!$B$8:$K$139, K$4, FALSE)) -> 12.51037582 | L41: =LN(VLOOKUP($E41, data!$B$8:$K$139, L$4, FALSE)) -> 12.59366566 | M41: 0.009910570659 | N41: -0.01297716536 | O41: -0.0126951415 | P41: -0.001824607772 | Q41: 0.007989724669 | R41: 0.006564340183 | S41: -0.01378374607
B42: 2014-03-31 | C42: 2014 | D42: Q1 | E42: 2014Q1 | F42: =LN(VLOOKUP($E42, data!$B$8:$K$139, F$4, FALSE)) -> 12.89091796 | G42: =LN(VLOOKUP($E42, data!$B$8:$K$139, G$4, FALSE)) -> 12.90109307 | H42: =LN(VLOOKUP($E42, data!$B$8:$K$139, H$4, FALSE)) -> 13.23521874 | I42: =LN(VLOOKUP($E42, data!$B$8:$K$139, I$4, FALSE)) -> 12.48731905 | J42: =LN(VLOOKUP($E42, data!$B$8:$K$139, J$4, FALSE)) -> 12.94826948 | K42: =LN(VLOOKUP($E42, data!$B$8:$K$139, K$4, FALSE)) -> 12.50381148 | L42: =LN(VLOOKUP($E42, data!$B$8:$K$139, L$4, FALSE)) -> 12.60744941 | M42: 0.0005093395842 | N42: 0.03851388878 | O42: -0.007386872556 | P42: -0.02054195139 | Q42: 0.01399626625 | R42: 0.005024444205 | S42: 0.03067219528
B43: 2013-12-31 | C43: 2013 | D43: Q4 | E43: 2013Q4 | F43: =LN(VLOOKUP($E43, data!$B$8:$K$139, F$4, FALSE)) -> 12.89040862 | G43: =LN(VLOOKUP($E43, data!$B$8:$K$139, G$4, FALSE)) -> 12.86257918 | H43: =LN(VLOOKUP($E43, data!$B$8:$K$139, H$4, FALSE)) -> 13.24260561 | I43: =LN(VLOOKUP($E43, data!$B$8:$K$139, I$4, FALSE)) -> 12.507861 | J43: =LN(VLOOKUP($E43, data!$B$8:$K$139, J$4, FALSE)) -> 12.93427321 | K43: =LN(VLOOKUP($E43, data!$B$8:$K$139, K$4, FALSE)) -> 12.49878703 | L43: =LN(VLOOKUP($E43, data!$B$8:$K$139, L$4, FALSE)) -> 12.57677721 | M43: 0.01772272687 | N43: 0.007107502135 | O43: 0.01971839381 | P43: 0.05009622459 | Q43: 0.02350038178 | R43: 0.0009817811342 | S43: 0.007959086029
B44: 2013-09-30 | C44: 2013 | D44: Q3 | E44: 2013Q3 | F44: =LN(VLOOKUP($E44, data!$B$8:$K$139, F$4, FALSE)) -> 12.87268589 | G44: =LN(VLOOKUP($E44, data!$B$8:$K$139, G$4, FALSE)) -> 12.85547168 | H44: =LN(VLOOKUP($E44, data!$B$8:$K$139, H$4, FALSE)) -> 13.22288722 | I44: =LN(VLOOKUP($E44, data!$B$8:$K$139, I$4, FALSE)) -> 12.45776478 | J44: =LN(VLOOKUP($E44, data!$B$8:$K$139, J$4, FALSE)) -> 12.91077283 | K44: =LN(VLOOKUP($E44, data!$B$8:$K$139, K$4, FALSE)) -> 12.49780525 | L44: =LN(VLOOKUP($E44, data!$B$8:$K$139, L$4, FALSE)) -> 12.56881813 | M44: 0.04210096807 | N44: 0.0163017967 | O44: 0.05552943984 | P44: 0.003192776142 | Q44: 0.02814743535 | R44: 0.003708094134 | S44: -0.002307271009
B45: 2013-06-30 | C45: 2013 | D45: Q2 | E45: 2013Q2 | F45: =LN(VLOOKUP($E45, data!$B$8:$K$139, F$4, FALSE)) -> 12.83058493 | G45: =LN(VLOOKUP($E45, data!$B$8:$K$139, G$4, FALSE)) -> 12.83916988 | H45: =LN(VLOOKUP($E45, data!$B$8:$K$139, H$4, FALSE)) -> 13.16735778 | I45: =LN(VLOOKUP($E45, data!$B$8:$K$139, I$4, FALSE)) -> 12.454572 | J45: =LN(VLOOKUP($E45, data!$B$8:$K$139, J$4, FALSE)) -> 12.8826254 | K45: =LN(VLOOKUP($E45, data!$B$8:$K$139, K$4, FALSE)) -> 12.49409716 | L45: =LN(VLOOKUP($E45, data!$B$8:$K$139, L$4, FALSE)) -> 12.5711254 | M45: 0.01882566892 | N45: 0.002698181628 | O45: 0.02257949931 | P45: -0.009088130629 | Q45: 0.00749080551 | R45: -0.005406004619 | S45: 0.01660959635
B46: 2013-03-31 | C46: 2013 | D46: Q1 | E46: 2013Q1 | F46: =LN(VLOOKUP($E46, data!$B$8:$K$139, F$4, FALSE)) -> 12.81175926 | G46: =LN(VLOOKUP($E46, data!$B$8:$K$139, G$4, FALSE)) -> 12.8364717 | H46: =LN(VLOOKUP($E46, data!$B$8:$K$139, H$4, FALSE)) -> 13.14477828 | I46: =LN(VLOOKUP($E46, data!$B$8:$K$139, I$4, FALSE)) -> 12.46366013 | J46: =LN(VLOOKUP($E46, data!$B$8:$K$139, J$4, FALSE)) -> 12.87513459 | K46: =LN(VLOOKUP($E46, data!$B$8:$K$139, K$4, FALSE)) -> 12.49950316 | L46: =LN(VLOOKUP($E46, data!$B$8:$K$139, L$4, FALSE)) -> 12.5545158 | M46: 0.01633173273 | N46: 0.01854870223 | O46: 0.01600945733 | P46: 0.01242024957 | Q46: 0.02386628135 | R46: 0.008398203488 | S46: 0.001260622321
B47: 2012-12-31 | C47: 2012 | D47: Q4 | E47: 2012Q4 | F47: =LN(VLOOKUP($E47, data!$B$8:$K$139, F$4, FALSE)) -> 12.79542752 | G47: =LN(VLOOKUP($E47, data!$B$8:$K$139, G$4, FALSE)) -> 12.817923 | H47: =LN(VLOOKUP($E47, data!$B$8:$K$139, H$4, FALSE)) -> 13.12876882 | I47: =LN(VLOOKUP($E47, data!$B$8:$K$139, I$4, FALSE)) -> 12.45123989 | J47: =LN(VLOOKUP($E47, data!$B$8:$K$139, J$4, FALSE)) -> 12.85126831 | K47: =LN(VLOOKUP($E47, data!$B$8:$K$139, K$4, FALSE)) -> 12.49110496 | L47: =LN(VLOOKUP($E47, data!$B$8:$K$139, L$4, FALSE)) -> 12.55325518 | M47: 0.005222103707 | N47: 0.02295874369 | O47: 0.001210956018 | P47: 0.03616723845 | Q47: 0.007392075106 | R47: -0.004206045864 | S47: 0.02647679433
B48: 2012-09-30 | C48: 2012 | D48: Q3 | E48: 2012Q3 | F48: =LN(VLOOKUP($E48, data!$B$8:$K$139, F$4, FALSE)) -> 12.79020542 | G48: =LN(VLOOKUP($E48, data!$B$8:$K$139, G$4, FALSE)) -> 12.79496426 | H48: =LN(VLOOKUP($E48, data!$B$8:$K$139, H$4, FALSE)) -> 13.12755786 | I48: =LN(VLOOKUP($E48, data!$B$8:$K$139, I$4, FALSE)) -> 12.41507265 | J48: =LN(VLOOKUP($E48, data!$B$8:$K$139, J$4, FALSE)) -> 12.84387624 | K48: =LN(VLOOKUP($E48, data!$B$8:$K$139, K$4, FALSE)) -> 12.49531101 | L48: =LN(VLOOKUP($E48, data!$B$8:$K$139, L$4, FALSE)) -> 12.52677838 | M48: -0.01017149265 | N48: -0.008143819802 | O48: -0.01375287443 | P48: 0.008511140443 | Q48: -0.01242043229 | R48: 0.01161419999 | S48: 0.003445446918
B49: 2012-06-30 | C49: 2012 | D49: Q2 | E49: 2012Q2 | F49: =LN(VLOOKUP($E49, data!$B$8:$K$139, F$4, FALSE)) -> 12.80037691 | G49: =LN(VLOOKUP($E49, data!$B$8:$K$139, G$4, FALSE)) -> 12.80310808 | H49: =LN(VLOOKUP($E49, data!$B$8:$K$139, H$4, FALSE)) -> 13.14131074 | I49: =LN(VLOOKUP($E49, data!$B$8:$K$139, I$4, FALSE)) -> 12.40656151 | J49: =LN(VLOOKUP($E49, data!$B$8:$K$139, J$4, FALSE)) -> 12.85629667 | K49: =LN(VLOOKUP($E49, data!$B$8:$K$139, K$4, FALSE)) -> 12.48369681 | L49: =LN(VLOOKUP($E49, data!$B$8:$K$139, L$4, FALSE)) -> 12.52333294 | M49: -0.002406348626 | N49: 0.02211732164 | O49: -0.05089395176 | P49: 0.01825064076 | Q49: 0.008064919059 | R49: 0.009763490833 | S49: 0.03002707025
B50: 2012-03-31 | C50: 2012 | D50: Q1 | E50: 2012Q1 | F50: =LN(VLOOKUP($E50, data!$B$8:$K$139, F$4, FALSE)) -> 12.80278326 | G50: =LN(VLOOKUP($E50, data!$B$8:$K$139, G$4, FALSE)) -> 12.78099075 | H50: =LN(VLOOKUP($E50, data!$B$8:$K$139, H$4, FALSE)) -> 13.19220469 | I50: =LN(VLOOKUP($E50, data!$B$8:$K$139, I$4, FALSE)) -> 12.38831087 | J50: =LN(VLOOKUP($E50, data!$B$8:$K$139, J$4, FALSE)) -> 12.84823175 | K50: =LN(VLOOKUP($E50, data!$B$8:$K$139, K$4, FALSE)) -> 12.47393332 | L50: =LN(VLOOKUP($E50, data!$B$8:$K$139, L$4, FALSE)) -> 12.49330587 | M50: 0.009899427343 | N50: 0.00306323835 | O50: 0.003744629885 | P50: -0.02838730677 | Q50: 0.02096721302 | R50: 0.01273407281 | S50: 0.001731023482
B51: 2011-12-31 | C51: 2011 | D51: Q4 | E51: 2011Q4 | F51: =LN(VLOOKUP($E51, data!$B$8:$K$139, F$4, FALSE)) -> 12.79288383 | G51: =LN(VLOOKUP($E51, data!$B$8:$K$139, G$4, FALSE)) -> 12.77792752 | H51: =LN(VLOOKUP($E51, data!$B$8:$K$139, H$4, FALSE)) -> 13.18846006 | I51: =LN(VLOOKUP($E51, data!$B$8:$K$139, I$4, FALSE)) -> 12.41669817 | J51: =LN(VLOOKUP($E51, data!$B$8:$K$139, J$4, FALSE)) -> 12.82726454 | K51: =LN(VLOOKUP($E51, data!$B$8:$K$139, K$4, FALSE)) -> 12.46119924 | L51: =LN(VLOOKUP($E51, data!$B$8:$K$139, L$4, FALSE)) -> 12.49157484 | M51: 0.0009680785233 | N51: 0.005130124564 | O51: -0.03218000289 | P51: 0.04834937673 | Q51: 0.0248227157 | R51: 0.01367172608 | S51: 0.01907695994
B52: 2011-09-30 | C52: 2011 | D52: Q3 | E52: 2011Q3 | F52: =LN(VLOOKUP($E52, data!$B$8:$K$139, F$4, FALSE)) -> 12.79191576 | G52: =LN(VLOOKUP($E52, data!$B$8:$K$139, G$4, FALSE)) -> 12.77279739 | H52: =LN(VLOOKUP($E52, data!$B$8:$K$139, H$4, FALSE)) -> 13.22064006 | I52: =LN(VLOOKUP($E52, data!$B$8:$K$139, I$4, FALSE)) -> 12.3683488 | J52: =LN(VLOOKUP($E52, data!$B$8:$K$139, J$4, FALSE)) -> 12.80244182 | K52: =LN(VLOOKUP($E52, data!$B$8:$K$139, K$4, FALSE)) -> 12.44752752 | L52: =LN(VLOOKUP($E52, data!$B$8:$K$139, L$4, FALSE)) -> 12.47249788 | M52: -0.007944954109 | N52: 0.003996662455 | O52: -0.04483095915 | P52: 0.02715539611 | Q52: 0.004560054496 | R52: 0.002756919111 | S52: 0.02294978802
B53: 2011-06-30 | C53: 2011 | D53: Q2 | E53: 2011Q2 | F53: =LN(VLOOKUP($E53, data!$B$8:$K$139, F$4, FALSE)) -> 12.79986071 | G53: =LN(VLOOKUP($E53, data!$B$8:$K$139, G$4, FALSE)) -> 12.76880073 | H53: =LN(VLOOKUP($E53, data!$B$8:$K$139, H$4, FALSE)) -> 13.26547102 | I53: =LN(VLOOKUP($E53, data!$B$8:$K$139, I$4, FALSE)) -> 12.3411934 | J53: =LN(VLOOKUP($E53, data!$B$8:$K$139, J$4, FALSE)) -> 12.79788177 | K53: =LN(VLOOKUP($E53, data!$B$8:$K$139, K$4, FALSE)) -> 12.4447706 | L53: =LN(VLOOKUP($E53, data!$B$8:$K$139, L$4, FALSE)) -> 12.4495481 | M53: 0.004907553988 | N53: -0.005371615009 | O53: 0.02338515658 | P53: -0.003692912897 | Q53: 0.02060078556 | R53: 0.01339673011 | S53: 0.004891714484
B54: 2011-03-31 | C54: 2011 | D54: Q1 | E54: 2011Q1 | F54: =LN(VLOOKUP($E54, data!$B$8:$K$139, F$4, FALSE)) -> 12.79495316 | G54: =LN(VLOOKUP($E54, data!$B$8:$K$139, G$4, FALSE)) -> 12.77417234 | H54: =LN(VLOOKUP($E54, data!$B$8:$K$139, H$4, FALSE)) -> 13.24208586 | I54: =LN(VLOOKUP($E54, data!$B$8:$K$139, I$4, FALSE)) -> 12.34488631 | J54: =LN(VLOOKUP($E54, data!$B$8:$K$139, J$4, FALSE)) -> 12.77728098 | K54: =LN(VLOOKUP($E54, data!$B$8:$K$139, K$4, FALSE)) -> 12.43137387 | L54: =LN(VLOOKUP($E54, data!$B$8:$K$139, L$4, FALSE)) -> 12.44465638 | M54: 0.03414518447 | N54: 0.01036281655 | O54: 0.05977197473 | P54: -0.009347684164 | Q54: 0.01335123448 | R54: -0.02210167746 | S54: 0.0177147694
B55: 2010-12-31 | C55: 2010 | D55: Q4 | E55: 2010Q4 | F55: =LN(VLOOKUP($E55, data!$B$8:$K$139, F$4, FALSE)) -> 12.76080797 | G55: =LN(VLOOKUP($E55, data!$B$8:$K$139, G$4, FALSE)) -> 12.76380953 | H55: =LN(VLOOKUP($E55, data!$B$8:$K$139, H$4, FALSE)) -> 13.18231389 | I55: =LN(VLOOKUP($E55, data!$B$8:$K$139, I$4, FALSE)) -> 12.354234 | J55: =LN(VLOOKUP($E55, data!$B$8:$K$139, J$4, FALSE)) -> 12.76392975 | K55: =LN(VLOOKUP($E55, data!$B$8:$K$139, K$4, FALSE)) -> 12.45347554 | L55: =LN(VLOOKUP($E55, data!$B$8:$K$139, L$4, FALSE)) -> 12.42694161 | M55: 0.03943572582 | N55: -0.002364503262 | O55: 0.04944785876 | P55: 0.04985113035 | Q55: 0.03461784466 | R55: 0.02540400288 | S55: 0.03048830494
B56: 2010-09-30 | C56: 2010 | D56: Q3 | E56: 2010Q3 | F56: =LN(VLOOKUP($E56, data!$B$8:$K$139, F$4, FALSE)) -> 12.72137225 | G56: =LN(VLOOKUP($E56, data!$B$8:$K$139, G$4, FALSE)) -> 12.76617403 | H56: =LN(VLOOKUP($E56, data!$B$8:$K$139, H$4, FALSE)) -> 13.13286603 | I56: =LN(VLOOKUP($E56, data!$B$8:$K$139, I$4, FALSE)) -> 12.30438287 | J56: =LN(VLOOKUP($E56, data!$B$8:$K$139, J$4, FALSE)) -> 12.7293119 | K56: =LN(VLOOKUP($E56, data!$B$8:$K$139, K$4, FALSE)) -> 12.42807154 | L56: =LN(VLOOKUP($E56, data!$B$8:$K$139, L$4, FALSE)) -> 12.39645331 | M56: -0.002326845074 | N56: -0.01014625609 | O56: 0.02696949078 | P56: 0.01424944238 | Q56: 0.001357970725 | R56: 0.008861237529 | S56: 0.01401849327
B57: 2010-06-30 | C57: 2010 | D57: Q2 | E57: 2010Q2 | F57: =LN(VLOOKUP($E57, data!$B$8:$K$139, F$4, FALSE)) -> 12.72369909 | G57: =LN(VLOOKUP($E57, data!$B$8:$K$139, G$4, FALSE)) -> 12.77632029 | H57: =LN(VLOOKUP($E57, data!$B$8:$K$139, H$4, FALSE)) -> 13.10589654 | I57: =LN(VLOOKUP($E57, data!$B$8:$K$139, I$4, FALSE)) -> 12.29013342 | J57: =LN(VLOOKUP($E57, data!$B$8:$K$139, J$4, FALSE)) -> 12.72795393 | K57: =LN(VLOOKUP($E57, data!$B$8:$K$139, K$4, FALSE)) -> 12.4192103 | L57: =LN(VLOOKUP($E57, data!$B$8:$K$139, L$4, FALSE)) -> 12.38243481 | M57: -0.005034859278 | N57: 0.009555289299 | O57: -0.004517730159 | P57: 0.01620588735 | Q57: -0.0264510848 | R57: 0.01079291092 | S57: -0.004504163608
B58: 2010-03-31 | C58: 2010 | D58: Q1 | E58: 2010Q1 | F58: =LN(VLOOKUP($E58, data!$B$8:$K$139, F$4, FALSE)) -> 12.72873395 | G58: =LN(VLOOKUP($E58, data!$B$8:$K$139, G$4, FALSE)) -> 12.766765 | H58: =LN(VLOOKUP($E58, data!$B$8:$K$139, H$4, FALSE)) -> 13.11041427 | I58: =LN(VLOOKUP($E58, data!$B$8:$K$139, I$4, FALSE)) -> 12.27392754 | J58: =LN(VLOOKUP($E58, data!$B$8:$K$139, J$4, FALSE)) -> 12.75440501 | K58: =LN(VLOOKUP($E58, data!$B$8:$K$139, K$4, FALSE)) -> 12.40841739 | L58: =LN(VLOOKUP($E58, data!$B$8:$K$139, L$4, FALSE)) -> 12.38693898 | M58: -0.01489874793 | N58: -0.01667915272 | O58: -0.005641254338 | P58: 0.03541190241 | Q58: 0.02009815775 | R58: 0.02784957091 | S58: 0.001858592975
B59: 2009-12-31 | C59: 2009 | D59: Q4 | E59: 2009Q4 | F59: =LN(VLOOKUP($E59, data!$B$8:$K$139, F$4, FALSE)) -> 12.7436327 | G59: =LN(VLOOKUP($E59, data!$B$8:$K$139, G$4, FALSE)) -> 12.78344415 | H59: =LN(VLOOKUP($E59, data!$B$8:$K$139, H$4, FALSE)) -> 13.11605552 | I59: =LN(VLOOKUP($E59, data!$B$8:$K$139, I$4, FALSE)) -> 12.23851563 | J59: =LN(VLOOKUP($E59, data!$B$8:$K$139, J$4, FALSE)) -> 12.73430686 | K59: =LN(VLOOKUP($E59, data!$B$8:$K$139, K$4, FALSE)) -> 12.38056782 | L59: =LN(VLOOKUP($E59, data!$B$8:$K$139, L$4, FALSE)) -> 12.38508038 | M59: 0.02782802686 | N59: 0.02858268801 | O59: 0.03270536194 | P59: 0.006580328964 | Q59: 0.03730725931 | R59: 0.01632117313 | S59: 0.02477277684
B60: 2009-09-30 | C60: 2009 | D60: Q3 | E60: 2009Q3 | F60: =LN(VLOOKUP($E60, data!$B$8:$K$139, F$4, FALSE)) -> 12.71580467 | G60: =LN(VLOOKUP($E60, data!$B$8:$K$139, G$4, FALSE)) -> 12.75486146 | H60: =LN(VLOOKUP($E60, data!$B$8:$K$139, H$4, FALSE)) -> 13.08335016 | I60: =LN(VLOOKUP($E60, data!$B$8:$K$139, I$4, FALSE)) -> 12.23193531 | J60: =LN(VLOOKUP($E60, data!$B$8:$K$139, J$4, FALSE)) -> 12.6969996 | K60: =LN(VLOOKUP($E60, data!$B$8:$K$139, K$4, FALSE)) -> 12.36424665 | L60: =LN(VLOOKUP($E60, data!$B$8:$K$139, L$4, FALSE)) -> 12.36030761 | M60: 0.07307514547 | N60: 0.0395374305 | O60: 0.07214406982 | P60: 0.05327496714 | Q60: 0.05334321387 | R60: 0.03470494222 | S60: 0.02130937783
B61: 2009-06-30 | C61: 2009 | D61: Q2 | E61: 2009Q2 | F61: =LN(VLOOKUP($E61, data!$B$8:$K$139, F$4, FALSE)) -> 12.64272953 | G61: =LN(VLOOKUP($E61, data!$B$8:$K$139, G$4, FALSE)) -> 12.71532403 | H61: =LN(VLOOKUP($E61, data!$B$8:$K$139, H$4, FALSE)) -> 13.01120609 | I61: =LN(VLOOKUP($E61, data!$B$8:$K$139, I$4, FALSE)) -> 12.17866034 | J61: =LN(VLOOKUP($E61, data!$B$8:$K$139, J$4, FALSE)) -> 12.64365638 | K61: =LN(VLOOKUP($E61, data!$B$8:$K$139, K$4, FALSE)) -> 12.32954171 | L61: =LN(VLOOKUP($E61, data!$B$8:$K$139, L$4, FALSE)) -> 12.33899823 | M61: 0.08310631238 | N61: 0.01811941477 | O61: 0.07164118599 | P61: 0.01214486214 | Q61: 0.07512356083 | R61: 0.02003289647 | S61: -0.003234226147
B62: 2009-03-31 | C62: 2009 | D62: Q1 | E62: 2009Q1 | F62: =LN(VLOOKUP($E62, data!$B$8:$K$139, F$4, FALSE)) -> 12.55962321 | G62: =LN(VLOOKUP($E62, data!$B$8:$K$139, G$4, FALSE)) -> 12.69720462 | H62: =LN(VLOOKUP($E62, data!$B$8:$K$139, H$4, FALSE)) -> 12.93956491 | I62: =LN(VLOOKUP($E62, data!$B$8:$K$139, I$4, FALSE)) -> 12.16651548 | J62: =LN(VLOOKUP($E62, data!$B$8:$K$139, J$4, FALSE)) -> 12.56853282 | K62: =LN(VLOOKUP($E62, data!$B$8:$K$139, K$4, FALSE)) -> 12.30950881 | L62: =LN(VLOOKUP($E62, data!$B$8:$K$139, L$4, FALSE)) -> 12.34223246 | M62: 0.0001580053409 | N62: -0.04621191538 | O62: -0.01107495554 | P62: 0.03590479556 | Q62: 0.008404159617 | R62: 0.008571539268 | S62: 0.01845233306
B63: 2008-12-31 | C63: 2008 | D63: Q4 | E63: 2008Q4 | F63: =LN(VLOOKUP($E63, data!$B$8:$K$139, F$4, FALSE)) -> 12.55946521 | G63: =LN(VLOOKUP($E63, data!$B$8:$K$139, G$4, FALSE)) -> 12.74341653 | H63: =LN(VLOOKUP($E63, data!$B$8:$K$139, H$4, FALSE)) -> 12.95063986 | I63: =LN(VLOOKUP($E63, data!$B$8:$K$139, I$4, FALSE)) -> 12.13061068 | J63: =LN(VLOOKUP($E63, data!$B$8:$K$139, J$4, FALSE)) -> 12.56012866 | K63: =LN(VLOOKUP($E63, data!$B$8:$K$139, K$4, FALSE)) -> 12.30093727 | L63: =LN(VLOOKUP($E63, data!$B$8:$K$139, L$4, FALSE)) -> 12.32378012 | M63: -0.04855637079 | N63: -0.01555223267 | O63: -0.03250052732 | P63: -0.0222985022 | Q63: -0.04990796444 | R63: -0.01406600918 | S63: -0.007849705711
B64: 2008-09-30 | C64: 2008 | D64: Q3 | E64: 2008Q3 | F64: =LN(VLOOKUP($E64, data!$B$8:$K$139, F$4, FALSE)) -> 12.60802158 | G64: =LN(VLOOKUP($E64, data!$B$8:$K$139, G$4, FALSE)) -> 12.75896876 | H64: =LN(VLOOKUP($E64, data!$B$8:$K$139, H$4, FALSE)) -> 12.98314039 | I64: =LN(VLOOKUP($E64, data!$B$8:$K$139, I$4, FALSE)) -> 12.15290918 | J64: =LN(VLOOKUP($E64, data!$B$8:$K$139, J$4, FALSE)) -> 12.61003663 | K64: =LN(VLOOKUP($E64, data!$B$8:$K$139, K$4, FALSE)) -> 12.31500328 | L64: =LN(VLOOKUP($E64, data!$B$8:$K$139, L$4, FALSE)) -> 12.33162983 | M64: -0.02946653238 | N64: -0.01947229359 | O64: -0.05951289131 | P64: -0.009018244465 | Q64: -0.01432192071 | R64: 0.0132932362 | S64: -0.002202585844
B65: 2008-06-30 | C65: 2008 | D65: Q2 | E65: 2008Q2 | F65: =LN(VLOOKUP($E65, data!$B$8:$K$139, F$4, FALSE)) -> 12.63748811 | G65: =LN(VLOOKUP($E65, data!$B$8:$K$139, G$4, FALSE)) -> 12.77844106 | H65: =LN(VLOOKUP($E65, data!$B$8:$K$139, H$4, FALSE)) -> 13.04265328 | I65: =LN(VLOOKUP($E65, data!$B$8:$K$139, I$4, FALSE)) -> 12.16192743 | J65: =LN(VLOOKUP($E65, data!$B$8:$K$139, J$4, FALSE)) -> 12.62435855 | K65: =LN(VLOOKUP($E65, data!$B$8:$K$139, K$4, FALSE)) -> 12.30171004 | L65: =LN(VLOOKUP($E65, data!$B$8:$K$139, L$4, FALSE)) -> 12.33383241 | M65: -0.02029052789 | N65: -0.02064070308 | O65: -0.01638044421 | P65: 0.05095148394 | Q65: -0.003288747147 | R65: 0.007828007165 | S65: 0.0485835903
B66: 2008-03-31 | C66: 2008 | D66: Q1 | E66: 2008Q1 | F66: =LN(VLOOKUP($E66, data!$B$8:$K$139, F$4, FALSE)) -> 12.65777864 | G66: =LN(VLOOKUP($E66, data!$B$8:$K$139, G$4, FALSE)) -> 12.79908176 | H66: =LN(VLOOKUP($E66, data!$B$8:$K$139, H$4, FALSE)) -> 13.05903373 | I66: =LN(VLOOKUP($E66, data!$B$8:$K$139, I$4, FALSE)) -> 12.11097594 | J66: =LN(VLOOKUP($E66, data!$B$8:$K$139, J$4, FALSE)) -> 12.6276473 | K66: =LN(VLOOKUP($E66, data!$B$8:$K$139, K$4, FALSE)) -> 12.29388204 | L66: =LN(VLOOKUP($E66, data!$B$8:$K$139, L$4, FALSE)) -> 12.28524882 | M66: -0.009606854695 | N66: 0.001310666913 | O66: 0.02355373307 | P66: 0.0260940076 | Q66: -0.02942771843 | R66: 0.004226803083 | S66: 0.07019166043
B67: 2007-12-31 | C67: 2007 | D67: Q4 | E67: 2007Q4 | F67: =LN(VLOOKUP($E67, data!$B$8:$K$139, F$4, FALSE)) -> 12.66738549 | G67: =LN(VLOOKUP($E67, data!$B$8:$K$139, G$4, FALSE)) -> 12.79777109 | H67: =LN(VLOOKUP($E67, data!$B$8:$K$139, H$4, FALSE)) -> 13.03547999 | I67: =LN(VLOOKUP($E67, data!$B$8:$K$139, I$4, FALSE)) -> 12.08488194 | J67: =LN(VLOOKUP($E67, data!$B$8:$K$139, J$4, FALSE)) -> 12.65707501 | K67: =LN(VLOOKUP($E67, data!$B$8:$K$139, K$4, FALSE)) -> 12.28965523 | L67: =LN(VLOOKUP($E67, data!$B$8:$K$139, L$4, FALSE)) -> 12.21505716 | M67: 0.01710470549 | N67: -0.01688163827 | O67: 0.0161265619 | P67: 0.04498784877 | Q67: 0.04890626221 | R67: 0.03344571275 | S67: 0.08569279116
B68: 2007-09-30 | C68: 2007 | D68: Q3 | E68: 2007Q3 | F68: =LN(VLOOKUP($E68, data!$B$8:$K$139, F$4, FALSE)) -> 12.65028079 | G68: =LN(VLOOKUP($E68, data!$B$8:$K$139, G$4, FALSE)) -> 12.81465273 | H68: =LN(VLOOKUP($E68, data!$B$8:$K$139, H$4, FALSE)) -> 13.01935343 | I68: =LN(VLOOKUP($E68, data!$B$8:$K$139, I$4, FALSE)) -> 12.03989409 | J68: =LN(VLOOKUP($E68, data!$B$8:$K$139, J$4, FALSE)) -> 12.60816875 | K68: =LN(VLOOKUP($E68, data!$B$8:$K$139, K$4, FALSE)) -> 12.25620952 | L68: =LN(VLOOKUP($E68, data!$B$8:$K$139, L$4, FALSE)) -> 12.12936437 | M68: 0.02959830907 | N68: 0.02668015903 | O68: 0.04379080973 | P68: 0.01439652381 | Q68: 0.01769802426 | R68: 0.008788619973 | S68: 0.09973658538
B69: 2007-06-30 | C69: 2007 | D69: Q2 | E69: 2007Q2 | F69: =LN(VLOOKUP($E69, data!$B$8:$K$139, F$4, FALSE)) -> 12.62068248 | G69: =LN(VLOOKUP($E69, data!$B$8:$K$139, G$4, FALSE)) -> 12.78797257 | H69: =LN(VLOOKUP($E69, data!$B$8:$K$139, H$4, FALSE)) -> 12.97556262 | I69: =LN(VLOOKUP($E69, data!$B$8:$K$139, I$4, FALSE)) -> 12.02549756 | J69: =LN(VLOOKUP($E69, data!$B$8:$K$139, J$4, FALSE)) -> 12.59047073 | K69: =LN(VLOOKUP($E69, data!$B$8:$K$139, K$4, FALSE)) -> 12.2474209 | L69: =LN(VLOOKUP($E69, data!$B$8:$K$139, L$4, FALSE)) -> 12.02962779 | M69: 0.0281780492 | N69: 0.04853131708 | O69: 0.04783065633 | P69: 0.06865580331 | Q69: 0.01387299542 | R69: 0.02334135773 | S69: 0.1355367372
B70: 2007-03-31 | C70: 2007 | D70: Q1 | E70: 2007Q1 | F70: =LN(VLOOKUP($E70, data!$B$8:$K$139, F$4, FALSE)) -> 12.59250443 | G70: =LN(VLOOKUP($E70, data!$B$8:$K$139, G$4, FALSE)) -> 12.73944126 | H70: =LN(VLOOKUP($E70, data!$B$8:$K$139, H$4, FALSE)) -> 12.92773196 | I70: =LN(VLOOKUP($E70, data!$B$8:$K$139, I$4, FALSE)) -> 11.95684176 | J70: =LN(VLOOKUP($E70, data!$B$8:$K$139, J$4, FALSE)) -> 12.57659773 | K70: =LN(VLOOKUP($E70, data!$B$8:$K$139, K$4, FALSE)) -> 12.22407954 | L70: =LN(VLOOKUP($E70, data!$B$8:$K$139, L$4, FALSE)) -> 11.89409105 | M70: 0.03817920967 | N70: 0.07809163811 | O70: 0.007462739402 | P70: -0.003010603433 | Q70: 0.03727231238 | R70: 0.02441740173 | S70: 0.04789847924
B71: 2006-12-31 | C71: 2006 | D71: Q4 | E71: 2006Q4 | F71: =LN(VLOOKUP($E71, data!$B$8:$K$139, F$4, FALSE)) -> 12.55432522 | G71: =LN(VLOOKUP($E71, data!$B$8:$K$139, G$4, FALSE)) -> 12.66134962 | H71: =LN(VLOOKUP($E71, data!$B$8:$K$139, H$4, FALSE)) -> 12.92026922 | I71: =LN(VLOOKUP($E71, data!$B$8:$K$139, I$4, FALSE)) -> 11.95985236 | J71: =LN(VLOOKUP($E71, data!$B$8:$K$139, J$4, FALSE)) -> 12.53932542 | K71: =LN(VLOOKUP($E71, data!$B$8:$K$139, K$4, FALSE)) -> 12.19966214 | L71: =LN(VLOOKUP($E71, data!$B$8:$K$139, L$4, FALSE)) -> 11.84619257 | M71: 0.01441237072 | N71: =G71-G72 -> 0.05780371421 | O71: =H71-H72 -> 0.02769140816 | P71: =I71-I72 -> 0.04448635921 | Q71: =J71-J72 -> 0.004697508333 | R71: =K71-K72 -> 0.004579667859 | S71: =L71-L72 -> 0.06046519575
B72: 2006-09-30 | C72: =YEAR(B72) -> 2006 | D72: Q3 | E72: 2006Q3 | F72: =LN(VLOOKUP($E72, data!$B$8:$K$139, F$4, FALSE)) -> 12.53991285 | G72: =LN(VLOOKUP($E72, data!$B$8:$K$139, G$4, FALSE)) -> 12.6035459 | H72: =LN(VLOOKUP($E72, data!$B$8:$K$139, H$4, FALSE)) -> 12.89257782 | I72: =LN(VLOOKUP($E72, data!$B$8:$K$139, I$4, FALSE)) -> 11.915366 | J72: =LN(VLOOKUP($E72, data!$B$8:$K$139, J$4, FALSE)) -> 12.53462791 | K72: =LN(VLOOKUP($E72, data!$B$8:$K$139, K$4, FALSE)) -> 12.19508247 | L72: =LN(VLOOKUP($E72, data!$B$8:$K$139, L$4, FALSE)) -> 11.78572737 | M72: =F72-F73 -> 0.01385673487 | N72: 0.06225895528 | O72: 0.0245391081 | P72: 0.01345040069 | Q72: 0.003021204794 | R72: 0.01499965731 | S72: 0.006506919352
B73: 2006-06-30 | C73: 2006 | D73: Q2 | E73: 2006Q2 | F73: =LN(VLOOKUP($E73, data!$B$8:$K$139, F$4, FALSE)) -> 12.52605612 | G73: =LN(VLOOKUP($E73, data!$B$8:$K$139, G$4, FALSE)) -> 12.54128695 | H73: =LN(VLOOKUP($E73, data!$B$8:$K$139, H$4, FALSE)) -> 12.86803871 | I73: =LN(VLOOKUP($E73, data!$B$8:$K$139, I$4, FALSE)) -> 11.9019156 | J73: =LN(VLOOKUP($E73, data!$B$8:$K$139, J$4, FALSE)) -> 12.53160671 | K73: =LN(VLOOKUP($E73, data!$B$8:$K$139, K$4, FALSE)) -> 12.18008282 | L73: =LN(VLOOKUP($E73, data!$B$8:$K$139, L$4, FALSE)) -> 11.77922046 | M73: 0.02965614887 | N73: 0.09244853272 | O73: 0.04939464891 | P73: 0.01690258096 | Q73: 0.009680069782 | R73: 0.01647935511 | S73: 0.01554405435
B74: 2006-03-31 | C74: 2006 | D74: Q1 | E74: 2006Q1 | F74: =LN(VLOOKUP($E74, data!$B$8:$K$139, F$4, FALSE)) -> 12.49639997 | G74: =LN(VLOOKUP($E74, data!$B$8:$K$139, G$4, FALSE)) -> 12.44883842 | H74: =LN(VLOOKUP($E74, data!$B$8:$K$139, H$4, FALSE)) -> 12.81864406 | I74: =LN(VLOOKUP($E74, data!$B$8:$K$139, I$4, FALSE)) -> 11.88501302 | J74: =LN(VLOOKUP($E74, data!$B$8:$K$139, J$4, FALSE)) -> 12.52192664 | K74: =LN(VLOOKUP($E74, data!$B$8:$K$139, K$4, FALSE)) -> 12.16360346 | L74: =LN(VLOOKUP($E74, data!$B$8:$K$139, L$4, FALSE)) -> 11.7636764 | M74: 0.03377994155 | N74: 0.09190908102 | O74: 0.04512068541 | P74: 0.04689296034 | Q74: 0.02185317401 | R74: 0.01028306916 | S74: 0.004398799765
B75: 2005-12-31 | C75: 2005 | D75: Q4 | E75: 2005Q4 | F75: =LN(VLOOKUP($E75, data!$B$8:$K$139, F$4, FALSE)) -> 12.46262002 | G75: =LN(VLOOKUP($E75, data!$B$8:$K$139, G$4, FALSE)) -> 12.35692933 | H75: =LN(VLOOKUP($E75, data!$B$8:$K$139, H$4, FALSE)) -> 12.77352337 | I75: =LN(VLOOKUP($E75, data!$B$8:$K$139, I$4, FALSE)) -> 11.83812006 | J75: =LN(VLOOKUP($E75, data!$B$8:$K$139, J$4, FALSE)) -> 12.50007346 | K75: =LN(VLOOKUP($E75, data!$B$8:$K$139, K$4, FALSE)) -> 12.15332039 | L75: =LN(VLOOKUP($E75, data!$B$8:$K$139, L$4, FALSE)) -> 11.7592776 | M75: 0.02311691996 | N75: 0.06420204246 | O75: 0.02751300445 | P75: 0.02196156959 | Q75: 0.01443534528 | R75: 0.02290384006 | S75: 0.02781116076
B76: 2005-09-30 | C76: 2005 | D76: Q3 | E76: 2005Q3 | F76: =LN(VLOOKUP($E76, data!$B$8:$K$139, F$4, FALSE)) -> 12.4395031 | G76: =LN(VLOOKUP($E76, data!$B$8:$K$139, G$4, FALSE)) -> 12.29272729 | H76: =LN(VLOOKUP($E76, data!$B$8:$K$139, H$4, FALSE)) -> 12.74601037 | I76: =LN(VLOOKUP($E76, data!$B$8:$K$139, I$4, FALSE)) -> 11.81615849 | J76: =LN(VLOOKUP($E76, data!$B$8:$K$139, J$4, FALSE)) -> 12.48563812 | K76: =LN(VLOOKUP($E76, data!$B$8:$K$139, K$4, FALSE)) -> 12.13041655 | L76: =LN(VLOOKUP($E76, data!$B$8:$K$139, L$4, FALSE)) -> 11.73146644 | M76: 0.03059982534 | N76: 0.01338559777 | O76: 0.06114161248 | P76: 0.03361055193 | Q76: 0.01383763969 | R76: 0.02381623659 | S76: 0.03321560155
B77: 2005-06-30 | C77: 2005 | D77: Q2 | E77: 2005Q2 | F77: =LN(VLOOKUP($E77, data!$B$8:$K$139, F$4, FALSE)) -> 12.40890328 | G77: =LN(VLOOKUP($E77, data!$B$8:$K$139, G$4, FALSE)) -> 12.27934169 | H77: =LN(VLOOKUP($E77, data!$B$8:$K$139, H$4, FALSE)) -> 12.68486876 | I77: =LN(VLOOKUP($E77, data!$B$8:$K$139, I$4, FALSE)) -> 11.78254794 | J77: =LN(VLOOKUP($E77, data!$B$8:$K$139, J$4, FALSE)) -> 12.47180048 | K77: =LN(VLOOKUP($E77, data!$B$8:$K$139, K$4, FALSE)) -> 12.10660032 | L77: =LN(VLOOKUP($E77, data!$B$8:$K$139, L$4, FALSE)) -> 11.69825084 | M77: 0.02576452944 | N77: 0.02433127661 | O77: 0.04613745604 | P77: 0.04113323756 | Q77: 0.01567364203 | R77: 0.0113921943 | S77: 0.01481496178
B78: 2005-03-31 | C78: 2005 | D78: Q1 | E78: 2005Q1 | F78: =LN(VLOOKUP($E78, data!$B$8:$K$139, F$4, FALSE)) -> 12.38313875 | G78: =LN(VLOOKUP($E78, data!$B$8:$K$139, G$4, FALSE)) -> 12.25501042 | H78: =LN(VLOOKUP($E78, data!$B$8:$K$139, H$4, FALSE)) -> 12.6387313 | I78: =LN(VLOOKUP($E78, data!$B$8:$K$139, I$4, FALSE)) -> 11.7414147 | J78: =LN(VLOOKUP($E78, data!$B$8:$K$139, J$4, FALSE)) -> 12.45612684 | K78: =LN(VLOOKUP($E78, data!$B$8:$K$139, K$4, FALSE)) -> 12.09520812 | L78: =LN(VLOOKUP($E78, data!$B$8:$K$139, L$4, FALSE)) -> 11.68343588 | M78: 0.02135378742 | N78: 0.02982165513 | O78: 0.01636241673 | P78: 0.01532329755 | Q78: 0.02109955585 | R78: 0.01811154575 | S78: 0.03663532881
B79: 2004-12-31 | C79: 2004 | D79: Q4 | E79: 2004Q4 | F79: =LN(VLOOKUP($E79, data!$B$8:$K$139, F$4, FALSE)) -> 12.36178496 | G79: =LN(VLOOKUP($E79, data!$B$8:$K$139, G$4, FALSE)) -> 12.22518876 | H79: =LN(VLOOKUP($E79, data!$B$8:$K$139, H$4, FALSE)) -> 12.62236888 | I79: =LN(VLOOKUP($E79, data!$B$8:$K$139, I$4, FALSE)) -> 11.72609141 | J79: =LN(VLOOKUP($E79, data!$B$8:$K$139, J$4, FALSE)) -> 12.43502728 | K79: =LN(VLOOKUP($E79, data!$B$8:$K$139, K$4, FALSE)) -> 12.07709658 | L79: =LN(VLOOKUP($E79, data!$B$8:$K$139, L$4, FALSE)) -> 11.64680055 | M79: 0.03608653578 | N79: 0.03862008909 | O79: 0.05135803013 | P79: 0.03240393209 | Q79: 0.01731297681 | R79: 0.02476969222 | S79: 0.02713052613
B80: 2004-09-30 | C80: 2004 | D80: Q3 | E80: 2004Q3 | F80: =LN(VLOOKUP($E80, data!$B$8:$K$139, F$4, FALSE)) -> 12.32569843 | G80: =LN(VLOOKUP($E80, data!$B$8:$K$139, G$4, FALSE)) -> 12.18656867 | H80: =LN(VLOOKUP($E80, data!$B$8:$K$139, H$4, FALSE)) -> 12.57101085 | I80: =LN(VLOOKUP($E80, data!$B$8:$K$139, I$4, FALSE)) -> 11.69368747 | J80: =LN(VLOOKUP($E80, data!$B$8:$K$139, J$4, FALSE)) -> 12.4177143 | K80: =LN(VLOOKUP($E80, data!$B$8:$K$139, K$4, FALSE)) -> 12.05232688 | L80: =LN(VLOOKUP($E80, data!$B$8:$K$139, L$4, FALSE)) -> 11.61967002 | M80: 0.004138712595 | N80: 0.02510643962 | O80: 0.008071783327 | P80: 0.03125638548 | Q80: 0.01103414576 | R80: 0.01025662039 | S80: 0.008157932856
B81: 2004-06-30 | C81: 2004 | D81: Q2 | E81: 2004Q2 | F81: =LN(VLOOKUP($E81, data!$B$8:$K$139, F$4, FALSE)) -> 12.32155971 | G81: =LN(VLOOKUP($E81, data!$B$8:$K$139, G$4, FALSE)) -> 12.16146223 | H81: =LN(VLOOKUP($E81, data!$B$8:$K$139, H$4, FALSE)) -> 12.56293907 | I81: =LN(VLOOKUP($E81, data!$B$8:$K$139, I$4, FALSE)) -> 11.66243109 | J81: =LN(VLOOKUP($E81, data!$B$8:$K$139, J$4, FALSE)) -> 12.40668016 | K81: =LN(VLOOKUP($E81, data!$B$8:$K$139, K$4, FALSE)) -> 12.04207026 | L81: =LN(VLOOKUP($E81, data!$B$8:$K$139, L$4, FALSE)) -> 11.61151209 | M81: 0.01920917537 | N81: 0.00633031345 | O81: 0.01656581229 | P81: 0.01717119597 | Q81: 0.0298357308 | R81: 0.04111094492 | S81: 0.03778319522
B82: 2004-03-31 | C82: 2004 | D82: Q1 | E82: 2004Q1 | F82: =LN(VLOOKUP($E82, data!$B$8:$K$139, F$4, FALSE)) -> 12.30235054 | G82: =LN(VLOOKUP($E82, data!$B$8:$K$139, G$4, FALSE)) -> 12.15513192 | H82: =LN(VLOOKUP($E82, data!$B$8:$K$139, H$4, FALSE)) -> 12.54637326 | I82: =LN(VLOOKUP($E82, data!$B$8:$K$139, I$4, FALSE)) -> 11.64525989 | J82: =LN(VLOOKUP($E82, data!$B$8:$K$139, J$4, FALSE)) -> 12.37684443 | K82: =LN(VLOOKUP($E82, data!$B$8:$K$139, K$4, FALSE)) -> 12.00095932 | L82: =LN(VLOOKUP($E82, data!$B$8:$K$139, L$4, FALSE)) -> 11.57372889 | M82: 0.01664911738 | N82: 0.005878334694 | O82: 0.01297363884 | P82: 0.0300666886 | Q82: 0.01535476031 | R82: 0.02976126456 | S82: 0.002940263915
B83: 2003-12-31 | C83: 2003 | D83: Q4 | E83: 2003Q4 | F83: =LN(VLOOKUP($E83, data!$B$8:$K$139, F$4, FALSE)) -> 12.28570142 | G83: =LN(VLOOKUP($E83, data!$B$8:$K$139, G$4, FALSE)) -> 12.14925359 | H83: =LN(VLOOKUP($E83, data!$B$8:$K$139, H$4, FALSE)) -> 12.53339962 | I83: =LN(VLOOKUP($E83, data!$B$8:$K$139, I$4, FALSE)) -> 11.6151932 | J83: =LN(VLOOKUP($E83, data!$B$8:$K$139, J$4, FALSE)) -> 12.36148967 | K83: =LN(VLOOKUP($E83, data!$B$8:$K$139, K$4, FALSE)) -> 11.97119805 | L83: =LN(VLOOKUP($E83, data!$B$8:$K$139, L$4, FALSE)) -> 11.57078863 | M83: 0.02630130182 | N83: 0.0198298302 | O83: 0.04753469474 | P83: 0.01988622894 | Q83: 0.01440368756 | R83: 0.03250171209 | S83: 0.002958400275
B84: 2003-09-30 | C84: 2003 | D84: Q3 | E84: 2003Q3 | F84: =LN(VLOOKUP($E84, data!$B$8:$K$139, F$4, FALSE)) -> 12.25940012 | G84: =LN(VLOOKUP($E84, data!$B$8:$K$139, G$4, FALSE)) -> 12.12942376 | H84: =LN(VLOOKUP($E84, data!$B$8:$K$139, H$4, FALSE)) -> 12.48586493 | I84: =LN(VLOOKUP($E84, data!$B$8:$K$139, I$4, FALSE)) -> 11.59530697 | J84: =LN(VLOOKUP($E84, data!$B$8:$K$139, J$4, FALSE)) -> 12.34708598 | K84: =LN(VLOOKUP($E84, data!$B$8:$K$139, K$4, FALSE)) -> 11.93869634 | L84: =LN(VLOOKUP($E84, data!$B$8:$K$139, L$4, FALSE)) -> 11.56783023 | M84: 0.04574628402 | N84: 0.02654175944 | O84: 0.05591299913 | P84: 0.04364168069 | Q84: 0.02886838372 | R84: 0.04263318056 | S84: 0.02223430431
B85: 2003-06-30 | C85: 2003 | D85: Q2 | E85: 2003Q2 | F85: =LN(VLOOKUP($E85, data!$B$8:$K$139, F$4, FALSE)) -> 12.21365384 | G85: =LN(VLOOKUP($E85, data!$B$8:$K$139, G$4, FALSE)) -> 12.102882 | H85: =LN(VLOOKUP($E85, data!$B$8:$K$139, H$4, FALSE)) -> 12.42995193 | I85: =LN(VLOOKUP($E85, data!$B$8:$K$139, I$4, FALSE)) -> 11.55166529 | J85: =LN(VLOOKUP($E85, data!$B$8:$K$139, J$4, FALSE)) -> 12.31821759 | K85: =LN(VLOOKUP($E85, data!$B$8:$K$139, K$4, FALSE)) -> 11.89606316 | L85: =LN(VLOOKUP($E85, data!$B$8:$K$139, L$4, FALSE)) -> 11.54559593 | M85: 0.009984074637 | N85: 0.01566045654 | O85: 0.007647561055 | P85: 0.02369359278 | Q85: 0.01210053908 | R85: 0.02500880977 | S85: -0.002204283775
B86: 2003-03-31 | C86: 2003 | D86: Q1 | E86: 2003Q1 | F86: =LN(VLOOKUP($E86, data!$B$8:$K$139, F$4, FALSE)) -> 12.20366976 | G86: =LN(VLOOKUP($E86, data!$B$8:$K$139, G$4, FALSE)) -> 12.08722154 | H86: =LN(VLOOKUP($E86, data!$B$8:$K$139, H$4, FALSE)) -> 12.42230437 | I86: =LN(VLOOKUP($E86, data!$B$8:$K$139, I$4, FALSE)) -> 11.5279717 | J86: =LN(VLOOKUP($E86, data!$B$8:$K$139, J$4, FALSE)) -> 12.30611706 | K86: =LN(VLOOKUP($E86, data!$B$8:$K$139, K$4, FALSE)) -> 11.87105435 | L86: =LN(VLOOKUP($E86, data!$B$8:$K$139, L$4, FALSE)) -> 11.54780021 | M86: 0.01986828703 | N86: 0.001532809172 | O86: 0.01281343852 | P86: 0.02657240738 | Q86: 0.01975096471 | R86: 0.04417252609 | S86: 0.006190110777
B87: 2002-12-31 | C87: 2002 | D87: Q4 | E87: 2002Q4 | F87: =LN(VLOOKUP($E87, data!$B$8:$K$139, F$4, FALSE)) -> 12.18380147 | G87: =LN(VLOOKUP($E87, data!$B$8:$K$139, G$4, FALSE)) -> 12.08568873 | H87: =LN(VLOOKUP($E87, data!$B$8:$K$139, H$4, FALSE)) -> 12.40949093 | I87: =LN(VLOOKUP($E87, data!$B$8:$K$139, I$4, FALSE)) -> 11.50139929 | J87: =LN(VLOOKUP($E87, data!$B$8:$K$139, J$4, FALSE)) -> 12.28636609 | K87: =LN(VLOOKUP($E87, data!$B$8:$K$139, K$4, FALSE)) -> 11.82688183 | L87: =LN(VLOOKUP($E87, data!$B$8:$K$139, L$4, FALSE)) -> 11.5416101 | M87: 0.0298277103 | N87: 0.02697984813 | O87: 0.03052435838 | P87: 0.03508337161 | Q87: 0.01952765714 | R87: 0.03277034166 | S87: 0.03017574501
B88: 2002-09-30 | C88: 2002 | D88: Q3 | E88: 2002Q3 | F88: =LN(VLOOKUP($E88, data!$B$8:$K$139, F$4, FALSE)) -> 12.15397376 | G88: =LN(VLOOKUP($E88, data!$B$8:$K$139, G$4, FALSE)) -> 12.05870888 | H88: =LN(VLOOKUP($E88, data!$B$8:$K$139, H$4, FALSE)) -> 12.37896657 | I88: =LN(VLOOKUP($E88, data!$B$8:$K$139, I$4, FALSE)) -> 11.46631592 | J88: =LN(VLOOKUP($E88, data!$B$8:$K$139, J$4, FALSE)) -> 12.26683843 | K88: =LN(VLOOKUP($E88, data!$B$8:$K$139, K$4, FALSE)) -> 11.79411148 | L88: =LN(VLOOKUP($E88, data!$B$8:$K$139, L$4, FALSE)) -> 11.51143435 | M88: 0.01558056675 | N88: 0.02109630946 | O88: -0.0008114545873 | P88: -0.005745881397 | Q88: 0.01683024593 | R88: 0.02846813129 | S88: -0.001691091157
B89: 2002-06-30 | C89: 2002 | D89: Q2 | E89: 2002Q2 | F89: =LN(VLOOKUP($E89, data!$B$8:$K$139, F$4, FALSE)) -> 12.1383932 | G89: =LN(VLOOKUP($E89, data!$B$8:$K$139, G$4, FALSE)) -> 12.03761257 | H89: =LN(VLOOKUP($E89, data!$B$8:$K$139, H$4, FALSE)) -> 12.37977802 | I89: =LN(VLOOKUP($E89, data!$B$8:$K$139, I$4, FALSE)) -> 11.4720618 | J89: =LN(VLOOKUP($E89, data!$B$8:$K$139, J$4, FALSE)) -> 12.25000819 | K89: =LN(VLOOKUP($E89, data!$B$8:$K$139, K$4, FALSE)) -> 11.76564335 | L89: =LN(VLOOKUP($E89, data!$B$8:$K$139, L$4, FALSE)) -> 11.51312544 | M89: 0.01741013975 | N89: 0.02796243697 | O89: 0.01510034706 | P89: 0.02220394141 | Q89: 0.007492722479 | R89: 0.05355560176 | S89: 0.02330485372
B90: 2002-03-31 | C90: 2002 | D90: Q1 | E90: 2002Q1 | F90: =LN(VLOOKUP($E90, data!$B$8:$K$139, F$4, FALSE)) -> 12.12098306 | G90: =LN(VLOOKUP($E90, data!$B$8:$K$139, G$4, FALSE)) -> 12.00965014 | H90: =LN(VLOOKUP($E90, data!$B$8:$K$139, H$4, FALSE)) -> 12.36467768 | I90: =LN(VLOOKUP($E90, data!$B$8:$K$139, I$4, FALSE)) -> 11.44985786 | J90: =LN(VLOOKUP($E90, data!$B$8:$K$139, J$4, FALSE)) -> 12.24251547 | K90: =LN(VLOOKUP($E90, data!$B$8:$K$139, K$4, FALSE)) -> 11.71208775 | L90: =LN(VLOOKUP($E90, data!$B$8:$K$139, L$4, FALSE)) -> 11.48982059 | M90: 0.03775624155 | N90: 0.0387366914 | O90: 0.03498572539 | P90: 0.005768137508 | Q90: 0.04376455855 | R90: 0.04141522343 | S90: 0.006797787639
B91: 2001-12-31 | C91: 2001 | D91: Q4 | E91: 2001Q4 | F91: =LN(VLOOKUP($E91, data!$B$8:$K$139, F$4, FALSE)) -> 12.08322682 | G91: =LN(VLOOKUP($E91, data!$B$8:$K$139, G$4, FALSE)) -> 11.97091344 | H91: =LN(VLOOKUP($E91, data!$B$8:$K$139, H$4, FALSE)) -> 12.32969195 | I91: =LN(VLOOKUP($E91, data!$B$8:$K$139, I$4, FALSE)) -> 11.44408972 | J91: =LN(VLOOKUP($E91, data!$B$8:$K$139, J$4, FALSE)) -> 12.19875091 | K91: =LN(VLOOKUP($E91, data!$B$8:$K$139, K$4, FALSE)) -> 11.67067253 | L91: =LN(VLOOKUP($E91, data!$B$8:$K$139, L$4, FALSE)) -> 11.4830228 | M91: 0.01496900921 | N91: 0.01703347 | O91: 0.003213046127 | P91: -0.003165913485 | Q91: 0.02361180814 | R91: 0.01759389204 | S91: -0.0139765108
B92: 2001-09-30 | C92: 2001 | D92: Q3 | E92: 2001Q3 | F92: =LN(VLOOKUP($E92, data!$B$8:$K$139, F$4, FALSE)) -> 12.06825781 | G92: =LN(VLOOKUP($E92, data!$B$8:$K$139, G$4, FALSE)) -> 11.95387997 | H92: =LN(VLOOKUP($E92, data!$B$8:$K$139, H$4, FALSE)) -> 12.3264789 | I92: =LN(VLOOKUP($E92, data!$B$8:$K$139, I$4, FALSE)) -> 11.44725564 | J92: =LN(VLOOKUP($E92, data!$B$8:$K$139, J$4, FALSE)) -> 12.1751391 | K92: =LN(VLOOKUP($E92, data!$B$8:$K$139, K$4, FALSE)) -> 11.65307864 | L92: =LN(VLOOKUP($E92, data!$B$8:$K$139, L$4, FALSE)) -> 11.49699931 | M92: 0.0245805685 | N92: 0.01972104472 | O92: 0.02131233716 | P92: 0.01819015672 | Q92: -0.001777613366 | R92: 0.0307966492 | S92: 0.01177398009
B93: 2001-06-30 | C93: 2001 | D93: Q2 | E93: 2001Q2 | F93: =LN(VLOOKUP($E93, data!$B$8:$K$139, F$4, FALSE)) -> 12.04367724 | G93: =LN(VLOOKUP($E93, data!$B$8:$K$139, G$4, FALSE)) -> 11.93415893 | H93: =LN(VLOOKUP($E93, data!$B$8:$K$139, H$4, FALSE)) -> 12.30516657 | I93: =LN(VLOOKUP($E93, data!$B$8:$K$139, I$4, FALSE)) -> 11.42906548 | J93: =LN(VLOOKUP($E93, data!$B$8:$K$139, J$4, FALSE)) -> 12.17691671 | K93: =LN(VLOOKUP($E93, data!$B$8:$K$139, K$4, FALSE)) -> 11.62228199 | L93: =LN(VLOOKUP($E93, data!$B$8:$K$139, L$4, FALSE)) -> 11.48522533 | M93: 0.02083055793 | N93: 0.01911394702 | O93: 0.01381112098 | P93: 0.006600972105 | Q93: 0.03124183914 | R93: -0.001961215149 | S93: 0.007854510772
B94: 2001-03-31 | C94: 2001 | D94: Q1 | E94: 2001Q1 | F94: =LN(VLOOKUP($E94, data!$B$8:$K$139, F$4, FALSE)) -> 12.02284668 | G94: =LN(VLOOKUP($E94, data!$B$8:$K$139, G$4, FALSE)) -> 11.91504498 | H94: =LN(VLOOKUP($E94, data!$B$8:$K$139, H$4, FALSE)) -> 12.29135545 | I94: =LN(VLOOKUP($E94, data!$B$8:$K$139, I$4, FALSE)) -> 11.42246451 | J94: =LN(VLOOKUP($E94, data!$B$8:$K$139, J$4, FALSE)) -> 12.14567487 | K94: =LN(VLOOKUP($E94, data!$B$8:$K$139, K$4, FALSE)) -> 11.6242432 | L94: =LN(VLOOKUP($E94, data!$B$8:$K$139, L$4, FALSE)) -> 11.47737082 | M94: -0.001907905184 | N94: 0.008187325563 | O94: 0.0007164936212 | P94: 0.00557648788 | Q94: 0.006570364383 | R94: 0.004465333891 | S94: 0.003966116748
B95: 2000-12-31 | C95: 2000 | D95: Q4 | E95: 2000Q4 | F95: =LN(VLOOKUP($E95, data!$B$8:$K$139, F$4, FALSE)) -> 12.02475459 | G95: =LN(VLOOKUP($E95, data!$B$8:$K$139, G$4, FALSE)) -> 11.90685766 | H95: =LN(VLOOKUP($E95, data!$B$8:$K$139, H$4, FALSE)) -> 12.29063895 | I95: =LN(VLOOKUP($E95, data!$B$8:$K$139, I$4, FALSE)) -> 11.41688802 | J95: =LN(VLOOKUP($E95, data!$B$8:$K$139, J$4, FALSE)) -> 12.13910451 | K95: =LN(VLOOKUP($E95, data!$B$8:$K$139, K$4, FALSE)) -> 11.61977787 | L95: =LN(VLOOKUP($E95, data!$B$8:$K$139, L$4, FALSE)) -> 11.47340471 | M95: 0.008294007641 | N95: 0.007819812702 | O95: -0.01674401779 | P95: 0.05712539038 | Q95: 0.01453480303 | R95: 0.004088254231 | S95: 0.02417545115
B96: 2000-09-30 | C96: 2000 | D96: Q3 | E96: 2000Q3 | F96: =LN(VLOOKUP($E96, data!$B$8:$K$139, F$4, FALSE)) -> 12.01646058 | G96: =LN(VLOOKUP($E96, data!$B$8:$K$139, G$4, FALSE)) -> 11.89903784 | H96: =LN(VLOOKUP($E96, data!$B$8:$K$139, H$4, FALSE)) -> 12.30738297 | I96: =LN(VLOOKUP($E96, data!$B$8:$K$139, I$4, FALSE)) -> 11.35976263 | J96: =LN(VLOOKUP($E96, data!$B$8:$K$139, J$4, FALSE)) -> 12.12456971 | K96: =LN(VLOOKUP($E96, data!$B$8:$K$139, K$4, FALSE)) -> 11.61568961 | L96: =LN(VLOOKUP($E96, data!$B$8:$K$139, L$4, FALSE)) -> 11.44922926 | M96: 0.01962241435 | N96: 0.006977557664 | O96: 0.001424266574 | P96: -0.005625240017 | Q96: 0.008372534644 | R96: 0.03122518723 | S96: 0.03286975866
B97: 2000-06-30 | C97: 2000 | D97: Q2 | E97: 2000Q2 | F97: =LN(VLOOKUP($E97, data!$B$8:$K$139, F$4, FALSE)) -> 11.99683816 | G97: =LN(VLOOKUP($E97, data!$B$8:$K$139, G$4, FALSE)) -> 11.89206029 | H97: =LN(VLOOKUP($E97, data!$B$8:$K$139, H$4, FALSE)) -> 12.3059587 | I97: =LN(VLOOKUP($E97, data!$B$8:$K$139, I$4, FALSE)) -> 11.36538787 | J97: =LN(VLOOKUP($E97, data!$B$8:$K$139, J$4, FALSE)) -> 12.11619717 | K97: =LN(VLOOKUP($E97, data!$B$8:$K$139, K$4, FALSE)) -> 11.58446443 | L97: =LN(VLOOKUP($E97, data!$B$8:$K$139, L$4, FALSE)) -> 11.4163595 | M97: -0.001324311783 | N97: 0.01158621117 | O97: -0.0174613271 | P97: -0.02180428909 | Q97: 0.009469835399 | R97: 0.01101787374 | S97: -0.003803539895
B98: 2000-03-31 | C98: 2000 | D98: Q1 | E98: 2000Q1 | F98: =LN(VLOOKUP($E98, data!$B$8:$K$139, F$4, FALSE)) -> 11.99816247 | G98: =LN(VLOOKUP($E98, data!$B$8:$K$139, G$4, FALSE)) -> 11.88047408 | H98: =LN(VLOOKUP($E98, data!$B$8:$K$139, H$4, FALSE)) -> 12.32342003 | I98: =LN(VLOOKUP($E98, data!$B$8:$K$139, I$4, FALSE)) -> 11.38719216 | J98: =LN(VLOOKUP($E98, data!$B$8:$K$139, J$4, FALSE)) -> 12.10672734 | K98: =LN(VLOOKUP($E98, data!$B$8:$K$139, K$4, FALSE)) -> 11.57344655 | L98: =LN(VLOOKUP($E98, data!$B$8:$K$139, L$4, FALSE)) -> 11.42016304 | M98: 0.002866417741 | N98: 0.01021688255 | O98: 0.02625061483 | P98: 0.006747210951 | Q98: 0.0103356364 | R98: -0.03466181193 | S98: -0.023423068
B99: 1999-12-31 | C99: 1999 | D99: Q4 | E99: 1999Q4 | F99: =LN(VLOOKUP($E99, data!$B$8:$K$139, F$4, FALSE)) -> 11.99529606 | G99: =LN(VLOOKUP($E99, data!$B$8:$K$139, G$4, FALSE)) -> 11.87025719 | H99: =LN(VLOOKUP($E99, data!$B$8:$K$139, H$4, FALSE)) -> 12.29716942 | I99: =LN(VLOOKUP($E99, data!$B$8:$K$139, I$4, FALSE)) -> 11.38044495 | J99: =LN(VLOOKUP($E99, data!$B$8:$K$139, J$4, FALSE)) -> 12.0963917 | K99: =LN(VLOOKUP($E99, data!$B$8:$K$139, K$4, FALSE)) -> 11.60810836 | L99: =LN(VLOOKUP($E99, data!$B$8:$K$139, L$4, FALSE)) -> 11.4435861 | M99: 0.01098042459 | N99: 0.02024539447 | O99: 0.01371452168 | P99: 0.01425770369 | Q99: 0.01590495257 | R99: 0.006174350995 | S99: 0.01175139661
B100: =DATE(YEAR(B99), MONTH(B99)-2, 0) -> 1999-09-30 | C100: 1999 | D100: ="Q" & (MONTH(B100)/3) -> Q3 | E100: =C100 & D100 -> 1999Q3 | F100: =LN(VLOOKUP($E100, data!$B$8:$K$139, F$4, FALSE)) -> 11.98431563 | G100: =LN(VLOOKUP($E100, data!$B$8:$K$139, G$4, FALSE)) -> 11.8500118 | H100: =LN(VLOOKUP($E100, data!$B$8:$K$139, H$4, FALSE)) -> 12.28345489 | I100: =LN(VLOOKUP($E100, data!$B$8:$K$139, I$4, FALSE)) -> 11.36618724 | J100: =LN(VLOOKUP($E100, data!$B$8:$K$139, J$4, FALSE)) -> 12.08048675 | K100: =LN(VLOOKUP($E100, data!$B$8:$K$139, K$4, FALSE)) -> 11.60193401 | L100: =LN(VLOOKUP($E100, data!$B$8:$K$139, L$4, FALSE)) -> 11.43183471 | M100: 0.01345911955 | N100: 0.01480720153 | O100: 0.004731409089 | P100: 0.0002779708149 | Q100: 0.01819209696 | R100: 0.01407734335 | S100: 0.0009113693955
B101: 1999-06-30 | C101: 1999 | D101: Q2 | E101: 1999Q2 | F101: =LN(VLOOKUP($E101, data!$B$8:$K$139, F$4, FALSE)) -> 11.97085651 | G101: =LN(VLOOKUP($E101, data!$B$8:$K$139, G$4, FALSE)) -> 11.8352046 | H101: =LN(VLOOKUP($E101, data!$B$8:$K$139, H$4, FALSE)) -> 12.27872349 | I101: =LN(VLOOKUP($E101, data!$B$8:$K$139, I$4, FALSE)) -> 11.36590927 | J101: =LN(VLOOKUP($E101, data!$B$8:$K$139, J$4, FALSE)) -> 12.06229465 | K101: =LN(VLOOKUP($E101, data!$B$8:$K$139, K$4, FALSE)) -> 11.58785667 | L101: =LN(VLOOKUP($E101, data!$B$8:$K$139, L$4, FALSE)) -> 11.43092334 | M101: 0.0233732657 | N101: 0.004785862182 | O101: 0.0192522629 | P101: 0.01142869582 | Q101: 0.0364497544 | R101: 0.003373624824 | S101: 0.03710803982
B102: 1999-03-31 | C102: 1999 | D102: Q1 | E102: 1999Q1 | F102: =LN(VLOOKUP($E102, data!$B$8:$K$139, F$4, FALSE)) -> 11.94748325 | G102: =LN(VLOOKUP($E102, data!$B$8:$K$139, G$4, FALSE)) -> 11.83041873 | H102: =LN(VLOOKUP($E102, data!$B$8:$K$139, H$4, FALSE)) -> 12.25947122 | I102: =LN(VLOOKUP($E102, data!$B$8:$K$139, I$4, FALSE)) -> 11.35448058 | J102: =LN(VLOOKUP($E102, data!$B$8:$K$139, J$4, FALSE)) -> 12.0258449 | K102: =LN(VLOOKUP($E102, data!$B$8:$K$139, K$4, FALSE)) -> 11.58448304 | L102: =LN(VLOOKUP($E102, data!$B$8:$K$139, L$4, FALSE)) -> 11.3938153 | M102: 0.003886372436 | N102: 0.01700356655 | O102: 0.002667440318 | P102: 0.01196390958 | Q102: -0.01422039039 | R102: 0.01355285752 | S102: -0.006322134418
B103: 1998-12-31 | C103: 1998 | D103: Q4 | E103: 1998Q4 | F103: =LN(VLOOKUP($E103, data!$B$8:$K$139, F$4, FALSE)) -> 11.94359687 | G103: =LN(VLOOKUP($E103, data!$B$8:$K$139, G$4, FALSE)) -> 11.81341517 | H103: =LN(VLOOKUP($E103, data!$B$8:$K$139, H$4, FALSE)) -> 12.25680378 | I103: =LN(VLOOKUP($E103, data!$B$8:$K$139, I$4, FALSE)) -> 11.34251667 | J103: =LN(VLOOKUP($E103, data!$B$8:$K$139, J$4, FALSE)) -> 12.04006529 | K103: =LN(VLOOKUP($E103, data!$B$8:$K$139, K$4, FALSE)) -> 11.57093019 | L103: =LN(VLOOKUP($E103, data!$B$8:$K$139, L$4, FALSE)) -> 11.40013743 | M103: 0.01016663336 | N103: 0.01430374965 | O103: 0.01038125331 | P103: -0.0468729952 | Q103: 0.0089176191 | R103: 0.004141732396 | S103: 0.02811906633
B104: 1998-09-30 | C104: 1998 | D104: Q3 | E104: 1998Q3 | F104: =LN(VLOOKUP($E104, data!$B$8:$K$139, F$4, FALSE)) -> 11.93343024 | G104: =LN(VLOOKUP($E104, data!$B$8:$K$139, G$4, FALSE)) -> 11.79911142 | H104: =LN(VLOOKUP($E104, data!$B$8:$K$139, H$4, FALSE)) -> 12.24642253 | I104: =LN(VLOOKUP($E104, data!$B$8:$K$139, I$4, FALSE)) -> 11.38938966 | J104: =LN(VLOOKUP($E104, data!$B$8:$K$139, J$4, FALSE)) -> 12.03114767 | K104: =LN(VLOOKUP($E104, data!$B$8:$K$139, K$4, FALSE)) -> 11.56678845 | L104: =LN(VLOOKUP($E104, data!$B$8:$K$139, L$4, FALSE)) -> 11.37201837 | M104: -0.0006105587459 | N104: 0.001834421469 | O104: -0.01965807804 | P104: 0.009470015352 | Q104: 0.001585494845 | R104: 0.01127295927 | S104: -0.01712233779
B105: 1998-06-30 | C105: 1998 | D105: Q2 | E105: 1998Q2 | F105: =LN(VLOOKUP($E105, data!$B$8:$K$139, F$4, FALSE)) -> 11.9340408 | G105: =LN(VLOOKUP($E105, data!$B$8:$K$139, G$4, FALSE)) -> 11.797277 | H105: =LN(VLOOKUP($E105, data!$B$8:$K$139, H$4, FALSE)) -> 12.26608061 | I105: =LN(VLOOKUP($E105, data!$B$8:$K$139, I$4, FALSE)) -> 11.37991965 | J105: =LN(VLOOKUP($E105, data!$B$8:$K$139, J$4, FALSE)) -> 12.02956217 | K105: =LN(VLOOKUP($E105, data!$B$8:$K$139, K$4, FALSE)) -> 11.5555155 | L105: =LN(VLOOKUP($E105, data!$B$8:$K$139, L$4, FALSE)) -> 11.3891407 | M105: -0.003361237583 | N105: 0.01793395521 | O105: -0.02135541254 | P105: 0.02625958795 | Q105: 0.02586890276 | R105: 0.01213842317 | S105: 0.02206215832
B106: 1998-03-31 | C106: 1998 | D106: Q1 | E106: 1998Q1 | F106: =LN(VLOOKUP($E106, data!$B$8:$K$139, F$4, FALSE)) -> 11.93740204 | G106: =LN(VLOOKUP($E106, data!$B$8:$K$139, G$4, FALSE)) -> 11.77934304 | H106: =LN(VLOOKUP($E106, data!$B$8:$K$139, H$4, FALSE)) -> 12.28743602 | I106: =LN(VLOOKUP($E106, data!$B$8:$K$139, I$4, FALSE)) -> 11.35366006 | J106: =LN(VLOOKUP($E106, data!$B$8:$K$139, J$4, FALSE)) -> 12.00369327 | K106: =LN(VLOOKUP($E106, data!$B$8:$K$139, K$4, FALSE)) -> 11.54337707 | L106: =LN(VLOOKUP($E106, data!$B$8:$K$139, L$4, FALSE)) -> 11.36707855 | M106: -0.01060558824 | N106: 0.02286765926 | O106: -0.005327952107 | P106: 0.008786450572 | Q106: -0.0133775565 | R106: -0.01913823688 | S106: 0.008552125653
B107: 1997-12-31 | C107: 1997 | D107: Q4 | E107: 1997Q4 | F107: =LN(VLOOKUP($E107, data!$B$8:$K$139, F$4, FALSE)) -> 11.94800763 | G107: =LN(VLOOKUP($E107, data!$B$8:$K$139, G$4, FALSE)) -> 11.75647538 | H107: =LN(VLOOKUP($E107, data!$B$8:$K$139, H$4, FALSE)) -> 12.29276397 | I107: =LN(VLOOKUP($E107, data!$B$8:$K$139, I$4, FALSE)) -> 11.34487361 | J107: =LN(VLOOKUP($E107, data!$B$8:$K$139, J$4, FALSE)) -> 12.01707083 | K107: =LN(VLOOKUP($E107, data!$B$8:$K$139, K$4, FALSE)) -> 11.56251531 | L107: =LN(VLOOKUP($E107, data!$B$8:$K$139, L$4, FALSE)) -> 11.35852642 | M107: -0.00866732452 | N107: 0.01768208082 | O107: -0.006721600833 | P107: -0.01963304988 | Q107: -0.01742433852 | R107: 0.02923834809 | S107: 0.02815453971
B108: 1997-09-30 | C108: 1997 | D108: Q3 | E108: 1997Q3 | F108: =LN(VLOOKUP($E108, data!$B$8:$K$139, F$4, FALSE)) -> 11.95667495 | G108: =LN(VLOOKUP($E108, data!$B$8:$K$139, G$4, FALSE)) -> 11.7387933 | H108: =LN(VLOOKUP($E108, data!$B$8:$K$139, H$4, FALSE)) -> 12.29948557 | I108: =LN(VLOOKUP($E108, data!$B$8:$K$139, I$4, FALSE)) -> 11.36450666 | J108: =LN(VLOOKUP($E108, data!$B$8:$K$139, J$4, FALSE)) -> 12.03449516 | K108: =LN(VLOOKUP($E108, data!$B$8:$K$139, K$4, FALSE)) -> 11.53327696 | L108: =LN(VLOOKUP($E108, data!$B$8:$K$139, L$4, FALSE)) -> 11.33037188 | M108: 0.002679166757 | N108: 0.00701347118 | O108: -0.005341315595 | P108: -0.01802534119 | Q108: 0.02799603817 | R108: -0.001830650686 | S108: -0.01465550662
B109: 1997-06-30 | C109: 1997 | D109: Q2 | E109: 1997Q2 | F109: =LN(VLOOKUP($E109, data!$B$8:$K$139, F$4, FALSE)) -> 11.95399578 | G109: =LN(VLOOKUP($E109, data!$B$8:$K$139, G$4, FALSE)) -> 11.73177983 | H109: =LN(VLOOKUP($E109, data!$B$8:$K$139, H$4, FALSE)) -> 12.30482689 | I109: =LN(VLOOKUP($E109, data!$B$8:$K$139, I$4, FALSE)) -> 11.382532 | J109: =LN(VLOOKUP($E109, data!$B$8:$K$139, J$4, FALSE)) -> 12.00649913 | K109: =LN(VLOOKUP($E109, data!$B$8:$K$139, K$4, FALSE)) -> 11.53510761 | L109: =LN(VLOOKUP($E109, data!$B$8:$K$139, L$4, FALSE)) -> 11.34502739 | M109: 0.006765113302 | N109: 0.02075788999 | O109: -0.01000150313 | P109: 0.04568760527 | Q109: 0.02323258845 | R109: 0.01421397728 | S109: 0.01903409226
B110: 1997-03-31 | C110: 1997 | D110: Q1 | E110: 1997Q1 | F110: =LN(VLOOKUP($E110, data!$B$8:$K$139, F$4, FALSE)) -> 11.94723067 | G110: =LN(VLOOKUP($E110, data!$B$8:$K$139, G$4, FALSE)) -> 11.71102194 | H110: =LN(VLOOKUP($E110, data!$B$8:$K$139, H$4, FALSE)) -> 12.31482839 | I110: =LN(VLOOKUP($E110, data!$B$8:$K$139, I$4, FALSE)) -> 11.3368444 | J110: =LN(VLOOKUP($E110, data!$B$8:$K$139, J$4, FALSE)) -> 11.98326654 | K110: =LN(VLOOKUP($E110, data!$B$8:$K$139, K$4, FALSE)) -> 11.52089363 | L110: =LN(VLOOKUP($E110, data!$B$8:$K$139, L$4, FALSE)) -> 11.3259933 | M110: 0.01632540061 | N110: 0.0234795235 | O110: 0.02467657975 | P110: -0.01870184991 | Q110: 0.01019840291 | R110: 0.02740586354 | S110: 0.02039955045
B111: 1996-12-31 | C111: 1996 | D111: Q4 | E111: 1996Q4 | F111: =LN(VLOOKUP($E111, data!$B$8:$K$139, F$4, FALSE)) -> 11.93090527 | G111: =LN(VLOOKUP($E111, data!$B$8:$K$139, G$4, FALSE)) -> 11.68754242 | H111: =LN(VLOOKUP($E111, data!$B$8:$K$139, H$4, FALSE)) -> 12.29015181 | I111: =LN(VLOOKUP($E111, data!$B$8:$K$139, I$4, FALSE)) -> 11.35554625 | J111: =LN(VLOOKUP($E111, data!$B$8:$K$139, J$4, FALSE)) -> 11.97306813 | K111: =LN(VLOOKUP($E111, data!$B$8:$K$139, K$4, FALSE)) -> 11.49348777 | L111: =LN(VLOOKUP($E111, data!$B$8:$K$139, L$4, FALSE)) -> 11.30559375 | M111: -0.0003949473126 | N111: 0.01904157366 | O111: -0.01368708651 | P111: 0.003529243001 | Q111: 0.009207187246 | R111: -0.02032729808 | S111: 0.06418833126
B112: 1996-09-30 | C112: 1996 | D112: Q3 | E112: 1996Q3 | F112: =LN(VLOOKUP($E112, data!$B$8:$K$139, F$4, FALSE)) -> 11.93130022 | G112: =LN(VLOOKUP($E112, data!$B$8:$K$139, G$4, FALSE)) -> 11.66850084 | H112: =LN(VLOOKUP($E112, data!$B$8:$K$139, H$4, FALSE)) -> 12.3038389 | I112: =LN(VLOOKUP($E112, data!$B$8:$K$139, I$4, FALSE)) -> 11.352017 | J112: =LN(VLOOKUP($E112, data!$B$8:$K$139, J$4, FALSE)) -> 11.96386095 | K112: =LN(VLOOKUP($E112, data!$B$8:$K$139, K$4, FALSE)) -> 11.51381507 | L112: =LN(VLOOKUP($E112, data!$B$8:$K$139, L$4, FALSE)) -> 11.24140541 | M112: 0.006715533969 | N112: -0.006858047095 | O112: -0.0008475556234 | P112: -0.005271678758 | Q112: 0.01437230401 | R112: 0.03191598279 | S112: -0.01176438124
B113: 1996-06-30 | C113: 1996 | D113: Q2 | E113: 1996Q2 | F113: =LN(VLOOKUP($E113, data!$B$8:$K$139, F$4, FALSE)) -> 11.92458468 | G113: =LN(VLOOKUP($E113, data!$B$8:$K$139, G$4, FALSE)) -> 11.67535889 | H113: =LN(VLOOKUP($E113, data!$B$8:$K$139, H$4, FALSE)) -> 12.30468645 | I113: =LN(VLOOKUP($E113, data!$B$8:$K$139, I$4, FALSE)) -> 11.35728868 | J113: =LN(VLOOKUP($E113, data!$B$8:$K$139, J$4, FALSE)) -> 11.94948864 | K113: =LN(VLOOKUP($E113, data!$B$8:$K$139, K$4, FALSE)) -> 11.48189909 | L113: =LN(VLOOKUP($E113, data!$B$8:$K$139, L$4, FALSE)) -> 11.2531698 | M113: 0.02005641616 | N113: 0.00706348961 | O113: 0.02142594046 | P113: 0.006129488107 | Q113: 0.01841221023 | R113: -0.000701182759 | S113: 0.02174554357
B114: 1996-03-31 | C114: 1996 | D114: Q1 | E114: 1996Q1 | F114: =LN(VLOOKUP($E114, data!$B$8:$K$139, F$4, FALSE)) -> 11.90452827 | G114: =LN(VLOOKUP($E114, data!$B$8:$K$139, G$4, FALSE)) -> 11.6682954 | H114: =LN(VLOOKUP($E114, data!$B$8:$K$139, H$4, FALSE)) -> 12.28326051 | I114: =LN(VLOOKUP($E114, data!$B$8:$K$139, I$4, FALSE)) -> 11.35115919 | J114: =LN(VLOOKUP($E114, data!$B$8:$K$139, J$4, FALSE)) -> 11.93107643 | K114: =LN(VLOOKUP($E114, data!$B$8:$K$139, K$4, FALSE)) -> 11.48260027 | L114: =LN(VLOOKUP($E114, data!$B$8:$K$139, L$4, FALSE)) -> 11.23142425 | M114: -0.01804023296 | N114: 0.01407004667 | O114: -0.02491735568 | P114: 0.04178300742 | Q114: -0.01878696713 | R114: 0.01910667417 | S114: -0.01490199413
B115: 1995-12-31 | C115: 1995 | D115: Q4 | E115: 1995Q4 | F115: =LN(VLOOKUP($E115, data!$B$8:$K$139, F$4, FALSE)) -> 11.9225685 | G115: =LN(VLOOKUP($E115, data!$B$8:$K$139, G$4, FALSE)) -> 11.65422535 | H115: =LN(VLOOKUP($E115, data!$B$8:$K$139, H$4, FALSE)) -> 12.30817787 | I115: =LN(VLOOKUP($E115, data!$B$8:$K$139, I$4, FALSE)) -> 11.30937619 | J115: =LN(VLOOKUP($E115, data!$B$8:$K$139, J$4, FALSE)) -> 11.9498634 | K115: =LN(VLOOKUP($E115, data!$B$8:$K$139, K$4, FALSE)) -> 11.46349359 | L115: =LN(VLOOKUP($E115, data!$B$8:$K$139, L$4, FALSE)) -> 11.24632625 | M115: -0.005785605123 | N115: -0.00903207969 | O115: 0.02097234049 | P115: -0.01319958281 | Q115: 0.0007173300122 | R115: -0.04831124235 | S115: 0.0173697553
B116: 1995-09-30 | C116: 1995 | D116: Q3 | E116: 1995Q3 | F116: =LN(VLOOKUP($E116, data!$B$8:$K$139, F$4, FALSE)) -> 11.92835411 | G116: =LN(VLOOKUP($E116, data!$B$8:$K$139, G$4, FALSE)) -> 11.66325743 | H116: =LN(VLOOKUP($E116, data!$B$8:$K$139, H$4, FALSE)) -> 12.28720553 | I116: =LN(VLOOKUP($E116, data!$B$8:$K$139, I$4, FALSE)) -> 11.32257577 | J116: =LN(VLOOKUP($E116, data!$B$8:$K$139, J$4, FALSE)) -> 11.94914607 | K116: =LN(VLOOKUP($E116, data!$B$8:$K$139, K$4, FALSE)) -> 11.51180484 | L116: =LN(VLOOKUP($E116, data!$B$8:$K$139, L$4, FALSE)) -> 11.22895649 | M116: 0.02369065271 | N116: 0.02178045567 | O116: 0.004922122702 | P116: 0.01544521674 | Q116: -0.004740338765 | R116: 0.0219535453 | S116: 0.04140111957
B117: 1995-06-30 | C117: 1995 | D117: Q2 | E117: 1995Q2 | F117: =LN(VLOOKUP($E117, data!$B$8:$K$139, F$4, FALSE)) -> 11.90466345 | G117: =LN(VLOOKUP($E117, data!$B$8:$K$139, G$4, FALSE)) -> 11.64147698 | H117: =LN(VLOOKUP($E117, data!$B$8:$K$139, H$4, FALSE)) -> 12.28228341 | I117: =LN(VLOOKUP($E117, data!$B$8:$K$139, I$4, FALSE)) -> 11.30713055 | J117: =LN(VLOOKUP($E117, data!$B$8:$K$139, J$4, FALSE)) -> 11.95388641 | K117: =LN(VLOOKUP($E117, data!$B$8:$K$139, K$4, FALSE)) -> 11.48985129 | L117: =LN(VLOOKUP($E117, data!$B$8:$K$139, L$4, FALSE)) -> 11.18755537 | M117: -0.02743934357 | N117: -0.0007296094276 | O117: -0.08884594687 | P117: -0.005280871913 | Q117: -0.003628718999 | R117: -0.01709634128 | S117: 0.008020894435
B118: 1995-03-31 | C118: 1995 | D118: Q1 | E118: 1995Q1 | F118: =LN(VLOOKUP($E118, data!$B$8:$K$139, F$4, FALSE)) -> 11.9321028 | G118: =LN(VLOOKUP($E118, data!$B$8:$K$139, G$4, FALSE)) -> 11.64220659 | H118: =LN(VLOOKUP($E118, data!$B$8:$K$139, H$4, FALSE)) -> 12.37112935 | I118: =LN(VLOOKUP($E118, data!$B$8:$K$139, I$4, FALSE)) -> 11.31241142 | J118: =LN(VLOOKUP($E118, data!$B$8:$K$139, J$4, FALSE)) -> 11.95751513 | K118: =LN(VLOOKUP($E118, data!$B$8:$K$139, K$4, FALSE)) -> 11.50694763 | L118: =LN(VLOOKUP($E118, data!$B$8:$K$139, L$4, FALSE)) -> 11.17953448

Sheet data
B2: TAB: DATA (IN %)
E4: CREA Home Prices
B6: Period | C6: Year | D6: Quarter | E6: CA | F6: AB | G6: BC | H6: MB | I6: ON | J6: QC | K6: SK
B8: 1990Q1 | C8: =MID(B8,1, 4) -> 1990 | D8: =MID(B8, 5, 2) -> Q1 | E8: 145349 | F8: 111565 | G8: 162371 | H8: 82270 | I8: 177116 | J8: 101559 | K8: 71731
B9: 1990Q2 | C9: 1990 | D9: Q2 | E9: 137954 | F9: 107416 | G9: 151371 | H9: 80580 | I9: 170343 | J9: 98878 | K9: 68450
B10: 1990Q3 | C10: 1990 | D10: Q3 | E10: 142337 | F10: 108402 | G10: 156631 | H10: 78437 | I10: 174458 | J10: 99539 | K10: 68834
B11: 1990Q4 | C11: 1990 | D11: Q4 | E11: 140770 | F11: 106388 | G11: 157960 | H11: 78153 | I11: 172165 | J11: 101423 | K11: 67113
B12: 1991Q1 | C12: 1991 | D12: Q1 | E12: 145243 | F12: 108024 | G12: 155928 | H12: 79710 | I12: 172389 | J12: 101334 | K12: 68321
B13: 1991Q2 | C13: 1991 | D13: Q2 | E13: 152908 | F13: 112457 | G13: 168490 | H13: 82265 | I13: 177882 | J13: 102994 | K13: 68178
B14: 1991Q3 | C14: 1991 | D14: Q3 | E14: 148007 | F14: 112969 | G14: 173331 | H14: 80579 | I14: 170322 | J14: 103769 | K14: 66752
B15: 1991Q4 | C15: 1991 | D15: Q4 | E15: 146430 | F15: 112385 | G15: 173499 | H15: 78970 | I15: 165233 | J15: 101039 | K15: 68123
B16: 1992Q1 | C16: 1992 | D16: Q1 | E16: 145948 | F16: 112086 | G16: 179524 | H16: 80405 | I16: 161790 | J16: 101290 | K16: 67306
B17: 1992Q2 | C17: 1992 | D17: Q2 | E17: 148685 | F17: 112240 | G17: 188226 | H17: 81541 | I17: 161346 | J17: 101292 | K17: 68887
B18: 1992Q3 | C18: 1992 | D18: Q3 | E18: 151636 | F18: 114425 | G18: 192341 | H18: 81639 | I18: 161963 | J18: 101535 | K18: 68517
B19: 1992Q4 | C19: 1992 | D19: Q4 | E19: 152690 | F19: 115577 | G19: 199687 | H19: 79078 | I19: 159536 | J19: 103284 | K19: 69837
B20: 1993Q1 | C20: 1993 | D20: Q1 | E20: 151466 | F20: 113872 | G20: 206258 | H20: 79645 | I20: 156141 | J20: 101448 | K20: 70196
B21: 1993Q2 | C21: 1993 | D21: Q2 | E21: 153481 | F21: 117826 | G21: 212337 | H21: 82240 | I21: 155580 | J21: 101565 | K21: 70807
B22: 1993Q3 | C22: 1993 | D22: Q3 | E22: 152897 | F22: 118706 | G22: 213302 | H22: 81590 | I22: 156714 | J22: 102713 | K22: 70889
B23: 1993Q4 | C23: 1993 | D23: Q4 | E23: 152888 | F23: 117338 | G23: 216002 | H23: 83191 | I23: 156566 | J23: 101762 | K23: 71264
B24: 1994Q1 | C24: 1994 | D24: Q1 | E24: 158007 | F24: 118851 | G24: 218819 | H24: 84820 | I24: 159053 | J24: 102670 | K24: 73119
B25: 1994Q2 | C25: 1994 | D25: Q2 | E25: 157838 | F25: 118640 | G25: 225970 | H25: 84751 | I25: 161143 | J25: 102152 | K25: 72694
B26: 1994Q3 | C26: 1994 | D26: Q3 | E26: 158240 | F26: 115037 | G26: 237839 | H26: 82747 | I26: 160543 | J26: 100545 | K26: 72072
B27: 1994Q4 | C27: 1994 | D27: Q4 | E27: 156764 | F27: 116381 | G27: 234834 | H27: 82498 | I27: 158735 | J27: 100684 | K27: 73422
B28: 1995Q1 | C28: 1995 | D28: Q1 | E28: 152071 | F28: 113801 | G28: 235892 | H28: 81831 | I28: 155985 | J28: 99404 | K28: 71649
B29: 1995Q2 | C29: 1995 | D29: Q2 | E29: 147955 | F29: 113718 | G29: 215838 | H29: 81400 | I29: 155420 | J29: 97719 | K29: 72226
B30: 1995Q3 | C30: 1995 | D30: Q3 | E30: 151502 | F30: 116222 | G30: 216903 | H30: 82667 | I30: 154685 | J30: 99888 | K30: 75279
B31: 1995Q4 | C31: 1995 | D31: Q4 | E31: 150628 | F31: 115177 | G31: 221500 | H31: 81583 | I31: 154796 | J31: 95177 | K31: 76598
B32: 1996Q1 | C32: 1996 | D32: Q1 | E32: 147935 | F32: 116809 | G32: 216049 | H32: 85064 | I32: 151915 | J32: 97013 | K32: 75465
B33: 1996Q2 | C33: 1996 | D33: Q2 | E33: 150932 | F33: 117637 | G33: 220728 | H33: 85587 | I33: 154738 | J33: 96945 | K33: 77124
B34: 1996Q3 | C34: 1996 | D34: Q3 | E34: 151949 | F34: 116833 | G34: 220541 | H34: 85137 | I34: 156978 | J34: 100089 | K34: 76222
B35: 1996Q4 | C35: 1996 | D35: Q4 | E35: 151889 | F35: 119079 | G35: 217543 | H35: 85438 | I35: 158430 | J35: 98075 | K35: 81275
B36: 1997Q1 | C36: 1997 | D36: Q1 | E36: 154389 | F36: 121908 | G36: 222978 | H36: 83855 | I36: 160054 | J36: 100800 | K36: 82950
B37: 1997Q2 | C37: 1997 | D37: Q2 | E37: 155437 | F37: 124465 | G37: 220759 | H37: 87775 | I37: 163816 | J37: 102243 | K37: 84544
B38: 1997Q3 | C38: 1997 | D38: Q3 | E38: 155854 | F38: 125341 | G38: 219583 | H38: 86207 | I38: 168467 | J38: 102056 | K38: 83314
B39: 1997Q4 | C39: 1997 | D39: Q4 | E39: 154509 | F39: 127577 | G39: 218112 | H39: 84531 | I39: 165557 | J39: 105084 | K39: 85693
B40: 1998Q1 | C40: 1998 | D40: Q1 | E40: 152879 | F40: 130528 | G40: 216953 | H40: 85277 | I40: 163357 | J40: 103092 | K40: 86429
B41: 1998Q2 | C41: 1998 | D41: Q2 | E41: 152366 | F41: 132890 | G41: 212369 | H41: 87546 | I41: 167638 | J41: 104351 | K41: 88357
B42: 1998Q3 | C42: 1998 | D42: Q3 | E42: 152273 | F42: 133134 | G42: 208235 | H42: 88379 | I42: 167904 | J42: 105534 | K42: 86857
B43: 1998Q4 | C43: 1998 | D43: Q4 | E43: 153829 | F43: 135052 | G43: 210408 | H43: 84332 | I43: 169408 | J43: 105972 | K43: 89334
B44: 1999Q1 | C44: 1999 | D44: Q1 | E44: 154428 | F44: 137368 | G44: 210970 | H44: 85347 | I44: 167016 | J44: 107418 | K44: 88771
B45: 1999Q2 | C45: 1999 | D45: Q2 | E45: 158080 | F45: 138027 | G45: 215071 | H45: 86328 | I45: 173216 | J45: 107781 | K45: 92127
B46: 1999Q3 | C46: 1999 | D46: Q3 | E46: 160222 | F46: 140086 | G46: 216091 | H46: 86352 | I46: 176396 | J46: 109309 | K46: 92211
B47: 1999Q4 | C47: 1999 | D47: Q4 | E47: 161991 | F47: 142951 | G47: 219075 | H47: 87592 | I47: 179224 | J47: 109986 | K47: 93301
B48: 2000Q1 | C48: 2000 | D48: Q1 | E48: 162456 | F48: 144419 | G48: 224902 | H48: 88185 | I48: 181086 | J48: 106239 | K48: 91141
B49: 2000Q2 | C49: 2000 | D49: Q2 | E49: 162241 | F49: 146102 | G49: 221009 | H49: 86283 | I49: 182809 | J49: 107416 | K49: 90795
B50: 2000Q3 | C50: 2000 | D50: Q3 | E50: 165456 | F50: 147125 | G50: 221324 | H50: 85799 | I50: 184346 | J50: 110823 | K50: 93829
B51: 2000Q4 | C51: 2000 | D51: Q4 | E51: 166834 | F51: 148280 | G51: 217649 | H51: 90843 | I51: 187045 | J51: 111277 | K51: 96125
B52: 2001Q1 | C52: 2001 | D52: Q1 | E52: 166516 | F52: 149499 | G52: 217805 | H52: 91351 | I52: 188278 | J52: 111775 | K52: 96507
B53: 2001Q2 | C53: 2001 | D53: Q2 | E53: 170021 | F53: 152384 | G53: 220834 | H53: 91956 | I53: 194253 | J53: 111556 | K53: 97268
B54: 2001Q3 | C54: 2001 | D54: Q3 | E54: 174252 | F54: 155419 | G54: 225591 | H54: 93644 | I54: 193908 | J54: 115045 | K54: 98420
B55: 2001Q4 | C55: 2001 | D55: Q4 | E55: 176880 | F55: 158089 | G55: 226317 | H55: 93348 | I55: 198541 | J55: 117087 | K55: 97054
B56: 2002Q1 | C56: 2002 | D56: Q1 | E56: 183686 | F56: 164333 | G56: 234375 | H56: 93888 | I56: 207423 | J56: 122038 | K56: 97716
B57: 2002Q2 | C57: 2002 | D57: Q2 | E57: 186912 | F57: 168993 | G57: 237941 | H57: 95996 | I57: 208983 | J57: 128752 | K57: 100020
B58: 2002Q3 | C58: 2002 | D58: Q3 | E58: 189847 | F58: 172596 | G58: 237748 | H58: 95446 | I58: 212530 | J58: 132470 | K58: 99851
B59: 2002Q4 | C59: 2002 | D59: Q4 | E59: 195595 | F59: 177316 | G59: 245117 | H59: 98854 | I59: 216721 | J59: 136883 | K59: 102910
B60: 2003Q1 | C60: 2003 | D60: Q1 | E60: 199520 | F60: 177588 | G60: 248278 | H60: 101516 | I60: 221044 | J60: 143065 | K60: 103549
B61: 2003Q2 | C61: 2003 | D61: Q2 | E61: 201522 | F61: 180391 | G61: 250184 | H61: 103950 | I61: 223735 | J61: 146688 | K61: 103321
B62: 2003Q3 | C62: 2003 | D62: Q3 | E62: 210955 | F62: 185243 | G62: 264571 | H62: 108587 | I62: 230288 | J62: 153077 | K62: 105644
B63: 2003Q4 | C63: 2003 | D63: Q4 | E63: 216577 | F63: 188953 | G63: 277451 | H63: 110768 | I63: 233629 | J63: 158134 | K63: 105957
B64: 2004Q1 | C64: 2004 | D64: Q1 | E64: 220213 | F64: 190067 | G64: 281074 | H64: 114149 | I64: 237244 | J64: 162911 | K64: 106269
B65: 2004Q2 | C65: =MID(B65,1, 4) -> 2004 | D65: =MID(B65, 5, 2) -> Q2 | E65: 224484 | F65: 191274 | G65: 285769 | H65: 116126 | I65: 244429 | J65: 169748 | K65: 110361
B66: 2004Q3 | C66: 2004 | D66: Q3 | E66: 225415 | F66: 196137 | G66: 288085 | H66: 119813 | I66: 247141 | J66: 171498 | K66: 111265
B67: 2004Q4 | C67: 2004 | D67: Q4 | E67: 233698 | F67: 203860 | G67: 303267 | H67: 123759 | I67: 251457 | J67: 175799 | K67: 114325
B68: 2005Q1 | C68: 2005 | D68: Q1 | E68: 238742 | F68: 210031 | G68: 308270 | H68: 125670 | I68: 256819 | J68: 179012 | K68: 118591
B69: 2005Q2 | C69: 2005 | D69: Q2 | E69: 244973 | F69: 215204 | G69: 322826 | H69: 130947 | I69: 260876 | J69: 181063 | K69: 120361
B70: 2005Q3 | C70: 2005 | D70: Q3 | E70: 252585 | F70: 218104 | G70: 343180 | H70: 135423 | I70: 264511 | J70: 185427 | K70: 124426
B71: 2005Q4 | C71: 2005 | D71: Q4 | E71: 258492 | F71: 232566 | G71: 352753 | H71: 138430 | I71: 268357 | J71: 189723 | K71: 127935
B72: 2006Q1 | C72: 2006 | D72: Q1 | E72: 267373 | F72: 254954 | G72: 369034 | H72: 145076 | I72: 274286 | J72: 191684 | K72: 128499
B73: 2006Q2 | C73: 2006 | D73: Q2 | E73: 275421 | F73: 279648 | G73: 387720 | H73: 147549 | I73: 276954 | J73: 194869 | K73: 130512
B74: 2006Q3 | C74: 2006 | D74: Q3 | E74: 279264 | F74: 297612 | G74: 397352 | H74: 149547 | I74: 277792 | J74: 197814 | K74: 131364
B75: 2006Q4 | C75: 2006 | D75: Q4 | E75: 283318 | F75: 315322 | G75: 408509 | H75: 156350 | I75: 279100 | J75: 198722 | K75: 139552
B76: 2007Q1 | C76: 2007 | D76: Q1 | E76: 294344 | F76: 340933 | G76: 411569 | H76: 155880 | I76: 289699 | J76: 203634 | K76: 146399
B77: 2007Q2 | C77: 2007 | D77: Q2 | E77: 302756 | F77: 357887 | G77: 431733 | H77: 166958 | I77: 293746 | J77: 208443 | K77: 167649
B78: 2007Q3 | C78: 2007 | D78: Q3 | E78: 311851 | F78: 367564 | G78: 451059 | H78: 169379 | I78: 298991 | J78: 210283 | K78: 185232
B79: 2007Q4 | C79: 2007 | D79: Q4 | E79: 317231 | F79: 361411 | G79: 458392 | H79: 177173 | I79: 313977 | J79: 217435 | K79: 201805
B80: 2008Q1 | C80: 2008 | D80: Q1 | E80: 314198 | F80: 361885 | G80: 469317 | H80: 181857 | I80: 304872 | J80: 218356 | K80: 216479
B81: 2008Q2 | C81: 2008 | D81: Q2 | E81: 307887 | F81: 354492 | G81: 461692 | H81: 191363 | I81: 303871 | J81: 220072 | K81: 227256
B82: 2008Q3 | C82: 2008 | D82: Q3 | E82: 298947 | F82: 347656 | G82: 435017 | H82: 189645 | I82: 299550 | J82: 223017 | K82: 226756
B83: 2008Q4 | C83: 2008 | D83: Q4 | E83: 284778 | F83: 342291 | G83: 421106 | H83: 185463 | I83: 284967 | J83: 219902 | K83: 224983
B84: 2009Q1 | C84: 2009 | D84: Q1 | E84: 284823 | F84: 326833 | G84: 416468 | H84: 192243 | I84: 287372 | J84: 221795 | K84: 229173
B85: 2009Q2 | C85: 2009 | D85: Q2 | E85: 309505 | F85: 332809 | G85: 447399 | H85: 194592 | I85: 309792 | J85: 226283 | K85: 228433
B86: 2009Q3 | C86: 2009 | D86: Q3 | E86: 332969 | F86: 346231 | G86: 480869 | H86: 205240 | I86: 326766 | J86: 234274 | K86: 233353
B87: 2009Q4 | C87: 2009 | D87: Q4 | E87: 342365 | F87: 356270 | G87: 496856 | H87: 206595 | I87: 339187 | J87: 238129 | K87: 239206
B88: 2010Q1 | C88: 2010 | D88: Q1 | E88: 337302 | F88: 350377 | G88: 494061 | H88: 214042 | I88: 346073 | J88: 244854 | K88: 239651
B89: 2010Q2 | C89: 2010 | D89: Q2 | E89: 335608 | F89: 353741 | G89: 491834 | H89: 217539 | I89: 337039 | J89: 247511 | K89: 238574
B90: 2010Q3 | C90: 2010 | D90: Q3 | E90: 334828 | F90: 350170 | G90: 505279 | H90: 220661 | I90: 337497 | J90: 249714 | K90: 241942
B91: 2010Q4 | C91: 2010 | D91: Q4 | E91: 348296 | F91: 349343 | G91: 530892 | H91: 231940 | I91: 349385 | J91: 256139 | K91: 249432
B92: 2011Q1 | C92: 2011 | D92: Q1 | E92: 360394 | F92: 352982 | G92: 563592 | H92: 229782 | I92: 354081 | J92: 250540 | K92: 253890
B93: 2011Q2 | C93: 2011 | D93: Q2 | E93: 362167 | F93: 351091 | G93: 576927 | H93: 228935 | I93: 361451 | J93: 253919 | K93: 255135
B94: 2011Q3 | C94: 2011 | D94: Q3 | E94: 359301 | F94: 352497 | G94: 551634 | H94: 235237 | I94: 363103 | J94: 254620 | K94: 261058
B95: 2011Q4 | C95: 2011 | D95: Q4 | E95: 359649 | F95: 354310 | G95: 534165 | H95: 246890 | I95: 372229 | J95: 258125 | K95: 266086
B96: 2012Q1 | C96: 2012 | D96: Q1 | E96: 363227 | F96: 355397 | G96: 536169 | H96: 239980 | I96: 380116 | J96: 261433 | K96: 266547
B97: 2012Q2 | C97: 2012 | D97: Q2 | E97: 362354 | F97: 363345 | G97: 509564 | H97: 244400 | I97: 383194 | J97: 263998 | K97: 274672
B98: 2012Q3 | C98: 2012 | D98: Q3 | E98: 358687 | F98: 360398 | G98: 502604 | H98: 246489 | I98: 378464 | J98: 267082 | K98: 275620
B99: 2012Q4 | C99: 2012 | D99: Q4 | E99: 360565 | F99: 368768 | G99: 503213 | H99: 255567 | I99: 381272 | J99: 265961 | K99: 283015
B100: 2013Q1 | C100: 2013 | D100: Q1 | E100: 366502 | F100: 375672 | G100: 511334 | H100: 258761 | I100: 390481 | J100: 268204 | K100: 283372
B101: 2013Q2 | C101: 2013 | D101: Q2 | E101: 373467 | F101: 376687 | G101: 523011 | H101: 256420 | I101: 393417 | J101: 266758 | K101: 288118
B102: 2013Q3 | C102: 2013 | D102: Q3 | E102: 389526 | F102: 382878 | G102: 552875 | H102: 257240 | I102: 404648 | J102: 267749 | K102: 287454
B103: 2013Q4 | C103: 2013 | D103: Q4 | E103: 396491 | F103: 385609 | G103: 563885 | H103: 270455 | I103: 414270 | J103: 268012 | K103: 289751
B104: 2014Q1 | C104: 2014 | D104: Q1 | E104: 396693 | F104: 400750 | G104: 559735 | H104: 264956 | I104: 420109 | J104: 269362 | K104: 298776
B105: 2014Q2 | C105: 2014 | D105: Q2 | E105: 400644 | F105: 395583 | G105: 552674 | H105: 264473 | I105: 423479 | J105: 271136 | K105: 294686
B106: 2014Q3 | C106: 2014 | D106: Q3 | E106: 410851 | F106: 399525 | G106: 581816 | H106: 264185 | I106: 429412 | J106: 270195 | K106: 296144
B107: 2014Q4 | C107: 2014 | D107: Q4 | E107: 418665 | F107: 403620 | G107: 587534 | H107: 265206 | I107: 440212 | J107: 274877 | K107: 302403
B108: 2015Q1 | C108: 2015 | D108: Q1 | E108: 421012 | F108: 390437 | G108: 600947 | H108: 267136 | I108: 445197 | J108: 272881 | K108: 297913
B109: 2015Q2 | C109: 2015 | D109: Q2 | E109: 436238 | F109: 395231 | G109: 622767 | H109: 268773 | I109: 459022 | J109: 274592 | K109: 298027
B110: 2015Q3 | C110: 2015 | D110: Q3 | E110: 443189 | F110: 390144 | G110: 634403 | H110: 271709 | I110: 464392 | J110: 277002 | K110: 294639
B111: 2015Q4 | C111: 2015 | D111: Q4 | E111: 462123 | F111: 390066 | G111: 690503 | H111: 265108 | I111: 473463 | J111: 276891 | K111: 296555
B112: 2016Q1 | C112: 2016 | D112: Q1 | E112: 489476 | F112: 385608 | G112: 739643 | H112: 276157 | I112: 496986 | J112: 279701 | K112: 292624
B113: 2016Q2 | C113: 2016 | D113: Q2 | E113: 490916 | F113: 391255 | G113: 710932 | H113: 271839 | I113: 517835 | J113: 281856 | K113: 293119
B114: 2016Q3 | C114: 2016 | D114: Q3 | E114: 480795 | F114: 398340 | G114: 634383 | H114: 277432 | I114: 543826 | J114: 286163 | K114: 299390
B115: 2016Q4 | C115: 2016 | D115: Q4 | E115: 488169 | F115: 397665 | G115: 640540 | H115: 279695 | I115: 568308 | J115: 287915 | K115: 292856
B116: 2017Q1 | C116: 2017 | D116: Q1 | E116: 509052 | F116: 395415 | G116: 639022 | H116: 285662 | I116: 615770 | J116: 290894 | K116: 290979
B117: 2017Q2 | C117: 2017 | D117: Q2 | E117: 513467 | F117: 401853 | G117: 716023 | H117: 284145 | I117: 582090 | J117: 295751 | K117: 294454
B118: 2017Q3 | C118: 2017 | D118: Q3 | E118: 501439 | F118: 396157 | G118: 716620 | H118: 287226 | I118: 554776 | J118: 297433 | K118: 297498
B119: 2017Q4 | C119: 2017 | D119: Q4 | E119: 497563 | F119: 401149 | G119: 718213 | H119: 288310 | I119: 547202 | J119: 298884 | K119: 298730
B120: 2018Q1 | C120: 2018 | D120: Q1 | E120: 498636 | F120: 403229 | G120: 716648 | H120: 290471 | I120: 554210 | J120: 300921 | K120: 298521
B121: 2018Q2 | C121: 2018 | D121: Q2 | E121: 500497 | F121: 405565 | G121: 720207 | H121: 292290 | I121: 555263 | J121: 302561 | K121: 298141
B122: 2018Q3 | C122: 2018 | D122: Q3 | E122: 504143 | F122: 407538 | G122: 725404 | H122: 295060 | I122: 556614 | J122: 304567 | K122: 297812
B123: 2018Q4 | C123: 2018 | D123: Q4 | E123: 508328 | F123: 410214 | G123: 731803 | H123: 298217 | I123: 560539 | J123: 306782 | K123: 298408
B124: 2019Q1 | C124: 2019 | D124: Q1 | E124: 512650 | F124: 411444 | G124: 739984 | H124: 300698 | I124: 563948 | J124: 309150 | K124: 299371
B125: 2019Q2 | C125: 2019 | D125: Q2 | E125: 517175 | F125: 412657 | G125: 748565 | H125: 304112 | I125: 567329 | J125: 311750 | K125: 300964
B126: 2019Q3 | C126: 2019 | D126: Q3 | E126: 521892 | F126: 414247 | G126: 756702 | H126: 307863 | I126: 571592 | J126: 314437 | K126: 303337
B127: 2019Q4 | C127: 2019 | D127: Q4 | E127: 525949 | F127: 415959 | G127: 765067 | H127: 311612 | I127: 576886 | J127: 317238 | K127: 306274
B128: 2020Q1 | C128: 2020 | D128: Q1 | E128: 529336 | F128: 417844 | G128: 770740 | H128: 315321 | I128: 581194 | J128: 319879 | K128: 307964
B129: 2020Q2 | C129: =MID(B129,1, 4) -> 2020 | D129: =MID(B129, 5, 2) -> Q2 | E129: 532984 | F129: 420260 | G129: 775351 | H129: 319596 | I129: 584738 | J129: 322563 | K129: 310132
B130: 2020Q3 | C130: 2020 | D130: Q3 | E130: 537773 | F130: 423389 | G130: 781319 | H130: 323997 | I130: 589291 | J130: 325492 | K130: 312375
B131: 2020Q4 | C131: 2020 | D131: Q4 | E131: 543231 | F131: 426957 | G131: 788637 | H131: 328665 | I131: 594281 | J131: 328581 | K131: 315193
B132: 2021Q1 | C132: 2021 | D132: Q1 | E132: 548513 | F132: 430037 | G132: 796554 | H132: 332132 | I132: 599898 | J132: 331126 | K132: 317554
B133: 2021Q2 | C133: 2021 | D133: Q2 | E133: 553493 | F133: 433386 | G133: 804183 | H133: 336535 | I133: 604132 | J133: 334100 | K133: 319475
B134: 2021Q3 | C134: 2021 | D134: Q3 | E134: 558409 | F134: 436943 | G134: 812536 | H134: 341132 | I134: 609117 | J134: 337017 | K134: 321430
B135: 2021Q4 | C135: 2021 | D135: Q4 | E135: 563376 | F135: 440828 | G135: 820703 | H135: 345926 | I135: 614501 | J135: 340089 | K135: 323508
B136: 2022Q1 | C136: 2022 | D136: Q1 | E136: 568549 | F136: 444951 | G136: 829624 | H136: 350138 | I136: 618514 | J136: 342473 | K136: 325874
B137: 2022Q2 | C137: 2022 | D137: Q2 | E137: 574132 | F137: 449436 | G137: 839068 | H137: 355003 | I137: 622337 | J137: 345228 | K137: 328614
B138: 2022Q3 | C138: 2022 | D138: Q3 | E138: 580054 | F138: 454431 | G138: 848762 | H138: 360158 | I138: 627477 | J138: 347970 | K138: 331757
B139: 2022Q4 | C139: 2022 | D139: Q4 | E139: 586121 | F139: 459831 | G139: 859081 | H139: 365539 | I139: 632728 | J139: 350834 | K139: 335264

Sheet fitted
B2: TAB: FITTED YIELD TERM STRUCTURE
B4: Fitted yields (in %)
B5: ='data, adj'!B6 -> Date | C5: ='data, adj'!M6 & " - fitted" -> CA - fitted | D5: ='data, adj'!N6 & " - fitted" -> AB - fitted | E5: ='data, adj'!O6 & " - fitted" -> BC - fitted | F5: ='data, adj'!P6 & " - fitted" -> MB - fitted | G5: ='data, adj'!Q6 & " - fitted" -> ON - fitted | H5: ='data, adj'!R6 & " - fitted" -> QC - fitted | I5: ='data, adj'!S6 & " - fitted" -> SK - fitted
B6: ='data, adj'!B35 -> 2015-12-31 | C6: =_xll.AC.stats.reg._get(calc!B11, config!B11, 1) -> java.lang.ClassCastException: java.util.ArrayList cannot be cast to java.lang.Double | D6: java.lang.ClassCastException: java.util.ArrayList cannot be cast to java.lang.Double | E6: java.lang.ClassCastException: java.util.ArrayList cannot be cast to java.lang.Double | F6: java.lang.ClassCastException: java.util.ArrayList cannot be cast to java.lang.Double | G6: java.lang.ClassCastException: java.util.ArrayList cannot be cast to java.lang.Double | H6: java.lang.ClassCastException: java.util.ArrayList cannot be cast to java.lang.Double | I6: java.lang.ClassCastException: java.util.ArrayList cannot be cast to java.lang.Double
B7: ='data, adj'!B36 -> 2015-09-30 | C7: java.lang.ClassCastException: java.util.ArrayList cannot be cast to java.lang.Double | D7: java.lang.ClassCastException: java.util.ArrayList cannot be cast to java.lang.Double | E7: java.lang.ClassCastException: java.util.ArrayList cannot be cast to java.lang.Double | F7: java.lang.ClassCastException: java.util.ArrayList cannot be cast to java.lang.Double | G7: java.lang.ClassCastException: java.util.ArrayList cannot be cast to java.lang.Double | H7: java.lang.ClassCastException: java.util.ArrayList cannot be cast to java.lang.Double | I7: java.lang.ClassCastException: java.util.ArrayList cannot be cast to java.lang.Double
B8: ='data, adj'!B37 -> 2015-06-30 | C8: java.lang.ClassCastException: java.util.ArrayList cannot be cast to java.lang.Double | D8: java.lang.ClassCastException: java.util.ArrayList cannot be cast to java.lang.Double | E8: java.lang.ClassCastException: java.util.ArrayList cannot be cast to java.lang.Double | F8: java.lang.ClassCastException: java.util.ArrayList cannot be cast to java.lang.Double | G8: java.lang.ClassCastException: java.util.ArrayList cannot be cast to java.lang.Double | H8: java.lang.ClassCastException: java.util.ArrayList cannot be cast to java.lang.Double | I8: java.lang.ClassCastException: java.util.ArrayList cannot be cast to java.lang.Double
B9: ='data, adj'!B38 -> 2015-03-31 | C9: java.lang.ClassCastException: java.util.ArrayList cannot be cast to java.lang.Double | D9: java.lang.ClassCastException: java.util.ArrayList cannot be cast to java.lang.Double | E9: java.lang.ClassCastException: java.util.ArrayList cannot be cast to java.lang.Double | F9: java.lang.ClassCastException: java.util.ArrayList cannot be cast to java.lang.Double | G9: java.lang.ClassCastException: java.util.ArrayList cannot be cast to java.lang.Double | H9: java.lang.ClassCastException: java.util.ArrayList cannot be cast to java.lang.Double | I9: java.lang.ClassCastException: java.util.ArrayList cannot be cast to java.lang.Double
B10: ='data, adj'!B39 -> 2014-12-31 | C10: java.lang.ClassCastException: java.util.ArrayList cannot be cast to java.lang.Double | D10: java.lang.ClassCastException: java.util.ArrayList cannot be cast to java.lang.Double | E10: java.lang.ClassCastException: java.util.ArrayList cannot be cast to java.lang.Double | F10: java.lang.ClassCastException: java.util.ArrayList cannot be cast to java.lang.Double | G10: java.lang.ClassCastException: java.util.ArrayList cannot be cast to java.lang.Double | H10: java.lang.ClassCastException: java.util.ArrayList cannot be cast to java.lang.Double | I10: java.lang.ClassCastException: java.util.ArrayList cannot be cast to java.lang.Double
B11: ='data, adj'!B40 -> 2014-09-30 | C11: java.lang.ClassCastException: java.util.ArrayList cannot be cast to java.lang.Double | D11: java.lang.ClassCastException: java.util.ArrayList cannot be cast to java.lang.Double | E11: java.lang.ClassCastException: java.util.ArrayList cannot be cast to java.lang.Double | F11: java.lang.ClassCastException: java.util.ArrayList cannot be cast to java.lang.Double | G11: java.lang.ClassCastException: java.util.ArrayList cannot be cast to java.lang.Double | H11: java.lang.ClassCastException: java.util.ArrayList cannot be cast to java.lang.Double | I11: java.lang.ClassCastException: java.util.ArrayList cannot be cast to java.lang.Double
B12: ='data, adj'!B41 -> 2014-06-30 | C12: java.lang.ClassCastException: java.util.ArrayList cannot be cast to java.lang.Double | D12: java.lang.ClassCastException: java.util.ArrayList cannot be cast to java.lang.Double | E12: java.lang.ClassCastException: java.util.ArrayList cannot be cast to java.lang.Double | F12: java.lang.ClassCastException: java.util.ArrayList cannot be cast to java.lang.Double | G12: java.lang.ClassCastException: java.util.ArrayList cannot be cast to java.lang.Double | H12: java.lang.ClassCastException: java.util.ArrayList cannot be cast to java.lang.Double | I12: java.lang.ClassCastException: java.util.ArrayList cannot be cast to java.lang.Double
B13: ='data, adj'!B42 -> 2014-03-31 | C13: java.lang.ClassCastException: java.util.ArrayList cannot be cast to java.lang.Double | D13: java.lang.ClassCastException: java.util.ArrayList cannot be cast to java.lang.Double | E13: java.lang.ClassCastException: java.util.ArrayList cannot be cast to java.lang.Double | F13: java.lang.ClassCastException: java.util.ArrayList cannot be cast to java.lang.Double | G13: java.lang.ClassCastException: java.util.ArrayList cannot be cast to java.lang.Double | H13: java.lang.ClassCastException: java.util.ArrayList cannot be cast to java.lang.Double | I13: java.lang.ClassCastException: java.util.ArrayList cannot be cast to java.lang.Double
B14: ='data, adj'!B43 -> 2013-12-31 | C14: java.lang.ClassCastException: java.util.ArrayList cannot be cast to java.lang.Double | D14: java.lang.ClassCastException: java.util.ArrayList cannot be cast to java.lang.Double | E14: java.lang.ClassCastException: java.util.ArrayList cannot be cast to java.lang.Double | F14: java.lang.ClassCastException: java.util.ArrayList cannot be cast to java.lang.Double | G14: java.lang.ClassCastException: java.util.ArrayList cannot be cast to java.lang.Double | H14: java.lang.ClassCastException: java.util.ArrayList cannot be cast to java.lang.Double | I14: java.lang.ClassCastException: java.util.ArrayList cannot be cast to java.lang.Double
B15: ='data, adj'!B44 -> 2013-09-30 | C15: java.lang.ClassCastException: java.util.ArrayList cannot be cast to java.lang.Double | D15: java.lang.ClassCastException: java.util.ArrayList cannot be cast to java.lang.Double | E15: java.lang.ClassCastException: java.util.ArrayList cannot be cast to java.lang.Double | F15: java.lang.ClassCastException: java.util.ArrayList cannot be cast to java.lang.Double | G15: java.lang.ClassCastException: java.util.ArrayList cannot be cast to java.lang.Double | H15: java.lang.ClassCastException: java.util.ArrayList cannot be cast to java.lang.Double | I15: java.lang.ClassCastException: java.util.ArrayList cannot be cast to java.lang.Double
B16: ='data, adj'!B45 -> 2013-06-30 | C16: java.lang.ClassCastException: java.util.ArrayList cannot be cast to java.lang.Double | D16: java.lang.ClassCastException: java.util.ArrayList cannot be cast to java.lang.Double | E16: java.lang.ClassCastException: java.util.ArrayList cannot be cast to java.lang.Double | F16: java.lang.ClassCastException: java.util.ArrayList cannot be cast to java.lang.Double | G16: java.lang.ClassCastException: java.util.ArrayList cannot be cast to java.lang.Double | H16: java.lang.ClassCastException: java.util.ArrayList cannot be cast to java.lang.Double | I16: java.lang.ClassCastException: java.util.ArrayList cannot be cast to java.lang.Double
B17: ='data, adj'!B46 -> 2013-03-31 | C17: java.lang.ClassCastException: java.util.ArrayList cannot be cast to java.lang.Double | D17: java.lang.ClassCastException: java.util.ArrayList cannot be cast to java.lang.Double | E17: java.lang.ClassCastException: java.util.ArrayList cannot be cast to java.lang.Double | F17: java.lang.ClassCastException: java.util.ArrayList cannot be cast to java.lang.Double | G17: java.lang.ClassCastException: java.util.ArrayList cannot be cast to java.lang.Double | H17: java.lang.ClassCastException: java.util.ArrayList cannot be cast to java.lang.Double | I17: java.lang.ClassCastException: java.util.ArrayList cannot be cast to java.lang.Double
B18: ='data, adj'!B47 -> 2012-12-31 | C18: java.lang.ClassCastException: java.util.ArrayList cannot be cast to java.lang.Double | D18: java.lang.ClassCastException: java.util.ArrayList cannot be cast to java.lang.Double | E18: java.lang.ClassCastException: java.util.ArrayList cannot be cast to java.lang.Double | F18: java.lang.ClassCastException: java.util.ArrayList cannot be cast to java.lang.Double | G18: java.lang.ClassCastException: java.util.ArrayList cannot be cast to java.lang.Double | H18: java.lang.ClassCastException: java.util.ArrayList cannot be cast to java.lang.Double | I18: java.lang.ClassCastException: java.util.ArrayList cannot be cast to java.lang.Double
B19: ='data, adj'!B48 -> 2012-09-30 | C19: java.lang.ClassCastException: java.util.ArrayList cannot be cast to java.lang.Double | D19: java.lang.ClassCastException: java.util.ArrayList cannot be cast to java.lang.Double | E19: java.lang.ClassCastException: java.util.ArrayList cannot be cast to java.lang.Double | F19: java.lang.ClassCastException: java.util.ArrayList cannot be cast to java.lang.Double | G19: java.lang.ClassCastException: java.util.ArrayList cannot be cast to java.lang.Double | H19: java.lang.ClassCastException: java.util.ArrayList cannot be cast to java.lang.Double | I19: java.lang.ClassCastException: java.util.ArrayList cannot be cast to java.lang.Double
B20: ='data, adj'!B49 -> 2012-06-30 | C20: java.lang.ClassCastException: java.util.ArrayList cannot be cast to java.lang.Double | D20: java.lang.ClassCastException: java.util.ArrayList cannot be cast to java.lang.Double | E20: java.lang.ClassCastException: java.util.ArrayList cannot be cast to java.lang.Double | F20: java.lang.ClassCastException: java.util.ArrayList cannot be cast to java.lang.Double | G20: java.lang.ClassCastException: java.util.ArrayList cannot be cast to java.lang.Double | H20: java.lang.ClassCastException: java.util.ArrayList cannot be cast to java.lang.Double | I20: java.lang.ClassCastException: java.util.ArrayList cannot be cast to java.lang.Double
B21: ='data, adj'!B50 -> 2012-03-31 | C21: java.lang.ClassCastException: java.util.ArrayList cannot be cast to java.lang.Double | D21: java.lang.ClassCastException: java.util.ArrayList cannot be cast to java.lang.Double | E21: java.lang.ClassCastException: java.util.ArrayList cannot be cast to java.lang.Double | F21: java.lang.ClassCastException: java.util.ArrayList cannot be cast to java.lang.Double | G21: java.lang.ClassCastException: java.util.ArrayList cannot be cast to java.lang.Double | H21: java.lang.ClassCastException: java.util.ArrayList cannot be cast to java.lang.Double | I21: java.lang.ClassCastException: java.util.ArrayList cannot be cast to java.lang.Double
B22: ='data, adj'!B51 -> 2011-12-31 | C22: java.lang.ClassCastException: java.util.ArrayList cannot be cast to java.lang.Double | D22: java.lang.ClassCastException: java.util.ArrayList cannot be cast to java.lang.Double | E22: java.lang.ClassCastException: java.util.ArrayList cannot be cast to java.lang.Double | F22: java.lang.ClassCastException: java.util.ArrayList cannot be cast to java.lang.Double | G22: java.lang.ClassCastException: java.util.ArrayList cannot be cast to java.lang.Double | H22: java.lang.ClassCastException: java.util.ArrayList cannot be cast to java.lang.Double | I22: java.lang.ClassCastException: java.util.ArrayList cannot be cast to java.lang.Double
B23: ='data, adj'!B52 -> 2011-09-30 | C23: java.lang.ClassCastException: java.util.ArrayList cannot be cast to java.lang.Double | D23: java.lang.ClassCastException: java.util.ArrayList cannot be cast to java.lang.Double | E23: java.lang.ClassCastException: java.util.ArrayList cannot be cast to java.lang.Double | F23: java.lang.ClassCastException: java.util.ArrayList cannot be cast to java.lang.Double | G23: java.lang.ClassCastException: java.util.ArrayList cannot be cast to java.lang.Double | H23: java.lang.ClassCastException: java.util.ArrayList cannot be cast to java.lang.Double | I23: java.lang.ClassCastException: java.util.ArrayList cannot be cast to java.lang.Double
B24: ='data, adj'!B53 -> 2011-06-30 | C24: java.lang.ClassCastException: java.util.ArrayList cannot be cast to java.lang.Double | D24: java.lang.ClassCastException: java.util.ArrayList cannot be cast to java.lang.Double | E24: java.lang.ClassCastException: java.util.ArrayList cannot be cast to java.lang.Double | F24: java.lang.ClassCastException: java.util.ArrayList cannot be cast to java.lang.Double | G24: java.lang.ClassCastException: java.util.ArrayList cannot be cast to java.lang.Double | H24: java.lang.ClassCastException: java.util.ArrayList cannot be cast to java.lang.Double | I24: java.lang.ClassCastException: java.util.ArrayList cannot be cast to java.lang.Double
B25: ='data, adj'!B54 -> 2011-03-31 | C25: java.lang.ClassCastException: java.util.ArrayList cannot be cast to java.lang.Double | D25: java.lang.ClassCastException: java.util.ArrayList cannot be cast to java.lang.Double | E25: java.lang.ClassCastException: java.util.ArrayList cannot be cast to java.lang.Double | F25: java.lang.ClassCastException: java.util.ArrayList cannot be cast to java.lang.Double | G25: java.lang.ClassCastException: java.util.ArrayList cannot be cast to java.lang.Double | H25: java.lang.ClassCastException: java.util.ArrayList cannot be cast to java.lang.Double | I25: java.lang.ClassCastException: java.util.ArrayList cannot be cast to java.lang.Double
B26: ='data, adj'!B55 -> 2010-12-31 | C26: java.lang.ClassCastException: java.util.ArrayList cannot be cast to java.lang.Double | D26: java.lang.ClassCastException: java.util.ArrayList cannot be cast to java.lang.Double | E26: java.lang.ClassCastException: java.util.ArrayList cannot be cast to java.lang.Double | F26: java.lang.ClassCastException: java.util.ArrayList cannot be cast to java.lang.Double | G26: java.lang.ClassCastException: java.util.ArrayList cannot be cast to java.lang.Double | H26: java.lang.ClassCastException: java.util.ArrayList cannot be cast to java.lang.Double | I26: java.lang.ClassCastException: java.util.ArrayList cannot be cast to java.lang.Double
B27: ='data, adj'!B56 -> 2010-09-30 | C27: java.lang.ClassCastException: java.util.ArrayList cannot be cast to java.lang.Double | D27: java.lang.ClassCastException: java.util.ArrayList cannot be cast to java.lang.Double | E27: java.lang.ClassCastException: java.util.ArrayList cannot be cast to java.lang.Double | F27: java.lang.ClassCastException: java.util.ArrayList cannot be cast to java.lang.Double | G27: java.lang.ClassCastException: java.util.ArrayList cannot be cast to java.lang.Double | H27: java.lang.ClassCastException: java.util.ArrayList cannot be cast to java.lang.Double | I27: java.lang.ClassCastException: java.util.ArrayList cannot be cast to java.lang.Double
B28: ='data, adj'!B57 -> 2010-06-30 | C28: java.lang.ClassCastException: java.util.ArrayList cannot be cast to java.lang.Double | D28: java.lang.ClassCastException: java.util.ArrayList cannot be cast to java.lang.Double | E28: java.lang.ClassCastException: java.util.ArrayList cannot be cast to java.lang.Double | F28: java.lang.ClassCastException: java.util.ArrayList cannot be cast to java.lang.Double | G28: java.lang.ClassCastException: java.util.ArrayList cannot be cast to java.lang.Double | H28: java.lang.ClassCastException: java.util.ArrayList cannot be cast to java.lang.Double | I28: java.lang.ClassCastException: java.util.ArrayList cannot be cast to java.lang.Double
B29: ='data, adj'!B58 -> 2010-03-31 | C29: java.lang.ClassCastException: java.util.ArrayList cannot be cast to java.lang.Double | D29: java.lang.ClassCastException: java.util.ArrayList cannot be cast to java.lang.Double | E29: java.lang.ClassCastException: java.util.ArrayList cannot be cast to java.lang.Double | F29: java.lang.ClassCastException: java.util.ArrayList cannot be cast to java.lang.Double | G29: java.lang.ClassCastException: java.util.ArrayList cannot be cast to java.lang.Double | H29: java.lang.ClassCastException: java.util.ArrayList cannot be cast to java.lang.Double | I29: java.lang.ClassCastException: java.util.ArrayList cannot be cast to java.lang.Double
B30: ='data, adj'!B59 -> 2009-12-31 | C30: java.lang.ClassCastException: java.util.ArrayList cannot be cast to java.lang.Double | D30: java.lang.ClassCastException: java.util.ArrayList cannot be cast to java.lang.Double | E30: java.lang.ClassCastException: java.util.ArrayList cannot be cast to java.lang.Double | F30: java.lang.ClassCastException: java.util.ArrayList cannot be cast to java.lang.Double | G30: java.lang.ClassCastException: java.util.ArrayList cannot be cast to java.lang.Double | H30: java.lang.ClassCastException: java.util.ArrayList cannot be cast to java.lang.Double | I30: java.lang.ClassCastException: java.util.ArrayList cannot be cast to java.lang.Double
B31: ='data, adj'!B60 -> 2009-09-30 | C31: java.lang.ClassCastException: java.util.ArrayList cannot be cast to java.lang.Double | D31: java.lang.ClassCastException: java.util.ArrayList cannot be cast to java.lang.Double | E31: java.lang.ClassCastException: java.util.ArrayList cannot be cast to java.lang.Double | F31: java.lang.ClassCastException: java.util.ArrayList cannot be cast to java.lang.Double | G31: java.lang.ClassCastException: java.util.ArrayList cannot be cast to java.lang.Double | H31: java.lang.ClassCastException: java.util.ArrayList cannot be cast to java.lang.Double | I31: java.lang.ClassCastException: java.util.ArrayList cannot be cast to java.lang.Double
B32: ='data, adj'!B61 -> 2009-06-30 | C32: java.lang.ClassCastException: java.util.ArrayList cannot be cast to java.lang.Double | D32: java.lang.ClassCastException: java.util.ArrayList cannot be cast to java.lang.Double | E32: java.lang.ClassCastException: java.util.ArrayList cannot be cast to java.lang.Double | F32: java.lang.ClassCastException: java.util.ArrayList cannot be cast to java.lang.Double | G32: java.lang.ClassCastException: java.util.ArrayList cannot be cast to java.lang.Double | H32: java.lang.ClassCastException: java.util.ArrayList cannot be cast to java.lang.Double | I32: java.lang.ClassCastException: java.util.ArrayList cannot be cast to java.lang.Double
B33: ='data, adj'!B62 -> 2009-03-31 | C33: java.lang.ClassCastException: java.util.ArrayList cannot be cast to java.lang.Double | D33: java.lang.ClassCastException: java.util.ArrayList cannot be cast to java.lang.Double | E33: java.lang.ClassCastException: java.util.ArrayList cannot be cast to java.lang.Double | F33: java.lang.ClassCastException: java.util.ArrayList cannot be cast to java.lang.Double | G33: java.lang.ClassCastException: java.util.ArrayList cannot be cast to java.lang.Double | H33: java.lang.ClassCastException: java.util.ArrayList cannot be cast to java.lang.Double | I33: java.lang.ClassCastException: java.util.ArrayList cannot be cast to java.lang.Double
B34: ='data, adj'!B63 -> 2008-12-31 | C34: java.lang.ClassCastException: java.util.ArrayList cannot be cast to java.lang.Double | D34: java.lang.ClassCastException: java.util.ArrayList cannot be cast to java.lang.Double | E34: java.lang.ClassCastException: java.util.ArrayList cannot be cast to java.lang.Double | F34: java.lang.ClassCastException: java.util.ArrayList cannot be cast to java.lang.Double | G34: java.lang.ClassCastException: java.util.ArrayList cannot be cast to java.lang.Double | H34: java.lang.ClassCastException: java.util.ArrayList cannot be cast to java.lang.Double | I34: java.lang.ClassCastException: java.util.ArrayList cannot be cast to java.lang.Double
B35: ='data, adj'!B64 -> 2008-09-30 | C35: java.lang.ClassCastException: java.util.ArrayList cannot be cast to java.lang.Double | D35: java.lang.ClassCastException: java.util.ArrayList cannot be cast to java.lang.Double | E35: java.lang.ClassCastException: java.util.ArrayList cannot be cast to java.lang.Double | F35: java.lang.ClassCastException: java.util.ArrayList cannot be cast to java.lang.Double | G35: java.lang.ClassCastException: java.util.ArrayList cannot be cast to java.lang.Double | H35: java.lang.ClassCastException: java.util.ArrayList cannot be cast to java.lang.Double | I35: java.lang.ClassCastException: java.util.ArrayList cannot be cast to java.lang.Double
B36: ='data, adj'!B65 -> 2008-06-30 | C36: java.lang.ClassCastException: java.util.ArrayList cannot be cast to java.lang.Double | D36: java.lang.ClassCastException: java.util.ArrayList cannot be cast to java.lang.Double | E36: java.lang.ClassCastException: java.util.ArrayList cannot be cast to java.lang.Double | F36: java.lang.ClassCastException: java.util.ArrayList cannot be cast to java.lang.Double | G36: java.lang.ClassCastException: java.util.ArrayList cannot be cast to java.lang.Double | H36: java.lang.ClassCastException: java.util.ArrayList cannot be cast to java.lang.Double | I36: java.lang.ClassCastException: java.util.ArrayList cannot be cast to java.lang.Double
B37: ='data, adj'!B66 -> 2008-03-31 | C37: java.lang.ClassCastException: java.util.ArrayList cannot be cast to java.lang.Double | D37: java.lang.ClassCastException: java.util.ArrayList cannot be cast to java.lang.Double | E37: java.lang.ClassCastException: java.util.ArrayList cannot be cast to java.lang.Double | F37: java.lang.ClassCastException: java.util.ArrayList cannot be cast to java.lang.Double | G37: java.lang.ClassCastException: java.util.ArrayList cannot be cast to java.lang.Double | H37: java.lang.ClassCastException: java.util.ArrayList cannot be cast to java.lang.Double | I37: java.lang.ClassCastException: java.util.ArrayList cannot be cast to java.lang.Double
B38: ='data, adj'!B67 -> 2007-12-31 | C38: java.lang.ClassCastException: java.util.ArrayList cannot be cast to java.lang.Double | D38: java.lang.ClassCastException: java.util.ArrayList cannot be cast to java.lang.Double | E38: java.lang.ClassCastException: java.util.ArrayList cannot be cast to java.lang.Double | F38: java.lang.ClassCastException: java.util.ArrayList cannot be cast to java.lang.Double | G38: java.lang.ClassCastException: java.util.ArrayList cannot be cast to java.lang.Double | H38: java.lang.ClassCastException: java.util.ArrayList cannot be cast to java.lang.Double | I38: java.lang.ClassCastException: java.util.ArrayList cannot be cast to java.lang.Double
B39: ='data, adj'!B68 -> 2007-09-30 | C39: java.lang.ClassCastException: java.util.ArrayList cannot be cast to java.lang.Double | D39: java.lang.ClassCastException: java.util.ArrayList cannot be cast to java.lang.Double | E39: java.lang.ClassCastException: java.util.ArrayList cannot be cast to java.lang.Double | F39: java.lang.ClassCastException: java.util.ArrayList cannot be cast to java.lang.Double | G39: java.lang.ClassCastException: java.util.ArrayList cannot be cast to java.lang.Double | H39: java.lang.ClassCastException: java.util.ArrayList cannot be cast to java.lang.Double | I39: java.lang.ClassCastException: java.util.ArrayList cannot be cast to java.lang.Double
B40: ='data, adj'!B69 -> 2007-06-30 | C40: java.lang.ClassCastException: java.util.ArrayList cannot be cast to java.lang.Double | D40: java.lang.ClassCastException: java.util.ArrayList cannot be cast to java.lang.Double | E40: java.lang.ClassCastException: java.util.ArrayList cannot be cast to java.lang.Double | F40: java.lang.ClassCastException: java.util.ArrayList cannot be cast to java.lang.Double | G40: java.lang.ClassCastException: java.util.ArrayList cannot be cast to java.lang.Double | H40: java.lang.ClassCastException: java.util.ArrayList cannot be cast to java.lang.Double | I40: java.lang.ClassCastException: java.util.ArrayList cannot be cast to java.lang.Double
B41: ='data, adj'!B70 -> 2007-03-31 | C41: java.lang.ClassCastException: java.util.ArrayList cannot be cast to java.lang.Double | D41: java.lang.ClassCastException: java.util.ArrayList cannot be cast to java.lang.Double | E41: java.lang.ClassCastException: java.util.ArrayList cannot be cast to java.lang.Double | F41: java.lang.ClassCastException: java.util.ArrayList cannot be cast to java.lang.Double | G41: java.lang.ClassCastException: java.util.ArrayList cannot be cast to java.lang.Double | H41: java.lang.ClassCastException: java.util.ArrayList cannot be cast to java.lang.Double | I41: java.lang.ClassCastException: java.util.ArrayList cannot be cast to java.lang.Double
B42: ='data, adj'!B71 -> 2006-12-31 | C42: java.lang.ClassCastException: java.util.ArrayList cannot be cast to java.lang.Double | D42: java.lang.ClassCastException: java.util.ArrayList cannot be cast to java.lang.Double | E42: java.lang.ClassCastException: java.util.ArrayList cannot be cast to java.lang.Double | F42: java.lang.ClassCastException: java.util.ArrayList cannot be cast to java.lang.Double | G42: java.lang.ClassCastException: java.util.ArrayList cannot be cast to java.lang.Double | H42: java.lang.ClassCastException: java.util.ArrayList cannot be cast to java.lang.Double | I42: java.lang.ClassCastException: java.util.ArrayList cannot be cast to java.lang.Double
B43: ='data, adj'!B72 -> 2006-09-30 | C43: java.lang.ClassCastException: java.util.ArrayList cannot be cast to java.lang.Double | D43: java.lang.ClassCastException: java.util.ArrayList cannot be cast to java.lang.Double | E43: java.lang.ClassCastException: java.util.ArrayList cannot be cast to java.lang.Double | F43: java.lang.ClassCastException: java.util.ArrayList cannot be cast to java.lang.Double | G43: java.lang.ClassCastException: java.util.ArrayList cannot be cast to java.lang.Double | H43: java.lang.ClassCastException: java.util.ArrayList cannot be cast to java.lang.Double | I43: java.lang.ClassCastException: java.util.ArrayList cannot be cast to java.lang.Double
B44: ='data, adj'!B73 -> 2006-06-30 | C44: java.lang.ClassCastException: java.util.ArrayList cannot be cast to java.lang.Double | D44: java.lang.ClassCastException: java.util.ArrayList cannot be cast to java.lang.Double | E44: java.lang.ClassCastException: java.util.ArrayList cannot be cast to java.lang.Double | F44: java.lang.ClassCastException: java.util.ArrayList cannot be cast to java.lang.Double | G44: java.lang.ClassCastException: java.util.ArrayList cannot be cast to java.lang.Double | H44: java.lang.ClassCastException: java.util.ArrayList cannot be cast to java.lang.Double | I44: java.lang.ClassCastException: java.util.ArrayList cannot be cast to java.lang.Double
B45: ='data, adj'!B74 -> 2006-03-31 | C45: java.lang.ClassCastException: java.util.ArrayList cannot be cast to java.lang.Double | D45: java.lang.ClassCastException: java.util.ArrayList cannot be cast to java.lang.Double | E45: java.lang.ClassCastException: java.util.ArrayList cannot be cast to java.lang.Double | F45: java.lang.ClassCastException: java.util.ArrayList cannot be cast to java.lang.Double | G45: java.lang.ClassCastException: java.util.ArrayList cannot be cast to java.lang.Double | H45: java.lang.ClassCastException: java.util.ArrayList cannot be cast to java.lang.Double | I45: java.lang.ClassCastException: java.util.ArrayList cannot be cast to java.lang.Double
B46: ='data, adj'!B75 -> 2005-12-31 | C46: java.lang.ClassCastException: java.util.ArrayList cannot be cast to java.lang.Double | D46: java.lang.ClassCastException: java.util.ArrayList cannot be cast to java.lang.Double | E46: java.lang.ClassCastException: java.util.ArrayList cannot be cast to java.lang.Double | F46: java.lang.ClassCastException: java.util.ArrayList cannot be cast to java.lang.Double | G46: java.lang.ClassCastException: java.util.ArrayList cannot be cast to java.lang.Double | H46: java.lang.ClassCastException: java.util.ArrayList cannot be cast to java.lang.Double | I46: java.lang.ClassCastException: java.util.ArrayList cannot be cast to java.lang.Double
B47: ='data, adj'!B76 -> 2005-09-30 | C47: java.lang.ClassCastException: java.util.ArrayList cannot be cast to java.lang.Double | D47: java.lang.ClassCastException: java.util.ArrayList cannot be cast to java.lang.Double | E47: java.lang.ClassCastException: java.util.ArrayList cannot be cast to java.lang.Double | F47: java.lang.ClassCastException: java.util.ArrayList cannot be cast to java.lang.Double | G47: java.lang.ClassCastException: java.util.ArrayList cannot be cast to java.lang.Double | H47: java.lang.ClassCastException: java.util.ArrayList cannot be cast to java.lang.Double | I47: java.lang.ClassCastException: java.util.ArrayList cannot be cast to java.lang.Double
B48: ='data, adj'!B77 -> 2005-06-30 | C48: java.lang.ClassCastException: java.util.ArrayList cannot be cast to java.lang.Double | D48: java.lang.ClassCastException: java.util.ArrayList cannot be cast to java.lang.Double | E48: java.lang.ClassCastException: java.util.ArrayList cannot be cast to java.lang.Double | F48: java.lang.ClassCastException: java.util.ArrayList cannot be cast to java.lang.Double | G48: java.lang.ClassCastException: java.util.ArrayList cannot be cast to java.lang.Double | H48: java.lang.ClassCastException: java.util.ArrayList cannot be cast to java.lang.Double | I48: java.lang.ClassCastException: java.util.ArrayList cannot be cast to java.lang.Double
B49: ='data, adj'!B78 -> 2005-03-31 | C49: java.lang.ClassCastException: java.util.ArrayList cannot be cast to java.lang.Double | D49: java.lang.ClassCastException: java.util.ArrayList cannot be cast to java.lang.Double | E49: java.lang.ClassCastException: java.util.ArrayList cannot be cast to java.lang.Double | F49: java.lang.ClassCastException: java.util.ArrayList cannot be cast to java.lang.Double | G49: java.lang.ClassCastException: java.util.ArrayList cannot be cast to java.lang.Double | H49: java.lang.ClassCastException: java.util.ArrayList cannot be cast to java.lang.Double | I49: java.lang.ClassCastException: java.util.ArrayList cannot be cast to java.lang.Double
B50: ='data, adj'!B79 -> 2004-12-31 | C50: java.lang.ClassCastException: java.util.ArrayList cannot be cast to java.lang.Double | D50: java.lang.ClassCastException: java.util.ArrayList cannot be cast to java.lang.Double | E50: java.lang.ClassCastException: java.util.ArrayList cannot be cast to java.lang.Double | F50: java.lang.ClassCastException: java.util.ArrayList cannot be cast to java.lang.Double | G50: java.lang.ClassCastException: java.util.ArrayList cannot be cast to java.lang.Double | H50: java.lang.ClassCastException: java.util.ArrayList cannot be cast to java.lang.Double | I50: java.lang.ClassCastException: java.util.ArrayList cannot be cast to java.lang.Double
B51: ='data, adj'!B80 -> 2004-09-30 | C51: java.lang.ClassCastException: java.util.ArrayList cannot be cast to java.lang.Double | D51: java.lang.ClassCastException: java.util.ArrayList cannot be cast to java.lang.Double | E51: java.lang.ClassCastException: java.util.ArrayList cannot be cast to java.lang.Double | F51: java.lang.ClassCastException: java.util.ArrayList cannot be cast to java.lang.Double | G51: java.lang.ClassCastException: java.util.ArrayList cannot be cast to java.lang.Double | H51: java.lang.ClassCastException: java.util.ArrayList cannot be cast to java.lang.Double | I51: java.lang.ClassCastException: java.util.ArrayList cannot be cast to java.lang.Double
B52: ='data, adj'!B81 -> 2004-06-30 | C52: java.lang.ClassCastException: java.util.ArrayList cannot be cast to java.lang.Double | D52: java.lang.ClassCastException: java.util.ArrayList cannot be cast to java.lang.Double | E52: java.lang.ClassCastException: java.util.ArrayList cannot be cast to java.lang.Double | F52: java.lang.ClassCastException: java.util.ArrayList cannot be cast to java.lang.Double | G52: java.lang.ClassCastException: java.util.ArrayList cannot be cast to java.lang.Double | H52: java.lang.ClassCastException: java.util.ArrayList cannot be cast to java.lang.Double | I52: java.lang.ClassCastException: java.util.ArrayList cannot be cast to java.lang.Double
B53: ='data, adj'!B82 -> 2004-03-31 | C53: java.lang.ClassCastException: java.util.ArrayList cannot be cast to java.lang.Double | D53: java.lang.ClassCastException: java.util.ArrayList cannot be cast to java.lang.Double | E53: java.lang.ClassCastException: java.util.ArrayList cannot be cast to java.lang.Double | F53: java.lang.ClassCastException: java.util.ArrayList cannot be cast to java.lang.Double | G53: java.lang.ClassCastException: java.util.ArrayList cannot be cast to java.lang.Double | H53: java.lang.ClassCastException: java.util.ArrayList cannot be cast to java.lang.Double | I53: java.lang.ClassCastException: java.util.ArrayList cannot be cast to java.lang.Double
B54: ='data, adj'!B83 -> 2003-12-31 | C54: java.lang.ClassCastException: java.util.ArrayList cannot be cast to java.lang.Double | D54: java.lang.ClassCastException: java.util.ArrayList cannot be cast to java.lang.Double | E54: java.lang.ClassCastException: java.util.ArrayList cannot be cast to java.lang.Double | F54: java.lang.ClassCastException: java.util.ArrayList cannot be cast to java.lang.Double | G54: java.lang.ClassCastException: java.util.ArrayList cannot be cast to java.lang.Double | H54: java.lang.ClassCastException: java.util.ArrayList cannot be cast to java.lang.Double | I54: java.lang.ClassCastException: java.util.ArrayList cannot be cast to java.lang.Double
B55: ='data, adj'!B84 -> 2003-09-30 | C55: java.lang.ClassCastException: java.util.ArrayList cannot be cast to java.lang.Double | D55: java.lang.ClassCastException: java.util.ArrayList cannot be cast to java.lang.Double | E55: java.lang.ClassCastException: java.util.ArrayList cannot be cast to java.lang.Double | F55: java.lang.ClassCastException: java.util.ArrayList cannot be cast to java.lang.Double | G55: java.lang.ClassCastException: java.util.ArrayList cannot be cast to java.lang.Double | H55: java.lang.ClassCastException: java.util.ArrayList cannot be cast to java.lang.Double | I55: java.lang.ClassCastException: java.util.ArrayList cannot be cast to java.lang.Double
B56: ='data, adj'!B85 -> 2003-06-30 | C56: java.lang.ClassCastException: java.util.ArrayList cannot be cast to java.lang.Double | D56: java.lang.ClassCastException: java.util.ArrayList cannot be cast to java.lang.Double | E56: java.lang.ClassCastException: java.util.ArrayList cannot be cast to java.lang.Double | F56: java.lang.ClassCastException: java.util.ArrayList cannot be cast to java.lang.Double | G56: java.lang.ClassCastException: java.util.ArrayList cannot be cast to java.lang.Double | H56: java.lang.ClassCastException: java.util.ArrayList cannot be cast to java.lang.Double | I56: java.lang.ClassCastException: java.util.ArrayList cannot be cast to java.lang.Double
B57: ='data, adj'!B86 -> 2003-03-31 | C57: java.lang.ClassCastException: java.util.ArrayList cannot be cast to java.lang.Double | D57: java.lang.ClassCastException: java.util.ArrayList cannot be cast to java.lang.Double | E57: java.lang.ClassCastException: java.util.ArrayList cannot be cast to java.lang.Double | F57: java.lang.ClassCastException: java.util.ArrayList cannot be cast to java.lang.Double | G57: java.lang.ClassCastException: java.util.ArrayList cannot be cast to java.lang.Double | H57: java.lang.ClassCastException: java.util.ArrayList cannot be cast to java.lang.Double | I57: java.lang.ClassCastException: java.util.ArrayList cannot be cast to java.lang.Double
B58: ='data, adj'!B87 -> 2002-12-31 | C58: java.lang.ClassCastException: java.util.ArrayList cannot be cast to java.lang.Double | D58: java.lang.ClassCastException: java.util.ArrayList cannot be cast to java.lang.Double | E58: java.lang.ClassCastException: java.util.ArrayList cannot be cast to java.lang.Double | F58: java.lang.ClassCastException: java.util.ArrayList cannot be cast to java.lang.Double | G58: java.lang.ClassCastException: java.util.ArrayList cannot be cast to java.lang.Double | H58: java.lang.ClassCastException: java.util.ArrayList cannot be cast to java.lang.Double | I58: java.lang.ClassCastException: java.util.ArrayList cannot be cast to java.lang.Double
B59: ='data, adj'!B88 -> 2002-09-30 | C59: java.lang.ClassCastException: java.util.ArrayList cannot be cast to java.lang.Double | D59: java.lang.ClassCastException: java.util.ArrayList cannot be cast to java.lang.Double | E59: java.lang.ClassCastException: java.util.ArrayList cannot be cast to java.lang.Double | F59: java.lang.ClassCastException: java.util.ArrayList cannot be cast to java.lang.Double | G59: java.lang.ClassCastException: java.util.ArrayList cannot be cast to java.lang.Double | H59: java.lang.ClassCastException: java.util.ArrayList cannot be cast to java.lang.Double | I59: java.lang.ClassCastException: java.util.ArrayList cannot be cast to java.lang.Double
B60: ='data, adj'!B89 -> 2002-06-30 | C60: java.lang.ClassCastException: java.util.ArrayList cannot be cast to java.lang.Double | D60: java.lang.ClassCastException: java.util.ArrayList cannot be cast to java.lang.Double | E60: java.lang.ClassCastException: java.util.ArrayList cannot be cast to java.lang.Double | F60: java.lang.ClassCastException: java.util.ArrayList cannot be cast to java.lang.Double | G60: java.lang.ClassCastException: java.util.ArrayList cannot be cast to java.lang.Double | H60: java.lang.ClassCastException: java.util.ArrayList cannot be cast to java.lang.Double | I60: java.lang.ClassCastException: java.util.ArrayList cannot be cast to java.lang.Double
B61: ='data, adj'!B90 -> 2002-03-31 | C61: java.lang.ClassCastException: java.util.ArrayList cannot be cast to java.lang.Double | D61: java.lang.ClassCastException: java.util.ArrayList cannot be cast to java.lang.Double | E61: java.lang.ClassCastException: java.util.ArrayList cannot be cast to java.lang.Double | F61: java.lang.ClassCastException: java.util.ArrayList cannot be cast to java.lang.Double | G61: java.lang.ClassCastException: java.util.ArrayList cannot be cast to java.lang.Double | H61: java.lang.ClassCastException: java.util.ArrayList cannot be cast to java.lang.Double | I61: java.lang.ClassCastException: java.util.ArrayList cannot be cast to java.lang.Double
B62: ='data, adj'!B91 -> 2001-12-31 | C62: java.lang.ClassCastException: java.util.ArrayList cannot be cast to java.lang.Double | D62: java.lang.ClassCastException: java.util.ArrayList cannot be cast to java.lang.Double | E62: java.lang.ClassCastException: java.util.ArrayList cannot be cast to java.lang.Double | F62: java.lang.ClassCastException: java.util.ArrayList cannot be cast to java.lang.Double | G62: java.lang.ClassCastException: java.util.ArrayList cannot be cast to java.lang.Double | H62: java.lang.ClassCastException: java.util.ArrayList cannot be cast to java.lang.Double | I62: java.lang.ClassCastException: java.util.ArrayList cannot be cast to java.lang.Double
B63: ='data, adj'!B92 -> 2001-09-30 | C63: java.lang.ClassCastException: java.util.ArrayList cannot be cast to java.lang.Double | D63: java.lang.ClassCastException: java.util.ArrayList cannot be cast to java.lang.Double | E63: java.lang.ClassCastException: java.util.ArrayList cannot be cast to java.lang.Double | F63: java.lang.ClassCastException: java.util.ArrayList cannot be cast to java.lang.Double | G63: java.lang.ClassCastException: java.util.ArrayList cannot be cast to java.lang.Double | H63: java.lang.ClassCastException: java.util.ArrayList cannot be cast to java.lang.Double | I63: java.lang.ClassCastException: java.util.ArrayList cannot be cast to java.lang.Double
B64: ='data, adj'!B93 -> 2001-06-30 | C64: java.lang.ClassCastException: java.util.ArrayList cannot be cast to java.lang.Double | D64: java.lang.ClassCastException: java.util.ArrayList cannot be cast to java.lang.Double | E64: java.lang.ClassCastException: java.util.ArrayList cannot be cast to java.lang.Double | F64: java.lang.ClassCastException: java.util.ArrayList cannot be cast to java.lang.Double | G64: java.lang.ClassCastException: java.util.ArrayList cannot be cast to java.lang.Double | H64: java.lang.ClassCastException: java.util.ArrayList cannot be cast to java.lang.Double | I64: java.lang.ClassCastException: java.util.ArrayList cannot be cast to java.lang.Double
B65: ='data, adj'!B94 -> 2001-03-31 | C65: java.lang.ClassCastException: java.util.ArrayList cannot be cast to java.lang.Double | D65: java.lang.ClassCastException: java.util.ArrayList cannot be cast to java.lang.Double | E65: java.lang.ClassCastException: java.util.ArrayList cannot be cast to java.lang.Double | F65: java.lang.ClassCastException: java.util.ArrayList cannot be cast to java.lang.Double | G65: java.lang.ClassCastException: java.util.ArrayList cannot be cast to java.lang.Double | H65: java.lang.ClassCastException: java.util.ArrayList cannot be cast to java.lang.Double | I65: java.lang.ClassCastException: java.util.ArrayList cannot be cast to java.lang.Double
B66: ='data, adj'!B95 -> 2000-12-31 | C66: java.lang.ClassCastException: java.util.ArrayList cannot be cast to java.lang.Double | D66: java.lang.ClassCastException: java.util.ArrayList cannot be cast to java.lang.Double | E66: java.lang.ClassCastException: java.util.ArrayList cannot be cast to java.lang.Double | F66: java.lang.ClassCastException: java.util.ArrayList cannot be cast to java.lang.Double | G66: java.lang.ClassCastException: java.util.ArrayList cannot be cast to java.lang.Double | H66: java.lang.ClassCastException: java.util.ArrayList cannot be cast to java.lang.Double | I66: java.lang.ClassCastException: java.util.ArrayList cannot be cast to java.lang.Double
B67: ='data, adj'!B96 -> 2000-09-30 | C67: java.lang.ClassCastException: java.util.ArrayList cannot be cast to java.lang.Double | D67: java.lang.ClassCastException: java.util.ArrayList cannot be cast to java.lang.Double | E67: java.lang.ClassCastException: java.util.ArrayList cannot be cast to java.lang.Double | F67: java.lang.ClassCastException: java.util.ArrayList cannot be cast to java.lang.Double | G67: java.lang.ClassCastException: java.util.ArrayList cannot be cast to java.lang.Double | H67: java.lang.ClassCastException: java.util.ArrayList cannot be cast to java.lang.Double | I67: java.lang.ClassCastException: java.util.ArrayList cannot be cast to java.lang.Double
B68: ='data, adj'!B97 -> 2000-06-30 | C68: java.lang.ClassCastException: java.util.ArrayList cannot be cast to java.lang.Double | D68: java.lang.ClassCastException: java.util.ArrayList cannot be cast to java.lang.Double | E68: java.lang.ClassCastException: java.util.ArrayList cannot be cast to java.lang.Double | F68: java.lang.ClassCastException: java.util.ArrayList cannot be cast to java.lang.Double | G68: java.lang.ClassCastException: java.util.ArrayList cannot be cast to java.lang.Double | H68: java.lang.ClassCastException: java.util.ArrayList cannot be cast to java.lang.Double | I68: java.lang.ClassCastException: java.util.ArrayList cannot be cast to java.lang.Double
B69: ='data, adj'!B98 -> 2000-03-31 | C69: java.lang.ClassCastException: java.util.ArrayList cannot be cast to java.lang.Double | D69: java.lang.ClassCastException: java.util.ArrayList cannot be cast to java.lang.Double | E69: java.lang.ClassCastException: java.util.ArrayList cannot be cast to java.lang.Double | F69: java.lang.ClassCastException: java.util.ArrayList cannot be cast to java.lang.Double | G69: java.lang.ClassCastException: java.util.ArrayList cannot be cast to java.lang.Double | H69: java.lang.ClassCastException: java.util.ArrayList cannot be cast to java.lang.Double | I69: java.lang.ClassCastException: java.util.ArrayList cannot be cast to java.lang.Double
B70: ='data, adj'!B99 -> 1999-12-31 | C70: java.lang.ClassCastException: java.util.ArrayList cannot be cast to java.lang.Double | D70: java.lang.ClassCastException: java.util.ArrayList cannot be cast to java.lang.Double | E70: java.lang.ClassCastException: java.util.ArrayList cannot be cast to java.lang.Double | F70: java.lang.ClassCastException: java.util.ArrayList cannot be cast to java.lang.Double | G70: java.lang.ClassCastException: java.util.ArrayList cannot be cast to java.lang.Double | H70: java.lang.ClassCastException: java.util.ArrayList cannot be cast to java.lang.Double | I70: java.lang.ClassCastException: java.util.ArrayList cannot be cast to java.lang.Double
B71: ='data, adj'!B100 -> 1999-09-30 | C71: java.lang.ClassCastException: java.util.ArrayList cannot be cast to java.lang.Double | D71: java.lang.ClassCastException: java.util.ArrayList cannot be cast to java.lang.Double | E71: java.lang.ClassCastException: java.util.ArrayList cannot be cast to java.lang.Double | F71: java.lang.ClassCastException: java.util.ArrayList cannot be cast to java.lang.Double | G71: java.lang.ClassCastException: java.util.ArrayList cannot be cast to java.lang.Double | H71: java.lang.ClassCastException: java.util.ArrayList cannot be cast to java.lang.Double | I71: java.lang.ClassCastException: java.util.ArrayList cannot be cast to java.lang.Double
B72: ='data, adj'!B101 -> 1999-06-30 | C72: java.lang.ClassCastException: java.util.ArrayList cannot be cast to java.lang.Double | D72: java.lang.ClassCastException: java.util.ArrayList cannot be cast to java.lang.Double | E72: java.lang.ClassCastException: java.util.ArrayList cannot be cast to java.lang.Double | F72: java.lang.ClassCastException: java.util.ArrayList cannot be cast to java.lang.Double | G72: java.lang.ClassCastException: java.util.ArrayList cannot be cast to java.lang.Double | H72: java.lang.ClassCastException: java.util.ArrayList cannot be cast to java.lang.Double | I72: java.lang.ClassCastException: java.util.ArrayList cannot be cast to java.lang.Double
B73: ='data, adj'!B102 -> 1999-03-31 | C73: java.lang.ClassCastException: java.util.ArrayList cannot be cast to java.lang.Double | D73: java.lang.ClassCastException: java.util.ArrayList cannot be cast to java.lang.Double | E73: java.lang.ClassCastException: java.util.ArrayList cannot be cast to java.lang.Double | F73: java.lang.ClassCastException: java.util.ArrayList cannot be cast to java.lang.Double | G73: java.lang.ClassCastException: java.util.ArrayList cannot be cast to java.lang.Double | H73: java.lang.ClassCastException: java.util.ArrayList cannot be cast to java.lang.Double | I73: java.lang.ClassCastException: java.util.ArrayList cannot be cast to java.lang.Double
B74: ='data, adj'!B103 -> 1998-12-31 | C74: java.lang.ClassCastException: java.util.ArrayList cannot be cast to java.lang.Double | D74: java.lang.ClassCastException: java.util.ArrayList cannot be cast to java.lang.Double | E74: java.lang.ClassCastException: java.util.ArrayList cannot be cast to java.lang.Double | F74: java.lang.ClassCastException: java.util.ArrayList cannot be cast to java.lang.Double | G74: java.lang.ClassCastException: java.util.ArrayList cannot be cast to java.lang.Double | H74: java.lang.ClassCastException: java.util.ArrayList cannot be cast to java.lang.Double | I74: java.lang.ClassCastException: java.util.ArrayList cannot be cast to java.lang.Double
B75: ='data, adj'!B104 -> 1998-09-30 | C75: java.lang.ClassCastException: java.util.ArrayList cannot be cast to java.lang.Double | D75: java.lang.ClassCastException: java.util.ArrayList cannot be cast to java.lang.Double | E75: java.lang.ClassCastException: java.util.ArrayList cannot be cast to java.lang.Double | F75: java.lang.ClassCastException: java.util.ArrayList cannot be cast to java.lang.Double | G75: java.lang.ClassCastException: java.util.ArrayList cannot be cast to java.lang.Double | H75: java.lang.ClassCastException: java.util.ArrayList cannot be cast to java.lang.Double | I75: java.lang.ClassCastException: java.util.ArrayList cannot be cast to java.lang.Double
B76: ='data, adj'!B105 -> 1998-06-30 | C76: java.lang.ClassCastException: java.util.ArrayList cannot be cast to java.lang.Double | D76: java.lang.ClassCastException: java.util.ArrayList cannot be cast to java.lang.Double | E76: java.lang.ClassCastException: java.util.ArrayList cannot be cast to java.lang.Double | F76: java.lang.ClassCastException: java.util.ArrayList cannot be cast to java.lang.Double | G76: java.lang.ClassCastException: java.util.ArrayList cannot be cast to java.lang.Double | H76: java.lang.ClassCastException: java.util.ArrayList cannot be cast to java.lang.Double | I76: java.lang.ClassCastException: java.util.ArrayList cannot be cast to java.lang.Double
B77: ='data, adj'!B106 -> 1998-03-31 | C77: java.lang.ClassCastException: java.util.ArrayList cannot be cast to java.lang.Double | D77: java.lang.ClassCastException: java.util.ArrayList cannot be cast to java.lang.Double | E77: java.lang.ClassCastException: java.util.ArrayList cannot be cast to java.lang.Double | F77: java.lang.ClassCastException: java.util.ArrayList cannot be cast to java.lang.Double | G77: java.lang.ClassCastException: java.util.ArrayList cannot be cast to java.lang.Double | H77: java.lang.ClassCastException: java.util.ArrayList cannot be cast to java.lang.Double | I77: java.lang.ClassCastException: java.util.ArrayList cannot be cast to java.lang.Double
B78: ='data, adj'!B107 -> 1997-12-31 | C78: java.lang.ClassCastException: java.util.ArrayList cannot be cast to java.lang.Double | D78: java.lang.ClassCastException: java.util.ArrayList cannot be cast to java.lang.Double | E78: java.lang.ClassCastException: java.util.ArrayList cannot be cast to java.lang.Double | F78: java.lang.ClassCastException: java.util.ArrayList cannot be cast to java.lang.Double | G78: java.lang.ClassCastException: java.util.ArrayList cannot be cast to java.lang.Double | H78: java.lang.ClassCastException: java.util.ArrayList cannot be cast to java.lang.Double | I78: java.lang.ClassCastException: java.util.ArrayList cannot be cast to java.lang.Double
B79: ='data, adj'!B108 -> 1997-09-30 | C79: java.lang.ClassCastException: java.util.ArrayList cannot be cast to java.lang.Double | D79: java.lang.ClassCastException: java.util.ArrayList cannot be cast to java.lang.Double | E79: java.lang.ClassCastException: java.util.ArrayList cannot be cast to java.lang.Double | F79: java.lang.ClassCastException: java.util.ArrayList cannot be cast to java.lang.Double | G79: java.lang.ClassCastException: java.util.ArrayList cannot be cast to java.lang.Double | H79: java.lang.ClassCastException: java.util.ArrayList cannot be cast to java.lang.Double | I79: java.lang.ClassCastException: java.util.ArrayList cannot be cast to java.lang.Double
B80: ='data, adj'!B109 -> 1997-06-30 | C80: java.lang.ClassCastException: java.util.ArrayList cannot be cast to java.lang.Double | D80: java.lang.ClassCastException: java.util.ArrayList cannot be cast to java.lang.Double | E80: java.lang.ClassCastException: java.util.ArrayList cannot be cast to java.lang.Double | F80: java.lang.ClassCastException: java.util.ArrayList cannot be cast to java.lang.Double | G80: java.lang.ClassCastException: java.util.ArrayList cannot be cast to java.lang.Double | H80: java.lang.ClassCastException: java.util.ArrayList cannot be cast to java.lang.Double | I80: java.lang.ClassCastException: java.util.ArrayList cannot be cast to java.lang.Double
B81: ='data, adj'!B110 -> 1997-03-31 | C81: java.lang.ClassCastException: java.util.ArrayList cannot be cast to java.lang.Double | D81: java.lang.ClassCastException: java.util.ArrayList cannot be cast to java.lang.Double | E81: java.lang.ClassCastException: java.util.ArrayList cannot be cast to java.lang.Double | F81: java.lang.ClassCastException: java.util.ArrayList cannot be cast to java.lang.Double | G81: java.lang.ClassCastException: java.util.ArrayList cannot be cast to java.lang.Double | H81: java.lang.ClassCastException: java.util.ArrayList cannot be cast to java.lang.Double | I81: java.lang.ClassCastException: java.util.ArrayList cannot be cast to java.lang.Double
B82: ='data, adj'!B111 -> 1996-12-31 | C82: java.lang.ClassCastException: java.util.ArrayList cannot be cast to java.lang.Double | D82: java.lang.ClassCastException: java.util.ArrayList cannot be cast to java.lang.Double | E82: java.lang.ClassCastException: java.util.ArrayList cannot be cast to java.lang.Double | F82: java.lang.ClassCastException: java.util.ArrayList cannot be cast to java.lang.Double | G82: java.lang.ClassCastException: java.util.ArrayList cannot be cast to java.lang.Double | H82: java.lang.ClassCastException: java.util.ArrayList cannot be cast to java.lang.Double | I82: java.lang.ClassCastException: java.util.ArrayList cannot be cast to java.lang.Double
B83: ='data, adj'!B112 -> 1996-09-30 | C83: java.lang.ClassCastException: java.util.ArrayList cannot be cast to java.lang.Double | D83: java.lang.ClassCastException: java.util.ArrayList cannot be cast to java.lang.Double | E83: java.lang.ClassCastException: java.util.ArrayList cannot be cast to java.lang.Double | F83: java.lang.ClassCastException: java.util.ArrayList cannot be cast to java.lang.Double | G83: java.lang.ClassCastException: java.util.ArrayList cannot be cast to java.lang.Double | H83: java.lang.ClassCastException: java.util.ArrayList cannot be cast to java.lang.Double | I83: java.lang.ClassCastException: java.util.ArrayList cannot be cast to java.lang.Double
B84: ='data, adj'!B113 -> 1996-06-30 | C84: java.lang.ClassCastException: java.util.ArrayList cannot be cast to java.lang.Double | D84: java.lang.ClassCastException: java.util.ArrayList cannot be cast to java.lang.Double | E84: java.lang.ClassCastException: java.util.ArrayList cannot be cast to java.lang.Double | F84: java.lang.ClassCastException: java.util.ArrayList cannot be cast to java.lang.Double | G84: java.lang.ClassCastException: java.util.ArrayList cannot be cast to java.lang.Double | H84: java.lang.ClassCastException: java.util.ArrayList cannot be cast to java.lang.Double | I84: java.lang.ClassCastException: java.util.ArrayList cannot be cast to java.lang.Double
B85: ='data, adj'!B114 -> 1996-03-31

Sheet res
B2: TAB: COVARIANCE MATRICES OF THE VAR MODEL
B4: VAR residuals covariance matrix (Q, in bps)
D6: 1 | E6: =D6+1 -> 2 | F6: =E6+1 -> 3 | G6: 4 | H6: 5 | I6: 6 | J6: 7
B7: # | D7: =calc!D17 -> CA | E7: =calc!E17 -> AB | F7: =calc!F17 -> BC | G7: =calc!G17 -> MB | H7: =calc!H17 -> ON | I7: =calc!I17 -> QC | J7: =calc!J17 -> SK
B8: 1 | C8: =calc!B19 -> CA | D8: =_xll.AC.stats.reg._get(calc!B11, config!B20, 0) -> 0.0003310197595 | E8: 9.827954425e-05 | F8: 0.0003635123258 | G8: 8.759647625e-05 | H8: 0.0002284994246 | I8: 6.192768335e-05 | J8: 3.486098174e-05
B9: =B8+1 -> 2 | C9: =calc!B20 -> AB | D9: 9.827954425e-05 | E9: 0.0003105115077 | F9: 7.959839362e-05 | G9: 2.720810704e-06 | H9: 1.68170923e-05 | I9: -1.22428271e-06 | J9: 7.894978552e-05
B10: =B9+1 -> 3 | C10: =calc!B21 -> BC | D10: 0.0003635123258 | E10: 7.959839362e-05 | F10: 0.0009228368404 | G10: 7.255016004e-05 | H10: -3.128241259e-05 | I10: 3.228497639e-06 | J10: 5.591909176e-05
B11: 4 | C11: =calc!B22 -> MB | D11: 8.759647625e-05 | E11: 2.720810704e-06 | F11: 7.255016004e-05 | G11: 0.0003971315236 | H11: 0.0001143667348 | I11: 6.055544368e-05 | J11: 0.0001055932056
B12: 5 | C12: =calc!B23 -> ON | D12: 0.0002284994246 | E12: 1.68170923e-05 | F12: -3.128241259e-05 | G12: 0.0001143667348 | H12: 0.0004305089866 | I12: 6.766673333e-05 | J12: 2.204378996e-06
B13: 6 | C13: =calc!B24 -> QC | D13: 6.192768335e-05 | E13: -1.22428271e-06 | F13: 3.228497639e-06 | G13: 6.055544368e-05 | H13: 6.766673333e-05 | I13: 0.0001921748279 | J13: 6.633030432e-05
B14: 7 | C14: =calc!B25 -> SK | D14: 3.486098174e-05 | E14: 7.894978552e-05 | F14: 5.591909176e-05 | G14: 0.0001055932056 | H14: 2.204378996e-06 | I14: 6.633030432e-05 | J14: 0.0004785755603
C16: stdev | D16: =OFFSET($C$7, D6, D6) -> 0.0003310197595 | E16: =OFFSET($C$7, E6, E6) -> 0.0003105115077 | F16: 0.0009228368404 | G16: 0.0003971315236 | H16: 0.0004305089866 | I16: 0.0001921748279 | J16: 0.0004785755603

Sheet config
B2: TAB: CONFIGURATION FILE | C2: Calculation enabled | E2: TRUE
B4: Test connection | C4: =_xll.AC.test.connection() -> host: home-pc; user: Konstantin Rybakov; key: null
B6: Term structure output keys
B7: table-standard | C7: Standard VAR output table
B8: STATS | C8: VAR model statistics
B9: steady-state | C9: VAR steady state and eigen-values
B10: eigen-values | C10: VAR eigen-values (stability test and convergence speed)
B11: yhat | C11: VAR fitted values
B12: proj-values | C12: Projected VAR values
B13: proj-cum-values | C13: Projected VAR cuulative values
B14: proj-error-var | C14: Projections error variances over time
B15: proj-cum-error-var | C15: Cumulative projections error variances over time
B16: backtest-cum-values | C16: Projection constructed based on backtesting calculations
B17: backtest-cum-error-var | C17: Variance of the projection error of the constructed based on backtesting calculations
B18: backtest-error-nrmse | C18: Normalizes square root of MSE, estimated for projections in-sample backtesting
B19: backtest-cum-error-nrmse | C19: Normalizes square root of MSE, estimated for cumulative projections in-sample backtesting
B20: error-S2 | C20: Covariance matrix of the residuals
B23: Array formula cell address | C23: number of rows | D23: number of cols | E23: Description
B24: =addressFla(calc!C18) -> 'calc'!$C$18 | C24: =4*D24 -> 32 | D24: =1+calc!N10 -> 8 | E24: Auto-regression model coefficients
